Workbook

Sheet Critérios
C2: DADOS DE CHAMADAS PÚBLICAS DE PROJETO
C4: Distribuidora
C6: Chamada Pública
C8: Tipologia
B10: Critério | C10: Subcritério | D10: Descrição | E10: Mínimo | F10: Máximo | G10: Escolhido | H10: Pontuação | J10: Uso final | K10: Pontos
B11: A | D11: Relação custo-benefício | E11: 30 | F11: 40 | G11: 32 | J11: Iluminação | K11: 1
C12: A1 | D12: Relação custo-benefício proporcional | E12: 0.75 | F12: 0.75 | G12: 0.75 | H12: =ROUND(G12*$G$11,0) -> 24 | J12: Fontes Incentivadas | K12: 10
C13: A2 | D13: Relação custo-benefício ordenada | E13: 0.25 | F13: 0.25 | G13: 0.25 | H13: =G11-H12 -> 8 | J13: Ar Comprimido | K13: 5
B14: B | D14: Peso do investimento em equipamentos no custo total | E14: 5 | F14: 10 | G14: 5 | H14: =G14 -> 5 | J14: Bombas | K14: 4
B15: C | D15: Impacto direto dos benefícios energéticos | E15: 10 | F15: 20 | G15: 13 | J15: Bombas de vácuo | K15: 3
C16: C1 | D16: Impacto direto na economia de energia | E16: 0.5 | F16: 0.7 | G16: 0.6 | H16: =ROUND(G16*G15,0) -> 8 | J16: Cond. Ambiental | K16: 4
C17: C2 | D17: Impacto direto na redução de demanda na ponta | E17: 0.3 | F17: 0.5 | G17: 0.4 | H17: =G15-H16 -> 5 | J17: Equip. hospitalar | K17: 5
B18: D | D18: Qualidade do projeto | E18: 8 | F18: 15 | G18: 12 | J18: Motores | K18: 8
C19: D1 | D19: Qualidade global do projeto | E19: 0.2 | F19: 0.3 | G19: 0.25 | H19: =ROUND(G19*$G$18,0) -> 3 | J19: Outros | K19: 7
C20: D2 | D20: Bases da proposta | E20: 0.2 | F20: 0.3 | G20: 0.2 | H20: =ROUND(G20*$G$18,0) -> 2 | J20: Refrigeração | K20: 6
C21: D3 | D21: Consistência do cronograma apresentado | E21: 0.2 | F21: 0.3 | G21: 0.25 | H21: 3 | J21: Sistemas motrizes | K21: 5
C22: D4 | D22: Estratégia de M&V | E22: 0.3 | F22: 0.4 | G22: 0.3 | H22: =G18-SUM(H19:H21) -> 4 | J22: Sopradores de Ar | K22: 4
B23: E | D23: Capacidade para superar barreiras de mercado e efeito multiplicador | E23: 0 | F23: 5 | G23: 3 | J23: Aquecimento Solar | K23: 8
C24: E1 | D24: Eficácia na quebra de barreiras de mercado | E24: 0 | F24: 1 | G24: 0.4 | H24: =ROUND(G24*$G$23,0) -> 1
C25: E2 | D25: Induz comportamentos de uso eficiente da energia | E25: 0 | F25: 1 | G25: 0.5 | H25: =ROUND(G25*$G$23,0) -> 2
C26: E3 | D26: Destina-se a segmentos com barreiras mais relevantes | E26: 0 | F26: 1 | G26: 0.1 | H26: =G23-SUM(H24:H25) -> 0
B27: F | D27: Experiência em projetos semelhantes | E27: 10 | F27: 20 | G27: 15
C28: F1 | D28: Experiência nos usos finais propostos | E28: 0.3 | F28: 0.4 | G28: 0.4 | H28: =ROUND(G28*$G$27,0) -> 6
C29: F2 | D29: Experiência no PEE | E29: 0.2 | F29: 0.3 | G29: 0.2 | H29: =ROUND(G29*$G$27,0) -> 3
C30: F3 | D30: Certificação CMVP da EVO | E30: 0.2 | F30: 0.3 | G30: 0.2 | H30: =G27-SUM(H28:H29,H31) -> 3
C31: F4 | D31: Outras certificações pertinentes | E31: 0.2 | F31: 0.3 | G31: 0.2 | H31: 3
B32: G | D32: Contrapartida | E32: 10 | F32: 20 | G32: 10 | H32: =G32 -> 10
B33: H | D33: Diversidade e priorização de usos finais | E33: 5 | F33: 10 | G33: 5 | H33: =G33 -> 5
B34: I | D34: Ações educacionais, divulgação e gestão | E34: 5 | F34: 10 | G34: 5 | H34: =100-SUM(H11:H33) -> 5
H35: =SUM(H11:H34) -> 100

Sheet Dados
C3: DADOS QUALITATIVOS DAS PROPOSTAS
A11: Proposta | B11: Uso final 1 | C11: Uso final 2 | D11: Uso final 3
A12: P1 | B12: Iluminação
A13: P2 | B13: Iluminação | C13: Cond. Ambiental
A14: P3 | B14: Iluminação
A15: P4 | B15: Iluminação
A16: P5 | B16: Iluminação
A17: P6 | B17: Iluminação
A18: P7 | B18: Iluminação
A19: P8 | B19: Cond. Ambiental | C19: Sistemas motrizes
A20: P9 | B20: Bombas | C20: Sistemas motrizes
A21: P10 | B21: Iluminação

Sheet Propostas
D3: DADOS QUANTITATIVOS DAS PROPOSTAS
A11: Proposta | B11: Investimento total [mil R$] | C11: Investimento PEE [mil R$] | D11: Benefício PEE [mil R$] | E11: Custo fixo [mil R$] | F11: Investimento em equipamentos [mil R$] | G11: Energia economizada [MWh/ano] | H11: Redução na ponta [kW] | I11: Qualidade global [%] | J11: Bases da proposta [%] | K11: Cronograma [%] | L11: Estratégia de M&V [%] | M11: Quebra de barreiras [%] | N11: Induz comportamentos eficientes [%] | O11: Segmentos com barreiras [%] | P11: Experiência nos usos finais propostos [%] | Q11: Experiência no PEE [%] | R11: Certificação CMVP da EVO [%] | S11: Outras certificações pertinentes [%] | T11: Uso final 1 [mil R$] | U11: Uso final 2 [mil R$] | V11: Uso final 3 [mil R$] | W11: Investimento em treinamento [mil R$] | X11: Investimento em SGE [mil R$]
A12: P1 | B12: 939.06259 | C12: 939.06259 | D12: 1703.346348 | E12: 18.78125 | F12: 701.46011 | G12: 463.58 | H12: 162.26 | I12: 0.75 | J12: 0.75 | K12: 0.75 | L12: 0.75 | M12: 0.75 | N12: 0.5 | O12: 0.75 | P12: 1 | Q12: 1 | R12: 1 | S12: 1 | T12: 939.0625867 | W12: 2.5 | X12: 1.25
A13: P2 | B13: 1052.35706 | C13: 834.55706 | D13: 1486.096837 | E13: 29.10634122 | F13: 573.95897 | G13: 691.29 | H13: 179.79 | I13: 0.75 | J13: 0.75 | K13: 0.75 | L13: 0.75 | M13: 0.75 | N13: 0.5 | O13: 0.75 | P13: 1 | Q13: 1 | R13: 1 | S13: 1 | T13: 773.1530966 | U13: 58.2189646 | W13: 17.2 | X13: 8.6
A14: P3 | B14: 201.22857 | C14: 193.70217 | D14: 360.2628742 | E14: 4.024571429 | F14: 148.1056 | G14: 224.51 | H14: 24.44 | I14: 0.5 | J14: 0.75 | K14: 0.75 | L14: 0.75 | M14: 0.75 | N14: 0.5 | O14: 0.75 | P14: 1 | Q14: 1 | R14: 1 | S14: 1 | T14: 193.7021714 | W14: 2.5 | X14: 1.25
A15: P4 | B15: 620.96755 | C15: 545.85755 | D15: 867.6663765 | E15: 20.47855102 | F15: 444.47 | G15: 349.57 | H15: 79.92 | I15: 1 | J15: 0.75 | K15: 0.75 | L15: 0.75 | M15: 0.75 | N15: 0.75 | O15: 0.75 | P15: 1 | Q15: 1 | R15: 1 | S15: 1 | T15: 545.857551 | W15: 5 | X15: 2.5
A16: P5 | B16: 1146.47877 | C16: 947.92377 | D16: 1312.494012 | E16: 53.36157531 | F16: 794.28619 | G16: 448.49 | H16: 150.46 | I16: 0.75 | J16: 0.75 | K16: 0.75 | L16: 0.75 | M16: 0.75 | N16: 0.75 | O16: 0.75 | P16: 1 | Q16: 1 | R16: 1 | S16: 1 | T16: 947.9237653 | W16: 10.92 | X16: 5.46
A17: P6 | B17: 2217.00408 | C17: 2217.00408 | D17: 3495.31575 | E17: 52.39928163 | F17: 1662.96 | G17: 1102.51 | H17: 121.61 | I17: 1 | J17: 0.75 | K17: 0.75 | L17: 0.75 | M17: 0.75 | N17: 1 | O17: 1 | P17: 1 | Q17: 1 | R17: 1 | S17: 1 | T17: 2217.004082 | W17: 6.32 | X17: 3.16
A18: P7 | B18: 1705.33163 | C18: 1355.33163 | D18: 1935.898061 | E18: 34.10663265 | F18: 1241.2 | G18: 601.23 | H18: 174.02 | I18: 0.75 | J18: 0.75 | K18: 0.75 | L18: 0.75 | M18: 0.75 | N18: 0.5 | O18: 0.75 | P18: 1 | Q18: 1 | R18: 1 | S18: 1 | T18: 1355.331633 | W18: 7.5 | X18: 3.75
A19: P8 | B19: 652.24929 | C19: 623.35929 | D19: 929.7112283 | E19: 21.72578571 | F19: 452.55 | G19: 372.44 | H19: 79.54 | I19: 1 | J19: 0.75 | K19: 0.75 | L19: 0.75 | M19: 0.75 | N19: 0.75 | O19: 0.5 | P19: 1 | Q19: 1 | R19: 1 | S19: 1 | T19: 340.375817 | U19: 282.9834687 | W19: 10.92 | X19: 5.46
A20: P9 | B20: 484.56644 | C20: 444.56644 | D20: 730.4780034 | E20: 17.64972878 | F20: 309.06921 | G20: 263.27 | H20: 61.09 | I20: 1 | J20: 0.75 | K20: 0.75 | L20: 0.75 | M20: 0.75 | N20: 0.75 | O20: 0.5 | P20: 1 | Q20: 1 | R20: 1 | S20: 1 | T20: 353.4244836 | U20: 91.1419552 | W20: 10.92 | X20: 5.46
A21: P10 | B21: 192.88801 | C21: 192.88801 | D21: 265.9579969 | E21: 11.9673602 | F21: 130.36567 | G21: 83.74 | H21: 31.68 | I21: 0.75 | J21: 0.75 | K21: 0.75 | L21: 0.75 | M21: 0.75 | N21: 0.75 | O21: 0.75 | P21: 1 | Q21: 1 | R21: 1 | S21: 1 | T21: 192.8880102 | W21: 2.2 | X21: 1.1

Sheet Parâmetros
C1: A1 | D1: A2 | E1: B | F1: C1 | G1: C2 | H1: G | I1: H | Q1: I
C2: RCB proporcional | D2: RCB ordenada | E2: Equipamentos | F2: Economia de energia | G2: Redução de demanda na ponta | H2: Contrapartida | I2: Diversidade e priorização de usos finais | Q2: Ações educacionais
B3: Cálculo dos parâmetros | C3: RCB | D3: Posição RCB | E3: IK | F3: IE | G3: ID | H3: PI | I3: Média uso final | J3: Ordem UF1 | K3: Ordem UF2 | L3: Ordem UF3 | M3: DUF1 | N3: DUF2 | O3: DUF3 | P3: DUF | Q3: PT
B4: Min/máx | C4: =MIN(C5:C200) -> 0.5376689742 | E4: =MAX(E5:E200) -> 0.9157906246 | F4: =MAX(Propostas!G12:G221) -> 1102.51 | G4: =MAX(Propostas!H12:H221) -> 179.79 | H4: =MAX(H5:H200) -> 0.2069639748 | I4: mil R$ | P4: =MAX(P5:P200) -> 12.88496062 | Q4: =MAX(Q5:Q200) -> 0.03380341404
B5: =IF(ISTEXT(Propostas!A12),Propostas!A12,"") -> P1 | C5: =IFERROR(Propostas!C12/Propostas!D12,"") -> 0.551304549 | D5: =IF($C5="","",RANK(C5,$C$5:$C$200,0)) -> 9 | E5: =IF($C5="","",Propostas!F12/Propostas!C12) -> 0.7469790805 | F5: =IF($C5="","",Propostas!G12/Parâmetros!$F$4) -> 0.4204769118 | G5: =IF($C5="","",Propostas!H12/Parâmetros!$G$4) -> 0.902497358 | H5: =IF($C5="","",MIN(1,(Propostas!B12-Propostas!C12)/Propostas!B12)) -> 0 | I5: =IF($C5="","",AVERAGE(Propostas!T12:V12)) -> 939.0625867 | J5: =IF(Propostas!T12="","",_xlfn.RANK.EQ(Propostas!T12,Propostas!$T12:$V12,1)) -> 1 | K5: =IF(Propostas!U12="","",_xlfn.RANK.EQ(Propostas!U12,Propostas!$T12:$V12,1)) ->  | L5: =IF(Propostas!V12="","",_xlfn.RANK.EQ(Propostas!V12,Propostas!$T12:$V12,1)) ->  | M5: =IF(Propostas!T12="","",Parâmetros!J5*(1+(Propostas!T12-Parâmetros!$I5)/SUM(Propostas!$T12:$V12))*VLOOKUP(Dados!B12,Uso_final[],2,0)) -> 1 | N5: =IF(Propostas!U12="","",Parâmetros!K5*(1+(Propostas!U12-Parâmetros!$I5)/SUM(Propostas!$T12:$V12))*VLOOKUP(Dados!C12,Uso_final[],2,0)) ->  | O5: =IF(Propostas!V12="","",Parâmetros!L5*(1+(Propostas!V12-Parâmetros!$I5)/SUM(Propostas!$T12:$V12))*VLOOKUP(Dados!D12,Uso_final[],2,0)) ->  | P5: =IF(C5="","",SUM(M5:O5)-1) -> 0 | Q5: =IF($C5="","",MIN(1,(Propostas!W12+Propostas!X12)/Propostas!B12)) -> 0.003993344043
B6: =IF(ISTEXT(Propostas!A13),Propostas!A13,"") -> P2 | C6: =IFERROR(Propostas!C13/Propostas!D13,"") -> 0.5615764996 | D6: =IF($C6="","",RANK(C6,$C$5:$C$200,0)) -> 8 | E6: =IF($C6="","",Propostas!F13/Propostas!C13) -> 0.6877408358 | F6: =IF($C6="","",Propostas!G13/Parâmetros!$F$4) -> 0.627014721 | G6: =IF($C6="","",Propostas!H13/Parâmetros!$G$4) -> 1 | H6: =IF($C6="","",MIN(1,(Propostas!B13-Propostas!C13)/Propostas!B13)) -> 0.2069639748 | I6: =IF($C6="","",AVERAGE(Propostas!T13:V13)) -> 415.6860306 | J6: =IF(Propostas!T13="","",_xlfn.RANK.EQ(Propostas!T13,Propostas!$T13:$V13,1)) -> 2 | K6: =IF(Propostas!U13="","",_xlfn.RANK.EQ(Propostas!U13,Propostas!$T13:$V13,1)) -> 1 | L6: =IF(Propostas!V13="","",_xlfn.RANK.EQ(Propostas!V13,Propostas!$T13:$V13,1)) ->  | M6: =IF(Propostas!T13="","",Parâmetros!J6*(1+(Propostas!T13-Parâmetros!$I6)/SUM(Propostas!$T13:$V13))*VLOOKUP(Dados!B13,Uso_final[],2,0)) -> 2.859944861 | N6: =IF(Propostas!U13="","",Parâmetros!K6*(1+(Propostas!U13-Parâmetros!$I6)/SUM(Propostas!$T13:$V13))*VLOOKUP(Dados!C13,Uso_final[],2,0)) -> 2.280110277 | O6: =IF(Propostas!V13="","",Parâmetros!L6*(1+(Propostas!V13-Parâmetros!$I6)/SUM(Propostas!$T13:$V13))*VLOOKUP(Dados!D13,Uso_final[],2,0)) ->  | P6: 4.140055139 | Q6: =IF($C6="","",MIN(1,(Propostas!W13+Propostas!X13)/Propostas!B13)) -> 0.0245163937
B7: =IF(ISTEXT(Propostas!A14),Propostas!A14,"") -> P3 | C7: =IFERROR(Propostas!C14/Propostas!D14,"") -> 0.5376689742 | D7: 10 | E7: =IF($C7="","",Propostas!F14/Propostas!C14) -> 0.7646047538 | F7: =IF($C7="","",Propostas!G14/Parâmetros!$F$4) -> 0.2036353412 | G7: =IF($C7="","",Propostas!H14/Parâmetros!$G$4) -> 0.1359363702 | H7: =IF($C7="","",MIN(1,(Propostas!B14-Propostas!C14)/Propostas!B14)) -> 0.03740224363 | I7: =IF($C7="","",AVERAGE(Propostas!T14:V14)) -> 193.7021714 | J7: =IF(Propostas!T14="","",_xlfn.RANK.EQ(Propostas!T14,Propostas!$T14:$V14,1)) -> 1 | K7: =IF(Propostas!U14="","",_xlfn.RANK.EQ(Propostas!U14,Propostas!$T14:$V14,1)) ->  | L7: =IF(Propostas!V14="","",_xlfn.RANK.EQ(Propostas!V14,Propostas!$T14:$V14,1)) ->  | M7: =IF(Propostas!T14="","",Parâmetros!J7*(1+(Propostas!T14-Parâmetros!$I7)/SUM(Propostas!$T14:$V14))*VLOOKUP(Dados!B14,Uso_final[],2,0)) -> 1 | N7: =IF(Propostas!U14="","",Parâmetros!K7*(1+(Propostas!U14-Parâmetros!$I7)/SUM(Propostas!$T14:$V14))*VLOOKUP(Dados!C14,Uso_final[],2,0)) ->  | O7: =IF(Propostas!V14="","",Parâmetros!L7*(1+(Propostas!V14-Parâmetros!$I7)/SUM(Propostas!$T14:$V14))*VLOOKUP(Dados!D14,Uso_final[],2,0)) ->  | P7: 0 | Q7: =IF($C7="","",MIN(1,(Propostas!W14+Propostas!X14)/Propostas!B14)) -> 0.01863552477
B8: =IF(ISTEXT(Propostas!A15),Propostas!A15,"") -> P4 | C8: =IFERROR(Propostas!C15/Propostas!D15,"") -> 0.6291099492 | D8: 6 | E8: =IF($C8="","",Propostas!F15/Propostas!C15) -> 0.8142600574 | F8: =IF($C8="","",Propostas!G15/Parâmetros!$F$4) -> 0.3170674189 | G8: =IF($C8="","",Propostas!H15/Parâmetros!$G$4) -> 0.444518605 | H8: =IF($C8="","",MIN(1,(Propostas!B15-Propostas!C15)/Propostas!B15)) -> 0.120956401 | I8: =IF($C8="","",AVERAGE(Propostas!T15:V15)) -> 545.857551 | J8: =IF(Propostas!T15="","",_xlfn.RANK.EQ(Propostas!T15,Propostas!$T15:$V15,1)) -> 1 | K8: =IF(Propostas!U15="","",_xlfn.RANK.EQ(Propostas!U15,Propostas!$T15:$V15,1)) ->  | L8: =IF(Propostas!V15="","",_xlfn.RANK.EQ(Propostas!V15,Propostas!$T15:$V15,1)) ->  | M8: =IF(Propostas!T15="","",Parâmetros!J8*(1+(Propostas!T15-Parâmetros!$I8)/SUM(Propostas!$T15:$V15))*VLOOKUP(Dados!B15,Uso_final[],2,0)) -> 1 | N8: =IF(Propostas!U15="","",Parâmetros!K8*(1+(Propostas!U15-Parâmetros!$I8)/SUM(Propostas!$T15:$V15))*VLOOKUP(Dados!C15,Uso_final[],2,0)) ->  | O8: =IF(Propostas!V15="","",Parâmetros!L8*(1+(Propostas!V15-Parâmetros!$I8)/SUM(Propostas!$T15:$V15))*VLOOKUP(Dados!D15,Uso_final[],2,0)) ->  | P8: 0 | Q8: =IF($C8="","",MIN(1,(Propostas!W15+Propostas!X15)/Propostas!B15)) -> 0.01207792581
B9: =IF(ISTEXT(Propostas!A16),Propostas!A16,"") -> P5 | C9: =IFERROR(Propostas!C16/Propostas!D16,"") -> 0.7222309295 | D9: 2 | E9: =IF($C9="","",Propostas!F16/Propostas!C16) -> 0.8379220093 | F9: =IF($C9="","",Propostas!G16/Parâmetros!$F$4) -> 0.4067899611 | G9: =IF($C9="","",Propostas!H16/Parâmetros!$G$4) -> 0.8368652317 | H9: =IF($C9="","",MIN(1,(Propostas!B16-Propostas!C16)/Propostas!B16)) -> 0.1731868092 | I9: =IF($C9="","",AVERAGE(Propostas!T16:V16)) -> 947.9237653 | J9: =IF(Propostas!T16="","",_xlfn.RANK.EQ(Propostas!T16,Propostas!$T16:$V16,1)) -> 1 | K9: =IF(Propostas!U16="","",_xlfn.RANK.EQ(Propostas!U16,Propostas!$T16:$V16,1)) ->  | L9: =IF(Propostas!V16="","",_xlfn.RANK.EQ(Propostas!V16,Propostas!$T16:$V16,1)) ->  | M9: =IF(Propostas!T16="","",Parâmetros!J9*(1+(Propostas!T16-Parâmetros!$I9)/SUM(Propostas!$T16:$V16))*VLOOKUP(Dados!B16,Uso_final[],2,0)) -> 1 | N9: =IF(Propostas!U16="","",Parâmetros!K9*(1+(Propostas!U16-Parâmetros!$I9)/SUM(Propostas!$T16:$V16))*VLOOKUP(Dados!C16,Uso_final[],2,0)) ->  | O9: =IF(Propostas!V16="","",Parâmetros!L9*(1+(Propostas!V16-Parâmetros!$I9)/SUM(Propostas!$T16:$V16))*VLOOKUP(Dados!D16,Uso_final[],2,0)) ->  | P9: 0 | Q9: =IF($C9="","",MIN(1,(Propostas!W16+Propostas!X16)/Propostas!B16)) -> 0.01428722487
B10: =IF(ISTEXT(Propostas!A17),Propostas!A17,"") -> P6 | C10: =IFERROR(Propostas!C17/Propostas!D17,"") -> 0.6342786284 | D10: 5 | E10: =IF($C10="","",Propostas!F17/Propostas!C17) -> 0.7500933422 | F10: =IF($C10="","",Propostas!G17/Parâmetros!$F$4) -> 1 | G10: =IF($C10="","",Propostas!H17/Parâmetros!$G$4) -> 0.6764002447 | H10: =IF($C10="","",MIN(1,(Propostas!B17-Propostas!C17)/Propostas!B17)) -> 0 | I10: =IF($C10="","",AVERAGE(Propostas!T17:V17)) -> 2217.004082 | J10: =IF(Propostas!T17="","",_xlfn.RANK.EQ(Propostas!T17,Propostas!$T17:$V17,1)) -> 1 | K10: =IF(Propostas!U17="","",_xlfn.RANK.EQ(Propostas!U17,Propostas!$T17:$V17,1)) ->  | L10: =IF(Propostas!V17="","",_xlfn.RANK.EQ(Propostas!V17,Propostas!$T17:$V17,1)) ->  | M10: =IF(Propostas!T17="","",Parâmetros!J10*(1+(Propostas!T17-Parâmetros!$I10)/SUM(Propostas!$T17:$V17))*VLOOKUP(Dados!B17,Uso_final[],2,0)) -> 1 | N10: =IF(Propostas!U17="","",Parâmetros!K10*(1+(Propostas!U17-Parâmetros!$I10)/SUM(Propostas!$T17:$V17))*VLOOKUP(Dados!C17,Uso_final[],2,0)) ->  | O10: =IF(Propostas!V17="","",Parâmetros!L10*(1+(Propostas!V17-Parâmetros!$I10)/SUM(Propostas!$T17:$V17))*VLOOKUP(Dados!D17,Uso_final[],2,0)) ->  | P10: 0 | Q10: =IF($C10="","",MIN(1,(Propostas!W17+Propostas!X17)/Propostas!B17)) -> 0.004276040845
B11: =IF(ISTEXT(Propostas!A18),Propostas!A18,"") -> P7 | C11: =IFERROR(Propostas!C18/Propostas!D18,"") -> 0.7001048544 | D11: 3 | E11: =IF($C11="","",Propostas!F18/Propostas!C18) -> 0.9157906246 | F11: =IF($C11="","",Propostas!G18/Parâmetros!$F$4) -> 0.545328387 | G11: =IF($C11="","",Propostas!H18/Parâmetros!$G$4) -> 0.9679070026 | H11: =IF($C11="","",MIN(1,(Propostas!B18-Propostas!C18)/Propostas!B18)) -> 0.2052386726 | I11: =IF($C11="","",AVERAGE(Propostas!T18:V18)) -> 1355.331633 | J11: =IF(Propostas!T18="","",_xlfn.RANK.EQ(Propostas!T18,Propostas!$T18:$V18,1)) -> 1 | K11: =IF(Propostas!U18="","",_xlfn.RANK.EQ(Propostas!U18,Propostas!$T18:$V18,1)) ->  | L11: =IF(Propostas!V18="","",_xlfn.RANK.EQ(Propostas!V18,Propostas!$T18:$V18,1)) ->  | M11: =IF(Propostas!T18="","",Parâmetros!J11*(1+(Propostas!T18-Parâmetros!$I11)/SUM(Propostas!$T18:$V18))*VLOOKUP(Dados!B18,Uso_final[],2,0)) -> 1 | N11: =IF(Propostas!U18="","",Parâmetros!K11*(1+(Propostas!U18-Parâmetros!$I11)/SUM(Propostas!$T18:$V18))*VLOOKUP(Dados!C18,Uso_final[],2,0)) ->  | O11: =IF(Propostas!V18="","",Parâmetros!L11*(1+(Propostas!V18-Parâmetros!$I11)/SUM(Propostas!$T18:$V18))*VLOOKUP(Dados!D18,Uso_final[],2,0)) ->  | P11: 0 | Q11: =IF($C11="","",MIN(1,(Propostas!W18+Propostas!X18)/Propostas!B18)) -> 0.006596957332
B12: =IF(ISTEXT(Propostas!A19),Propostas!A19,"") -> P8 | C12: =IFERROR(Propostas!C19/Propostas!D19,"") -> 0.6704869975 | D12: 4 | E12: =IF($C12="","",Propostas!F19/Propostas!C19) -> 0.7259858115 | F12: =IF($C12="","",Propostas!G19/Parâmetros!$F$4) -> 0.3378109949 | G12: =IF($C12="","",Propostas!H19/Parâmetros!$G$4) -> 0.4424050281 | H12: =IF($C12="","",MIN(1,(Propostas!B19-Propostas!C19)/Propostas!B19)) -> 0.04429288072 | I12: =IF($C12="","",AVERAGE(Propostas!T19:V19)) -> 311.6796429 | J12: =IF(Propostas!T19="","",_xlfn.RANK.EQ(Propostas!T19,Propostas!$T19:$V19,1)) -> 2 | K12: =IF(Propostas!U19="","",_xlfn.RANK.EQ(Propostas!U19,Propostas!$T19:$V19,1)) -> 1 | L12: =IF(Propostas!V19="","",_xlfn.RANK.EQ(Propostas!V19,Propostas!$T19:$V19,1)) ->  | M12: =IF(Propostas!T19="","",Parâmetros!J12*(1+(Propostas!T19-Parâmetros!$I12)/SUM(Propostas!$T19:$V19))*VLOOKUP(Dados!B19,Uso_final[],2,0)) -> 8.36827781 | N12: =IF(Propostas!U19="","",Parâmetros!K12*(1+(Propostas!U19-Parâmetros!$I12)/SUM(Propostas!$T19:$V19))*VLOOKUP(Dados!C19,Uso_final[],2,0)) -> 4.769826368 | O12: =IF(Propostas!V19="","",Parâmetros!L12*(1+(Propostas!V19-Parâmetros!$I12)/SUM(Propostas!$T19:$V19))*VLOOKUP(Dados!D19,Uso_final[],2,0)) ->  | P12: 12.13810418 | Q12: =IF($C12="","",MIN(1,(Propostas!W19+Propostas!X19)/Propostas!B19)) -> 0.02511309748
B13: =IF(ISTEXT(Propostas!A20),Propostas!A20,"") -> P9 | C13: =IFERROR(Propostas!C20/Propostas!D20,"") -> 0.6085966147 | D13: 7 | E13: =IF($C13="","",Propostas!F20/Propostas!C20) -> 0.695214893 | F13: =IF($C13="","",Propostas!G20/Parâmetros!$F$4) -> 0.2387914849 | G13: =IF($C13="","",Propostas!H20/Parâmetros!$G$4) -> 0.3397853051 | H13: =IF($C13="","",MIN(1,(Propostas!B20-Propostas!C20)/Propostas!B20)) -> 0.08254801963 | I13: =IF($C13="","",AVERAGE(Propostas!T20:V20)) -> 222.2832194 | J13: =IF(Propostas!T20="","",_xlfn.RANK.EQ(Propostas!T20,Propostas!$T20:$V20,1)) -> 2 | K13: =IF(Propostas!U20="","",_xlfn.RANK.EQ(Propostas!U20,Propostas!$T20:$V20,1)) -> 1 | L13: =IF(Propostas!V20="","",_xlfn.RANK.EQ(Propostas!V20,Propostas!$T20:$V20,1)) ->  | M13: =IF(Propostas!T20="","",Parâmetros!J13*(1+(Propostas!T20-Parâmetros!$I13)/SUM(Propostas!$T20:$V20))*VLOOKUP(Dados!B20,Uso_final[],2,0)) -> 10.35989499 | N13: =IF(Propostas!U20="","",Parâmetros!K13*(1+(Propostas!U20-Parâmetros!$I13)/SUM(Propostas!$T20:$V20))*VLOOKUP(Dados!C20,Uso_final[],2,0)) -> 3.525065629 | O13: =IF(Propostas!V20="","",Parâmetros!L13*(1+(Propostas!V20-Parâmetros!$I13)/SUM(Propostas!$T20:$V20))*VLOOKUP(Dados!D20,Uso_final[],2,0)) ->  | P13: 12.88496062 | Q13: =IF($C13="","",MIN(1,(Propostas!W20+Propostas!X20)/Propostas!B20)) -> 0.03380341404
B14: =IF(ISTEXT(Propostas!A21),Propostas!A21,"") -> P10 | C14: =IFERROR(Propostas!C21/Propostas!D21,"") -> 0.7252574175 | D14: 1 | E14: =IF($C14="","",Propostas!F21/Propostas!C21) -> 0.6758619678 | F14: =IF($C14="","",Propostas!G21/Parâmetros!$F$4) -> 0.0759539596 | G14: =IF($C14="","",Propostas!H21/Parâmetros!$G$4) -> 0.1762055732 | H14: =IF($C14="","",MIN(1,(Propostas!B21-Propostas!C21)/Propostas!B21)) -> 0 | I14: =IF($C14="","",AVERAGE(Propostas!T21:V21)) -> 192.8880102 | J14: =IF(Propostas!T21="","",_xlfn.RANK.EQ(Propostas!T21,Propostas!$T21:$V21,1)) -> 1 | K14: =IF(Propostas!U21="","",_xlfn.RANK.EQ(Propostas!U21,Propostas!$T21:$V21,1)) ->  | L14: =IF(Propostas!V21="","",_xlfn.RANK.EQ(Propostas!V21,Propostas!$T21:$V21,1)) ->  | M14: =IF(Propostas!T21="","",Parâmetros!J14*(1+(Propostas!T21-Parâmetros!$I14)/SUM(Propostas!$T21:$V21))*VLOOKUP(Dados!B21,Uso_final[],2,0)) -> 1 | N14: =IF(Propostas!U21="","",Parâmetros!K14*(1+(Propostas!U21-Parâmetros!$I14)/SUM(Propostas!$T21:$V21))*VLOOKUP(Dados!C21,Uso_final[],2,0)) ->  | O14: =IF(Propostas!V21="","",Parâmetros!L14*(1+(Propostas!V21-Parâmetros!$I14)/SUM(Propostas!$T21:$V21))*VLOOKUP(Dados!D21,Uso_final[],2,0)) ->  | P14: 0 | Q14: =IF($C14="","",MIN(1,(Propostas!W21+Propostas!X21)/Propostas!B21)) -> 0.01710837288
B15: =IF(ISTEXT(Propostas!A22),Propostas!A22,"") ->  | C15: =IFERROR(Propostas!C22/Propostas!D22,"") ->  | E15: =IF($C15="","",Propostas!F22/Propostas!C22) ->  | F15: =IF($C15="","",Propostas!G22/Parâmetros!$F$4) ->  | G15: =IF($C15="","",Propostas!H22/Parâmetros!$G$4) ->  | H15: =IF($C15="","",MIN(1,(Propostas!B22-Propostas!C22)/Propostas!B22)) ->  | I15: =IF($C15="","",AVERAGE(Propostas!T22:V22)) ->  | J15: =IF(Propostas!T22="","",_xlfn.RANK.EQ(Propostas!T22,Propostas!$T22:$V22,1)) ->  | K15: =IF(Propostas!U22="","",_xlfn.RANK.EQ(Propostas!U22,Propostas!$T22:$V22,1)) ->  | L15: =IF(Propostas!V22="","",_xlfn.RANK.EQ(Propostas!V22,Propostas!$T22:$V22,1)) ->  | M15: =IF(Propostas!T22="","",Parâmetros!J15*(1+(Propostas!T22-Parâmetros!$I15)/SUM(Propostas!$T22:$V22))*VLOOKUP(Dados!B22,Uso_final[],2,0)) ->  | N15: =IF(Propostas!U22="","",Parâmetros!K15*(1+(Propostas!U22-Parâmetros!$I15)/SUM(Propostas!$T22:$V22))*VLOOKUP(Dados!C22,Uso_final[],2,0)) ->  | O15: =IF(Propostas!V22="","",Parâmetros!L15*(1+(Propostas!V22-Parâmetros!$I15)/SUM(Propostas!$T22:$V22))*VLOOKUP(Dados!D22,Uso_final[],2,0)) ->  | Q15: =IF($C15="","",MIN(1,(Propostas!W22+Propostas!X22)/Propostas!B22)) -> 
B16: =IF(ISTEXT(Propostas!A23),Propostas!A23,"") ->  | C16: =IFERROR(Propostas!C23/Propostas!D23,"") ->  | E16: =IF($C16="","",Propostas!F23/Propostas!C23) ->  | F16: =IF($C16="","",Propostas!G23/Parâmetros!$F$4) ->  | G16: =IF($C16="","",Propostas!H23/Parâmetros!$G$4) ->  | H16: =IF($C16="","",MIN(1,(Propostas!B23-Propostas!C23)/Propostas!B23)) ->  | I16: =IF($C16="","",AVERAGE(Propostas!T23:V23)) ->  | J16: =IF(Propostas!T23="","",_xlfn.RANK.EQ(Propostas!T23,Propostas!$T23:$V23,1)) ->  | K16: =IF(Propostas!U23="","",_xlfn.RANK.EQ(Propostas!U23,Propostas!$T23:$V23,1)) ->  | L16: =IF(Propostas!V23="","",_xlfn.RANK.EQ(Propostas!V23,Propostas!$T23:$V23,1)) ->  | M16: =IF(Propostas!T23="","",Parâmetros!J16*(1+(Propostas!T23-Parâmetros!$I16)/SUM(Propostas!$T23:$V23))*VLOOKUP(Dados!B23,Uso_final[],2,0)) ->  | N16: =IF(Propostas!U23="","",Parâmetros!K16*(1+(Propostas!U23-Parâmetros!$I16)/SUM(Propostas!$T23:$V23))*VLOOKUP(Dados!C23,Uso_final[],2,0)) ->  | O16: =IF(Propostas!V23="","",Parâmetros!L16*(1+(Propostas!V23-Parâmetros!$I16)/SUM(Propostas!$T23:$V23))*VLOOKUP(Dados!D23,Uso_final[],2,0)) ->  | Q16: =IF($C16="","",MIN(1,(Propostas!W23+Propostas!X23)/Propostas!B23)) -> 
B17: =IF(ISTEXT(Propostas!A24),Propostas!A24,"") ->  | C17: =IFERROR(Propostas!C24/Propostas!D24,"") ->  | E17: =IF($C17="","",Propostas!F24/Propostas!C24) ->  | F17: =IF($C17="","",Propostas!G24/Parâmetros!$F$4) ->  | G17: =IF($C17="","",Propostas!H24/Parâmetros!$G$4) ->  | H17: =IF($C17="","",MIN(1,(Propostas!B24-Propostas!C24)/Propostas!B24)) ->  | I17: =IF($C17="","",AVERAGE(Propostas!T24:V24)) ->  | J17: =IF(Propostas!T24="","",_xlfn.RANK.EQ(Propostas!T24,Propostas!$T24:$V24,1)) ->  | K17: =IF(Propostas!U24="","",_xlfn.RANK.EQ(Propostas!U24,Propostas!$T24:$V24,1)) ->  | L17: =IF(Propostas!V24="","",_xlfn.RANK.EQ(Propostas!V24,Propostas!$T24:$V24,1)) ->  | M17: =IF(Propostas!T24="","",Parâmetros!J17*(1+(Propostas!T24-Parâmetros!$I17)/SUM(Propostas!$T24:$V24))*VLOOKUP(Dados!B24,Uso_final[],2,0)) ->  | N17: =IF(Propostas!U24="","",Parâmetros!K17*(1+(Propostas!U24-Parâmetros!$I17)/SUM(Propostas!$T24:$V24))*VLOOKUP(Dados!C24,Uso_final[],2,0)) ->  | O17: =IF(Propostas!V24="","",Parâmetros!L17*(1+(Propostas!V24-Parâmetros!$I17)/SUM(Propostas!$T24:$V24))*VLOOKUP(Dados!D24,Uso_final[],2,0)) ->  | Q17: =IF($C17="","",MIN(1,(Propostas!W24+Propostas!X24)/Propostas!B24)) -> 
B18: =IF(ISTEXT(Propostas!A25),Propostas!A25,"") ->  | C18: =IFERROR(Propostas!C25/Propostas!D25,"") ->  | E18: =IF($C18="","",Propostas!F25/Propostas!C25) ->  | F18: =IF($C18="","",Propostas!G25/Parâmetros!$F$4) ->  | G18: =IF($C18="","",Propostas!H25/Parâmetros!$G$4) ->  | H18: =IF($C18="","",MIN(1,(Propostas!B25-Propostas!C25)/Propostas!B25)) ->  | I18: =IF($C18="","",AVERAGE(Propostas!T25:V25)) ->  | J18: =IF(Propostas!T25="","",_xlfn.RANK.EQ(Propostas!T25,Propostas!$T25:$V25,1)) ->  | K18: =IF(Propostas!U25="","",_xlfn.RANK.EQ(Propostas!U25,Propostas!$T25:$V25,1)) ->  | L18: =IF(Propostas!V25="","",_xlfn.RANK.EQ(Propostas!V25,Propostas!$T25:$V25,1)) ->  | M18: =IF(Propostas!T25="","",Parâmetros!J18*(1+(Propostas!T25-Parâmetros!$I18)/SUM(Propostas!$T25:$V25))*VLOOKUP(Dados!B25,Uso_final[],2,0)) ->  | N18: =IF(Propostas!U25="","",Parâmetros!K18*(1+(Propostas!U25-Parâmetros!$I18)/SUM(Propostas!$T25:$V25))*VLOOKUP(Dados!C25,Uso_final[],2,0)) ->  | O18: =IF(Propostas!V25="","",Parâmetros!L18*(1+(Propostas!V25-Parâmetros!$I18)/SUM(Propostas!$T25:$V25))*VLOOKUP(Dados!D25,Uso_final[],2,0)) ->  | Q18: =IF($C18="","",MIN(1,(Propostas!W25+Propostas!X25)/Propostas!B25)) -> 
B19: =IF(ISTEXT(Propostas!A26),Propostas!A26,"") ->  | C19: =IFERROR(Propostas!C26/Propostas!D26,"") ->  | E19: =IF($C19="","",Propostas!F26/Propostas!C26) ->  | F19: =IF($C19="","",Propostas!G26/Parâmetros!$F$4) ->  | G19: =IF($C19="","",Propostas!H26/Parâmetros!$G$4) ->  | H19: =IF($C19="","",MIN(1,(Propostas!B26-Propostas!C26)/Propostas!B26)) ->  | I19: =IF($C19="","",AVERAGE(Propostas!T26:V26)) ->  | J19: =IF(Propostas!T26="","",_xlfn.RANK.EQ(Propostas!T26,Propostas!$T26:$V26,1)) ->  | K19: =IF(Propostas!U26="","",_xlfn.RANK.EQ(Propostas!U26,Propostas!$T26:$V26,1)) ->  | L19: =IF(Propostas!V26="","",_xlfn.RANK.EQ(Propostas!V26,Propostas!$T26:$V26,1)) ->  | M19: =IF(Propostas!T26="","",Parâmetros!J19*(1+(Propostas!T26-Parâmetros!$I19)/SUM(Propostas!$T26:$V26))*VLOOKUP(Dados!B26,Uso_final[],2,0)) ->  | N19: =IF(Propostas!U26="","",Parâmetros!K19*(1+(Propostas!U26-Parâmetros!$I19)/SUM(Propostas!$T26:$V26))*VLOOKUP(Dados!C26,Uso_final[],2,0)) ->  | O19: =IF(Propostas!V26="","",Parâmetros!L19*(1+(Propostas!V26-Parâmetros!$I19)/SUM(Propostas!$T26:$V26))*VLOOKUP(Dados!D26,Uso_final[],2,0)) ->  | Q19: =IF($C19="","",MIN(1,(Propostas!W26+Propostas!X26)/Propostas!B26)) -> 
B20: =IF(ISTEXT(Propostas!A27),Propostas!A27,"") ->  | C20: =IFERROR(Propostas!C27/Propostas!D27,"") ->  | E20: =IF($C20="","",Propostas!F27/Propostas!C27) ->  | F20: =IF($C20="","",Propostas!G27/Parâmetros!$F$4) ->  | G20: =IF($C20="","",Propostas!H27/Parâmetros!$G$4) ->  | H20: =IF($C20="","",MIN(1,(Propostas!B27-Propostas!C27)/Propostas!B27)) ->  | I20: =IF($C20="","",AVERAGE(Propostas!T27:V27)) ->  | J20: =IF(Propostas!T27="","",_xlfn.RANK.EQ(Propostas!T27,Propostas!$T27:$V27,1)) ->  | K20: =IF(Propostas!U27="","",_xlfn.RANK.EQ(Propostas!U27,Propostas!$T27:$V27,1)) ->  | L20: =IF(Propostas!V27="","",_xlfn.RANK.EQ(Propostas!V27,Propostas!$T27:$V27,1)) ->  | M20: =IF(Propostas!T27="","",Parâmetros!J20*(1+(Propostas!T27-Parâmetros!$I20)/SUM(Propostas!$T27:$V27))*VLOOKUP(Dados!B27,Uso_final[],2,0)) ->  | N20: =IF(Propostas!U27="","",Parâmetros!K20*(1+(Propostas!U27-Parâmetros!$I20)/SUM(Propostas!$T27:$V27))*VLOOKUP(Dados!C27,Uso_final[],2,0)) ->  | O20: =IF(Propostas!V27="","",Parâmetros!L20*(1+(Propostas!V27-Parâmetros!$I20)/SUM(Propostas!$T27:$V27))*VLOOKUP(Dados!D27,Uso_final[],2,0)) ->  | Q20: =IF($C20="","",MIN(1,(Propostas!W27+Propostas!X27)/Propostas!B27)) -> 
B21: =IF(ISTEXT(Propostas!A28),Propostas!A28,"") ->  | C21: =IFERROR(Propostas!C28/Propostas!D28,"") ->  | E21: =IF($C21="","",Propostas!F28/Propostas!C28) ->  | F21: =IF($C21="","",Propostas!G28/Parâmetros!$F$4) ->  | G21: =IF($C21="","",Propostas!H28/Parâmetros!$G$4) ->  | H21: =IF($C21="","",MIN(1,(Propostas!B28-Propostas!C28)/Propostas!B28)) ->  | I21: =IF($C21="","",AVERAGE(Propostas!T28:V28)) ->  | J21: =IF(Propostas!T28="","",_xlfn.RANK.EQ(Propostas!T28,Propostas!$T28:$V28,1)) ->  | K21: =IF(Propostas!U28="","",_xlfn.RANK.EQ(Propostas!U28,Propostas!$T28:$V28,1)) ->  | L21: =IF(Propostas!V28="","",_xlfn.RANK.EQ(Propostas!V28,Propostas!$T28:$V28,1)) ->  | M21: =IF(Propostas!T28="","",Parâmetros!J21*(1+(Propostas!T28-Parâmetros!$I21)/SUM(Propostas!$T28:$V28))*VLOOKUP(Dados!B28,Uso_final[],2,0)) ->  | N21: =IF(Propostas!U28="","",Parâmetros!K21*(1+(Propostas!U28-Parâmetros!$I21)/SUM(Propostas!$T28:$V28))*VLOOKUP(Dados!C28,Uso_final[],2,0)) ->  | O21: =IF(Propostas!V28="","",Parâmetros!L21*(1+(Propostas!V28-Parâmetros!$I21)/SUM(Propostas!$T28:$V28))*VLOOKUP(Dados!D28,Uso_final[],2,0)) ->  | Q21: =IF($C21="","",MIN(1,(Propostas!W28+Propostas!X28)/Propostas!B28)) -> 
B22: =IF(ISTEXT(Propostas!A29),Propostas!A29,"") ->  | C22: =IFERROR(Propostas!C29/Propostas!D29,"") ->  | E22: =IF($C22="","",Propostas!F29/Propostas!C29) ->  | F22: =IF($C22="","",Propostas!G29/Parâmetros!$F$4) ->  | G22: =IF($C22="","",Propostas!H29/Parâmetros!$G$4) ->  | H22: =IF($C22="","",MIN(1,(Propostas!B29-Propostas!C29)/Propostas!B29)) ->  | I22: =IF($C22="","",AVERAGE(Propostas!T29:V29)) ->  | J22: =IF(Propostas!T29="","",_xlfn.RANK.EQ(Propostas!T29,Propostas!$T29:$V29,1)) ->  | K22: =IF(Propostas!U29="","",_xlfn.RANK.EQ(Propostas!U29,Propostas!$T29:$V29,1)) ->  | L22: =IF(Propostas!V29="","",_xlfn.RANK.EQ(Propostas!V29,Propostas!$T29:$V29,1)) ->  | M22: =IF(Propostas!T29="","",Parâmetros!J22*(1+(Propostas!T29-Parâmetros!$I22)/SUM(Propostas!$T29:$V29))*VLOOKUP(Dados!B29,Uso_final[],2,0)) ->  | N22: =IF(Propostas!U29="","",Parâmetros!K22*(1+(Propostas!U29-Parâmetros!$I22)/SUM(Propostas!$T29:$V29))*VLOOKUP(Dados!C29,Uso_final[],2,0)) ->  | O22: =IF(Propostas!V29="","",Parâmetros!L22*(1+(Propostas!V29-Parâmetros!$I22)/SUM(Propostas!$T29:$V29))*VLOOKUP(Dados!D29,Uso_final[],2,0)) ->  | Q22: =IF($C22="","",MIN(1,(Propostas!W29+Propostas!X29)/Propostas!B29)) -> 
B23: =IF(ISTEXT(Propostas!A30),Propostas!A30,"") ->  | C23: =IFERROR(Propostas!C30/Propostas!D30,"") ->  | E23: =IF($C23="","",Propostas!F30/Propostas!C30) ->  | F23: =IF($C23="","",Propostas!G30/Parâmetros!$F$4) ->  | G23: =IF($C23="","",Propostas!H30/Parâmetros!$G$4) ->  | H23: =IF($C23="","",MIN(1,(Propostas!B30-Propostas!C30)/Propostas!B30)) ->  | I23: =IF($C23="","",AVERAGE(Propostas!T30:V30)) ->  | J23: =IF(Propostas!T30="","",_xlfn.RANK.EQ(Propostas!T30,Propostas!$T30:$V30,1)) ->  | K23: =IF(Propostas!U30="","",_xlfn.RANK.EQ(Propostas!U30,Propostas!$T30:$V30,1)) ->  | L23: =IF(Propostas!V30="","",_xlfn.RANK.EQ(Propostas!V30,Propostas!$T30:$V30,1)) ->  | M23: =IF(Propostas!T30="","",Parâmetros!J23*(1+(Propostas!T30-Parâmetros!$I23)/SUM(Propostas!$T30:$V30))*VLOOKUP(Dados!B30,Uso_final[],2,0)) ->  | N23: =IF(Propostas!U30="","",Parâmetros!K23*(1+(Propostas!U30-Parâmetros!$I23)/SUM(Propostas!$T30:$V30))*VLOOKUP(Dados!C30,Uso_final[],2,0)) ->  | O23: =IF(Propostas!V30="","",Parâmetros!L23*(1+(Propostas!V30-Parâmetros!$I23)/SUM(Propostas!$T30:$V30))*VLOOKUP(Dados!D30,Uso_final[],2,0)) ->  | Q23: =IF($C23="","",MIN(1,(Propostas!W30+Propostas!X30)/Propostas!B30)) -> 
B24: =IF(ISTEXT(Propostas!A31),Propostas!A31,"") ->  | C24: =IFERROR(Propostas!C31/Propostas!D31,"") ->  | E24: =IF($C24="","",Propostas!F31/Propostas!C31) ->  | F24: =IF($C24="","",Propostas!G31/Parâmetros!$F$4) ->  | G24: =IF($C24="","",Propostas!H31/Parâmetros!$G$4) ->  | H24: =IF($C24="","",MIN(1,(Propostas!B31-Propostas!C31)/Propostas!B31)) ->  | I24: =IF($C24="","",AVERAGE(Propostas!T31:V31)) ->  | J24: =IF(Propostas!T31="","",_xlfn.RANK.EQ(Propostas!T31,Propostas!$T31:$V31,1)) ->  | K24: =IF(Propostas!U31="","",_xlfn.RANK.EQ(Propostas!U31,Propostas!$T31:$V31,1)) ->  | L24: =IF(Propostas!V31="","",_xlfn.RANK.EQ(Propostas!V31,Propostas!$T31:$V31,1)) ->  | M24: =IF(Propostas!T31="","",Parâmetros!J24*(1+(Propostas!T31-Parâmetros!$I24)/SUM(Propostas!$T31:$V31))*VLOOKUP(Dados!B31,Uso_final[],2,0)) ->  | N24: =IF(Propostas!U31="","",Parâmetros!K24*(1+(Propostas!U31-Parâmetros!$I24)/SUM(Propostas!$T31:$V31))*VLOOKUP(Dados!C31,Uso_final[],2,0)) ->  | O24: =IF(Propostas!V31="","",Parâmetros!L24*(1+(Propostas!V31-Parâmetros!$I24)/SUM(Propostas!$T31:$V31))*VLOOKUP(Dados!D31,Uso_final[],2,0)) ->  | Q24: =IF($C24="","",MIN(1,(Propostas!W31+Propostas!X31)/Propostas!B31)) -> 
B25: =IF(ISTEXT(Propostas!A32),Propostas!A32,"") ->  | C25: =IFERROR(Propostas!C32/Propostas!D32,"") ->  | E25: =IF($C25="","",Propostas!F32/Propostas!C32) ->  | F25: =IF($C25="","",Propostas!G32/Parâmetros!$F$4) ->  | G25: =IF($C25="","",Propostas!H32/Parâmetros!$G$4) ->  | H25: =IF($C25="","",MIN(1,(Propostas!B32-Propostas!C32)/Propostas!B32)) ->  | I25: =IF($C25="","",AVERAGE(Propostas!T32:V32)) ->  | J25: =IF(Propostas!T32="","",_xlfn.RANK.EQ(Propostas!T32,Propostas!$T32:$V32,1)) ->  | K25: =IF(Propostas!U32="","",_xlfn.RANK.EQ(Propostas!U32,Propostas!$T32:$V32,1)) ->  | L25: =IF(Propostas!V32="","",_xlfn.RANK.EQ(Propostas!V32,Propostas!$T32:$V32,1)) ->  | M25: =IF(Propostas!T32="","",Parâmetros!J25*(1+(Propostas!T32-Parâmetros!$I25)/SUM(Propostas!$T32:$V32))*VLOOKUP(Dados!B32,Uso_final[],2,0)) ->  | N25: =IF(Propostas!U32="","",Parâmetros!K25*(1+(Propostas!U32-Parâmetros!$I25)/SUM(Propostas!$T32:$V32))*VLOOKUP(Dados!C32,Uso_final[],2,0)) ->  | O25: =IF(Propostas!V32="","",Parâmetros!L25*(1+(Propostas!V32-Parâmetros!$I25)/SUM(Propostas!$T32:$V32))*VLOOKUP(Dados!D32,Uso_final[],2,0)) ->  | Q25: =IF($C25="","",MIN(1,(Propostas!W32+Propostas!X32)/Propostas!B32)) -> 
B26: =IF(ISTEXT(Propostas!A33),Propostas!A33,"") ->  | C26: =IFERROR(Propostas!C33/Propostas!D33,"") ->  | E26: =IF($C26="","",Propostas!F33/Propostas!C33) ->  | F26: =IF($C26="","",Propostas!G33/Parâmetros!$F$4) ->  | G26: =IF($C26="","",Propostas!H33/Parâmetros!$G$4) ->  | H26: =IF($C26="","",MIN(1,(Propostas!B33-Propostas!C33)/Propostas!B33)) ->  | I26: =IF($C26="","",AVERAGE(Propostas!T33:V33)) ->  | J26: =IF(Propostas!T33="","",_xlfn.RANK.EQ(Propostas!T33,Propostas!$T33:$V33,1)) ->  | K26: =IF(Propostas!U33="","",_xlfn.RANK.EQ(Propostas!U33,Propostas!$T33:$V33,1)) ->  | L26: =IF(Propostas!V33="","",_xlfn.RANK.EQ(Propostas!V33,Propostas!$T33:$V33,1)) ->  | M26: =IF(Propostas!T33="","",Parâmetros!J26*(1+(Propostas!T33-Parâmetros!$I26)/SUM(Propostas!$T33:$V33))*VLOOKUP(Dados!B33,Uso_final[],2,0)) ->  | N26: =IF(Propostas!U33="","",Parâmetros!K26*(1+(Propostas!U33-Parâmetros!$I26)/SUM(Propostas!$T33:$V33))*VLOOKUP(Dados!C33,Uso_final[],2,0)) ->  | O26: =IF(Propostas!V33="","",Parâmetros!L26*(1+(Propostas!V33-Parâmetros!$I26)/SUM(Propostas!$T33:$V33))*VLOOKUP(Dados!D33,Uso_final[],2,0)) ->  | Q26: =IF($C26="","",MIN(1,(Propostas!W33+Propostas!X33)/Propostas!B33)) -> 
B27: =IF(ISTEXT(Propostas!A34),Propostas!A34,"") ->  | C27: =IFERROR(Propostas!C34/Propostas!D34,"") ->  | E27: =IF($C27="","",Propostas!F34/Propostas!C34) ->  | F27: =IF($C27="","",Propostas!G34/Parâmetros!$F$4) ->  | G27: =IF($C27="","",Propostas!H34/Parâmetros!$G$4) ->  | H27: =IF($C27="","",MIN(1,(Propostas!B34-Propostas!C34)/Propostas!B34)) ->  | I27: =IF($C27="","",AVERAGE(Propostas!T34:V34)) ->  | J27: =IF(Propostas!T34="","",_xlfn.RANK.EQ(Propostas!T34,Propostas!$T34:$V34,1)) ->  | K27: =IF(Propostas!U34="","",_xlfn.RANK.EQ(Propostas!U34,Propostas!$T34:$V34,1)) ->  | L27: =IF(Propostas!V34="","",_xlfn.RANK.EQ(Propostas!V34,Propostas!$T34:$V34,1)) ->  | M27: =IF(Propostas!T34="","",Parâmetros!J27*(1+(Propostas!T34-Parâmetros!$I27)/SUM(Propostas!$T34:$V34))*VLOOKUP(Dados!B34,Uso_final[],2,0)) ->  | N27: =IF(Propostas!U34="","",Parâmetros!K27*(1+(Propostas!U34-Parâmetros!$I27)/SUM(Propostas!$T34:$V34))*VLOOKUP(Dados!C34,Uso_final[],2,0)) ->  | O27: =IF(Propostas!V34="","",Parâmetros!L27*(1+(Propostas!V34-Parâmetros!$I27)/SUM(Propostas!$T34:$V34))*VLOOKUP(Dados!D34,Uso_final[],2,0)) ->  | Q27: =IF($C27="","",MIN(1,(Propostas!W34+Propostas!X34)/Propostas!B34)) -> 
B28: =IF(ISTEXT(Propostas!A35),Propostas!A35,"") ->  | C28: =IFERROR(Propostas!C35/Propostas!D35,"") ->  | E28: =IF($C28="","",Propostas!F35/Propostas!C35) ->  | F28: =IF($C28="","",Propostas!G35/Parâmetros!$F$4) ->  | G28: =IF($C28="","",Propostas!H35/Parâmetros!$G$4) ->  | H28: =IF($C28="","",MIN(1,(Propostas!B35-Propostas!C35)/Propostas!B35)) ->  | I28: =IF($C28="","",AVERAGE(Propostas!T35:V35)) ->  | J28: =IF(Propostas!T35="","",_xlfn.RANK.EQ(Propostas!T35,Propostas!$T35:$V35,1)) ->  | K28: =IF(Propostas!U35="","",_xlfn.RANK.EQ(Propostas!U35,Propostas!$T35:$V35,1)) ->  | L28: =IF(Propostas!V35="","",_xlfn.RANK.EQ(Propostas!V35,Propostas!$T35:$V35,1)) ->  | M28: =IF(Propostas!T35="","",Parâmetros!J28*(1+(Propostas!T35-Parâmetros!$I28)/SUM(Propostas!$T35:$V35))*VLOOKUP(Dados!B35,Uso_final[],2,0)) ->  | N28: =IF(Propostas!U35="","",Parâmetros!K28*(1+(Propostas!U35-Parâmetros!$I28)/SUM(Propostas!$T35:$V35))*VLOOKUP(Dados!C35,Uso_final[],2,0)) ->  | O28: =IF(Propostas!V35="","",Parâmetros!L28*(1+(Propostas!V35-Parâmetros!$I28)/SUM(Propostas!$T35:$V35))*VLOOKUP(Dados!D35,Uso_final[],2,0)) ->  | Q28: =IF($C28="","",MIN(1,(Propostas!W35+Propostas!X35)/Propostas!B35)) -> 
B29: =IF(ISTEXT(Propostas!A36),Propostas!A36,"") ->  | C29: =IFERROR(Propostas!C36/Propostas!D36,"") ->  | E29: =IF($C29="","",Propostas!F36/Propostas!C36) ->  | F29: =IF($C29="","",Propostas!G36/Parâmetros!$F$4) ->  | G29: =IF($C29="","",Propostas!H36/Parâmetros!$G$4) ->  | H29: =IF($C29="","",MIN(1,(Propostas!B36-Propostas!C36)/Propostas!B36)) ->  | I29: =IF($C29="","",AVERAGE(Propostas!T36:V36)) ->  | J29: =IF(Propostas!T36="","",_xlfn.RANK.EQ(Propostas!T36,Propostas!$T36:$V36,1)) ->  | K29: =IF(Propostas!U36="","",_xlfn.RANK.EQ(Propostas!U36,Propostas!$T36:$V36,1)) ->  | L29: =IF(Propostas!V36="","",_xlfn.RANK.EQ(Propostas!V36,Propostas!$T36:$V36,1)) ->  | M29: =IF(Propostas!T36="","",Parâmetros!J29*(1+(Propostas!T36-Parâmetros!$I29)/SUM(Propostas!$T36:$V36))*VLOOKUP(Dados!B36,Uso_final[],2,0)) ->  | N29: =IF(Propostas!U36="","",Parâmetros!K29*(1+(Propostas!U36-Parâmetros!$I29)/SUM(Propostas!$T36:$V36))*VLOOKUP(Dados!C36,Uso_final[],2,0)) ->  | O29: =IF(Propostas!V36="","",Parâmetros!L29*(1+(Propostas!V36-Parâmetros!$I29)/SUM(Propostas!$T36:$V36))*VLOOKUP(Dados!D36,Uso_final[],2,0)) ->  | Q29: =IF($C29="","",MIN(1,(Propostas!W36+Propostas!X36)/Propostas!B36)) -> 
B30: =IF(ISTEXT(Propostas!A37),Propostas!A37,"") ->  | C30: =IFERROR(Propostas!C37/Propostas!D37,"") ->  | E30: =IF($C30="","",Propostas!F37/Propostas!C37) ->  | F30: =IF($C30="","",Propostas!G37/Parâmetros!$F$4) ->  | G30: =IF($C30="","",Propostas!H37/Parâmetros!$G$4) ->  | H30: =IF($C30="","",MIN(1,(Propostas!B37-Propostas!C37)/Propostas!B37)) ->  | I30: =IF($C30="","",AVERAGE(Propostas!T37:V37)) ->  | J30: =IF(Propostas!T37="","",_xlfn.RANK.EQ(Propostas!T37,Propostas!$T37:$V37,1)) ->  | K30: =IF(Propostas!U37="","",_xlfn.RANK.EQ(Propostas!U37,Propostas!$T37:$V37,1)) ->  | L30: =IF(Propostas!V37="","",_xlfn.RANK.EQ(Propostas!V37,Propostas!$T37:$V37,1)) ->  | M30: =IF(Propostas!T37="","",Parâmetros!J30*(1+(Propostas!T37-Parâmetros!$I30)/SUM(Propostas!$T37:$V37))*VLOOKUP(Dados!B37,Uso_final[],2,0)) ->  | N30: =IF(Propostas!U37="","",Parâmetros!K30*(1+(Propostas!U37-Parâmetros!$I30)/SUM(Propostas!$T37:$V37))*VLOOKUP(Dados!C37,Uso_final[],2,0)) ->  | O30: =IF(Propostas!V37="","",Parâmetros!L30*(1+(Propostas!V37-Parâmetros!$I30)/SUM(Propostas!$T37:$V37))*VLOOKUP(Dados!D37,Uso_final[],2,0)) ->  | Q30: =IF($C30="","",MIN(1,(Propostas!W37+Propostas!X37)/Propostas!B37)) -> 
B31: =IF(ISTEXT(Propostas!A38),Propostas!A38,"") ->  | C31: =IFERROR(Propostas!C38/Propostas!D38,"") ->  | E31: =IF($C31="","",Propostas!F38/Propostas!C38) ->  | F31: =IF($C31="","",Propostas!G38/Parâmetros!$F$4) ->  | G31: =IF($C31="","",Propostas!H38/Parâmetros!$G$4) ->  | H31: =IF($C31="","",MIN(1,(Propostas!B38-Propostas!C38)/Propostas!B38)) ->  | I31: =IF($C31="","",AVERAGE(Propostas!T38:V38)) ->  | J31: =IF(Propostas!T38="","",_xlfn.RANK.EQ(Propostas!T38,Propostas!$T38:$V38,1)) ->  | K31: =IF(Propostas!U38="","",_xlfn.RANK.EQ(Propostas!U38,Propostas!$T38:$V38,1)) ->  | L31: =IF(Propostas!V38="","",_xlfn.RANK.EQ(Propostas!V38,Propostas!$T38:$V38,1)) ->  | M31: =IF(Propostas!T38="","",Parâmetros!J31*(1+(Propostas!T38-Parâmetros!$I31)/SUM(Propostas!$T38:$V38))*VLOOKUP(Dados!B38,Uso_final[],2,0)) ->  | N31: =IF(Propostas!U38="","",Parâmetros!K31*(1+(Propostas!U38-Parâmetros!$I31)/SUM(Propostas!$T38:$V38))*VLOOKUP(Dados!C38,Uso_final[],2,0)) ->  | O31: =IF(Propostas!V38="","",Parâmetros!L31*(1+(Propostas!V38-Parâmetros!$I31)/SUM(Propostas!$T38:$V38))*VLOOKUP(Dados!D38,Uso_final[],2,0)) ->  | Q31: =IF($C31="","",MIN(1,(Propostas!W38+Propostas!X38)/Propostas!B38)) -> 
B32: =IF(ISTEXT(Propostas!A39),Propostas!A39,"") ->  | C32: =IFERROR(Propostas!C39/Propostas!D39,"") ->  | E32: =IF($C32="","",Propostas!F39/Propostas!C39) ->  | F32: =IF($C32="","",Propostas!G39/Parâmetros!$F$4) ->  | G32: =IF($C32="","",Propostas!H39/Parâmetros!$G$4) ->  | H32: =IF($C32="","",MIN(1,(Propostas!B39-Propostas!C39)/Propostas!B39)) ->  | I32: =IF($C32="","",AVERAGE(Propostas!T39:V39)) ->  | J32: =IF(Propostas!T39="","",_xlfn.RANK.EQ(Propostas!T39,Propostas!$T39:$V39,1)) ->  | K32: =IF(Propostas!U39="","",_xlfn.RANK.EQ(Propostas!U39,Propostas!$T39:$V39,1)) ->  | L32: =IF(Propostas!V39="","",_xlfn.RANK.EQ(Propostas!V39,Propostas!$T39:$V39,1)) ->  | M32: =IF(Propostas!T39="","",Parâmetros!J32*(1+(Propostas!T39-Parâmetros!$I32)/SUM(Propostas!$T39:$V39))*VLOOKUP(Dados!B39,Uso_final[],2,0)) ->  | N32: =IF(Propostas!U39="","",Parâmetros!K32*(1+(Propostas!U39-Parâmetros!$I32)/SUM(Propostas!$T39:$V39))*VLOOKUP(Dados!C39,Uso_final[],2,0)) ->  | O32: =IF(Propostas!V39="","",Parâmetros!L32*(1+(Propostas!V39-Parâmetros!$I32)/SUM(Propostas!$T39:$V39))*VLOOKUP(Dados!D39,Uso_final[],2,0)) ->  | Q32: =IF($C32="","",MIN(1,(Propostas!W39+Propostas!X39)/Propostas!B39)) -> 
B33: =IF(ISTEXT(Propostas!A40),Propostas!A40,"") ->  | C33: =IFERROR(Propostas!C40/Propostas!D40,"") ->  | E33: =IF($C33="","",Propostas!F40/Propostas!C40) ->  | F33: =IF($C33="","",Propostas!G40/Parâmetros!$F$4) ->  | G33: =IF($C33="","",Propostas!H40/Parâmetros!$G$4) ->  | H33: =IF($C33="","",MIN(1,(Propostas!B40-Propostas!C40)/Propostas!B40)) ->  | I33: =IF($C33="","",AVERAGE(Propostas!T40:V40)) ->  | J33: =IF(Propostas!T40="","",_xlfn.RANK.EQ(Propostas!T40,Propostas!$T40:$V40,1)) ->  | K33: =IF(Propostas!U40="","",_xlfn.RANK.EQ(Propostas!U40,Propostas!$T40:$V40,1)) ->  | L33: =IF(Propostas!V40="","",_xlfn.RANK.EQ(Propostas!V40,Propostas!$T40:$V40,1)) ->  | M33: =IF(Propostas!T40="","",Parâmetros!J33*(1+(Propostas!T40-Parâmetros!$I33)/SUM(Propostas!$T40:$V40))*VLOOKUP(Dados!B40,Uso_final[],2,0)) ->  | N33: =IF(Propostas!U40="","",Parâmetros!K33*(1+(Propostas!U40-Parâmetros!$I33)/SUM(Propostas!$T40:$V40))*VLOOKUP(Dados!C40,Uso_final[],2,0)) ->  | O33: =IF(Propostas!V40="","",Parâmetros!L33*(1+(Propostas!V40-Parâmetros!$I33)/SUM(Propostas!$T40:$V40))*VLOOKUP(Dados!D40,Uso_final[],2,0)) ->  | Q33: =IF($C33="","",MIN(1,(Propostas!W40+Propostas!X40)/Propostas!B40)) -> 
B34: =IF(ISTEXT(Propostas!A41),Propostas!A41,"") ->  | C34: =IFERROR(Propostas!C41/Propostas!D41,"") ->  | E34: =IF($C34="","",Propostas!F41/Propostas!C41) ->  | F34: =IF($C34="","",Propostas!G41/Parâmetros!$F$4) ->  | G34: =IF($C34="","",Propostas!H41/Parâmetros!$G$4) ->  | H34: =IF($C34="","",MIN(1,(Propostas!B41-Propostas!C41)/Propostas!B41)) ->  | I34: =IF($C34="","",AVERAGE(Propostas!T41:V41)) ->  | J34: =IF(Propostas!T41="","",_xlfn.RANK.EQ(Propostas!T41,Propostas!$T41:$V41,1)) ->  | K34: =IF(Propostas!U41="","",_xlfn.RANK.EQ(Propostas!U41,Propostas!$T41:$V41,1)) ->  | L34: =IF(Propostas!V41="","",_xlfn.RANK.EQ(Propostas!V41,Propostas!$T41:$V41,1)) ->  | M34: =IF(Propostas!T41="","",Parâmetros!J34*(1+(Propostas!T41-Parâmetros!$I34)/SUM(Propostas!$T41:$V41))*VLOOKUP(Dados!B41,Uso_final[],2,0)) ->  | N34: =IF(Propostas!U41="","",Parâmetros!K34*(1+(Propostas!U41-Parâmetros!$I34)/SUM(Propostas!$T41:$V41))*VLOOKUP(Dados!C41,Uso_final[],2,0)) ->  | O34: =IF(Propostas!V41="","",Parâmetros!L34*(1+(Propostas!V41-Parâmetros!$I34)/SUM(Propostas!$T41:$V41))*VLOOKUP(Dados!D41,Uso_final[],2,0)) ->  | Q34: =IF($C34="","",MIN(1,(Propostas!W41+Propostas!X41)/Propostas!B41)) -> 
B35: =IF(ISTEXT(Propostas!A42),Propostas!A42,"") ->  | C35: =IFERROR(Propostas!C42/Propostas!D42,"") ->  | E35: =IF($C35="","",Propostas!F42/Propostas!C42) ->  | F35: =IF($C35="","",Propostas!G42/Parâmetros!$F$4) ->  | G35: =IF($C35="","",Propostas!H42/Parâmetros!$G$4) ->  | H35: =IF($C35="","",MIN(1,(Propostas!B42-Propostas!C42)/Propostas!B42)) ->  | I35: =IF($C35="","",AVERAGE(Propostas!T42:V42)) ->  | J35: =IF(Propostas!T42="","",_xlfn.RANK.EQ(Propostas!T42,Propostas!$T42:$V42,1)) ->  | K35: =IF(Propostas!U42="","",_xlfn.RANK.EQ(Propostas!U42,Propostas!$T42:$V42,1)) ->  | L35: =IF(Propostas!V42="","",_xlfn.RANK.EQ(Propostas!V42,Propostas!$T42:$V42,1)) ->  | M35: =IF(Propostas!T42="","",Parâmetros!J35*(1+(Propostas!T42-Parâmetros!$I35)/SUM(Propostas!$T42:$V42))*VLOOKUP(Dados!B42,Uso_final[],2,0)) ->  | N35: =IF(Propostas!U42="","",Parâmetros!K35*(1+(Propostas!U42-Parâmetros!$I35)/SUM(Propostas!$T42:$V42))*VLOOKUP(Dados!C42,Uso_final[],2,0)) ->  | O35: =IF(Propostas!V42="","",Parâmetros!L35*(1+(Propostas!V42-Parâmetros!$I35)/SUM(Propostas!$T42:$V42))*VLOOKUP(Dados!D42,Uso_final[],2,0)) ->  | Q35: =IF($C35="","",MIN(1,(Propostas!W42+Propostas!X42)/Propostas!B42)) -> 
B36: =IF(ISTEXT(Propostas!A43),Propostas!A43,"") ->  | C36: =IFERROR(Propostas!C43/Propostas!D43,"") ->  | E36: =IF($C36="","",Propostas!F43/Propostas!C43) ->  | F36: =IF($C36="","",Propostas!G43/Parâmetros!$F$4) ->  | G36: =IF($C36="","",Propostas!H43/Parâmetros!$G$4) ->  | H36: =IF($C36="","",MIN(1,(Propostas!B43-Propostas!C43)/Propostas!B43)) ->  | I36: =IF($C36="","",AVERAGE(Propostas!T43:V43)) ->  | J36: =IF(Propostas!T43="","",_xlfn.RANK.EQ(Propostas!T43,Propostas!$T43:$V43,1)) ->  | K36: =IF(Propostas!U43="","",_xlfn.RANK.EQ(Propostas!U43,Propostas!$T43:$V43,1)) ->  | L36: =IF(Propostas!V43="","",_xlfn.RANK.EQ(Propostas!V43,Propostas!$T43:$V43,1)) ->  | M36: =IF(Propostas!T43="","",Parâmetros!J36*(1+(Propostas!T43-Parâmetros!$I36)/SUM(Propostas!$T43:$V43))*VLOOKUP(Dados!B43,Uso_final[],2,0)) ->  | N36: =IF(Propostas!U43="","",Parâmetros!K36*(1+(Propostas!U43-Parâmetros!$I36)/SUM(Propostas!$T43:$V43))*VLOOKUP(Dados!C43,Uso_final[],2,0)) ->  | O36: =IF(Propostas!V43="","",Parâmetros!L36*(1+(Propostas!V43-Parâmetros!$I36)/SUM(Propostas!$T43:$V43))*VLOOKUP(Dados!D43,Uso_final[],2,0)) ->  | Q36: =IF($C36="","",MIN(1,(Propostas!W43+Propostas!X43)/Propostas!B43)) -> 
B37: =IF(ISTEXT(Propostas!A44),Propostas!A44,"") ->  | C37: =IFERROR(Propostas!C44/Propostas!D44,"") ->  | E37: =IF($C37="","",Propostas!F44/Propostas!C44) ->  | F37: =IF($C37="","",Propostas!G44/Parâmetros!$F$4) ->  | G37: =IF($C37="","",Propostas!H44/Parâmetros!$G$4) ->  | H37: =IF($C37="","",MIN(1,(Propostas!B44-Propostas!C44)/Propostas!B44)) ->  | I37: =IF($C37="","",AVERAGE(Propostas!T44:V44)) ->  | J37: =IF(Propostas!T44="","",_xlfn.RANK.EQ(Propostas!T44,Propostas!$T44:$V44,1)) ->  | K37: =IF(Propostas!U44="","",_xlfn.RANK.EQ(Propostas!U44,Propostas!$T44:$V44,1)) ->  | L37: =IF(Propostas!V44="","",_xlfn.RANK.EQ(Propostas!V44,Propostas!$T44:$V44,1)) ->  | M37: =IF(Propostas!T44="","",Parâmetros!J37*(1+(Propostas!T44-Parâmetros!$I37)/SUM(Propostas!$T44:$V44))*VLOOKUP(Dados!B44,Uso_final[],2,0)) ->  | N37: =IF(Propostas!U44="","",Parâmetros!K37*(1+(Propostas!U44-Parâmetros!$I37)/SUM(Propostas!$T44:$V44))*VLOOKUP(Dados!C44,Uso_final[],2,0)) ->  | O37: =IF(Propostas!V44="","",Parâmetros!L37*(1+(Propostas!V44-Parâmetros!$I37)/SUM(Propostas!$T44:$V44))*VLOOKUP(Dados!D44,Uso_final[],2,0)) ->  | P37: =IF(C37="","",SUM(M37:O37)-1) ->  | Q37: =IF($C37="","",MIN(1,(Propostas!W44+Propostas!X44)/Propostas!B44)) -> 
B38: =IF(ISTEXT(Propostas!A45),Propostas!A45,"") ->  | C38: =IFERROR(Propostas!C45/Propostas!D45,"") ->  | E38: =IF($C38="","",Propostas!F45/Propostas!C45) ->  | F38: =IF($C38="","",Propostas!G45/Parâmetros!$F$4) ->  | G38: =IF($C38="","",Propostas!H45/Parâmetros!$G$4) ->  | H38: =IF($C38="","",MIN(1,(Propostas!B45-Propostas!C45)/Propostas!B45)) ->  | I38: =IF($C38="","",AVERAGE(Propostas!T45:V45)) ->  | J38: =IF(Propostas!T45="","",_xlfn.RANK.EQ(Propostas!T45,Propostas!$T45:$V45,1)) ->  | K38: =IF(Propostas!U45="","",_xlfn.RANK.EQ(Propostas!U45,Propostas!$T45:$V45,1)) ->  | L38: =IF(Propostas!V45="","",_xlfn.RANK.EQ(Propostas!V45,Propostas!$T45:$V45,1)) ->  | M38: =IF(Propostas!T45="","",Parâmetros!J38*(1+(Propostas!T45-Parâmetros!$I38)/SUM(Propostas!$T45:$V45))*VLOOKUP(Dados!B45,Uso_final[],2,0)) ->  | N38: =IF(Propostas!U45="","",Parâmetros!K38*(1+(Propostas!U45-Parâmetros!$I38)/SUM(Propostas!$T45:$V45))*VLOOKUP(Dados!C45,Uso_final[],2,0)) ->  | O38: =IF(Propostas!V45="","",Parâmetros!L38*(1+(Propostas!V45-Parâmetros!$I38)/SUM(Propostas!$T45:$V45))*VLOOKUP(Dados!D45,Uso_final[],2,0)) ->  | Q38: =IF($C38="","",MIN(1,(Propostas!W45+Propostas!X45)/Propostas!B45)) -> 
B39: =IF(ISTEXT(Propostas!A46),Propostas!A46,"") ->  | C39: =IFERROR(Propostas!C46/Propostas!D46,"") ->  | E39: =IF($C39="","",Propostas!F46/Propostas!C46) ->  | F39: =IF($C39="","",Propostas!G46/Parâmetros!$F$4) ->  | G39: =IF($C39="","",Propostas!H46/Parâmetros!$G$4) ->  | H39: =IF($C39="","",MIN(1,(Propostas!B46-Propostas!C46)/Propostas!B46)) ->  | I39: =IF($C39="","",AVERAGE(Propostas!T46:V46)) ->  | J39: =IF(Propostas!T46="","",_xlfn.RANK.EQ(Propostas!T46,Propostas!$T46:$V46,1)) ->  | K39: =IF(Propostas!U46="","",_xlfn.RANK.EQ(Propostas!U46,Propostas!$T46:$V46,1)) ->  | L39: =IF(Propostas!V46="","",_xlfn.RANK.EQ(Propostas!V46,Propostas!$T46:$V46,1)) ->  | M39: =IF(Propostas!T46="","",Parâmetros!J39*(1+(Propostas!T46-Parâmetros!$I39)/SUM(Propostas!$T46:$V46))*VLOOKUP(Dados!B46,Uso_final[],2,0)) ->  | N39: =IF(Propostas!U46="","",Parâmetros!K39*(1+(Propostas!U46-Parâmetros!$I39)/SUM(Propostas!$T46:$V46))*VLOOKUP(Dados!C46,Uso_final[],2,0)) ->  | O39: =IF(Propostas!V46="","",Parâmetros!L39*(1+(Propostas!V46-Parâmetros!$I39)/SUM(Propostas!$T46:$V46))*VLOOKUP(Dados!D46,Uso_final[],2,0)) ->  | Q39: =IF($C39="","",MIN(1,(Propostas!W46+Propostas!X46)/Propostas!B46)) -> 
B40: =IF(ISTEXT(Propostas!A47),Propostas!A47,"") ->  | C40: =IFERROR(Propostas!C47/Propostas!D47,"") ->  | E40: =IF($C40="","",Propostas!F47/Propostas!C47) ->  | F40: =IF($C40="","",Propostas!G47/Parâmetros!$F$4) ->  | G40: =IF($C40="","",Propostas!H47/Parâmetros!$G$4) ->  | H40: =IF($C40="","",MIN(1,(Propostas!B47-Propostas!C47)/Propostas!B47)) ->  | I40: =IF($C40="","",AVERAGE(Propostas!T47:V47)) ->  | J40: =IF(Propostas!T47="","",_xlfn.RANK.EQ(Propostas!T47,Propostas!$T47:$V47,1)) ->  | K40: =IF(Propostas!U47="","",_xlfn.RANK.EQ(Propostas!U47,Propostas!$T47:$V47,1)) ->  | L40: =IF(Propostas!V47="","",_xlfn.RANK.EQ(Propostas!V47,Propostas!$T47:$V47,1)) ->  | M40: =IF(Propostas!T47="","",Parâmetros!J40*(1+(Propostas!T47-Parâmetros!$I40)/SUM(Propostas!$T47:$V47))*VLOOKUP(Dados!B47,Uso_final[],2,0)) ->  | N40: =IF(Propostas!U47="","",Parâmetros!K40*(1+(Propostas!U47-Parâmetros!$I40)/SUM(Propostas!$T47:$V47))*VLOOKUP(Dados!C47,Uso_final[],2,0)) ->  | O40: =IF(Propostas!V47="","",Parâmetros!L40*(1+(Propostas!V47-Parâmetros!$I40)/SUM(Propostas!$T47:$V47))*VLOOKUP(Dados!D47,Uso_final[],2,0)) ->  | Q40: =IF($C40="","",MIN(1,(Propostas!W47+Propostas!X47)/Propostas!B47)) -> 
B41: =IF(ISTEXT(Propostas!A48),Propostas!A48,"") ->  | C41: =IFERROR(Propostas!C48/Propostas!D48,"") ->  | E41: =IF($C41="","",Propostas!F48/Propostas!C48) ->  | F41: =IF($C41="","",Propostas!G48/Parâmetros!$F$4) ->  | G41: =IF($C41="","",Propostas!H48/Parâmetros!$G$4) ->  | H41: =IF($C41="","",MIN(1,(Propostas!B48-Propostas!C48)/Propostas!B48)) ->  | I41: =IF($C41="","",AVERAGE(Propostas!T48:V48)) ->  | J41: =IF(Propostas!T48="","",_xlfn.RANK.EQ(Propostas!T48,Propostas!$T48:$V48,1)) ->  | K41: =IF(Propostas!U48="","",_xlfn.RANK.EQ(Propostas!U48,Propostas!$T48:$V48,1)) ->  | L41: =IF(Propostas!V48="","",_xlfn.RANK.EQ(Propostas!V48,Propostas!$T48:$V48,1)) ->  | M41: =IF(Propostas!T48="","",Parâmetros!J41*(1+(Propostas!T48-Parâmetros!$I41)/SUM(Propostas!$T48:$V48))*VLOOKUP(Dados!B48,Uso_final[],2,0)) ->  | N41: =IF(Propostas!U48="","",Parâmetros!K41*(1+(Propostas!U48-Parâmetros!$I41)/SUM(Propostas!$T48:$V48))*VLOOKUP(Dados!C48,Uso_final[],2,0)) ->  | O41: =IF(Propostas!V48="","",Parâmetros!L41*(1+(Propostas!V48-Parâmetros!$I41)/SUM(Propostas!$T48:$V48))*VLOOKUP(Dados!D48,Uso_final[],2,0)) ->  | Q41: =IF($C41="","",MIN(1,(Propostas!W48+Propostas!X48)/Propostas!B48)) -> 
B42: =IF(ISTEXT(Propostas!A49),Propostas!A49,"") ->  | C42: =IFERROR(Propostas!C49/Propostas!D49,"") ->  | E42: =IF($C42="","",Propostas!F49/Propostas!C49) ->  | F42: =IF($C42="","",Propostas!G49/Parâmetros!$F$4) ->  | G42: =IF($C42="","",Propostas!H49/Parâmetros!$G$4) ->  | H42: =IF($C42="","",MIN(1,(Propostas!B49-Propostas!C49)/Propostas!B49)) ->  | I42: =IF($C42="","",AVERAGE(Propostas!T49:V49)) ->  | J42: =IF(Propostas!T49="","",_xlfn.RANK.EQ(Propostas!T49,Propostas!$T49:$V49,1)) ->  | K42: =IF(Propostas!U49="","",_xlfn.RANK.EQ(Propostas!U49,Propostas!$T49:$V49,1)) ->  | L42: =IF(Propostas!V49="","",_xlfn.RANK.EQ(Propostas!V49,Propostas!$T49:$V49,1)) ->  | M42: =IF(Propostas!T49="","",Parâmetros!J42*(1+(Propostas!T49-Parâmetros!$I42)/SUM(Propostas!$T49:$V49))*VLOOKUP(Dados!B49,Uso_final[],2,0)) ->  | N42: =IF(Propostas!U49="","",Parâmetros!K42*(1+(Propostas!U49-Parâmetros!$I42)/SUM(Propostas!$T49:$V49))*VLOOKUP(Dados!C49,Uso_final[],2,0)) ->  | O42: =IF(Propostas!V49="","",Parâmetros!L42*(1+(Propostas!V49-Parâmetros!$I42)/SUM(Propostas!$T49:$V49))*VLOOKUP(Dados!D49,Uso_final[],2,0)) ->  | Q42: =IF($C42="","",MIN(1,(Propostas!W49+Propostas!X49)/Propostas!B49)) -> 
B43: =IF(ISTEXT(Propostas!A50),Propostas!A50,"") ->  | C43: =IFERROR(Propostas!C50/Propostas!D50,"") ->  | E43: =IF($C43="","",Propostas!F50/Propostas!C50) ->  | F43: =IF($C43="","",Propostas!G50/Parâmetros!$F$4) ->  | G43: =IF($C43="","",Propostas!H50/Parâmetros!$G$4) ->  | H43: =IF($C43="","",MIN(1,(Propostas!B50-Propostas!C50)/Propostas!B50)) ->  | I43: =IF($C43="","",AVERAGE(Propostas!T50:V50)) ->  | J43: =IF(Propostas!T50="","",_xlfn.RANK.EQ(Propostas!T50,Propostas!$T50:$V50,1)) ->  | K43: =IF(Propostas!U50="","",_xlfn.RANK.EQ(Propostas!U50,Propostas!$T50:$V50,1)) ->  | L43: =IF(Propostas!V50="","",_xlfn.RANK.EQ(Propostas!V50,Propostas!$T50:$V50,1)) ->  | M43: =IF(Propostas!T50="","",Parâmetros!J43*(1+(Propostas!T50-Parâmetros!$I43)/SUM(Propostas!$T50:$V50))*VLOOKUP(Dados!B50,Uso_final[],2,0)) ->  | N43: =IF(Propostas!U50="","",Parâmetros!K43*(1+(Propostas!U50-Parâmetros!$I43)/SUM(Propostas!$T50:$V50))*VLOOKUP(Dados!C50,Uso_final[],2,0)) ->  | O43: =IF(Propostas!V50="","",Parâmetros!L43*(1+(Propostas!V50-Parâmetros!$I43)/SUM(Propostas!$T50:$V50))*VLOOKUP(Dados!D50,Uso_final[],2,0)) ->  | Q43: =IF($C43="","",MIN(1,(Propostas!W50+Propostas!X50)/Propostas!B50)) -> 
B44: =IF(ISTEXT(Propostas!A51),Propostas!A51,"") ->  | C44: =IFERROR(Propostas!C51/Propostas!D51,"") ->  | E44: =IF($C44="","",Propostas!F51/Propostas!C51) ->  | F44: =IF($C44="","",Propostas!G51/Parâmetros!$F$4) ->  | G44: =IF($C44="","",Propostas!H51/Parâmetros!$G$4) ->  | H44: =IF($C44="","",MIN(1,(Propostas!B51-Propostas!C51)/Propostas!B51)) ->  | I44: =IF($C44="","",AVERAGE(Propostas!T51:V51)) ->  | J44: =IF(Propostas!T51="","",_xlfn.RANK.EQ(Propostas!T51,Propostas!$T51:$V51,1)) ->  | K44: =IF(Propostas!U51="","",_xlfn.RANK.EQ(Propostas!U51,Propostas!$T51:$V51,1)) ->  | L44: =IF(Propostas!V51="","",_xlfn.RANK.EQ(Propostas!V51,Propostas!$T51:$V51,1)) ->  | M44: =IF(Propostas!T51="","",Parâmetros!J44*(1+(Propostas!T51-Parâmetros!$I44)/SUM(Propostas!$T51:$V51))*VLOOKUP(Dados!B51,Uso_final[],2,0)) ->  | N44: =IF(Propostas!U51="","",Parâmetros!K44*(1+(Propostas!U51-Parâmetros!$I44)/SUM(Propostas!$T51:$V51))*VLOOKUP(Dados!C51,Uso_final[],2,0)) ->  | O44: =IF(Propostas!V51="","",Parâmetros!L44*(1+(Propostas!V51-Parâmetros!$I44)/SUM(Propostas!$T51:$V51))*VLOOKUP(Dados!D51,Uso_final[],2,0)) ->  | Q44: =IF($C44="","",MIN(1,(Propostas!W51+Propostas!X51)/Propostas!B51)) -> 
B45: =IF(ISTEXT(Propostas!A52),Propostas!A52,"") ->  | C45: =IFERROR(Propostas!C52/Propostas!D52,"") ->  | E45: =IF($C45="","",Propostas!F52/Propostas!C52) ->  | F45: =IF($C45="","",Propostas!G52/Parâmetros!$F$4) ->  | G45: =IF($C45="","",Propostas!H52/Parâmetros!$G$4) ->  | H45: =IF($C45="","",MIN(1,(Propostas!B52-Propostas!C52)/Propostas!B52)) ->  | I45: =IF($C45="","",AVERAGE(Propostas!T52:V52)) ->  | J45: =IF(Propostas!T52="","",_xlfn.RANK.EQ(Propostas!T52,Propostas!$T52:$V52,1)) ->  | K45: =IF(Propostas!U52="","",_xlfn.RANK.EQ(Propostas!U52,Propostas!$T52:$V52,1)) ->  | L45: =IF(Propostas!V52="","",_xlfn.RANK.EQ(Propostas!V52,Propostas!$T52:$V52,1)) ->  | M45: =IF(Propostas!T52="","",Parâmetros!J45*(1+(Propostas!T52-Parâmetros!$I45)/SUM(Propostas!$T52:$V52))*VLOOKUP(Dados!B52,Uso_final[],2,0)) ->  | N45: =IF(Propostas!U52="","",Parâmetros!K45*(1+(Propostas!U52-Parâmetros!$I45)/SUM(Propostas!$T52:$V52))*VLOOKUP(Dados!C52,Uso_final[],2,0)) ->  | O45: =IF(Propostas!V52="","",Parâmetros!L45*(1+(Propostas!V52-Parâmetros!$I45)/SUM(Propostas!$T52:$V52))*VLOOKUP(Dados!D52,Uso_final[],2,0)) ->  | Q45: =IF($C45="","",MIN(1,(Propostas!W52+Propostas!X52)/Propostas!B52)) -> 
B46: =IF(ISTEXT(Propostas!A53),Propostas!A53,"") ->  | C46: =IFERROR(Propostas!C53/Propostas!D53,"") ->  | E46: =IF($C46="","",Propostas!F53/Propostas!C53) ->  | F46: =IF($C46="","",Propostas!G53/Parâmetros!$F$4) ->  | G46: =IF($C46="","",Propostas!H53/Parâmetros!$G$4) ->  | H46: =IF($C46="","",MIN(1,(Propostas!B53-Propostas!C53)/Propostas!B53)) ->  | I46: =IF($C46="","",AVERAGE(Propostas!T53:V53)) ->  | J46: =IF(Propostas!T53="","",_xlfn.RANK.EQ(Propostas!T53,Propostas!$T53:$V53,1)) ->  | K46: =IF(Propostas!U53="","",_xlfn.RANK.EQ(Propostas!U53,Propostas!$T53:$V53,1)) ->  | L46: =IF(Propostas!V53="","",_xlfn.RANK.EQ(Propostas!V53,Propostas!$T53:$V53,1)) ->  | M46: =IF(Propostas!T53="","",Parâmetros!J46*(1+(Propostas!T53-Parâmetros!$I46)/SUM(Propostas!$T53:$V53))*VLOOKUP(Dados!B53,Uso_final[],2,0)) ->  | N46: =IF(Propostas!U53="","",Parâmetros!K46*(1+(Propostas!U53-Parâmetros!$I46)/SUM(Propostas!$T53:$V53))*VLOOKUP(Dados!C53,Uso_final[],2,0)) ->  | O46: =IF(Propostas!V53="","",Parâmetros!L46*(1+(Propostas!V53-Parâmetros!$I46)/SUM(Propostas!$T53:$V53))*VLOOKUP(Dados!D53,Uso_final[],2,0)) ->  | Q46: =IF($C46="","",MIN(1,(Propostas!W53+Propostas!X53)/Propostas!B53)) -> 
B47: =IF(ISTEXT(Propostas!A54),Propostas!A54,"") ->  | C47: =IFERROR(Propostas!C54/Propostas!D54,"") ->  | E47: =IF($C47="","",Propostas!F54/Propostas!C54) ->  | F47: =IF($C47="","",Propostas!G54/Parâmetros!$F$4) ->  | G47: =IF($C47="","",Propostas!H54/Parâmetros!$G$4) ->  | H47: =IF($C47="","",MIN(1,(Propostas!B54-Propostas!C54)/Propostas!B54)) ->  | I47: =IF($C47="","",AVERAGE(Propostas!T54:V54)) ->  | J47: =IF(Propostas!T54="","",_xlfn.RANK.EQ(Propostas!T54,Propostas!$T54:$V54,1)) ->  | K47: =IF(Propostas!U54="","",_xlfn.RANK.EQ(Propostas!U54,Propostas!$T54:$V54,1)) ->  | L47: =IF(Propostas!V54="","",_xlfn.RANK.EQ(Propostas!V54,Propostas!$T54:$V54,1)) ->  | M47: =IF(Propostas!T54="","",Parâmetros!J47*(1+(Propostas!T54-Parâmetros!$I47)/SUM(Propostas!$T54:$V54))*VLOOKUP(Dados!B54,Uso_final[],2,0)) ->  | N47: =IF(Propostas!U54="","",Parâmetros!K47*(1+(Propostas!U54-Parâmetros!$I47)/SUM(Propostas!$T54:$V54))*VLOOKUP(Dados!C54,Uso_final[],2,0)) ->  | O47: =IF(Propostas!V54="","",Parâmetros!L47*(1+(Propostas!V54-Parâmetros!$I47)/SUM(Propostas!$T54:$V54))*VLOOKUP(Dados!D54,Uso_final[],2,0)) ->  | Q47: =IF($C47="","",MIN(1,(Propostas!W54+Propostas!X54)/Propostas!B54)) -> 
B48: =IF(ISTEXT(Propostas!A55),Propostas!A55,"") ->  | C48: =IFERROR(Propostas!C55/Propostas!D55,"") ->  | E48: =IF($C48="","",Propostas!F55/Propostas!C55) ->  | F48: =IF($C48="","",Propostas!G55/Parâmetros!$F$4) ->  | G48: =IF($C48="","",Propostas!H55/Parâmetros!$G$4) ->  | H48: =IF($C48="","",MIN(1,(Propostas!B55-Propostas!C55)/Propostas!B55)) ->  | I48: =IF($C48="","",AVERAGE(Propostas!T55:V55)) ->  | J48: =IF(Propostas!T55="","",_xlfn.RANK.EQ(Propostas!T55,Propostas!$T55:$V55,1)) ->  | K48: =IF(Propostas!U55="","",_xlfn.RANK.EQ(Propostas!U55,Propostas!$T55:$V55,1)) ->  | L48: =IF(Propostas!V55="","",_xlfn.RANK.EQ(Propostas!V55,Propostas!$T55:$V55,1)) ->  | M48: =IF(Propostas!T55="","",Parâmetros!J48*(1+(Propostas!T55-Parâmetros!$I48)/SUM(Propostas!$T55:$V55))*VLOOKUP(Dados!B55,Uso_final[],2,0)) ->  | N48: =IF(Propostas!U55="","",Parâmetros!K48*(1+(Propostas!U55-Parâmetros!$I48)/SUM(Propostas!$T55:$V55))*VLOOKUP(Dados!C55,Uso_final[],2,0)) ->  | O48: =IF(Propostas!V55="","",Parâmetros!L48*(1+(Propostas!V55-Parâmetros!$I48)/SUM(Propostas!$T55:$V55))*VLOOKUP(Dados!D55,Uso_final[],2,0)) ->  | Q48: =IF($C48="","",MIN(1,(Propostas!W55+Propostas!X55)/Propostas!B55)) -> 
B49: =IF(ISTEXT(Propostas!A56),Propostas!A56,"") ->  | C49: =IFERROR(Propostas!C56/Propostas!D56,"") ->  | E49: =IF($C49="","",Propostas!F56/Propostas!C56) ->  | F49: =IF($C49="","",Propostas!G56/Parâmetros!$F$4) ->  | G49: =IF($C49="","",Propostas!H56/Parâmetros!$G$4) ->  | H49: =IF($C49="","",MIN(1,(Propostas!B56-Propostas!C56)/Propostas!B56)) ->  | I49: =IF($C49="","",AVERAGE(Propostas!T56:V56)) ->  | J49: =IF(Propostas!T56="","",_xlfn.RANK.EQ(Propostas!T56,Propostas!$T56:$V56,1)) ->  | K49: =IF(Propostas!U56="","",_xlfn.RANK.EQ(Propostas!U56,Propostas!$T56:$V56,1)) ->  | L49: =IF(Propostas!V56="","",_xlfn.RANK.EQ(Propostas!V56,Propostas!$T56:$V56,1)) ->  | M49: =IF(Propostas!T56="","",Parâmetros!J49*(1+(Propostas!T56-Parâmetros!$I49)/SUM(Propostas!$T56:$V56))*VLOOKUP(Dados!B56,Uso_final[],2,0)) ->  | N49: =IF(Propostas!U56="","",Parâmetros!K49*(1+(Propostas!U56-Parâmetros!$I49)/SUM(Propostas!$T56:$V56))*VLOOKUP(Dados!C56,Uso_final[],2,0)) ->  | O49: =IF(Propostas!V56="","",Parâmetros!L49*(1+(Propostas!V56-Parâmetros!$I49)/SUM(Propostas!$T56:$V56))*VLOOKUP(Dados!D56,Uso_final[],2,0)) ->  | Q49: =IF($C49="","",MIN(1,(Propostas!W56+Propostas!X56)/Propostas!B56)) -> 
B50: =IF(ISTEXT(Propostas!A57),Propostas!A57,"") ->  | C50: =IFERROR(Propostas!C57/Propostas!D57,"") ->  | E50: =IF($C50="","",Propostas!F57/Propostas!C57) ->  | F50: =IF($C50="","",Propostas!G57/Parâmetros!$F$4) ->  | G50: =IF($C50="","",Propostas!H57/Parâmetros!$G$4) ->  | H50: =IF($C50="","",MIN(1,(Propostas!B57-Propostas!C57)/Propostas!B57)) ->  | I50: =IF($C50="","",AVERAGE(Propostas!T57:V57)) ->  | J50: =IF(Propostas!T57="","",_xlfn.RANK.EQ(Propostas!T57,Propostas!$T57:$V57,1)) ->  | K50: =IF(Propostas!U57="","",_xlfn.RANK.EQ(Propostas!U57,Propostas!$T57:$V57,1)) ->  | L50: =IF(Propostas!V57="","",_xlfn.RANK.EQ(Propostas!V57,Propostas!$T57:$V57,1)) ->  | M50: =IF(Propostas!T57="","",Parâmetros!J50*(1+(Propostas!T57-Parâmetros!$I50)/SUM(Propostas!$T57:$V57))*VLOOKUP(Dados!B57,Uso_final[],2,0)) ->  | N50: =IF(Propostas!U57="","",Parâmetros!K50*(1+(Propostas!U57-Parâmetros!$I50)/SUM(Propostas!$T57:$V57))*VLOOKUP(Dados!C57,Uso_final[],2,0)) ->  | O50: =IF(Propostas!V57="","",Parâmetros!L50*(1+(Propostas!V57-Parâmetros!$I50)/SUM(Propostas!$T57:$V57))*VLOOKUP(Dados!D57,Uso_final[],2,0)) ->  | Q50: =IF($C50="","",MIN(1,(Propostas!W57+Propostas!X57)/Propostas!B57)) -> 
B51: =IF(ISTEXT(Propostas!A58),Propostas!A58,"") ->  | C51: =IFERROR(Propostas!C58/Propostas!D58,"") ->  | E51: =IF($C51="","",Propostas!F58/Propostas!C58) ->  | F51: =IF($C51="","",Propostas!G58/Parâmetros!$F$4) ->  | G51: =IF($C51="","",Propostas!H58/Parâmetros!$G$4) ->  | H51: =IF($C51="","",MIN(1,(Propostas!B58-Propostas!C58)/Propostas!B58)) ->  | I51: =IF($C51="","",AVERAGE(Propostas!T58:V58)) ->  | J51: =IF(Propostas!T58="","",_xlfn.RANK.EQ(Propostas!T58,Propostas!$T58:$V58,1)) ->  | K51: =IF(Propostas!U58="","",_xlfn.RANK.EQ(Propostas!U58,Propostas!$T58:$V58,1)) ->  | L51: =IF(Propostas!V58="","",_xlfn.RANK.EQ(Propostas!V58,Propostas!$T58:$V58,1)) ->  | M51: =IF(Propostas!T58="","",Parâmetros!J51*(1+(Propostas!T58-Parâmetros!$I51)/SUM(Propostas!$T58:$V58))*VLOOKUP(Dados!B58,Uso_final[],2,0)) ->  | N51: =IF(Propostas!U58="","",Parâmetros!K51*(1+(Propostas!U58-Parâmetros!$I51)/SUM(Propostas!$T58:$V58))*VLOOKUP(Dados!C58,Uso_final[],2,0)) ->  | O51: =IF(Propostas!V58="","",Parâmetros!L51*(1+(Propostas!V58-Parâmetros!$I51)/SUM(Propostas!$T58:$V58))*VLOOKUP(Dados!D58,Uso_final[],2,0)) ->  | Q51: =IF($C51="","",MIN(1,(Propostas!W58+Propostas!X58)/Propostas!B58)) -> 
B52: =IF(ISTEXT(Propostas!A59),Propostas!A59,"") ->  | C52: =IFERROR(Propostas!C59/Propostas!D59,"") ->  | E52: =IF($C52="","",Propostas!F59/Propostas!C59) ->  | F52: =IF($C52="","",Propostas!G59/Parâmetros!$F$4) ->  | G52: =IF($C52="","",Propostas!H59/Parâmetros!$G$4) ->  | H52: =IF($C52="","",MIN(1,(Propostas!B59-Propostas!C59)/Propostas!B59)) ->  | I52: =IF($C52="","",AVERAGE(Propostas!T59:V59)) ->  | J52: =IF(Propostas!T59="","",_xlfn.RANK.EQ(Propostas!T59,Propostas!$T59:$V59,1)) ->  | K52: =IF(Propostas!U59="","",_xlfn.RANK.EQ(Propostas!U59,Propostas!$T59:$V59,1)) ->  | L52: =IF(Propostas!V59="","",_xlfn.RANK.EQ(Propostas!V59,Propostas!$T59:$V59,1)) ->  | M52: =IF(Propostas!T59="","",Parâmetros!J52*(1+(Propostas!T59-Parâmetros!$I52)/SUM(Propostas!$T59:$V59))*VLOOKUP(Dados!B59,Uso_final[],2,0)) ->  | N52: =IF(Propostas!U59="","",Parâmetros!K52*(1+(Propostas!U59-Parâmetros!$I52)/SUM(Propostas!$T59:$V59))*VLOOKUP(Dados!C59,Uso_final[],2,0)) ->  | O52: =IF(Propostas!V59="","",Parâmetros!L52*(1+(Propostas!V59-Parâmetros!$I52)/SUM(Propostas!$T59:$V59))*VLOOKUP(Dados!D59,Uso_final[],2,0)) ->  | Q52: =IF($C52="","",MIN(1,(Propostas!W59+Propostas!X59)/Propostas!B59)) -> 
B53: =IF(ISTEXT(Propostas!A60),Propostas!A60,"") ->  | C53: =IFERROR(Propostas!C60/Propostas!D60,"") ->  | E53: =IF($C53="","",Propostas!F60/Propostas!C60) ->  | F53: =IF($C53="","",Propostas!G60/Parâmetros!$F$4) ->  | G53: =IF($C53="","",Propostas!H60/Parâmetros!$G$4) ->  | H53: =IF($C53="","",MIN(1,(Propostas!B60-Propostas!C60)/Propostas!B60)) ->  | I53: =IF($C53="","",AVERAGE(Propostas!T60:V60)) ->  | J53: =IF(Propostas!T60="","",_xlfn.RANK.EQ(Propostas!T60,Propostas!$T60:$V60,1)) ->  | K53: =IF(Propostas!U60="","",_xlfn.RANK.EQ(Propostas!U60,Propostas!$T60:$V60,1)) ->  | L53: =IF(Propostas!V60="","",_xlfn.RANK.EQ(Propostas!V60,Propostas!$T60:$V60,1)) ->  | M53: =IF(Propostas!T60="","",Parâmetros!J53*(1+(Propostas!T60-Parâmetros!$I53)/SUM(Propostas!$T60:$V60))*VLOOKUP(Dados!B60,Uso_final[],2,0)) ->  | N53: =IF(Propostas!U60="","",Parâmetros!K53*(1+(Propostas!U60-Parâmetros!$I53)/SUM(Propostas!$T60:$V60))*VLOOKUP(Dados!C60,Uso_final[],2,0)) ->  | O53: =IF(Propostas!V60="","",Parâmetros!L53*(1+(Propostas!V60-Parâmetros!$I53)/SUM(Propostas!$T60:$V60))*VLOOKUP(Dados!D60,Uso_final[],2,0)) ->  | Q53: =IF($C53="","",MIN(1,(Propostas!W60+Propostas!X60)/Propostas!B60)) -> 
B54: =IF(ISTEXT(Propostas!A61),Propostas!A61,"") ->  | C54: =IFERROR(Propostas!C61/Propostas!D61,"") ->  | E54: =IF($C54="","",Propostas!F61/Propostas!C61) ->  | F54: =IF($C54="","",Propostas!G61/Parâmetros!$F$4) ->  | G54: =IF($C54="","",Propostas!H61/Parâmetros!$G$4) ->  | H54: =IF($C54="","",MIN(1,(Propostas!B61-Propostas!C61)/Propostas!B61)) ->  | I54: =IF($C54="","",AVERAGE(Propostas!T61:V61)) ->  | J54: =IF(Propostas!T61="","",_xlfn.RANK.EQ(Propostas!T61,Propostas!$T61:$V61,1)) ->  | K54: =IF(Propostas!U61="","",_xlfn.RANK.EQ(Propostas!U61,Propostas!$T61:$V61,1)) ->  | L54: =IF(Propostas!V61="","",_xlfn.RANK.EQ(Propostas!V61,Propostas!$T61:$V61,1)) ->  | M54: =IF(Propostas!T61="","",Parâmetros!J54*(1+(Propostas!T61-Parâmetros!$I54)/SUM(Propostas!$T61:$V61))*VLOOKUP(Dados!B61,Uso_final[],2,0)) ->  | N54: =IF(Propostas!U61="","",Parâmetros!K54*(1+(Propostas!U61-Parâmetros!$I54)/SUM(Propostas!$T61:$V61))*VLOOKUP(Dados!C61,Uso_final[],2,0)) ->  | O54: =IF(Propostas!V61="","",Parâmetros!L54*(1+(Propostas!V61-Parâmetros!$I54)/SUM(Propostas!$T61:$V61))*VLOOKUP(Dados!D61,Uso_final[],2,0)) ->  | Q54: =IF($C54="","",MIN(1,(Propostas!W61+Propostas!X61)/Propostas!B61)) -> 
B55: =IF(ISTEXT(Propostas!A62),Propostas!A62,"") ->  | C55: =IFERROR(Propostas!C62/Propostas!D62,"") ->  | E55: =IF($C55="","",Propostas!F62/Propostas!C62) ->  | F55: =IF($C55="","",Propostas!G62/Parâmetros!$F$4) ->  | G55: =IF($C55="","",Propostas!H62/Parâmetros!$G$4) ->  | H55: =IF($C55="","",MIN(1,(Propostas!B62-Propostas!C62)/Propostas!B62)) ->  | I55: =IF($C55="","",AVERAGE(Propostas!T62:V62)) ->  | J55: =IF(Propostas!T62="","",_xlfn.RANK.EQ(Propostas!T62,Propostas!$T62:$V62,1)) ->  | K55: =IF(Propostas!U62="","",_xlfn.RANK.EQ(Propostas!U62,Propostas!$T62:$V62,1)) ->  | L55: =IF(Propostas!V62="","",_xlfn.RANK.EQ(Propostas!V62,Propostas!$T62:$V62,1)) ->  | M55: =IF(Propostas!T62="","",Parâmetros!J55*(1+(Propostas!T62-Parâmetros!$I55)/SUM(Propostas!$T62:$V62))*VLOOKUP(Dados!B62,Uso_final[],2,0)) ->  | N55: =IF(Propostas!U62="","",Parâmetros!K55*(1+(Propostas!U62-Parâmetros!$I55)/SUM(Propostas!$T62:$V62))*VLOOKUP(Dados!C62,Uso_final[],2,0)) ->  | O55: =IF(Propostas!V62="","",Parâmetros!L55*(1+(Propostas!V62-Parâmetros!$I55)/SUM(Propostas!$T62:$V62))*VLOOKUP(Dados!D62,Uso_final[],2,0)) ->  | Q55: =IF($C55="","",MIN(1,(Propostas!W62+Propostas!X62)/Propostas!B62)) -> 
B56: =IF(ISTEXT(Propostas!A63),Propostas!A63,"") ->  | C56: =IFERROR(Propostas!C63/Propostas!D63,"") ->  | E56: =IF($C56="","",Propostas!F63/Propostas!C63) ->  | F56: =IF($C56="","",Propostas!G63/Parâmetros!$F$4) ->  | G56: =IF($C56="","",Propostas!H63/Parâmetros!$G$4) ->  | H56: =IF($C56="","",MIN(1,(Propostas!B63-Propostas!C63)/Propostas!B63)) ->  | I56: =IF($C56="","",AVERAGE(Propostas!T63:V63)) ->  | J56: =IF(Propostas!T63="","",_xlfn.RANK.EQ(Propostas!T63,Propostas!$T63:$V63,1)) ->  | K56: =IF(Propostas!U63="","",_xlfn.RANK.EQ(Propostas!U63,Propostas!$T63:$V63,1)) ->  | L56: =IF(Propostas!V63="","",_xlfn.RANK.EQ(Propostas!V63,Propostas!$T63:$V63,1)) ->  | M56: =IF(Propostas!T63="","",Parâmetros!J56*(1+(Propostas!T63-Parâmetros!$I56)/SUM(Propostas!$T63:$V63))*VLOOKUP(Dados!B63,Uso_final[],2,0)) ->  | N56: =IF(Propostas!U63="","",Parâmetros!K56*(1+(Propostas!U63-Parâmetros!$I56)/SUM(Propostas!$T63:$V63))*VLOOKUP(Dados!C63,Uso_final[],2,0)) ->  | O56: =IF(Propostas!V63="","",Parâmetros!L56*(1+(Propostas!V63-Parâmetros!$I56)/SUM(Propostas!$T63:$V63))*VLOOKUP(Dados!D63,Uso_final[],2,0)) ->  | Q56: =IF($C56="","",MIN(1,(Propostas!W63+Propostas!X63)/Propostas!B63)) -> 
B57: =IF(ISTEXT(Propostas!A64),Propostas!A64,"") ->  | C57: =IFERROR(Propostas!C64/Propostas!D64,"") ->  | E57: =IF($C57="","",Propostas!F64/Propostas!C64) ->  | F57: =IF($C57="","",Propostas!G64/Parâmetros!$F$4) ->  | G57: =IF($C57="","",Propostas!H64/Parâmetros!$G$4) ->  | H57: =IF($C57="","",MIN(1,(Propostas!B64-Propostas!C64)/Propostas!B64)) ->  | I57: =IF($C57="","",AVERAGE(Propostas!T64:V64)) ->  | J57: =IF(Propostas!T64="","",_xlfn.RANK.EQ(Propostas!T64,Propostas!$T64:$V64,1)) ->  | K57: =IF(Propostas!U64="","",_xlfn.RANK.EQ(Propostas!U64,Propostas!$T64:$V64,1)) ->  | L57: =IF(Propostas!V64="","",_xlfn.RANK.EQ(Propostas!V64,Propostas!$T64:$V64,1)) ->  | M57: =IF(Propostas!T64="","",Parâmetros!J57*(1+(Propostas!T64-Parâmetros!$I57)/SUM(Propostas!$T64:$V64))*VLOOKUP(Dados!B64,Uso_final[],2,0)) ->  | N57: =IF(Propostas!U64="","",Parâmetros!K57*(1+(Propostas!U64-Parâmetros!$I57)/SUM(Propostas!$T64:$V64))*VLOOKUP(Dados!C64,Uso_final[],2,0)) ->  | O57: =IF(Propostas!V64="","",Parâmetros!L57*(1+(Propostas!V64-Parâmetros!$I57)/SUM(Propostas!$T64:$V64))*VLOOKUP(Dados!D64,Uso_final[],2,0)) ->  | Q57: =IF($C57="","",MIN(1,(Propostas!W64+Propostas!X64)/Propostas!B64)) -> 
B58: =IF(ISTEXT(Propostas!A65),Propostas!A65,"") ->  | C58: =IFERROR(Propostas!C65/Propostas!D65,"") ->  | E58: =IF($C58="","",Propostas!F65/Propostas!C65) ->  | F58: =IF($C58="","",Propostas!G65/Parâmetros!$F$4) ->  | G58: =IF($C58="","",Propostas!H65/Parâmetros!$G$4) ->  | H58: =IF($C58="","",MIN(1,(Propostas!B65-Propostas!C65)/Propostas!B65)) ->  | I58: =IF($C58="","",AVERAGE(Propostas!T65:V65)) ->  | J58: =IF(Propostas!T65="","",_xlfn.RANK.EQ(Propostas!T65,Propostas!$T65:$V65,1)) ->  | K58: =IF(Propostas!U65="","",_xlfn.RANK.EQ(Propostas!U65,Propostas!$T65:$V65,1)) ->  | L58: =IF(Propostas!V65="","",_xlfn.RANK.EQ(Propostas!V65,Propostas!$T65:$V65,1)) ->  | M58: =IF(Propostas!T65="","",Parâmetros!J58*(1+(Propostas!T65-Parâmetros!$I58)/SUM(Propostas!$T65:$V65))*VLOOKUP(Dados!B65,Uso_final[],2,0)) ->  | N58: =IF(Propostas!U65="","",Parâmetros!K58*(1+(Propostas!U65-Parâmetros!$I58)/SUM(Propostas!$T65:$V65))*VLOOKUP(Dados!C65,Uso_final[],2,0)) ->  | O58: =IF(Propostas!V65="","",Parâmetros!L58*(1+(Propostas!V65-Parâmetros!$I58)/SUM(Propostas!$T65:$V65))*VLOOKUP(Dados!D65,Uso_final[],2,0)) ->  | Q58: =IF($C58="","",MIN(1,(Propostas!W65+Propostas!X65)/Propostas!B65)) -> 
B59: =IF(ISTEXT(Propostas!A66),Propostas!A66,"") ->  | C59: =IFERROR(Propostas!C66/Propostas!D66,"") ->  | E59: =IF($C59="","",Propostas!F66/Propostas!C66) ->  | F59: =IF($C59="","",Propostas!G66/Parâmetros!$F$4) ->  | G59: =IF($C59="","",Propostas!H66/Parâmetros!$G$4) ->  | H59: =IF($C59="","",MIN(1,(Propostas!B66-Propostas!C66)/Propostas!B66)) ->  | I59: =IF($C59="","",AVERAGE(Propostas!T66:V66)) ->  | J59: =IF(Propostas!T66="","",_xlfn.RANK.EQ(Propostas!T66,Propostas!$T66:$V66,1)) ->  | K59: =IF(Propostas!U66="","",_xlfn.RANK.EQ(Propostas!U66,Propostas!$T66:$V66,1)) ->  | L59: =IF(Propostas!V66="","",_xlfn.RANK.EQ(Propostas!V66,Propostas!$T66:$V66,1)) ->  | M59: =IF(Propostas!T66="","",Parâmetros!J59*(1+(Propostas!T66-Parâmetros!$I59)/SUM(Propostas!$T66:$V66))*VLOOKUP(Dados!B66,Uso_final[],2,0)) ->  | N59: =IF(Propostas!U66="","",Parâmetros!K59*(1+(Propostas!U66-Parâmetros!$I59)/SUM(Propostas!$T66:$V66))*VLOOKUP(Dados!C66,Uso_final[],2,0)) ->  | O59: =IF(Propostas!V66="","",Parâmetros!L59*(1+(Propostas!V66-Parâmetros!$I59)/SUM(Propostas!$T66:$V66))*VLOOKUP(Dados!D66,Uso_final[],2,0)) ->  | Q59: =IF($C59="","",MIN(1,(Propostas!W66+Propostas!X66)/Propostas!B66)) -> 
B60: =IF(ISTEXT(Propostas!A67),Propostas!A67,"") ->  | C60: =IFERROR(Propostas!C67/Propostas!D67,"") ->  | E60: =IF($C60="","",Propostas!F67/Propostas!C67) ->  | F60: =IF($C60="","",Propostas!G67/Parâmetros!$F$4) ->  | G60: =IF($C60="","",Propostas!H67/Parâmetros!$G$4) ->  | H60: =IF($C60="","",MIN(1,(Propostas!B67-Propostas!C67)/Propostas!B67)) ->  | I60: =IF($C60="","",AVERAGE(Propostas!T67:V67)) ->  | J60: =IF(Propostas!T67="","",_xlfn.RANK.EQ(Propostas!T67,Propostas!$T67:$V67,1)) ->  | K60: =IF(Propostas!U67="","",_xlfn.RANK.EQ(Propostas!U67,Propostas!$T67:$V67,1)) ->  | L60: =IF(Propostas!V67="","",_xlfn.RANK.EQ(Propostas!V67,Propostas!$T67:$V67,1)) ->  | M60: =IF(Propostas!T67="","",Parâmetros!J60*(1+(Propostas!T67-Parâmetros!$I60)/SUM(Propostas!$T67:$V67))*VLOOKUP(Dados!B67,Uso_final[],2,0)) ->  | N60: =IF(Propostas!U67="","",Parâmetros!K60*(1+(Propostas!U67-Parâmetros!$I60)/SUM(Propostas!$T67:$V67))*VLOOKUP(Dados!C67,Uso_final[],2,0)) ->  | O60: =IF(Propostas!V67="","",Parâmetros!L60*(1+(Propostas!V67-Parâmetros!$I60)/SUM(Propostas!$T67:$V67))*VLOOKUP(Dados!D67,Uso_final[],2,0)) ->  | Q60: =IF($C60="","",MIN(1,(Propostas!W67+Propostas!X67)/Propostas!B67)) -> 
B61: =IF(ISTEXT(Propostas!A68),Propostas!A68,"") ->  | C61: =IFERROR(Propostas!C68/Propostas!D68,"") ->  | E61: =IF($C61="","",Propostas!F68/Propostas!C68) ->  | F61: =IF($C61="","",Propostas!G68/Parâmetros!$F$4) ->  | G61: =IF($C61="","",Propostas!H68/Parâmetros!$G$4) ->  | H61: =IF($C61="","",MIN(1,(Propostas!B68-Propostas!C68)/Propostas!B68)) ->  | I61: =IF($C61="","",AVERAGE(Propostas!T68:V68)) ->  | J61: =IF(Propostas!T68="","",_xlfn.RANK.EQ(Propostas!T68,Propostas!$T68:$V68,1)) ->  | K61: =IF(Propostas!U68="","",_xlfn.RANK.EQ(Propostas!U68,Propostas!$T68:$V68,1)) ->  | L61: =IF(Propostas!V68="","",_xlfn.RANK.EQ(Propostas!V68,Propostas!$T68:$V68,1)) ->  | M61: =IF(Propostas!T68="","",Parâmetros!J61*(1+(Propostas!T68-Parâmetros!$I61)/SUM(Propostas!$T68:$V68))*VLOOKUP(Dados!B68,Uso_final[],2,0)) ->  | N61: =IF(Propostas!U68="","",Parâmetros!K61*(1+(Propostas!U68-Parâmetros!$I61)/SUM(Propostas!$T68:$V68))*VLOOKUP(Dados!C68,Uso_final[],2,0)) ->  | O61: =IF(Propostas!V68="","",Parâmetros!L61*(1+(Propostas!V68-Parâmetros!$I61)/SUM(Propostas!$T68:$V68))*VLOOKUP(Dados!D68,Uso_final[],2,0)) ->  | Q61: =IF($C61="","",MIN(1,(Propostas!W68+Propostas!X68)/Propostas!B68)) -> 
B62: =IF(ISTEXT(Propostas!A69),Propostas!A69,"") ->  | C62: =IFERROR(Propostas!C69/Propostas!D69,"") ->  | E62: =IF($C62="","",Propostas!F69/Propostas!C69) ->  | F62: =IF($C62="","",Propostas!G69/Parâmetros!$F$4) ->  | G62: =IF($C62="","",Propostas!H69/Parâmetros!$G$4) ->  | H62: =IF($C62="","",MIN(1,(Propostas!B69-Propostas!C69)/Propostas!B69)) ->  | I62: =IF($C62="","",AVERAGE(Propostas!T69:V69)) ->  | J62: =IF(Propostas!T69="","",_xlfn.RANK.EQ(Propostas!T69,Propostas!$T69:$V69,1)) ->  | K62: =IF(Propostas!U69="","",_xlfn.RANK.EQ(Propostas!U69,Propostas!$T69:$V69,1)) ->  | L62: =IF(Propostas!V69="","",_xlfn.RANK.EQ(Propostas!V69,Propostas!$T69:$V69,1)) ->  | M62: =IF(Propostas!T69="","",Parâmetros!J62*(1+(Propostas!T69-Parâmetros!$I62)/SUM(Propostas!$T69:$V69))*VLOOKUP(Dados!B69,Uso_final[],2,0)) ->  | N62: =IF(Propostas!U69="","",Parâmetros!K62*(1+(Propostas!U69-Parâmetros!$I62)/SUM(Propostas!$T69:$V69))*VLOOKUP(Dados!C69,Uso_final[],2,0)) ->  | O62: =IF(Propostas!V69="","",Parâmetros!L62*(1+(Propostas!V69-Parâmetros!$I62)/SUM(Propostas!$T69:$V69))*VLOOKUP(Dados!D69,Uso_final[],2,0)) ->  | Q62: =IF($C62="","",MIN(1,(Propostas!W69+Propostas!X69)/Propostas!B69)) -> 
B63: =IF(ISTEXT(Propostas!A70),Propostas!A70,"") ->  | C63: =IFERROR(Propostas!C70/Propostas!D70,"") ->  | E63: =IF($C63="","",Propostas!F70/Propostas!C70) ->  | F63: =IF($C63="","",Propostas!G70/Parâmetros!$F$4) ->  | G63: =IF($C63="","",Propostas!H70/Parâmetros!$G$4) ->  | H63: =IF($C63="","",MIN(1,(Propostas!B70-Propostas!C70)/Propostas!B70)) ->  | I63: =IF($C63="","",AVERAGE(Propostas!T70:V70)) ->  | J63: =IF(Propostas!T70="","",_xlfn.RANK.EQ(Propostas!T70,Propostas!$T70:$V70,1)) ->  | K63: =IF(Propostas!U70="","",_xlfn.RANK.EQ(Propostas!U70,Propostas!$T70:$V70,1)) ->  | L63: =IF(Propostas!V70="","",_xlfn.RANK.EQ(Propostas!V70,Propostas!$T70:$V70,1)) ->  | M63: =IF(Propostas!T70="","",Parâmetros!J63*(1+(Propostas!T70-Parâmetros!$I63)/SUM(Propostas!$T70:$V70))*VLOOKUP(Dados!B70,Uso_final[],2,0)) ->  | N63: =IF(Propostas!U70="","",Parâmetros!K63*(1+(Propostas!U70-Parâmetros!$I63)/SUM(Propostas!$T70:$V70))*VLOOKUP(Dados!C70,Uso_final[],2,0)) ->  | O63: =IF(Propostas!V70="","",Parâmetros!L63*(1+(Propostas!V70-Parâmetros!$I63)/SUM(Propostas!$T70:$V70))*VLOOKUP(Dados!D70,Uso_final[],2,0)) ->  | Q63: =IF($C63="","",MIN(1,(Propostas!W70+Propostas!X70)/Propostas!B70)) -> 
B64: =IF(ISTEXT(Propostas!A71),Propostas!A71,"") ->  | C64: =IFERROR(Propostas!C71/Propostas!D71,"") ->  | E64: =IF($C64="","",Propostas!F71/Propostas!C71) ->  | F64: =IF($C64="","",Propostas!G71/Parâmetros!$F$4) ->  | G64: =IF($C64="","",Propostas!H71/Parâmetros!$G$4) ->  | H64: =IF($C64="","",MIN(1,(Propostas!B71-Propostas!C71)/Propostas!B71)) ->  | I64: =IF($C64="","",AVERAGE(Propostas!T71:V71)) ->  | J64: =IF(Propostas!T71="","",_xlfn.RANK.EQ(Propostas!T71,Propostas!$T71:$V71,1)) ->  | K64: =IF(Propostas!U71="","",_xlfn.RANK.EQ(Propostas!U71,Propostas!$T71:$V71,1)) ->  | L64: =IF(Propostas!V71="","",_xlfn.RANK.EQ(Propostas!V71,Propostas!$T71:$V71,1)) ->  | M64: =IF(Propostas!T71="","",Parâmetros!J64*(1+(Propostas!T71-Parâmetros!$I64)/SUM(Propostas!$T71:$V71))*VLOOKUP(Dados!B71,Uso_final[],2,0)) ->  | N64: =IF(Propostas!U71="","",Parâmetros!K64*(1+(Propostas!U71-Parâmetros!$I64)/SUM(Propostas!$T71:$V71))*VLOOKUP(Dados!C71,Uso_final[],2,0)) ->  | O64: =IF(Propostas!V71="","",Parâmetros!L64*(1+(Propostas!V71-Parâmetros!$I64)/SUM(Propostas!$T71:$V71))*VLOOKUP(Dados!D71,Uso_final[],2,0)) ->  | Q64: =IF($C64="","",MIN(1,(Propostas!W71+Propostas!X71)/Propostas!B71)) -> 
B65: =IF(ISTEXT(Propostas!A72),Propostas!A72,"") ->  | C65: =IFERROR(Propostas!C72/Propostas!D72,"") ->  | E65: =IF($C65="","",Propostas!F72/Propostas!C72) ->  | F65: =IF($C65="","",Propostas!G72/Parâmetros!$F$4) ->  | G65: =IF($C65="","",Propostas!H72/Parâmetros!$G$4) ->  | H65: =IF($C65="","",MIN(1,(Propostas!B72-Propostas!C72)/Propostas!B72)) ->  | I65: =IF($C65="","",AVERAGE(Propostas!T72:V72)) ->  | J65: =IF(Propostas!T72="","",_xlfn.RANK.EQ(Propostas!T72,Propostas!$T72:$V72,1)) ->  | K65: =IF(Propostas!U72="","",_xlfn.RANK.EQ(Propostas!U72,Propostas!$T72:$V72,1)) ->  | L65: =IF(Propostas!V72="","",_xlfn.RANK.EQ(Propostas!V72,Propostas!$T72:$V72,1)) ->  | M65: =IF(Propostas!T72="","",Parâmetros!J65*(1+(Propostas!T72-Parâmetros!$I65)/SUM(Propostas!$T72:$V72))*VLOOKUP(Dados!B72,Uso_final[],2,0)) ->  | N65: =IF(Propostas!U72="","",Parâmetros!K65*(1+(Propostas!U72-Parâmetros!$I65)/SUM(Propostas!$T72:$V72))*VLOOKUP(Dados!C72,Uso_final[],2,0)) ->  | O65: =IF(Propostas!V72="","",Parâmetros!L65*(1+(Propostas!V72-Parâmetros!$I65)/SUM(Propostas!$T72:$V72))*VLOOKUP(Dados!D72,Uso_final[],2,0)) ->  | Q65: =IF($C65="","",MIN(1,(Propostas!W72+Propostas!X72)/Propostas!B72)) -> 
B66: =IF(ISTEXT(Propostas!A73),Propostas!A73,"") ->  | C66: =IFERROR(Propostas!C73/Propostas!D73,"") ->  | E66: =IF($C66="","",Propostas!F73/Propostas!C73) ->  | F66: =IF($C66="","",Propostas!G73/Parâmetros!$F$4) ->  | G66: =IF($C66="","",Propostas!H73/Parâmetros!$G$4) ->  | H66: =IF($C66="","",MIN(1,(Propostas!B73-Propostas!C73)/Propostas!B73)) ->  | I66: =IF($C66="","",AVERAGE(Propostas!T73:V73)) ->  | J66: =IF(Propostas!T73="","",_xlfn.RANK.EQ(Propostas!T73,Propostas!$T73:$V73,1)) ->  | K66: =IF(Propostas!U73="","",_xlfn.RANK.EQ(Propostas!U73,Propostas!$T73:$V73,1)) ->  | L66: =IF(Propostas!V73="","",_xlfn.RANK.EQ(Propostas!V73,Propostas!$T73:$V73,1)) ->  | M66: =IF(Propostas!T73="","",Parâmetros!J66*(1+(Propostas!T73-Parâmetros!$I66)/SUM(Propostas!$T73:$V73))*VLOOKUP(Dados!B73,Uso_final[],2,0)) ->  | N66: =IF(Propostas!U73="","",Parâmetros!K66*(1+(Propostas!U73-Parâmetros!$I66)/SUM(Propostas!$T73:$V73))*VLOOKUP(Dados!C73,Uso_final[],2,0)) ->  | O66: =IF(Propostas!V73="","",Parâmetros!L66*(1+(Propostas!V73-Parâmetros!$I66)/SUM(Propostas!$T73:$V73))*VLOOKUP(Dados!D73,Uso_final[],2,0)) ->  | Q66: =IF($C66="","",MIN(1,(Propostas!W73+Propostas!X73)/Propostas!B73)) -> 
B67: =IF(ISTEXT(Propostas!A74),Propostas!A74,"") ->  | C67: =IFERROR(Propostas!C74/Propostas!D74,"") ->  | E67: =IF($C67="","",Propostas!F74/Propostas!C74) ->  | F67: =IF($C67="","",Propostas!G74/Parâmetros!$F$4) ->  | G67: =IF($C67="","",Propostas!H74/Parâmetros!$G$4) ->  | H67: =IF($C67="","",MIN(1,(Propostas!B74-Propostas!C74)/Propostas!B74)) ->  | I67: =IF($C67="","",AVERAGE(Propostas!T74:V74)) ->  | J67: =IF(Propostas!T74="","",_xlfn.RANK.EQ(Propostas!T74,Propostas!$T74:$V74,1)) ->  | K67: =IF(Propostas!U74="","",_xlfn.RANK.EQ(Propostas!U74,Propostas!$T74:$V74,1)) ->  | L67: =IF(Propostas!V74="","",_xlfn.RANK.EQ(Propostas!V74,Propostas!$T74:$V74,1)) ->  | M67: =IF(Propostas!T74="","",Parâmetros!J67*(1+(Propostas!T74-Parâmetros!$I67)/SUM(Propostas!$T74:$V74))*VLOOKUP(Dados!B74,Uso_final[],2,0)) ->  | N67: =IF(Propostas!U74="","",Parâmetros!K67*(1+(Propostas!U74-Parâmetros!$I67)/SUM(Propostas!$T74:$V74))*VLOOKUP(Dados!C74,Uso_final[],2,0)) ->  | O67: =IF(Propostas!V74="","",Parâmetros!L67*(1+(Propostas!V74-Parâmetros!$I67)/SUM(Propostas!$T74:$V74))*VLOOKUP(Dados!D74,Uso_final[],2,0)) ->  | Q67: =IF($C67="","",MIN(1,(Propostas!W74+Propostas!X74)/Propostas!B74)) -> 
B68: =IF(ISTEXT(Propostas!A75),Propostas!A75,"") ->  | C68: =IFERROR(Propostas!C75/Propostas!D75,"") ->  | E68: =IF($C68="","",Propostas!F75/Propostas!C75) ->  | F68: =IF($C68="","",Propostas!G75/Parâmetros!$F$4) ->  | G68: =IF($C68="","",Propostas!H75/Parâmetros!$G$4) ->  | H68: =IF($C68="","",MIN(1,(Propostas!B75-Propostas!C75)/Propostas!B75)) ->  | I68: =IF($C68="","",AVERAGE(Propostas!T75:V75)) ->  | J68: =IF(Propostas!T75="","",_xlfn.RANK.EQ(Propostas!T75,Propostas!$T75:$V75,1)) ->  | K68: =IF(Propostas!U75="","",_xlfn.RANK.EQ(Propostas!U75,Propostas!$T75:$V75,1)) ->  | L68: =IF(Propostas!V75="","",_xlfn.RANK.EQ(Propostas!V75,Propostas!$T75:$V75,1)) ->  | M68: =IF(Propostas!T75="","",Parâmetros!J68*(1+(Propostas!T75-Parâmetros!$I68)/SUM(Propostas!$T75:$V75))*VLOOKUP(Dados!B75,Uso_final[],2,0)) ->  | N68: =IF(Propostas!U75="","",Parâmetros!K68*(1+(Propostas!U75-Parâmetros!$I68)/SUM(Propostas!$T75:$V75))*VLOOKUP(Dados!C75,Uso_final[],2,0)) ->  | O68: =IF(Propostas!V75="","",Parâmetros!L68*(1+(Propostas!V75-Parâmetros!$I68)/SUM(Propostas!$T75:$V75))*VLOOKUP(Dados!D75,Uso_final[],2,0)) ->  | Q68: =IF($C68="","",MIN(1,(Propostas!W75+Propostas!X75)/Propostas!B75)) -> 
B69: =IF(ISTEXT(Propostas!A76),Propostas!A76,"") ->  | C69: =IFERROR(Propostas!C76/Propostas!D76,"") ->  | E69: =IF($C69="","",Propostas!F76/Propostas!C76) ->  | F69: =IF($C69="","",Propostas!G76/Parâmetros!$F$4) ->  | G69: =IF($C69="","",Propostas!H76/Parâmetros!$G$4) ->  | H69: =IF($C69="","",MIN(1,(Propostas!B76-Propostas!C76)/Propostas!B76)) ->  | I69: =IF($C69="","",AVERAGE(Propostas!T76:V76)) ->  | J69: =IF(Propostas!T76="","",_xlfn.RANK.EQ(Propostas!T76,Propostas!$T76:$V76,1)) ->  | K69: =IF(Propostas!U76="","",_xlfn.RANK.EQ(Propostas!U76,Propostas!$T76:$V76,1)) ->  | L69: =IF(Propostas!V76="","",_xlfn.RANK.EQ(Propostas!V76,Propostas!$T76:$V76,1)) ->  | M69: =IF(Propostas!T76="","",Parâmetros!J69*(1+(Propostas!T76-Parâmetros!$I69)/SUM(Propostas!$T76:$V76))*VLOOKUP(Dados!B76,Uso_final[],2,0)) ->  | N69: =IF(Propostas!U76="","",Parâmetros!K69*(1+(Propostas!U76-Parâmetros!$I69)/SUM(Propostas!$T76:$V76))*VLOOKUP(Dados!C76,Uso_final[],2,0)) ->  | O69: =IF(Propostas!V76="","",Parâmetros!L69*(1+(Propostas!V76-Parâmetros!$I69)/SUM(Propostas!$T76:$V76))*VLOOKUP(Dados!D76,Uso_final[],2,0)) ->  | P69: =IF(C69="","",SUM(M69:O69)-1) ->  | Q69: =IF($C69="","",MIN(1,(Propostas!W76+Propostas!X76)/Propostas!B76)) -> 
B70: =IF(ISTEXT(Propostas!A77),Propostas!A77,"") ->  | C70: =IFERROR(Propostas!C77/Propostas!D77,"") ->  | D70: =IF($C70="","",RANK(C70,$C$5:$C$200,0)) ->  | E70: =IF($C70="","",Propostas!F77/Propostas!C77) ->  | F70: =IF($C70="","",Propostas!G77/Parâmetros!$F$4) ->  | G70: =IF($C70="","",Propostas!H77/Parâmetros!$G$4) ->  | H70: =IF($C70="","",MIN(1,(Propostas!B77-Propostas!C77)/Propostas!B77)) ->  | I70: =IF($C70="","",AVERAGE(Propostas!T77:V77)) ->  | J70: =IF(Propostas!T77="","",_xlfn.RANK.EQ(Propostas!T77,Propostas!$T77:$V77,1)) ->  | K70: =IF(Propostas!U77="","",_xlfn.RANK.EQ(Propostas!U77,Propostas!$T77:$V77,1)) ->  | L70: =IF(Propostas!V77="","",_xlfn.RANK.EQ(Propostas!V77,Propostas!$T77:$V77,1)) ->  | M70: =IF(Propostas!T77="","",Parâmetros!J70*(1+(Propostas!T77-Parâmetros!$I70)/SUM(Propostas!$T77:$V77))*VLOOKUP(Dados!B77,Uso_final[],2,0)) ->  | N70: =IF(Propostas!U77="","",Parâmetros!K70*(1+(Propostas!U77-Parâmetros!$I70)/SUM(Propostas!$T77:$V77))*VLOOKUP(Dados!C77,Uso_final[],2,0)) ->  | O70: =IF(Propostas!V77="","",Parâmetros!L70*(1+(Propostas!V77-Parâmetros!$I70)/SUM(Propostas!$T77:$V77))*VLOOKUP(Dados!D77,Uso_final[],2,0)) ->  | Q70: =IF($C70="","",MIN(1,(Propostas!W77+Propostas!X77)/Propostas!B77)) -> 
B71: =IF(ISTEXT(Propostas!A78),Propostas!A78,"") ->  | C71: =IFERROR(Propostas!C78/Propostas!D78,"") ->  | E71: =IF($C71="","",Propostas!F78/Propostas!C78) ->  | F71: =IF($C71="","",Propostas!G78/Parâmetros!$F$4) ->  | G71: =IF($C71="","",Propostas!H78/Parâmetros!$G$4) ->  | H71: =IF($C71="","",MIN(1,(Propostas!B78-Propostas!C78)/Propostas!B78)) ->  | I71: =IF($C71="","",AVERAGE(Propostas!T78:V78)) ->  | J71: =IF(Propostas!T78="","",_xlfn.RANK.EQ(Propostas!T78,Propostas!$T78:$V78,1)) ->  | K71: =IF(Propostas!U78="","",_xlfn.RANK.EQ(Propostas!U78,Propostas!$T78:$V78,1)) ->  | L71: =IF(Propostas!V78="","",_xlfn.RANK.EQ(Propostas!V78,Propostas!$T78:$V78,1)) ->  | M71: =IF(Propostas!T78="","",Parâmetros!J71*(1+(Propostas!T78-Parâmetros!$I71)/SUM(Propostas!$T78:$V78))*VLOOKUP(Dados!B78,Uso_final[],2,0)) ->  | N71: =IF(Propostas!U78="","",Parâmetros!K71*(1+(Propostas!U78-Parâmetros!$I71)/SUM(Propostas!$T78:$V78))*VLOOKUP(Dados!C78,Uso_final[],2,0)) ->  | O71: =IF(Propostas!V78="","",Parâmetros!L71*(1+(Propostas!V78-Parâmetros!$I71)/SUM(Propostas!$T78:$V78))*VLOOKUP(Dados!D78,Uso_final[],2,0)) ->  | Q71: =IF($C71="","",MIN(1,(Propostas!W78+Propostas!X78)/Propostas!B78)) -> 
B72: =IF(ISTEXT(Propostas!A79),Propostas!A79,"") ->  | C72: =IFERROR(Propostas!C79/Propostas!D79,"") ->  | E72: =IF($C72="","",Propostas!F79/Propostas!C79) ->  | F72: =IF($C72="","",Propostas!G79/Parâmetros!$F$4) ->  | G72: =IF($C72="","",Propostas!H79/Parâmetros!$G$4) ->  | H72: =IF($C72="","",MIN(1,(Propostas!B79-Propostas!C79)/Propostas!B79)) ->  | I72: =IF($C72="","",AVERAGE(Propostas!T79:V79)) ->  | J72: =IF(Propostas!T79="","",_xlfn.RANK.EQ(Propostas!T79,Propostas!$T79:$V79,1)) ->  | K72: =IF(Propostas!U79="","",_xlfn.RANK.EQ(Propostas!U79,Propostas!$T79:$V79,1)) ->  | L72: =IF(Propostas!V79="","",_xlfn.RANK.EQ(Propostas!V79,Propostas!$T79:$V79,1)) ->  | M72: =IF(Propostas!T79="","",Parâmetros!J72*(1+(Propostas!T79-Parâmetros!$I72)/SUM(Propostas!$T79:$V79))*VLOOKUP(Dados!B79,Uso_final[],2,0)) ->  | N72: =IF(Propostas!U79="","",Parâmetros!K72*(1+(Propostas!U79-Parâmetros!$I72)/SUM(Propostas!$T79:$V79))*VLOOKUP(Dados!C79,Uso_final[],2,0)) ->  | O72: =IF(Propostas!V79="","",Parâmetros!L72*(1+(Propostas!V79-Parâmetros!$I72)/SUM(Propostas!$T79:$V79))*VLOOKUP(Dados!D79,Uso_final[],2,0)) ->  | Q72: =IF($C72="","",MIN(1,(Propostas!W79+Propostas!X79)/Propostas!B79)) -> 
B73: =IF(ISTEXT(Propostas!A80),Propostas!A80,"") ->  | C73: =IFERROR(Propostas!C80/Propostas!D80,"") ->  | E73: =IF($C73="","",Propostas!F80/Propostas!C80) ->  | F73: =IF($C73="","",Propostas!G80/Parâmetros!$F$4) ->  | G73: =IF($C73="","",Propostas!H80/Parâmetros!$G$4) ->  | H73: =IF($C73="","",MIN(1,(Propostas!B80-Propostas!C80)/Propostas!B80)) ->  | I73: =IF($C73="","",AVERAGE(Propostas!T80:V80)) ->  | J73: =IF(Propostas!T80="","",_xlfn.RANK.EQ(Propostas!T80,Propostas!$T80:$V80,1)) ->  | K73: =IF(Propostas!U80="","",_xlfn.RANK.EQ(Propostas!U80,Propostas!$T80:$V80,1)) ->  | L73: =IF(Propostas!V80="","",_xlfn.RANK.EQ(Propostas!V80,Propostas!$T80:$V80,1)) ->  | M73: =IF(Propostas!T80="","",Parâmetros!J73*(1+(Propostas!T80-Parâmetros!$I73)/SUM(Propostas!$T80:$V80))*VLOOKUP(Dados!B80,Uso_final[],2,0)) ->  | N73: =IF(Propostas!U80="","",Parâmetros!K73*(1+(Propostas!U80-Parâmetros!$I73)/SUM(Propostas!$T80:$V80))*VLOOKUP(Dados!C80,Uso_final[],2,0)) ->  | O73: =IF(Propostas!V80="","",Parâmetros!L73*(1+(Propostas!V80-Parâmetros!$I73)/SUM(Propostas!$T80:$V80))*VLOOKUP(Dados!D80,Uso_final[],2,0)) ->  | Q73: =IF($C73="","",MIN(1,(Propostas!W80+Propostas!X80)/Propostas!B80)) -> 
B74: =IF(ISTEXT(Propostas!A81),Propostas!A81,"") ->  | C74: =IFERROR(Propostas!C81/Propostas!D81,"") ->  | E74: =IF($C74="","",Propostas!F81/Propostas!C81) ->  | F74: =IF($C74="","",Propostas!G81/Parâmetros!$F$4) ->  | G74: =IF($C74="","",Propostas!H81/Parâmetros!$G$4) ->  | H74: =IF($C74="","",MIN(1,(Propostas!B81-Propostas!C81)/Propostas!B81)) ->  | I74: =IF($C74="","",AVERAGE(Propostas!T81:V81)) ->  | J74: =IF(Propostas!T81="","",_xlfn.RANK.EQ(Propostas!T81,Propostas!$T81:$V81,1)) ->  | K74: =IF(Propostas!U81="","",_xlfn.RANK.EQ(Propostas!U81,Propostas!$T81:$V81,1)) ->  | L74: =IF(Propostas!V81="","",_xlfn.RANK.EQ(Propostas!V81,Propostas!$T81:$V81,1)) ->  | M74: =IF(Propostas!T81="","",Parâmetros!J74*(1+(Propostas!T81-Parâmetros!$I74)/SUM(Propostas!$T81:$V81))*VLOOKUP(Dados!B81,Uso_final[],2,0)) ->  | N74: =IF(Propostas!U81="","",Parâmetros!K74*(1+(Propostas!U81-Parâmetros!$I74)/SUM(Propostas!$T81:$V81))*VLOOKUP(Dados!C81,Uso_final[],2,0)) ->  | O74: =IF(Propostas!V81="","",Parâmetros!L74*(1+(Propostas!V81-Parâmetros!$I74)/SUM(Propostas!$T81:$V81))*VLOOKUP(Dados!D81,Uso_final[],2,0)) ->  | Q74: =IF($C74="","",MIN(1,(Propostas!W81+Propostas!X81)/Propostas!B81)) -> 
B75: =IF(ISTEXT(Propostas!A82),Propostas!A82,"") ->  | C75: =IFERROR(Propostas!C82/Propostas!D82,"") ->  | E75: =IF($C75="","",Propostas!F82/Propostas!C82) ->  | F75: =IF($C75="","",Propostas!G82/Parâmetros!$F$4) ->  | G75: =IF($C75="","",Propostas!H82/Parâmetros!$G$4) ->  | H75: =IF($C75="","",MIN(1,(Propostas!B82-Propostas!C82)/Propostas!B82)) ->  | I75: =IF($C75="","",AVERAGE(Propostas!T82:V82)) ->  | J75: =IF(Propostas!T82="","",_xlfn.RANK.EQ(Propostas!T82,Propostas!$T82:$V82,1)) ->  | K75: =IF(Propostas!U82="","",_xlfn.RANK.EQ(Propostas!U82,Propostas!$T82:$V82,1)) ->  | L75: =IF(Propostas!V82="","",_xlfn.RANK.EQ(Propostas!V82,Propostas!$T82:$V82,1)) ->  | M75: =IF(Propostas!T82="","",Parâmetros!J75*(1+(Propostas!T82-Parâmetros!$I75)/SUM(Propostas!$T82:$V82))*VLOOKUP(Dados!B82,Uso_final[],2,0)) ->  | N75: =IF(Propostas!U82="","",Parâmetros!K75*(1+(Propostas!U82-Parâmetros!$I75)/SUM(Propostas!$T82:$V82))*VLOOKUP(Dados!C82,Uso_final[],2,0)) ->  | O75: =IF(Propostas!V82="","",Parâmetros!L75*(1+(Propostas!V82-Parâmetros!$I75)/SUM(Propostas!$T82:$V82))*VLOOKUP(Dados!D82,Uso_final[],2,0)) ->  | Q75: =IF($C75="","",MIN(1,(Propostas!W82+Propostas!X82)/Propostas!B82)) -> 
B76: =IF(ISTEXT(Propostas!A83),Propostas!A83,"") ->  | C76: =IFERROR(Propostas!C83/Propostas!D83,"") ->  | E76: =IF($C76="","",Propostas!F83/Propostas!C83) ->  | F76: =IF($C76="","",Propostas!G83/Parâmetros!$F$4) ->  | G76: =IF($C76="","",Propostas!H83/Parâmetros!$G$4) ->  | H76: =IF($C76="","",MIN(1,(Propostas!B83-Propostas!C83)/Propostas!B83)) ->  | I76: =IF($C76="","",AVERAGE(Propostas!T83:V83)) ->  | J76: =IF(Propostas!T83="","",_xlfn.RANK.EQ(Propostas!T83,Propostas!$T83:$V83,1)) ->  | K76: =IF(Propostas!U83="","",_xlfn.RANK.EQ(Propostas!U83,Propostas!$T83:$V83,1)) ->  | L76: =IF(Propostas!V83="","",_xlfn.RANK.EQ(Propostas!V83,Propostas!$T83:$V83,1)) ->  | M76: =IF(Propostas!T83="","",Parâmetros!J76*(1+(Propostas!T83-Parâmetros!$I76)/SUM(Propostas!$T83:$V83))*VLOOKUP(Dados!B83,Uso_final[],2,0)) ->  | N76: =IF(Propostas!U83="","",Parâmetros!K76*(1+(Propostas!U83-Parâmetros!$I76)/SUM(Propostas!$T83:$V83))*VLOOKUP(Dados!C83,Uso_final[],2,0)) ->  | O76: =IF(Propostas!V83="","",Parâmetros!L76*(1+(Propostas!V83-Parâmetros!$I76)/SUM(Propostas!$T83:$V83))*VLOOKUP(Dados!D83,Uso_final[],2,0)) ->  | Q76: =IF($C76="","",MIN(1,(Propostas!W83+Propostas!X83)/Propostas!B83)) -> 
B77: =IF(ISTEXT(Propostas!A84),Propostas!A84,"") ->  | C77: =IFERROR(Propostas!C84/Propostas!D84,"") ->  | E77: =IF($C77="","",Propostas!F84/Propostas!C84) ->  | F77: =IF($C77="","",Propostas!G84/Parâmetros!$F$4) ->  | G77: =IF($C77="","",Propostas!H84/Parâmetros!$G$4) ->  | H77: =IF($C77="","",MIN(1,(Propostas!B84-Propostas!C84)/Propostas!B84)) ->  | I77: =IF($C77="","",AVERAGE(Propostas!T84:V84)) ->  | J77: =IF(Propostas!T84="","",_xlfn.RANK.EQ(Propostas!T84,Propostas!$T84:$V84,1)) ->  | K77: =IF(Propostas!U84="","",_xlfn.RANK.EQ(Propostas!U84,Propostas!$T84:$V84,1)) ->  | L77: =IF(Propostas!V84="","",_xlfn.RANK.EQ(Propostas!V84,Propostas!$T84:$V84,1)) ->  | M77: =IF(Propostas!T84="","",Parâmetros!J77*(1+(Propostas!T84-Parâmetros!$I77)/SUM(Propostas!$T84:$V84))*VLOOKUP(Dados!B84,Uso_final[],2,0)) ->  | N77: =IF(Propostas!U84="","",Parâmetros!K77*(1+(Propostas!U84-Parâmetros!$I77)/SUM(Propostas!$T84:$V84))*VLOOKUP(Dados!C84,Uso_final[],2,0)) ->  | O77: =IF(Propostas!V84="","",Parâmetros!L77*(1+(Propostas!V84-Parâmetros!$I77)/SUM(Propostas!$T84:$V84))*VLOOKUP(Dados!D84,Uso_final[],2,0)) ->  | Q77: =IF($C77="","",MIN(1,(Propostas!W84+Propostas!X84)/Propostas!B84)) -> 
B78: =IF(ISTEXT(Propostas!A85),Propostas!A85,"") ->  | C78: =IFERROR(Propostas!C85/Propostas!D85,"") ->  | E78: =IF($C78="","",Propostas!F85/Propostas!C85) ->  | F78: =IF($C78="","",Propostas!G85/Parâmetros!$F$4) ->  | G78: =IF($C78="","",Propostas!H85/Parâmetros!$G$4) ->  | H78: =IF($C78="","",MIN(1,(Propostas!B85-Propostas!C85)/Propostas!B85)) ->  | I78: =IF($C78="","",AVERAGE(Propostas!T85:V85)) ->  | J78: =IF(Propostas!T85="","",_xlfn.RANK.EQ(Propostas!T85,Propostas!$T85:$V85,1)) ->  | K78: =IF(Propostas!U85="","",_xlfn.RANK.EQ(Propostas!U85,Propostas!$T85:$V85,1)) ->  | L78: =IF(Propostas!V85="","",_xlfn.RANK.EQ(Propostas!V85,Propostas!$T85:$V85,1)) ->  | M78: =IF(Propostas!T85="","",Parâmetros!J78*(1+(Propostas!T85-Parâmetros!$I78)/SUM(Propostas!$T85:$V85))*VLOOKUP(Dados!B85,Uso_final[],2,0)) ->  | N78: =IF(Propostas!U85="","",Parâmetros!K78*(1+(Propostas!U85-Parâmetros!$I78)/SUM(Propostas!$T85:$V85))*VLOOKUP(Dados!C85,Uso_final[],2,0)) ->  | O78: =IF(Propostas!V85="","",Parâmetros!L78*(1+(Propostas!V85-Parâmetros!$I78)/SUM(Propostas!$T85:$V85))*VLOOKUP(Dados!D85,Uso_final[],2,0)) ->  | Q78: =IF($C78="","",MIN(1,(Propostas!W85+Propostas!X85)/Propostas!B85)) -> 
B79: =IF(ISTEXT(Propostas!A86),Propostas!A86,"") ->  | C79: =IFERROR(Propostas!C86/Propostas!D86,"") ->  | E79: =IF($C79="","",Propostas!F86/Propostas!C86) ->  | F79: =IF($C79="","",Propostas!G86/Parâmetros!$F$4) ->  | G79: =IF($C79="","",Propostas!H86/Parâmetros!$G$4) ->  | H79: =IF($C79="","",MIN(1,(Propostas!B86-Propostas!C86)/Propostas!B86)) ->  | I79: =IF($C79="","",AVERAGE(Propostas!T86:V86)) ->  | J79: =IF(Propostas!T86="","",_xlfn.RANK.EQ(Propostas!T86,Propostas!$T86:$V86,1)) ->  | K79: =IF(Propostas!U86="","",_xlfn.RANK.EQ(Propostas!U86,Propostas!$T86:$V86,1)) ->  | L79: =IF(Propostas!V86="","",_xlfn.RANK.EQ(Propostas!V86,Propostas!$T86:$V86,1)) ->  | M79: =IF(Propostas!T86="","",Parâmetros!J79*(1+(Propostas!T86-Parâmetros!$I79)/SUM(Propostas!$T86:$V86))*VLOOKUP(Dados!B86,Uso_final[],2,0)) ->  | N79: =IF(Propostas!U86="","",Parâmetros!K79*(1+(Propostas!U86-Parâmetros!$I79)/SUM(Propostas!$T86:$V86))*VLOOKUP(Dados!C86,Uso_final[],2,0)) ->  | O79: =IF(Propostas!V86="","",Parâmetros!L79*(1+(Propostas!V86-Parâmetros!$I79)/SUM(Propostas!$T86:$V86))*VLOOKUP(Dados!D86,Uso_final[],2,0)) ->  | Q79: =IF($C79="","",MIN(1,(Propostas!W86+Propostas!X86)/Propostas!B86)) -> 
B80: =IF(ISTEXT(Propostas!A87),Propostas!A87,"") ->  | C80: =IFERROR(Propostas!C87/Propostas!D87,"") ->  | E80: =IF($C80="","",Propostas!F87/Propostas!C87) ->  | F80: =IF($C80="","",Propostas!G87/Parâmetros!$F$4) ->  | G80: =IF($C80="","",Propostas!H87/Parâmetros!$G$4) ->  | H80: =IF($C80="","",MIN(1,(Propostas!B87-Propostas!C87)/Propostas!B87)) ->  | I80: =IF($C80="","",AVERAGE(Propostas!T87:V87)) ->  | J80: =IF(Propostas!T87="","",_xlfn.RANK.EQ(Propostas!T87,Propostas!$T87:$V87,1)) ->  | K80: =IF(Propostas!U87="","",_xlfn.RANK.EQ(Propostas!U87,Propostas!$T87:$V87,1)) ->  | L80: =IF(Propostas!V87="","",_xlfn.RANK.EQ(Propostas!V87,Propostas!$T87:$V87,1)) ->  | M80: =IF(Propostas!T87="","",Parâmetros!J80*(1+(Propostas!T87-Parâmetros!$I80)/SUM(Propostas!$T87:$V87))*VLOOKUP(Dados!B87,Uso_final[],2,0)) ->  | N80: =IF(Propostas!U87="","",Parâmetros!K80*(1+(Propostas!U87-Parâmetros!$I80)/SUM(Propostas!$T87:$V87))*VLOOKUP(Dados!C87,Uso_final[],2,0)) ->  | O80: =IF(Propostas!V87="","",Parâmetros!L80*(1+(Propostas!V87-Parâmetros!$I80)/SUM(Propostas!$T87:$V87))*VLOOKUP(Dados!D87,Uso_final[],2,0)) ->  | Q80: =IF($C80="","",MIN(1,(Propostas!W87+Propostas!X87)/Propostas!B87)) -> 
B81: =IF(ISTEXT(Propostas!A88),Propostas!A88,"") ->  | C81: =IFERROR(Propostas!C88/Propostas!D88,"") ->  | E81: =IF($C81="","",Propostas!F88/Propostas!C88) ->  | F81: =IF($C81="","",Propostas!G88/Parâmetros!$F$4) ->  | G81: =IF($C81="","",Propostas!H88/Parâmetros!$G$4) ->  | H81: =IF($C81="","",MIN(1,(Propostas!B88-Propostas!C88)/Propostas!B88)) ->  | I81: =IF($C81="","",AVERAGE(Propostas!T88:V88)) ->  | J81: =IF(Propostas!T88="","",_xlfn.RANK.EQ(Propostas!T88,Propostas!$T88:$V88,1)) ->  | K81: =IF(Propostas!U88="","",_xlfn.RANK.EQ(Propostas!U88,Propostas!$T88:$V88,1)) ->  | L81: =IF(Propostas!V88="","",_xlfn.RANK.EQ(Propostas!V88,Propostas!$T88:$V88,1)) ->  | M81: =IF(Propostas!T88="","",Parâmetros!J81*(1+(Propostas!T88-Parâmetros!$I81)/SUM(Propostas!$T88:$V88))*VLOOKUP(Dados!B88,Uso_final[],2,0)) ->  | N81: =IF(Propostas!U88="","",Parâmetros!K81*(1+(Propostas!U88-Parâmetros!$I81)/SUM(Propostas!$T88:$V88))*VLOOKUP(Dados!C88,Uso_final[],2,0)) ->  | O81: =IF(Propostas!V88="","",Parâmetros!L81*(1+(Propostas!V88-Parâmetros!$I81)/SUM(Propostas!$T88:$V88))*VLOOKUP(Dados!D88,Uso_final[],2,0)) ->  | Q81: =IF($C81="","",MIN(1,(Propostas!W88+Propostas!X88)/Propostas!B88)) -> 
B82: =IF(ISTEXT(Propostas!A89),Propostas!A89,"") ->  | C82: =IFERROR(Propostas!C89/Propostas!D89,"") ->  | E82: =IF($C82="","",Propostas!F89/Propostas!C89) ->  | F82: =IF($C82="","",Propostas!G89/Parâmetros!$F$4) ->  | G82: =IF($C82="","",Propostas!H89/Parâmetros!$G$4) ->  | H82: =IF($C82="","",MIN(1,(Propostas!B89-Propostas!C89)/Propostas!B89)) ->  | I82: =IF($C82="","",AVERAGE(Propostas!T89:V89)) ->  | J82: =IF(Propostas!T89="","",_xlfn.RANK.EQ(Propostas!T89,Propostas!$T89:$V89,1)) ->  | K82: =IF(Propostas!U89="","",_xlfn.RANK.EQ(Propostas!U89,Propostas!$T89:$V89,1)) ->  | L82: =IF(Propostas!V89="","",_xlfn.RANK.EQ(Propostas!V89,Propostas!$T89:$V89,1)) ->  | M82: =IF(Propostas!T89="","",Parâmetros!J82*(1+(Propostas!T89-Parâmetros!$I82)/SUM(Propostas!$T89:$V89))*VLOOKUP(Dados!B89,Uso_final[],2,0)) ->  | N82: =IF(Propostas!U89="","",Parâmetros!K82*(1+(Propostas!U89-Parâmetros!$I82)/SUM(Propostas!$T89:$V89))*VLOOKUP(Dados!C89,Uso_final[],2,0)) ->  | O82: =IF(Propostas!V89="","",Parâmetros!L82*(1+(Propostas!V89-Parâmetros!$I82)/SUM(Propostas!$T89:$V89))*VLOOKUP(Dados!D89,Uso_final[],2,0)) ->  | Q82: =IF($C82="","",MIN(1,(Propostas!W89+Propostas!X89)/Propostas!B89)) -> 
B83: =IF(ISTEXT(Propostas!A90),Propostas!A90,"") ->  | C83: =IFERROR(Propostas!C90/Propostas!D90,"") ->  | E83: =IF($C83="","",Propostas!F90/Propostas!C90) ->  | F83: =IF($C83="","",Propostas!G90/Parâmetros!$F$4) ->  | G83: =IF($C83="","",Propostas!H90/Parâmetros!$G$4) ->  | H83: =IF($C83="","",MIN(1,(Propostas!B90-Propostas!C90)/Propostas!B90)) ->  | I83: =IF($C83="","",AVERAGE(Propostas!T90:V90)) ->  | J83: =IF(Propostas!T90="","",_xlfn.RANK.EQ(Propostas!T90,Propostas!$T90:$V90,1)) ->  | K83: =IF(Propostas!U90="","",_xlfn.RANK.EQ(Propostas!U90,Propostas!$T90:$V90,1)) ->  | L83: =IF(Propostas!V90="","",_xlfn.RANK.EQ(Propostas!V90,Propostas!$T90:$V90,1)) ->  | M83: =IF(Propostas!T90="","",Parâmetros!J83*(1+(Propostas!T90-Parâmetros!$I83)/SUM(Propostas!$T90:$V90))*VLOOKUP(Dados!B90,Uso_final[],2,0)) ->  | N83: =IF(Propostas!U90="","",Parâmetros!K83*(1+(Propostas!U90-Parâmetros!$I83)/SUM(Propostas!$T90:$V90))*VLOOKUP(Dados!C90,Uso_final[],2,0)) ->  | O83: =IF(Propostas!V90="","",Parâmetros!L83*(1+(Propostas!V90-Parâmetros!$I83)/SUM(Propostas!$T90:$V90))*VLOOKUP(Dados!D90,Uso_final[],2,0)) ->  | Q83: =IF($C83="","",MIN(1,(Propostas!W90+Propostas!X90)/Propostas!B90)) -> 
B84: =IF(ISTEXT(Propostas!A91),Propostas!A91,"") ->  | C84: =IFERROR(Propostas!C91/Propostas!D91,"") ->  | E84: =IF($C84="","",Propostas!F91/Propostas!C91) ->  | F84: =IF($C84="","",Propostas!G91/Parâmetros!$F$4) ->  | G84: =IF($C84="","",Propostas!H91/Parâmetros!$G$4) ->  | H84: =IF($C84="","",MIN(1,(Propostas!B91-Propostas!C91)/Propostas!B91)) ->  | I84: =IF($C84="","",AVERAGE(Propostas!T91:V91)) ->  | J84: =IF(Propostas!T91="","",_xlfn.RANK.EQ(Propostas!T91,Propostas!$T91:$V91,1)) ->  | K84: =IF(Propostas!U91="","",_xlfn.RANK.EQ(Propostas!U91,Propostas!$T91:$V91,1)) ->  | L84: =IF(Propostas!V91="","",_xlfn.RANK.EQ(Propostas!V91,Propostas!$T91:$V91,1)) ->  | M84: =IF(Propostas!T91="","",Parâmetros!J84*(1+(Propostas!T91-Parâmetros!$I84)/SUM(Propostas!$T91:$V91))*VLOOKUP(Dados!B91,Uso_final[],2,0)) ->  | N84: =IF(Propostas!U91="","",Parâmetros!K84*(1+(Propostas!U91-Parâmetros!$I84)/SUM(Propostas!$T91:$V91))*VLOOKUP(Dados!C91,Uso_final[],2,0)) ->  | O84: =IF(Propostas!V91="","",Parâmetros!L84*(1+(Propostas!V91-Parâmetros!$I84)/SUM(Propostas!$T91:$V91))*VLOOKUP(Dados!D91,Uso_final[],2,0)) ->  | Q84: =IF($C84="","",MIN(1,(Propostas!W91+Propostas!X91)/Propostas!B91)) -> 
B85: =IF(ISTEXT(Propostas!A92),Propostas!A92,"") ->  | C85: =IFERROR(Propostas!C92/Propostas!D92,"") ->  | E85: =IF($C85="","",Propostas!F92/Propostas!C92) ->  | F85: =IF($C85="","",Propostas!G92/Parâmetros!$F$4) ->  | G85: =IF($C85="","",Propostas!H92/Parâmetros!$G$4) ->  | H85: =IF($C85="","",MIN(1,(Propostas!B92-Propostas!C92)/Propostas!B92)) ->  | I85: =IF($C85="","",AVERAGE(Propostas!T92:V92)) ->  | J85: =IF(Propostas!T92="","",_xlfn.RANK.EQ(Propostas!T92,Propostas!$T92:$V92,1)) ->  | K85: =IF(Propostas!U92="","",_xlfn.RANK.EQ(Propostas!U92,Propostas!$T92:$V92,1)) ->  | L85: =IF(Propostas!V92="","",_xlfn.RANK.EQ(Propostas!V92,Propostas!$T92:$V92,1)) ->  | M85: =IF(Propostas!T92="","",Parâmetros!J85*(1+(Propostas!T92-Parâmetros!$I85)/SUM(Propostas!$T92:$V92))*VLOOKUP(Dados!B92,Uso_final[],2,0)) ->  | N85: =IF(Propostas!U92="","",Parâmetros!K85*(1+(Propostas!U92-Parâmetros!$I85)/SUM(Propostas!$T92:$V92))*VLOOKUP(Dados!C92,Uso_final[],2,0)) ->  | O85: =IF(Propostas!V92="","",Parâmetros!L85*(1+(Propostas!V92-Parâmetros!$I85)/SUM(Propostas!$T92:$V92))*VLOOKUP(Dados!D92,Uso_final[],2,0)) ->  | Q85: =IF($C85="","",MIN(1,(Propostas!W92+Propostas!X92)/Propostas!B92)) -> 
B86: =IF(ISTEXT(Propostas!A93),Propostas!A93,"") ->  | C86: =IFERROR(Propostas!C93/Propostas!D93,"") ->  | E86: =IF($C86="","",Propostas!F93/Propostas!C93) ->  | F86: =IF($C86="","",Propostas!G93/Parâmetros!$F$4) ->  | G86: =IF($C86="","",Propostas!H93/Parâmetros!$G$4) ->  | H86: =IF($C86="","",MIN(1,(Propostas!B93-Propostas!C93)/Propostas!B93)) ->  | I86: =IF($C86="","",AVERAGE(Propostas!T93:V93)) ->  | J86: =IF(Propostas!T93="","",_xlfn.RANK.EQ(Propostas!T93,Propostas!$T93:$V93,1)) ->  | K86: =IF(Propostas!U93="","",_xlfn.RANK.EQ(Propostas!U93,Propostas!$T93:$V93,1)) ->  | L86: =IF(Propostas!V93="","",_xlfn.RANK.EQ(Propostas!V93,Propostas!$T93:$V93,1)) ->  | M86: =IF(Propostas!T93="","",Parâmetros!J86*(1+(Propostas!T93-Parâmetros!$I86)/SUM(Propostas!$T93:$V93))*VLOOKUP(Dados!B93,Uso_final[],2,0)) ->  | N86: =IF(Propostas!U93="","",Parâmetros!K86*(1+(Propostas!U93-Parâmetros!$I86)/SUM(Propostas!$T93:$V93))*VLOOKUP(Dados!C93,Uso_final[],2,0)) ->  | O86: =IF(Propostas!V93="","",Parâmetros!L86*(1+(Propostas!V93-Parâmetros!$I86)/SUM(Propostas!$T93:$V93))*VLOOKUP(Dados!D93,Uso_final[],2,0)) ->  | Q86: =IF($C86="","",MIN(1,(Propostas!W93+Propostas!X93)/Propostas!B93)) -> 
B87: =IF(ISTEXT(Propostas!A94),Propostas!A94,"") ->  | C87: =IFERROR(Propostas!C94/Propostas!D94,"") ->  | E87: =IF($C87="","",Propostas!F94/Propostas!C94) ->  | F87: =IF($C87="","",Propostas!G94/Parâmetros!$F$4) ->  | G87: =IF($C87="","",Propostas!H94/Parâmetros!$G$4) ->  | H87: =IF($C87="","",MIN(1,(Propostas!B94-Propostas!C94)/Propostas!B94)) ->  | I87: =IF($C87="","",AVERAGE(Propostas!T94:V94)) ->  | J87: =IF(Propostas!T94="","",_xlfn.RANK.EQ(Propostas!T94,Propostas!$T94:$V94,1)) ->  | K87: =IF(Propostas!U94="","",_xlfn.RANK.EQ(Propostas!U94,Propostas!$T94:$V94,1)) ->  | L87: =IF(Propostas!V94="","",_xlfn.RANK.EQ(Propostas!V94,Propostas!$T94:$V94,1)) ->  | M87: =IF(Propostas!T94="","",Parâmetros!J87*(1+(Propostas!T94-Parâmetros!$I87)/SUM(Propostas!$T94:$V94))*VLOOKUP(Dados!B94,Uso_final[],2,0)) ->  | N87: =IF(Propostas!U94="","",Parâmetros!K87*(1+(Propostas!U94-Parâmetros!$I87)/SUM(Propostas!$T94:$V94))*VLOOKUP(Dados!C94,Uso_final[],2,0)) ->  | O87: =IF(Propostas!V94="","",Parâmetros!L87*(1+(Propostas!V94-Parâmetros!$I87)/SUM(Propostas!$T94:$V94))*VLOOKUP(Dados!D94,Uso_final[],2,0)) ->  | Q87: =IF($C87="","",MIN(1,(Propostas!W94+Propostas!X94)/Propostas!B94)) -> 
B88: =IF(ISTEXT(Propostas!A95),Propostas!A95,"") ->  | C88: =IFERROR(Propostas!C95/Propostas!D95,"") ->  | E88: =IF($C88="","",Propostas!F95/Propostas!C95) ->  | F88: =IF($C88="","",Propostas!G95/Parâmetros!$F$4) ->  | G88: =IF($C88="","",Propostas!H95/Parâmetros!$G$4) ->  | H88: =IF($C88="","",MIN(1,(Propostas!B95-Propostas!C95)/Propostas!B95)) ->  | I88: =IF($C88="","",AVERAGE(Propostas!T95:V95)) ->  | J88: =IF(Propostas!T95="","",_xlfn.RANK.EQ(Propostas!T95,Propostas!$T95:$V95,1)) ->  | K88: =IF(Propostas!U95="","",_xlfn.RANK.EQ(Propostas!U95,Propostas!$T95:$V95,1)) ->  | L88: =IF(Propostas!V95="","",_xlfn.RANK.EQ(Propostas!V95,Propostas!$T95:$V95,1)) ->  | M88: =IF(Propostas!T95="","",Parâmetros!J88*(1+(Propostas!T95-Parâmetros!$I88)/SUM(Propostas!$T95:$V95))*VLOOKUP(Dados!B95,Uso_final[],2,0)) ->  | N88: =IF(Propostas!U95="","",Parâmetros!K88*(1+(Propostas!U95-Parâmetros!$I88)/SUM(Propostas!$T95:$V95))*VLOOKUP(Dados!C95,Uso_final[],2,0)) ->  | O88: =IF(Propostas!V95="","",Parâmetros!L88*(1+(Propostas!V95-Parâmetros!$I88)/SUM(Propostas!$T95:$V95))*VLOOKUP(Dados!D95,Uso_final[],2,0)) ->  | Q88: =IF($C88="","",MIN(1,(Propostas!W95+Propostas!X95)/Propostas!B95)) -> 
B89: =IF(ISTEXT(Propostas!A96),Propostas!A96,"") ->  | C89: =IFERROR(Propostas!C96/Propostas!D96,"") ->  | E89: =IF($C89="","",Propostas!F96/Propostas!C96) ->  | F89: =IF($C89="","",Propostas!G96/Parâmetros!$F$4) ->  | G89: =IF($C89="","",Propostas!H96/Parâmetros!$G$4) ->  | H89: =IF($C89="","",MIN(1,(Propostas!B96-Propostas!C96)/Propostas!B96)) ->  | I89: =IF($C89="","",AVERAGE(Propostas!T96:V96)) ->  | J89: =IF(Propostas!T96="","",_xlfn.RANK.EQ(Propostas!T96,Propostas!$T96:$V96,1)) ->  | K89: =IF(Propostas!U96="","",_xlfn.RANK.EQ(Propostas!U96,Propostas!$T96:$V96,1)) ->  | L89: =IF(Propostas!V96="","",_xlfn.RANK.EQ(Propostas!V96,Propostas!$T96:$V96,1)) ->  | M89: =IF(Propostas!T96="","",Parâmetros!J89*(1+(Propostas!T96-Parâmetros!$I89)/SUM(Propostas!$T96:$V96))*VLOOKUP(Dados!B96,Uso_final[],2,0)) ->  | N89: =IF(Propostas!U96="","",Parâmetros!K89*(1+(Propostas!U96-Parâmetros!$I89)/SUM(Propostas!$T96:$V96))*VLOOKUP(Dados!C96,Uso_final[],2,0)) ->  | O89: =IF(Propostas!V96="","",Parâmetros!L89*(1+(Propostas!V96-Parâmetros!$I89)/SUM(Propostas!$T96:$V96))*VLOOKUP(Dados!D96,Uso_final[],2,0)) ->  | Q89: =IF($C89="","",MIN(1,(Propostas!W96+Propostas!X96)/Propostas!B96)) -> 
B90: =IF(ISTEXT(Propostas!A97),Propostas!A97,"") ->  | C90: =IFERROR(Propostas!C97/Propostas!D97,"") ->  | E90: =IF($C90="","",Propostas!F97/Propostas!C97) ->  | F90: =IF($C90="","",Propostas!G97/Parâmetros!$F$4) ->  | G90: =IF($C90="","",Propostas!H97/Parâmetros!$G$4) ->  | H90: =IF($C90="","",MIN(1,(Propostas!B97-Propostas!C97)/Propostas!B97)) ->  | I90: =IF($C90="","",AVERAGE(Propostas!T97:V97)) ->  | J90: =IF(Propostas!T97="","",_xlfn.RANK.EQ(Propostas!T97,Propostas!$T97:$V97,1)) ->  | K90: =IF(Propostas!U97="","",_xlfn.RANK.EQ(Propostas!U97,Propostas!$T97:$V97,1)) ->  | L90: =IF(Propostas!V97="","",_xlfn.RANK.EQ(Propostas!V97,Propostas!$T97:$V97,1)) ->  | M90: =IF(Propostas!T97="","",Parâmetros!J90*(1+(Propostas!T97-Parâmetros!$I90)/SUM(Propostas!$T97:$V97))*VLOOKUP(Dados!B97,Uso_final[],2,0)) ->  | N90: =IF(Propostas!U97="","",Parâmetros!K90*(1+(Propostas!U97-Parâmetros!$I90)/SUM(Propostas!$T97:$V97))*VLOOKUP(Dados!C97,Uso_final[],2,0)) ->  | O90: =IF(Propostas!V97="","",Parâmetros!L90*(1+(Propostas!V97-Parâmetros!$I90)/SUM(Propostas!$T97:$V97))*VLOOKUP(Dados!D97,Uso_final[],2,0)) ->  | Q90: =IF($C90="","",MIN(1,(Propostas!W97+Propostas!X97)/Propostas!B97)) -> 
B91: =IF(ISTEXT(Propostas!A98),Propostas!A98,"") ->  | C91: =IFERROR(Propostas!C98/Propostas!D98,"") ->  | E91: =IF($C91="","",Propostas!F98/Propostas!C98) ->  | F91: =IF($C91="","",Propostas!G98/Parâmetros!$F$4) ->  | G91: =IF($C91="","",Propostas!H98/Parâmetros!$G$4) ->  | H91: =IF($C91="","",MIN(1,(Propostas!B98-Propostas!C98)/Propostas!B98)) ->  | I91: =IF($C91="","",AVERAGE(Propostas!T98:V98)) ->  | J91: =IF(Propostas!T98="","",_xlfn.RANK.EQ(Propostas!T98,Propostas!$T98:$V98,1)) ->  | K91: =IF(Propostas!U98="","",_xlfn.RANK.EQ(Propostas!U98,Propostas!$T98:$V98,1)) ->  | L91: =IF(Propostas!V98="","",_xlfn.RANK.EQ(Propostas!V98,Propostas!$T98:$V98,1)) ->  | M91: =IF(Propostas!T98="","",Parâmetros!J91*(1+(Propostas!T98-Parâmetros!$I91)/SUM(Propostas!$T98:$V98))*VLOOKUP(Dados!B98,Uso_final[],2,0)) ->  | N91: =IF(Propostas!U98="","",Parâmetros!K91*(1+(Propostas!U98-Parâmetros!$I91)/SUM(Propostas!$T98:$V98))*VLOOKUP(Dados!C98,Uso_final[],2,0)) ->  | O91: =IF(Propostas!V98="","",Parâmetros!L91*(1+(Propostas!V98-Parâmetros!$I91)/SUM(Propostas!$T98:$V98))*VLOOKUP(Dados!D98,Uso_final[],2,0)) ->  | Q91: =IF($C91="","",MIN(1,(Propostas!W98+Propostas!X98)/Propostas!B98)) -> 
B92: =IF(ISTEXT(Propostas!A99),Propostas!A99,"") ->  | C92: =IFERROR(Propostas!C99/Propostas!D99,"") ->  | E92: =IF($C92="","",Propostas!F99/Propostas!C99) ->  | F92: =IF($C92="","",Propostas!G99/Parâmetros!$F$4) ->  | G92: =IF($C92="","",Propostas!H99/Parâmetros!$G$4) ->  | H92: =IF($C92="","",MIN(1,(Propostas!B99-Propostas!C99)/Propostas!B99)) ->  | I92: =IF($C92="","",AVERAGE(Propostas!T99:V99)) ->  | J92: =IF(Propostas!T99="","",_xlfn.RANK.EQ(Propostas!T99,Propostas!$T99:$V99,1)) ->  | K92: =IF(Propostas!U99="","",_xlfn.RANK.EQ(Propostas!U99,Propostas!$T99:$V99,1)) ->  | L92: =IF(Propostas!V99="","",_xlfn.RANK.EQ(Propostas!V99,Propostas!$T99:$V99,1)) ->  | M92: =IF(Propostas!T99="","",Parâmetros!J92*(1+(Propostas!T99-Parâmetros!$I92)/SUM(Propostas!$T99:$V99))*VLOOKUP(Dados!B99,Uso_final[],2,0)) ->  | N92: =IF(Propostas!U99="","",Parâmetros!K92*(1+(Propostas!U99-Parâmetros!$I92)/SUM(Propostas!$T99:$V99))*VLOOKUP(Dados!C99,Uso_final[],2,0)) ->  | O92: =IF(Propostas!V99="","",Parâmetros!L92*(1+(Propostas!V99-Parâmetros!$I92)/SUM(Propostas!$T99:$V99))*VLOOKUP(Dados!D99,Uso_final[],2,0)) ->  | Q92: =IF($C92="","",MIN(1,(Propostas!W99+Propostas!X99)/Propostas!B99)) -> 
B93: =IF(ISTEXT(Propostas!A100),Propostas!A100,"") ->  | C93: =IFERROR(Propostas!C100/Propostas!D100,"") ->  | E93: =IF($C93="","",Propostas!F100/Propostas!C100) ->  | F93: =IF($C93="","",Propostas!G100/Parâmetros!$F$4) ->  | G93: =IF($C93="","",Propostas!H100/Parâmetros!$G$4) ->  | H93: =IF($C93="","",MIN(1,(Propostas!B100-Propostas!C100)/Propostas!B100)) ->  | I93: =IF($C93="","",AVERAGE(Propostas!T100:V100)) ->  | J93: =IF(Propostas!T100="","",_xlfn.RANK.EQ(Propostas!T100,Propostas!$T100:$V100,1)) ->  | K93: =IF(Propostas!U100="","",_xlfn.RANK.EQ(Propostas!U100,Propostas!$T100:$V100,1)) ->  | L93: =IF(Propostas!V100="","",_xlfn.RANK.EQ(Propostas!V100,Propostas!$T100:$V100,1)) ->  | M93: =IF(Propostas!T100="","",Parâmetros!J93*(1+(Propostas!T100-Parâmetros!$I93)/SUM(Propostas!$T100:$V100))*VLOOKUP(Dados!B100,Uso_final[],2,0)) ->  | N93: =IF(Propostas!U100="","",Parâmetros!K93*(1+(Propostas!U100-Parâmetros!$I93)/SUM(Propostas!$T100:$V100))*VLOOKUP(Dados!C100,Uso_final[],2,0)) ->  | O93: =IF(Propostas!V100="","",Parâmetros!L93*(1+(Propostas!V100-Parâmetros!$I93)/SUM(Propostas!$T100:$V100))*VLOOKUP(Dados!D100,Uso_final[],2,0)) ->  | Q93: =IF($C93="","",MIN(1,(Propostas!W100+Propostas!X100)/Propostas!B100)) -> 
B94: =IF(ISTEXT(Propostas!A101),Propostas!A101,"") ->  | C94: =IFERROR(Propostas!C101/Propostas!D101,"") ->  | E94: =IF($C94="","",Propostas!F101/Propostas!C101) ->  | F94: =IF($C94="","",Propostas!G101/Parâmetros!$F$4) ->  | G94: =IF($C94="","",Propostas!H101/Parâmetros!$G$4) ->  | H94: =IF($C94="","",MIN(1,(Propostas!B101-Propostas!C101)/Propostas!B101)) ->  | I94: =IF($C94="","",AVERAGE(Propostas!T101:V101)) ->  | J94: =IF(Propostas!T101="","",_xlfn.RANK.EQ(Propostas!T101,Propostas!$T101:$V101,1)) ->  | K94: =IF(Propostas!U101="","",_xlfn.RANK.EQ(Propostas!U101,Propostas!$T101:$V101,1)) ->  | L94: =IF(Propostas!V101="","",_xlfn.RANK.EQ(Propostas!V101,Propostas!$T101:$V101,1)) ->  | M94: =IF(Propostas!T101="","",Parâmetros!J94*(1+(Propostas!T101-Parâmetros!$I94)/SUM(Propostas!$T101:$V101))*VLOOKUP(Dados!B101,Uso_final[],2,0)) ->  | N94: =IF(Propostas!U101="","",Parâmetros!K94*(1+(Propostas!U101-Parâmetros!$I94)/SUM(Propostas!$T101:$V101))*VLOOKUP(Dados!C101,Uso_final[],2,0)) ->  | O94: =IF(Propostas!V101="","",Parâmetros!L94*(1+(Propostas!V101-Parâmetros!$I94)/SUM(Propostas!$T101:$V101))*VLOOKUP(Dados!D101,Uso_final[],2,0)) ->  | Q94: =IF($C94="","",MIN(1,(Propostas!W101+Propostas!X101)/Propostas!B101)) -> 
B95: =IF(ISTEXT(Propostas!A102),Propostas!A102,"") ->  | C95: =IFERROR(Propostas!C102/Propostas!D102,"") ->  | E95: =IF($C95="","",Propostas!F102/Propostas!C102) ->  | F95: =IF($C95="","",Propostas!G102/Parâmetros!$F$4) ->  | G95: =IF($C95="","",Propostas!H102/Parâmetros!$G$4) ->  | H95: =IF($C95="","",MIN(1,(Propostas!B102-Propostas!C102)/Propostas!B102)) ->  | I95: =IF($C95="","",AVERAGE(Propostas!T102:V102)) ->  | J95: =IF(Propostas!T102="","",_xlfn.RANK.EQ(Propostas!T102,Propostas!$T102:$V102,1)) ->  | K95: =IF(Propostas!U102="","",_xlfn.RANK.EQ(Propostas!U102,Propostas!$T102:$V102,1)) ->  | L95: =IF(Propostas!V102="","",_xlfn.RANK.EQ(Propostas!V102,Propostas!$T102:$V102,1)) ->  | M95: =IF(Propostas!T102="","",Parâmetros!J95*(1+(Propostas!T102-Parâmetros!$I95)/SUM(Propostas!$T102:$V102))*VLOOKUP(Dados!B102,Uso_final[],2,0)) ->  | N95: =IF(Propostas!U102="","",Parâmetros!K95*(1+(Propostas!U102-Parâmetros!$I95)/SUM(Propostas!$T102:$V102))*VLOOKUP(Dados!C102,Uso_final[],2,0)) ->  | O95: =IF(Propostas!V102="","",Parâmetros!L95*(1+(Propostas!V102-Parâmetros!$I95)/SUM(Propostas!$T102:$V102))*VLOOKUP(Dados!D102,Uso_final[],2,0)) ->  | Q95: =IF($C95="","",MIN(1,(Propostas!W102+Propostas!X102)/Propostas!B102)) -> 
B96: =IF(ISTEXT(Propostas!A103),Propostas!A103,"") ->  | C96: =IFERROR(Propostas!C103/Propostas!D103,"") ->  | E96: =IF($C96="","",Propostas!F103/Propostas!C103) ->  | F96: =IF($C96="","",Propostas!G103/Parâmetros!$F$4) ->  | G96: =IF($C96="","",Propostas!H103/Parâmetros!$G$4) ->  | H96: =IF($C96="","",MIN(1,(Propostas!B103-Propostas!C103)/Propostas!B103)) ->  | I96: =IF($C96="","",AVERAGE(Propostas!T103:V103)) ->  | J96: =IF(Propostas!T103="","",_xlfn.RANK.EQ(Propostas!T103,Propostas!$T103:$V103,1)) ->  | K96: =IF(Propostas!U103="","",_xlfn.RANK.EQ(Propostas!U103,Propostas!$T103:$V103,1)) ->  | L96: =IF(Propostas!V103="","",_xlfn.RANK.EQ(Propostas!V103,Propostas!$T103:$V103,1)) ->  | M96: =IF(Propostas!T103="","",Parâmetros!J96*(1+(Propostas!T103-Parâmetros!$I96)/SUM(Propostas!$T103:$V103))*VLOOKUP(Dados!B103,Uso_final[],2,0)) ->  | N96: =IF(Propostas!U103="","",Parâmetros!K96*(1+(Propostas!U103-Parâmetros!$I96)/SUM(Propostas!$T103:$V103))*VLOOKUP(Dados!C103,Uso_final[],2,0)) ->  | O96: =IF(Propostas!V103="","",Parâmetros!L96*(1+(Propostas!V103-Parâmetros!$I96)/SUM(Propostas!$T103:$V103))*VLOOKUP(Dados!D103,Uso_final[],2,0)) ->  | Q96: =IF($C96="","",MIN(1,(Propostas!W103+Propostas!X103)/Propostas!B103)) -> 
B97: =IF(ISTEXT(Propostas!A104),Propostas!A104,"") ->  | C97: =IFERROR(Propostas!C104/Propostas!D104,"") ->  | E97: =IF($C97="","",Propostas!F104/Propostas!C104) ->  | F97: =IF($C97="","",Propostas!G104/Parâmetros!$F$4) ->  | G97: =IF($C97="","",Propostas!H104/Parâmetros!$G$4) ->  | H97: =IF($C97="","",MIN(1,(Propostas!B104-Propostas!C104)/Propostas!B104)) ->  | I97: =IF($C97="","",AVERAGE(Propostas!T104:V104)) ->  | J97: =IF(Propostas!T104="","",_xlfn.RANK.EQ(Propostas!T104,Propostas!$T104:$V104,1)) ->  | K97: =IF(Propostas!U104="","",_xlfn.RANK.EQ(Propostas!U104,Propostas!$T104:$V104,1)) ->  | L97: =IF(Propostas!V104="","",_xlfn.RANK.EQ(Propostas!V104,Propostas!$T104:$V104,1)) ->  | M97: =IF(Propostas!T104="","",Parâmetros!J97*(1+(Propostas!T104-Parâmetros!$I97)/SUM(Propostas!$T104:$V104))*VLOOKUP(Dados!B104,Uso_final[],2,0)) ->  | N97: =IF(Propostas!U104="","",Parâmetros!K97*(1+(Propostas!U104-Parâmetros!$I97)/SUM(Propostas!$T104:$V104))*VLOOKUP(Dados!C104,Uso_final[],2,0)) ->  | O97: =IF(Propostas!V104="","",Parâmetros!L97*(1+(Propostas!V104-Parâmetros!$I97)/SUM(Propostas!$T104:$V104))*VLOOKUP(Dados!D104,Uso_final[],2,0)) ->  | Q97: =IF($C97="","",MIN(1,(Propostas!W104+Propostas!X104)/Propostas!B104)) -> 
B98: =IF(ISTEXT(Propostas!A105),Propostas!A105,"") ->  | C98: =IFERROR(Propostas!C105/Propostas!D105,"") ->  | E98: =IF($C98="","",Propostas!F105/Propostas!C105) ->  | F98: =IF($C98="","",Propostas!G105/Parâmetros!$F$4) ->  | G98: =IF($C98="","",Propostas!H105/Parâmetros!$G$4) ->  | H98: =IF($C98="","",MIN(1,(Propostas!B105-Propostas!C105)/Propostas!B105)) ->  | I98: =IF($C98="","",AVERAGE(Propostas!T105:V105)) ->  | J98: =IF(Propostas!T105="","",_xlfn.RANK.EQ(Propostas!T105,Propostas!$T105:$V105,1)) ->  | K98: =IF(Propostas!U105="","",_xlfn.RANK.EQ(Propostas!U105,Propostas!$T105:$V105,1)) ->  | L98: =IF(Propostas!V105="","",_xlfn.RANK.EQ(Propostas!V105,Propostas!$T105:$V105,1)) ->  | M98: =IF(Propostas!T105="","",Parâmetros!J98*(1+(Propostas!T105-Parâmetros!$I98)/SUM(Propostas!$T105:$V105))*VLOOKUP(Dados!B105,Uso_final[],2,0)) ->  | N98: =IF(Propostas!U105="","",Parâmetros!K98*(1+(Propostas!U105-Parâmetros!$I98)/SUM(Propostas!$T105:$V105))*VLOOKUP(Dados!C105,Uso_final[],2,0)) ->  | O98: =IF(Propostas!V105="","",Parâmetros!L98*(1+(Propostas!V105-Parâmetros!$I98)/SUM(Propostas!$T105:$V105))*VLOOKUP(Dados!D105,Uso_final[],2,0)) ->  | Q98: =IF($C98="","",MIN(1,(Propostas!W105+Propostas!X105)/Propostas!B105)) -> 
B99: =IF(ISTEXT(Propostas!A106),Propostas!A106,"") ->  | C99: =IFERROR(Propostas!C106/Propostas!D106,"") ->  | E99: =IF($C99="","",Propostas!F106/Propostas!C106) ->  | F99: =IF($C99="","",Propostas!G106/Parâmetros!$F$4) ->  | G99: =IF($C99="","",Propostas!H106/Parâmetros!$G$4) ->  | H99: =IF($C99="","",MIN(1,(Propostas!B106-Propostas!C106)/Propostas!B106)) ->  | I99: =IF($C99="","",AVERAGE(Propostas!T106:V106)) ->  | J99: =IF(Propostas!T106="","",_xlfn.RANK.EQ(Propostas!T106,Propostas!$T106:$V106,1)) ->  | K99: =IF(Propostas!U106="","",_xlfn.RANK.EQ(Propostas!U106,Propostas!$T106:$V106,1)) ->  | L99: =IF(Propostas!V106="","",_xlfn.RANK.EQ(Propostas!V106,Propostas!$T106:$V106,1)) ->  | M99: =IF(Propostas!T106="","",Parâmetros!J99*(1+(Propostas!T106-Parâmetros!$I99)/SUM(Propostas!$T106:$V106))*VLOOKUP(Dados!B106,Uso_final[],2,0)) ->  | N99: =IF(Propostas!U106="","",Parâmetros!K99*(1+(Propostas!U106-Parâmetros!$I99)/SUM(Propostas!$T106:$V106))*VLOOKUP(Dados!C106,Uso_final[],2,0)) ->  | O99: =IF(Propostas!V106="","",Parâmetros!L99*(1+(Propostas!V106-Parâmetros!$I99)/SUM(Propostas!$T106:$V106))*VLOOKUP(Dados!D106,Uso_final[],2,0)) ->  | Q99: =IF($C99="","",MIN(1,(Propostas!W106+Propostas!X106)/Propostas!B106)) -> 
B100: =IF(ISTEXT(Propostas!A107),Propostas!A107,"") ->  | C100: =IFERROR(Propostas!C107/Propostas!D107,"") ->  | E100: =IF($C100="","",Propostas!F107/Propostas!C107) ->  | F100: =IF($C100="","",Propostas!G107/Parâmetros!$F$4) ->  | G100: =IF($C100="","",Propostas!H107/Parâmetros!$G$4) ->  | H100: =IF($C100="","",MIN(1,(Propostas!B107-Propostas!C107)/Propostas!B107)) ->  | I100: =IF($C100="","",AVERAGE(Propostas!T107:V107)) ->  | J100: =IF(Propostas!T107="","",_xlfn.RANK.EQ(Propostas!T107,Propostas!$T107:$V107,1)) ->  | K100: =IF(Propostas!U107="","",_xlfn.RANK.EQ(Propostas!U107,Propostas!$T107:$V107,1)) ->  | L100: =IF(Propostas!V107="","",_xlfn.RANK.EQ(Propostas!V107,Propostas!$T107:$V107,1)) ->  | M100: =IF(Propostas!T107="","",Parâmetros!J100*(1+(Propostas!T107-Parâmetros!$I100)/SUM(Propostas!$T107:$V107))*VLOOKUP(Dados!B107,Uso_final[],2,0)) ->  | N100: =IF(Propostas!U107="","",Parâmetros!K100*(1+(Propostas!U107-Parâmetros!$I100)/SUM(Propostas!$T107:$V107))*VLOOKUP(Dados!C107,Uso_final[],2,0)) ->  | O100: =IF(Propostas!V107="","",Parâmetros!L100*(1+(Propostas!V107-Parâmetros!$I100)/SUM(Propostas!$T107:$V107))*VLOOKUP(Dados!D107,Uso_final[],2,0)) ->  | Q100: =IF($C100="","",MIN(1,(Propostas!W107+Propostas!X107)/Propostas!B107)) -> 
B101: =IF(ISTEXT(Propostas!A108),Propostas!A108,"") ->  | C101: =IFERROR(Propostas!C108/Propostas!D108,"") ->  | E101: =IF($C101="","",Propostas!F108/Propostas!C108) ->  | F101: =IF($C101="","",Propostas!G108/Parâmetros!$F$4) ->  | G101: =IF($C101="","",Propostas!H108/Parâmetros!$G$4) ->  | H101: =IF($C101="","",MIN(1,(Propostas!B108-Propostas!C108)/Propostas!B108)) ->  | I101: =IF($C101="","",AVERAGE(Propostas!T108:V108)) ->  | J101: =IF(Propostas!T108="","",_xlfn.RANK.EQ(Propostas!T108,Propostas!$T108:$V108,1)) ->  | K101: =IF(Propostas!U108="","",_xlfn.RANK.EQ(Propostas!U108,Propostas!$T108:$V108,1)) ->  | L101: =IF(Propostas!V108="","",_xlfn.RANK.EQ(Propostas!V108,Propostas!$T108:$V108,1)) ->  | M101: =IF(Propostas!T108="","",Parâmetros!J101*(1+(Propostas!T108-Parâmetros!$I101)/SUM(Propostas!$T108:$V108))*VLOOKUP(Dados!B108,Uso_final[],2,0)) ->  | N101: =IF(Propostas!U108="","",Parâmetros!K101*(1+(Propostas!U108-Parâmetros!$I101)/SUM(Propostas!$T108:$V108))*VLOOKUP(Dados!C108,Uso_final[],2,0)) ->  | O101: =IF(Propostas!V108="","",Parâmetros!L101*(1+(Propostas!V108-Parâmetros!$I101)/SUM(Propostas!$T108:$V108))*VLOOKUP(Dados!D108,Uso_final[],2,0)) ->  | P101: =IF(C101="","",SUM(M101:O101)-1) ->  | Q101: =IF($C101="","",MIN(1,(Propostas!W108+Propostas!X108)/Propostas!B108)) -> 
B102: =IF(ISTEXT(Propostas!A109),Propostas!A109,"") ->  | C102: =IFERROR(Propostas!C109/Propostas!D109,"") ->  | E102: =IF($C102="","",Propostas!F109/Propostas!C109) ->  | F102: =IF($C102="","",Propostas!G109/Parâmetros!$F$4) ->  | G102: =IF($C102="","",Propostas!H109/Parâmetros!$G$4) ->  | H102: =IF($C102="","",MIN(1,(Propostas!B109-Propostas!C109)/Propostas!B109)) ->  | I102: =IF($C102="","",AVERAGE(Propostas!T109:V109)) ->  | J102: =IF(Propostas!T109="","",_xlfn.RANK.EQ(Propostas!T109,Propostas!$T109:$V109,1)) ->  | K102: =IF(Propostas!U109="","",_xlfn.RANK.EQ(Propostas!U109,Propostas!$T109:$V109,1)) ->  | L102: =IF(Propostas!V109="","",_xlfn.RANK.EQ(Propostas!V109,Propostas!$T109:$V109,1)) ->  | M102: =IF(Propostas!T109="","",Parâmetros!J102*(1+(Propostas!T109-Parâmetros!$I102)/SUM(Propostas!$T109:$V109))*VLOOKUP(Dados!B109,Uso_final[],2,0)) ->  | N102: =IF(Propostas!U109="","",Parâmetros!K102*(1+(Propostas!U109-Parâmetros!$I102)/SUM(Propostas!$T109:$V109))*VLOOKUP(Dados!C109,Uso_final[],2,0)) ->  | O102: =IF(Propostas!V109="","",Parâmetros!L102*(1+(Propostas!V109-Parâmetros!$I102)/SUM(Propostas!$T109:$V109))*VLOOKUP(Dados!D109,Uso_final[],2,0)) ->  | Q102: =IF($C102="","",MIN(1,(Propostas!W109+Propostas!X109)/Propostas!B109)) -> 
B103: =IF(ISTEXT(Propostas!A110),Propostas!A110,"") ->  | C103: =IFERROR(Propostas!C110/Propostas!D110,"") ->  | E103: =IF($C103="","",Propostas!F110/Propostas!C110) ->  | F103: =IF($C103="","",Propostas!G110/Parâmetros!$F$4) ->  | G103: =IF($C103="","",Propostas!H110/Parâmetros!$G$4) ->  | H103: =IF($C103="","",MIN(1,(Propostas!B110-Propostas!C110)/Propostas!B110)) ->  | I103: =IF($C103="","",AVERAGE(Propostas!T110:V110)) ->  | J103: =IF(Propostas!T110="","",_xlfn.RANK.EQ(Propostas!T110,Propostas!$T110:$V110,1)) ->  | K103: =IF(Propostas!U110="","",_xlfn.RANK.EQ(Propostas!U110,Propostas!$T110:$V110,1)) ->  | L103: =IF(Propostas!V110="","",_xlfn.RANK.EQ(Propostas!V110,Propostas!$T110:$V110,1)) ->  | M103: =IF(Propostas!T110="","",Parâmetros!J103*(1+(Propostas!T110-Parâmetros!$I103)/SUM(Propostas!$T110:$V110))*VLOOKUP(Dados!B110,Uso_final[],2,0)) ->  | N103: =IF(Propostas!U110="","",Parâmetros!K103*(1+(Propostas!U110-Parâmetros!$I103)/SUM(Propostas!$T110:$V110))*VLOOKUP(Dados!C110,Uso_final[],2,0)) ->  | O103: =IF(Propostas!V110="","",Parâmetros!L103*(1+(Propostas!V110-Parâmetros!$I103)/SUM(Propostas!$T110:$V110))*VLOOKUP(Dados!D110,Uso_final[],2,0)) ->  | Q103: =IF($C103="","",MIN(1,(Propostas!W110+Propostas!X110)/Propostas!B110)) -> 
B104: =IF(ISTEXT(Propostas!A111),Propostas!A111,"") ->  | C104: =IFERROR(Propostas!C111/Propostas!D111,"") ->  | E104: =IF($C104="","",Propostas!F111/Propostas!C111) ->  | F104: =IF($C104="","",Propostas!G111/Parâmetros!$F$4) ->  | G104: =IF($C104="","",Propostas!H111/Parâmetros!$G$4) ->  | H104: =IF($C104="","",MIN(1,(Propostas!B111-Propostas!C111)/Propostas!B111)) ->  | I104: =IF($C104="","",AVERAGE(Propostas!T111:V111)) ->  | J104: =IF(Propostas!T111="","",_xlfn.RANK.EQ(Propostas!T111,Propostas!$T111:$V111,1)) ->  | K104: =IF(Propostas!U111="","",_xlfn.RANK.EQ(Propostas!U111,Propostas!$T111:$V111,1)) ->  | L104: =IF(Propostas!V111="","",_xlfn.RANK.EQ(Propostas!V111,Propostas!$T111:$V111,1)) ->  | M104: =IF(Propostas!T111="","",Parâmetros!J104*(1+(Propostas!T111-Parâmetros!$I104)/SUM(Propostas!$T111:$V111))*VLOOKUP(Dados!B111,Uso_final[],2,0)) ->  | N104: =IF(Propostas!U111="","",Parâmetros!K104*(1+(Propostas!U111-Parâmetros!$I104)/SUM(Propostas!$T111:$V111))*VLOOKUP(Dados!C111,Uso_final[],2,0)) ->  | O104: =IF(Propostas!V111="","",Parâmetros!L104*(1+(Propostas!V111-Parâmetros!$I104)/SUM(Propostas!$T111:$V111))*VLOOKUP(Dados!D111,Uso_final[],2,0)) ->  | Q104: =IF($C104="","",MIN(1,(Propostas!W111+Propostas!X111)/Propostas!B111)) -> 
B105: =IF(ISTEXT(Propostas!A112),Propostas!A112,"") ->  | C105: =IFERROR(Propostas!C112/Propostas!D112,"") ->  | E105: =IF($C105="","",Propostas!F112/Propostas!C112) ->  | F105: =IF($C105="","",Propostas!G112/Parâmetros!$F$4) ->  | G105: =IF($C105="","",Propostas!H112/Parâmetros!$G$4) ->  | H105: =IF($C105="","",MIN(1,(Propostas!B112-Propostas!C112)/Propostas!B112)) ->  | I105: =IF($C105="","",AVERAGE(Propostas!T112:V112)) ->  | J105: =IF(Propostas!T112="","",_xlfn.RANK.EQ(Propostas!T112,Propostas!$T112:$V112,1)) ->  | K105: =IF(Propostas!U112="","",_xlfn.RANK.EQ(Propostas!U112,Propostas!$T112:$V112,1)) ->  | L105: =IF(Propostas!V112="","",_xlfn.RANK.EQ(Propostas!V112,Propostas!$T112:$V112,1)) ->  | M105: =IF(Propostas!T112="","",Parâmetros!J105*(1+(Propostas!T112-Parâmetros!$I105)/SUM(Propostas!$T112:$V112))*VLOOKUP(Dados!B112,Uso_final[],2,0)) ->  | N105: =IF(Propostas!U112="","",Parâmetros!K105*(1+(Propostas!U112-Parâmetros!$I105)/SUM(Propostas!$T112:$V112))*VLOOKUP(Dados!C112,Uso_final[],2,0)) ->  | O105: =IF(Propostas!V112="","",Parâmetros!L105*(1+(Propostas!V112-Parâmetros!$I105)/SUM(Propostas!$T112:$V112))*VLOOKUP(Dados!D112,Uso_final[],2,0)) ->  | Q105: =IF($C105="","",MIN(1,(Propostas!W112+Propostas!X112)/Propostas!B112)) -> 
B106: =IF(ISTEXT(Propostas!A113),Propostas!A113,"") ->  | C106: =IFERROR(Propostas!C113/Propostas!D113,"") ->  | E106: =IF($C106="","",Propostas!F113/Propostas!C113) ->  | F106: =IF($C106="","",Propostas!G113/Parâmetros!$F$4) ->  | G106: =IF($C106="","",Propostas!H113/Parâmetros!$G$4) ->  | H106: =IF($C106="","",MIN(1,(Propostas!B113-Propostas!C113)/Propostas!B113)) ->  | I106: =IF($C106="","",AVERAGE(Propostas!T113:V113)) ->  | J106: =IF(Propostas!T113="","",_xlfn.RANK.EQ(Propostas!T113,Propostas!$T113:$V113,1)) ->  | K106: =IF(Propostas!U113="","",_xlfn.RANK.EQ(Propostas!U113,Propostas!$T113:$V113,1)) ->  | L106: =IF(Propostas!V113="","",_xlfn.RANK.EQ(Propostas!V113,Propostas!$T113:$V113,1)) ->  | M106: =IF(Propostas!T113="","",Parâmetros!J106*(1+(Propostas!T113-Parâmetros!$I106)/SUM(Propostas!$T113:$V113))*VLOOKUP(Dados!B113,Uso_final[],2,0)) ->  | N106: =IF(Propostas!U113="","",Parâmetros!K106*(1+(Propostas!U113-Parâmetros!$I106)/SUM(Propostas!$T113:$V113))*VLOOKUP(Dados!C113,Uso_final[],2,0)) ->  | O106: =IF(Propostas!V113="","",Parâmetros!L106*(1+(Propostas!V113-Parâmetros!$I106)/SUM(Propostas!$T113:$V113))*VLOOKUP(Dados!D113,Uso_final[],2,0)) ->  | Q106: =IF($C106="","",MIN(1,(Propostas!W113+Propostas!X113)/Propostas!B113)) -> 
B107: =IF(ISTEXT(Propostas!A114),Propostas!A114,"") ->  | C107: =IFERROR(Propostas!C114/Propostas!D114,"") ->  | E107: =IF($C107="","",Propostas!F114/Propostas!C114) ->  | F107: =IF($C107="","",Propostas!G114/Parâmetros!$F$4) ->  | G107: =IF($C107="","",Propostas!H114/Parâmetros!$G$4) ->  | H107: =IF($C107="","",MIN(1,(Propostas!B114-Propostas!C114)/Propostas!B114)) ->  | I107: =IF($C107="","",AVERAGE(Propostas!T114:V114)) ->  | J107: =IF(Propostas!T114="","",_xlfn.RANK.EQ(Propostas!T114,Propostas!$T114:$V114,1)) ->  | K107: =IF(Propostas!U114="","",_xlfn.RANK.EQ(Propostas!U114,Propostas!$T114:$V114,1)) ->  | L107: =IF(Propostas!V114="","",_xlfn.RANK.EQ(Propostas!V114,Propostas!$T114:$V114,1)) ->  | M107: =IF(Propostas!T114="","",Parâmetros!J107*(1+(Propostas!T114-Parâmetros!$I107)/SUM(Propostas!$T114:$V114))*VLOOKUP(Dados!B114,Uso_final[],2,0)) ->  | N107: =IF(Propostas!U114="","",Parâmetros!K107*(1+(Propostas!U114-Parâmetros!$I107)/SUM(Propostas!$T114:$V114))*VLOOKUP(Dados!C114,Uso_final[],2,0)) ->  | O107: =IF(Propostas!V114="","",Parâmetros!L107*(1+(Propostas!V114-Parâmetros!$I107)/SUM(Propostas!$T114:$V114))*VLOOKUP(Dados!D114,Uso_final[],2,0)) ->  | Q107: =IF($C107="","",MIN(1,(Propostas!W114+Propostas!X114)/Propostas!B114)) -> 
B108: =IF(ISTEXT(Propostas!A115),Propostas!A115,"") ->  | C108: =IFERROR(Propostas!C115/Propostas!D115,"") ->  | E108: =IF($C108="","",Propostas!F115/Propostas!C115) ->  | F108: =IF($C108="","",Propostas!G115/Parâmetros!$F$4) ->  | G108: =IF($C108="","",Propostas!H115/Parâmetros!$G$4) ->  | H108: =IF($C108="","",MIN(1,(Propostas!B115-Propostas!C115)/Propostas!B115)) ->  | I108: =IF($C108="","",AVERAGE(Propostas!T115:V115)) ->  | J108: =IF(Propostas!T115="","",_xlfn.RANK.EQ(Propostas!T115,Propostas!$T115:$V115,1)) ->  | K108: =IF(Propostas!U115="","",_xlfn.RANK.EQ(Propostas!U115,Propostas!$T115:$V115,1)) ->  | L108: =IF(Propostas!V115="","",_xlfn.RANK.EQ(Propostas!V115,Propostas!$T115:$V115,1)) ->  | M108: =IF(Propostas!T115="","",Parâmetros!J108*(1+(Propostas!T115-Parâmetros!$I108)/SUM(Propostas!$T115:$V115))*VLOOKUP(Dados!B115,Uso_final[],2,0)) ->  | N108: =IF(Propostas!U115="","",Parâmetros!K108*(1+(Propostas!U115-Parâmetros!$I108)/SUM(Propostas!$T115:$V115))*VLOOKUP(Dados!C115,Uso_final[],2,0)) ->  | O108: =IF(Propostas!V115="","",Parâmetros!L108*(1+(Propostas!V115-Parâmetros!$I108)/SUM(Propostas!$T115:$V115))*VLOOKUP(Dados!D115,Uso_final[],2,0)) ->  | Q108: =IF($C108="","",MIN(1,(Propostas!W115+Propostas!X115)/Propostas!B115)) -> 
B109: =IF(ISTEXT(Propostas!A116),Propostas!A116,"") ->  | C109: =IFERROR(Propostas!C116/Propostas!D116,"") ->  | E109: =IF($C109="","",Propostas!F116/Propostas!C116) ->  | F109: =IF($C109="","",Propostas!G116/Parâmetros!$F$4) ->  | G109: =IF($C109="","",Propostas!H116/Parâmetros!$G$4) ->  | H109: =IF($C109="","",MIN(1,(Propostas!B116-Propostas!C116)/Propostas!B116)) ->  | I109: =IF($C109="","",AVERAGE(Propostas!T116:V116)) ->  | J109: =IF(Propostas!T116="","",_xlfn.RANK.EQ(Propostas!T116,Propostas!$T116:$V116,1)) ->  | K109: =IF(Propostas!U116="","",_xlfn.RANK.EQ(Propostas!U116,Propostas!$T116:$V116,1)) ->  | L109: =IF(Propostas!V116="","",_xlfn.RANK.EQ(Propostas!V116,Propostas!$T116:$V116,1)) ->  | M109: =IF(Propostas!T116="","",Parâmetros!J109*(1+(Propostas!T116-Parâmetros!$I109)/SUM(Propostas!$T116:$V116))*VLOOKUP(Dados!B116,Uso_final[],2,0)) ->  | N109: =IF(Propostas!U116="","",Parâmetros!K109*(1+(Propostas!U116-Parâmetros!$I109)/SUM(Propostas!$T116:$V116))*VLOOKUP(Dados!C116,Uso_final[],2,0)) ->  | O109: =IF(Propostas!V116="","",Parâmetros!L109*(1+(Propostas!V116-Parâmetros!$I109)/SUM(Propostas!$T116:$V116))*VLOOKUP(Dados!D116,Uso_final[],2,0)) ->  | Q109: =IF($C109="","",MIN(1,(Propostas!W116+Propostas!X116)/Propostas!B116)) -> 
B110: =IF(ISTEXT(Propostas!A117),Propostas!A117,"") ->  | C110: =IFERROR(Propostas!C117/Propostas!D117,"") ->  | E110: =IF($C110="","",Propostas!F117/Propostas!C117) ->  | F110: =IF($C110="","",Propostas!G117/Parâmetros!$F$4) ->  | G110: =IF($C110="","",Propostas!H117/Parâmetros!$G$4) ->  | H110: =IF($C110="","",MIN(1,(Propostas!B117-Propostas!C117)/Propostas!B117)) ->  | I110: =IF($C110="","",AVERAGE(Propostas!T117:V117)) ->  | J110: =IF(Propostas!T117="","",_xlfn.RANK.EQ(Propostas!T117,Propostas!$T117:$V117,1)) ->  | K110: =IF(Propostas!U117="","",_xlfn.RANK.EQ(Propostas!U117,Propostas!$T117:$V117,1)) ->  | L110: =IF(Propostas!V117="","",_xlfn.RANK.EQ(Propostas!V117,Propostas!$T117:$V117,1)) ->  | M110: =IF(Propostas!T117="","",Parâmetros!J110*(1+(Propostas!T117-Parâmetros!$I110)/SUM(Propostas!$T117:$V117))*VLOOKUP(Dados!B117,Uso_final[],2,0)) ->  | N110: =IF(Propostas!U117="","",Parâmetros!K110*(1+(Propostas!U117-Parâmetros!$I110)/SUM(Propostas!$T117:$V117))*VLOOKUP(Dados!C117,Uso_final[],2,0)) ->  | O110: =IF(Propostas!V117="","",Parâmetros!L110*(1+(Propostas!V117-Parâmetros!$I110)/SUM(Propostas!$T117:$V117))*VLOOKUP(Dados!D117,Uso_final[],2,0)) ->  | Q110: =IF($C110="","",MIN(1,(Propostas!W117+Propostas!X117)/Propostas!B117)) -> 
B111: =IF(ISTEXT(Propostas!A118),Propostas!A118,"") ->  | C111: =IFERROR(Propostas!C118/Propostas!D118,"") ->  | E111: =IF($C111="","",Propostas!F118/Propostas!C118) ->  | F111: =IF($C111="","",Propostas!G118/Parâmetros!$F$4) ->  | G111: =IF($C111="","",Propostas!H118/Parâmetros!$G$4) ->  | H111: =IF($C111="","",MIN(1,(Propostas!B118-Propostas!C118)/Propostas!B118)) ->  | I111: =IF($C111="","",AVERAGE(Propostas!T118:V118)) ->  | J111: =IF(Propostas!T118="","",_xlfn.RANK.EQ(Propostas!T118,Propostas!$T118:$V118,1)) ->  | K111: =IF(Propostas!U118="","",_xlfn.RANK.EQ(Propostas!U118,Propostas!$T118:$V118,1)) ->  | L111: =IF(Propostas!V118="","",_xlfn.RANK.EQ(Propostas!V118,Propostas!$T118:$V118,1)) ->  | M111: =IF(Propostas!T118="","",Parâmetros!J111*(1+(Propostas!T118-Parâmetros!$I111)/SUM(Propostas!$T118:$V118))*VLOOKUP(Dados!B118,Uso_final[],2,0)) ->  | N111: =IF(Propostas!U118="","",Parâmetros!K111*(1+(Propostas!U118-Parâmetros!$I111)/SUM(Propostas!$T118:$V118))*VLOOKUP(Dados!C118,Uso_final[],2,0)) ->  | O111: =IF(Propostas!V118="","",Parâmetros!L111*(1+(Propostas!V118-Parâmetros!$I111)/SUM(Propostas!$T118:$V118))*VLOOKUP(Dados!D118,Uso_final[],2,0)) ->  | Q111: =IF($C111="","",MIN(1,(Propostas!W118+Propostas!X118)/Propostas!B118)) -> 
B112: =IF(ISTEXT(Propostas!A119),Propostas!A119,"") ->  | C112: =IFERROR(Propostas!C119/Propostas!D119,"") ->  | E112: =IF($C112="","",Propostas!F119/Propostas!C119) ->  | F112: =IF($C112="","",Propostas!G119/Parâmetros!$F$4) ->  | G112: =IF($C112="","",Propostas!H119/Parâmetros!$G$4) ->  | H112: =IF($C112="","",MIN(1,(Propostas!B119-Propostas!C119)/Propostas!B119)) ->  | I112: =IF($C112="","",AVERAGE(Propostas!T119:V119)) ->  | J112: =IF(Propostas!T119="","",_xlfn.RANK.EQ(Propostas!T119,Propostas!$T119:$V119,1)) ->  | K112: =IF(Propostas!U119="","",_xlfn.RANK.EQ(Propostas!U119,Propostas!$T119:$V119,1)) ->  | L112: =IF(Propostas!V119="","",_xlfn.RANK.EQ(Propostas!V119,Propostas!$T119:$V119,1)) ->  | M112: =IF(Propostas!T119="","",Parâmetros!J112*(1+(Propostas!T119-Parâmetros!$I112)/SUM(Propostas!$T119:$V119))*VLOOKUP(Dados!B119,Uso_final[],2,0)) ->  | N112: =IF(Propostas!U119="","",Parâmetros!K112*(1+(Propostas!U119-Parâmetros!$I112)/SUM(Propostas!$T119:$V119))*VLOOKUP(Dados!C119,Uso_final[],2,0)) ->  | O112: =IF(Propostas!V119="","",Parâmetros!L112*(1+(Propostas!V119-Parâmetros!$I112)/SUM(Propostas!$T119:$V119))*VLOOKUP(Dados!D119,Uso_final[],2,0)) ->  | Q112: =IF($C112="","",MIN(1,(Propostas!W119+Propostas!X119)/Propostas!B119)) -> 
C113: =IFERROR(Propostas!C120/Propostas!D120,"") ->  | E113: =IF($C113="","",Propostas!F120/Propostas!C120) ->  | F113: =IF($C113="","",Propostas!G120/Parâmetros!$F$4) ->  | G113: =IF($C113="","",Propostas!H120/Parâmetros!$G$4) ->  | H113: =IF($C113="","",MIN(1,(Propostas!B120-Propostas!C120)/Propostas!B120)) ->  | I113: =IF($C113="","",AVERAGE(Propostas!T120:V120)) ->  | J113: =IF(Propostas!T120="","",_xlfn.RANK.EQ(Propostas!T120,Propostas!$T120:$V120,1)) ->  | K113: =IF(Propostas!U120="","",_xlfn.RANK.EQ(Propostas!U120,Propostas!$T120:$V120,1)) ->  | L113: =IF(Propostas!V120="","",_xlfn.RANK.EQ(Propostas!V120,Propostas!$T120:$V120,1)) ->  | M113: =IF(Propostas!T120="","",Parâmetros!J113*(1+(Propostas!T120-Parâmetros!$I113)/SUM(Propostas!$T120:$V120))*VLOOKUP(Dados!B120,Uso_final[],2,0)) ->  | N113: =IF(Propostas!U120="","",Parâmetros!K113*(1+(Propostas!U120-Parâmetros!$I113)/SUM(Propostas!$T120:$V120))*VLOOKUP(Dados!C120,Uso_final[],2,0)) ->  | O113: =IF(Propostas!V120="","",Parâmetros!L113*(1+(Propostas!V120-Parâmetros!$I113)/SUM(Propostas!$T120:$V120))*VLOOKUP(Dados!D120,Uso_final[],2,0)) ->  | Q113: =IF($C113="","",MIN(1,(Propostas!W120+Propostas!X120)/Propostas!B120)) -> 
C114: =IFERROR(Propostas!C121/Propostas!D121,"") ->  | E114: =IF($C114="","",Propostas!F121/Propostas!C121) ->  | F114: =IF($C114="","",Propostas!G121/Parâmetros!$F$4) ->  | G114: =IF($C114="","",Propostas!H121/Parâmetros!$G$4) ->  | H114: =IF($C114="","",MIN(1,(Propostas!B121-Propostas!C121)/Propostas!B121)) ->  | I114: =IF($C114="","",AVERAGE(Propostas!T121:V121)) ->  | J114: =IF(Propostas!T121="","",_xlfn.RANK.EQ(Propostas!T121,Propostas!$T121:$V121,1)) ->  | K114: =IF(Propostas!U121="","",_xlfn.RANK.EQ(Propostas!U121,Propostas!$T121:$V121,1)) ->  | L114: =IF(Propostas!V121="","",_xlfn.RANK.EQ(Propostas!V121,Propostas!$T121:$V121,1)) ->  | M114: =IF(Propostas!T121="","",Parâmetros!J114*(1+(Propostas!T121-Parâmetros!$I114)/SUM(Propostas!$T121:$V121))*VLOOKUP(Dados!B121,Uso_final[],2,0)) ->  | N114: =IF(Propostas!U121="","",Parâmetros!K114*(1+(Propostas!U121-Parâmetros!$I114)/SUM(Propostas!$T121:$V121))*VLOOKUP(Dados!C121,Uso_final[],2,0)) ->  | O114: =IF(Propostas!V121="","",Parâmetros!L114*(1+(Propostas!V121-Parâmetros!$I114)/SUM(Propostas!$T121:$V121))*VLOOKUP(Dados!D121,Uso_final[],2,0)) ->  | Q114: =IF($C114="","",MIN(1,(Propostas!W121+Propostas!X121)/Propostas!B121)) -> 
C115: =IFERROR(Propostas!C122/Propostas!D122,"") ->  | E115: =IF($C115="","",Propostas!F122/Propostas!C122) ->  | F115: =IF($C115="","",Propostas!G122/Parâmetros!$F$4) ->  | G115: =IF($C115="","",Propostas!H122/Parâmetros!$G$4) ->  | H115: =IF($C115="","",MIN(1,(Propostas!B122-Propostas!C122)/Propostas!B122)) ->  | I115: =IF($C115="","",AVERAGE(Propostas!T122:V122)) ->  | J115: =IF(Propostas!T122="","",_xlfn.RANK.EQ(Propostas!T122,Propostas!$T122:$V122,1)) ->  | K115: =IF(Propostas!U122="","",_xlfn.RANK.EQ(Propostas!U122,Propostas!$T122:$V122,1)) ->  | L115: =IF(Propostas!V122="","",_xlfn.RANK.EQ(Propostas!V122,Propostas!$T122:$V122,1)) ->  | M115: =IF(Propostas!T122="","",Parâmetros!J115*(1+(Propostas!T122-Parâmetros!$I115)/SUM(Propostas!$T122:$V122))*VLOOKUP(Dados!B122,Uso_final[],2,0)) ->  | N115: =IF(Propostas!U122="","",Parâmetros!K115*(1+(Propostas!U122-Parâmetros!$I115)/SUM(Propostas!$T122:$V122))*VLOOKUP(Dados!C122,Uso_final[],2,0)) ->  | O115: =IF(Propostas!V122="","",Parâmetros!L115*(1+(Propostas!V122-Parâmetros!$I115)/SUM(Propostas!$T122:$V122))*VLOOKUP(Dados!D122,Uso_final[],2,0)) ->  | Q115: =IF($C115="","",MIN(1,(Propostas!W122+Propostas!X122)/Propostas!B122)) -> 

Sheet Pontuação
C1: A | E1: B | F1: C | H1: D | L1: E | O1: F | S1: G | T1: H | U1: I
C2: A1 | D2: A2 | E2: B | F2: C1 | G2: C2 | H2: D1 | I2: D2 | J2: D3 | K2: D4 | L2: E1 | M2: E2 | N2: E3 | O2: F1 | P2: F2 | Q2: F3 | R2: F4 | S2: G | T2: H | U2: I
A3: Ordem | B3: Proposta | C3: Relação custo-benefício proporcional | D3: Relação custo-benefício ordenada | E3: Peso do investimento em equipamentos no custo total | F3: Impacto direto na economia de energia | G3: Impacto direto na redução de demanda na ponta | H3: Qualidade global da apresentação do projeto | I3: Bases da proposta | J3: Consistência do cronograma apresentado | K3: Estratégia de M&V | L3: Eficácia na quebra de barreiras de mercado | M3: Induz comportamentos de uso eficiente da energia | N3: Destina-se a segmentos com barreiras mais relevantes | O3: Experiência nos usos finais propostos | P3: Experiência no PEE | Q3: Certificação CMVP da EVO | R3: Outras certificações pertinentes | S3: Contrapartida | T3: Diversidade e priorização de usos finais | U3: Ações educacionais | V3: Total | W3: Ordem
B4: Máximo | C4: =VLOOKUP(C2,'Critérios'!$C$11:$H$34,6,0) -> 24 | D4: =VLOOKUP(D2,'Critérios'!$C$11:$H$34,6,0) -> 8 | E4: =VLOOKUP(E2,'Critérios'!$B$11:$G$34,6,0) -> 5 | F4: =VLOOKUP(F2,'Critérios'!$C$11:$H$34,6,0) -> 8 | G4: =VLOOKUP(G2,'Critérios'!$C$11:$H$34,6,0) -> 5 | H4: =VLOOKUP(H2,'Critérios'!$C$11:$H$34,6,0) -> 3 | I4: =VLOOKUP(I2,'Critérios'!$C$11:$H$34,6,0) -> 2 | J4: =VLOOKUP(J2,'Critérios'!$C$11:$H$34,6,0) -> 3 | K4: =VLOOKUP(K2,'Critérios'!$C$11:$H$34,6,0) -> 4 | L4: =VLOOKUP(L2,'Critérios'!$C$11:$H$34,6,0) -> 1 | M4: =VLOOKUP(M2,'Critérios'!$C$11:$H$34,6,0) -> 2 | N4: =VLOOKUP(N2,'Critérios'!$C$11:$H$34,6,0) -> 0 | O4: =VLOOKUP(O2,'Critérios'!$C$11:$H$34,6,0) -> 6 | P4: =VLOOKUP(P2,'Critérios'!$C$11:$H$34,6,0) -> 3 | Q4: =VLOOKUP(Q2,'Critérios'!$C$11:$H$34,6,0) -> 3 | R4: =VLOOKUP(R2,'Critérios'!$C$11:$H$34,6,0) -> 3 | S4: =VLOOKUP(S2,'Critérios'!$B$11:$G$34,6,0) -> 10 | T4: =VLOOKUP(T2,'Critérios'!$B$11:$G$34,6,0) -> 5 | U4: =VLOOKUP(U2,'Critérios'!$B$11:$G$34,6,0) -> 5 | V4: =SUM(C4:U4) -> 100
A5: =IF(Propostas!$C12="","",W5) -> 4 | B5: =Propostas!A12 -> P1 | C5: =IF(Propostas!$C12="","",C$4*Parâmetros!$C$4/Parâmetros!C5) -> 23.40640106 | D5: =IF(Propostas!$C12="","",D$4*(Parâmetros!D5-1)/(COUNT(Parâmetros!$C$5:$C$204)-1)) -> 7.111111111 | E5: =IF(Propostas!$C12="","",E$4*Parâmetros!E5/Parâmetros!$E$4) -> 4.078328935 | F5: =IF(Propostas!$C12="","",F$4*Parâmetros!F5) -> 3.363815294 | G5: =IF(Propostas!$C12="","",G$4*Parâmetros!G5) -> 4.51248679 | H5: =IF(Propostas!$C12="","",$H$4*Propostas!I12) -> 2.25 | I5: =IF(Propostas!$C12="","",$I$4*Propostas!J12) -> 1.5 | J5: =IF(Propostas!$C12="","",$J$4*Propostas!K12) -> 2.25 | K5: =IF(Propostas!$C12="","",$K$4*Propostas!L12) -> 3 | L5: =IF(Propostas!$C12="","",$L$4*Propostas!M12) -> 0.75 | M5: =IF(Propostas!$C12="","",$M$4*Propostas!N12) -> 1 | N5: =IF(Propostas!$C12="","",$N$4*Propostas!O12) -> 0 | O5: =IF(Propostas!$C12="","",$O$4*Propostas!P12) -> 6 | P5: =IF(Propostas!$C12="","",$P$4*Propostas!Q12) -> 3 | Q5: =IF(Propostas!$C12="","",$Q$4*Propostas!R12) -> 3 | R5: =IF(Propostas!$C12="","",$R$4*Propostas!S12) -> 3 | S5: =IF(Propostas!$C12="","",S$4*Parâmetros!$H5/Parâmetros!$H$4) -> 0 | T5: =IF(Propostas!$C12="","",T$4*Parâmetros!P5/Parâmetros!$P$4) -> 0 | U5: =IF(Propostas!$C12="","",U$4*Parâmetros!Q5/Parâmetros!$Q$4) -> 0.5906717053 | V5: =IF(Propostas!$B12="","",SUM(C5:U5)) -> 68.81281489 | W5: =IF(Propostas!$C12="","",RANK(V5,$V$5:$V$203,0)) -> 4
A6: =IF(Propostas!$C13="","",W6) -> 1 | B6: =Propostas!A13 -> P2 | C6: =IF(Propostas!$C13="","",C$4*Parâmetros!$C$4/Parâmetros!C6) -> 22.97826812 | D6: =IF(Propostas!$C13="","",D$4*(Parâmetros!D6-1)/(COUNT(Parâmetros!$C$5:$C$204)-1)) -> 6.222222222 | E6: =IF(Propostas!$C13="","",E$4*Parâmetros!E6/Parâmetros!$E$4) -> 3.754902143 | F6: =IF(Propostas!$C13="","",F$4*Parâmetros!F6) -> 5.016117768 | G6: =IF(Propostas!$C13="","",G$4*Parâmetros!G6) -> 5 | H6: =IF(Propostas!$C13="","",$H$4*Propostas!I13) -> 2.25 | I6: =IF(Propostas!$C13="","",$I$4*Propostas!J13) -> 1.5 | J6: =IF(Propostas!$C13="","",$J$4*Propostas!K13) -> 2.25 | K6: =IF(Propostas!$C13="","",$K$4*Propostas!L13) -> 3 | L6: =IF(Propostas!$C13="","",$L$4*Propostas!M13) -> 0.75 | M6: =IF(Propostas!$C13="","",$M$4*Propostas!N13) -> 1 | N6: =IF(Propostas!$C13="","",$N$4*Propostas!O13) -> 0 | O6: =IF(Propostas!$C13="","",$O$4*Propostas!P13) -> 6 | P6: =IF(Propostas!$C13="","",$P$4*Propostas!Q13) -> 3 | Q6: =IF(Propostas!$C13="","",$Q$4*Propostas!R13) -> 3 | R6: =IF(Propostas!$C13="","",$R$4*Propostas!S13) -> 3 | S6: =IF(Propostas!$C13="","",S$4*Parâmetros!$H6/Parâmetros!$H$4) -> 10 | T6: =IF(Propostas!$C13="","",T$4*Parâmetros!P6/Parâmetros!$P$4) -> 1.606545514 | U6: =IF(Propostas!$C13="","",U$4*Parâmetros!Q6/Parâmetros!$Q$4) -> 3.626319175 | V6: =IF(Propostas!$B13="","",SUM(C6:U6)) -> 83.95437495 | W6: =IF(Propostas!$C13="","",RANK(V6,$V$5:$V$203,0)) -> 1
A7: =IF(Propostas!$C14="","",W7) -> 7 | B7: =Propostas!A14 -> P3 | C7: =IF(Propostas!$C14="","",C$4*Parâmetros!$C$4/Parâmetros!C7) -> 24 | D7: =IF(Propostas!$C14="","",D$4*(Parâmetros!D7-1)/(COUNT(Parâmetros!$C$5:$C$204)-1)) -> 8 | E7: =IF(Propostas!$C14="","",E$4*Parâmetros!E7/Parâmetros!$E$4) -> 4.174560938 | F7: =IF(Propostas!$C14="","",F$4*Parâmetros!F7) -> 1.629082729 | G7: =IF(Propostas!$C14="","",G$4*Parâmetros!G7) -> 0.679681851 | H7: =IF(Propostas!$C14="","",$H$4*Propostas!I14) -> 1.5 | I7: =IF(Propostas!$C14="","",$I$4*Propostas!J14) -> 1.5 | J7: =IF(Propostas!$C14="","",$J$4*Propostas!K14) -> 2.25 | K7: =IF(Propostas!$C14="","",$K$4*Propostas!L14) -> 3 | L7: =IF(Propostas!$C14="","",$L$4*Propostas!M14) -> 0.75 | M7: =IF(Propostas!$C14="","",$M$4*Propostas!N14) -> 1 | N7: =IF(Propostas!$C14="","",$N$4*Propostas!O14) -> 0 | O7: =IF(Propostas!$C14="","",$O$4*Propostas!P14) -> 6 | P7: =IF(Propostas!$C14="","",$P$4*Propostas!Q14) -> 3 | Q7: =IF(Propostas!$C14="","",$Q$4*Propostas!R14) -> 3 | R7: =IF(Propostas!$C14="","",$R$4*Propostas!S14) -> 3 | S7: =IF(Propostas!$C14="","",S$4*Parâmetros!$H7/Parâmetros!$H$4) -> 1.807186186 | T7: =IF(Propostas!$C14="","",T$4*Parâmetros!P7/Parâmetros!$P$4) -> 0 | U7: =IF(Propostas!$C14="","",U$4*Parâmetros!Q7/Parâmetros!$Q$4) -> 2.756456012 | V7: =IF(Propostas!$B14="","",SUM(C7:U7)) -> 68.04696772 | W7: =IF(Propostas!$C14="","",RANK(V7,$V$5:$V$203,0)) -> 7
A8: =IF(Propostas!$C15="","",W8) -> 5 | B8: =Propostas!A15 -> P4 | C8: =IF(Propostas!$C15="","",C$4*Parâmetros!$C$4/Parâmetros!C8) -> 20.51160596 | D8: =IF(Propostas!$C15="","",D$4*(Parâmetros!D8-1)/(COUNT(Parâmetros!$C$5:$C$204)-1)) -> 4.444444444 | E8: =IF(Propostas!$C15="","",E$4*Parâmetros!E8/Parâmetros!$E$4) -> 4.44566714 | F8: =IF(Propostas!$C15="","",F$4*Parâmetros!F8) -> 2.536539351 | G8: =IF(Propostas!$C15="","",G$4*Parâmetros!G8) -> 2.222593025 | H8: =IF(Propostas!$C15="","",$H$4*Propostas!I15) -> 3 | I8: =IF(Propostas!$C15="","",$I$4*Propostas!J15) -> 1.5 | J8: =IF(Propostas!$C15="","",$J$4*Propostas!K15) -> 2.25 | K8: =IF(Propostas!$C15="","",$K$4*Propostas!L15) -> 3 | L8: =IF(Propostas!$C15="","",$L$4*Propostas!M15) -> 0.75 | M8: =IF(Propostas!$C15="","",$M$4*Propostas!N15) -> 1.5 | N8: =IF(Propostas!$C15="","",$N$4*Propostas!O15) -> 0 | O8: =IF(Propostas!$C15="","",$O$4*Propostas!P15) -> 6 | P8: =IF(Propostas!$C15="","",$P$4*Propostas!Q15) -> 3 | Q8: =IF(Propostas!$C15="","",$Q$4*Propostas!R15) -> 3 | R8: =IF(Propostas!$C15="","",$R$4*Propostas!S15) -> 3 | S8: =IF(Propostas!$C15="","",S$4*Parâmetros!$H8/Parâmetros!$H$4) -> 5.844321514 | T8: =IF(Propostas!$C15="","",T$4*Parâmetros!P8/Parâmetros!$P$4) -> 0 | U8: =IF(Propostas!$C15="","",U$4*Parâmetros!Q8/Parâmetros!$Q$4) -> 1.786494967 | V8: =IF(Propostas!$B15="","",SUM(C8:U8)) -> 68.7916664 | W8: =IF(Propostas!$C15="","",RANK(V8,$V$5:$V$203,0)) -> 5
A9: =IF(Propostas!$C16="","",W9) -> 9 | B9: =Propostas!A16 -> P5 | C9: =IF(Propostas!$C16="","",C$4*Parâmetros!$C$4/Parâmetros!C9) -> 17.86693819 | D9: =IF(Propostas!$C16="","",D$4*(Parâmetros!D9-1)/(COUNT(Parâmetros!$C$5:$C$204)-1)) -> 0.8888888889 | E9: =IF(Propostas!$C16="","",E$4*Parâmetros!E9/Parâmetros!$E$4) -> 4.574855795 | F9: =IF(Propostas!$C16="","",F$4*Parâmetros!F9) -> 3.254319689 | G9: =IF(Propostas!$C16="","",G$4*Parâmetros!G9) -> 4.184326158 | H9: =IF(Propostas!$C16="","",$H$4*Propostas!I16) -> 2.25 | I9: =IF(Propostas!$C16="","",$I$4*Propostas!J16) -> 1.5 | J9: =IF(Propostas!$C16="","",$J$4*Propostas!K16) -> 2.25 | K9: =IF(Propostas!$C16="","",$K$4*Propostas!L16) -> 3 | L9: =IF(Propostas!$C16="","",$L$4*Propostas!M16) -> 0.75 | M9: =IF(Propostas!$C16="","",$M$4*Propostas!N16) -> 1.5 | N9: =IF(Propostas!$C16="","",$N$4*Propostas!O16) -> 0 | O9: =IF(Propostas!$C16="","",$O$4*Propostas!P16) -> 6 | P9: =IF(Propostas!$C16="","",$P$4*Propostas!Q16) -> 3 | Q9: =IF(Propostas!$C16="","",$Q$4*Propostas!R16) -> 3 | R9: =IF(Propostas!$C16="","",$R$4*Propostas!S16) -> 3 | S9: =IF(Propostas!$C16="","",S$4*Parâmetros!$H9/Parâmetros!$H$4) -> 8.367968842 | T9: =IF(Propostas!$C16="","",T$4*Parâmetros!P9/Parâmetros!$P$4) -> 0 | U9: =IF(Propostas!$C16="","",U$4*Parâmetros!Q9/Parâmetros!$Q$4) -> 2.113281348 | V9: =IF(Propostas!$B16="","",SUM(C9:U9)) -> 67.50057892 | W9: =IF(Propostas!$C16="","",RANK(V9,$V$5:$V$203,0)) -> 9
A10: =IF(Propostas!$C17="","",W10) -> 8 | B10: =Propostas!A17 -> P6 | C10: =IF(Propostas!$C17="","",C$4*Parâmetros!$C$4/Parâmetros!C10) -> 20.34445873 | D10: =IF(Propostas!$C17="","",D$4*(Parâmetros!D10-1)/(COUNT(Parâmetros!$C$5:$C$204)-1)) -> 3.555555556 | E10: =IF(Propostas!$C17="","",E$4*Parâmetros!E10/Parâmetros!$E$4) -> 4.095332066 | F10: =IF(Propostas!$C17="","",F$4*Parâmetros!F10) -> 8 | G10: =IF(Propostas!$C17="","",G$4*Parâmetros!G10) -> 3.382001224 | H10: =IF(Propostas!$C17="","",$H$4*Propostas!I17) -> 3 | I10: =IF(Propostas!$C17="","",$I$4*Propostas!J17) -> 1.5 | J10: =IF(Propostas!$C17="","",$J$4*Propostas!K17) -> 2.25 | K10: =IF(Propostas!$C17="","",$K$4*Propostas!L17) -> 3 | L10: =IF(Propostas!$C17="","",$L$4*Propostas!M17) -> 0.75 | M10: =IF(Propostas!$C17="","",$M$4*Propostas!N17) -> 2 | N10: =IF(Propostas!$C17="","",$N$4*Propostas!O17) -> 0 | O10: =IF(Propostas!$C17="","",$O$4*Propostas!P17) -> 6 | P10: =IF(Propostas!$C17="","",$P$4*Propostas!Q17) -> 3 | Q10: =IF(Propostas!$C17="","",$Q$4*Propostas!R17) -> 3 | R10: =IF(Propostas!$C17="","",$R$4*Propostas!S17) -> 3 | S10: =IF(Propostas!$C17="","",S$4*Parâmetros!$H10/Parâmetros!$H$4) -> 0 | T10: =IF(Propostas!$C17="","",T$4*Parâmetros!P10/Parâmetros!$P$4) -> 0 | U10: =IF(Propostas!$C17="","",U$4*Parâmetros!Q10/Parâmetros!$Q$4) -> 0.6324865353 | V10: =IF(Propostas!$B17="","",SUM(C10:U10)) -> 67.50983411 | W10: =IF(Propostas!$C17="","",RANK(V10,$V$5:$V$203,0)) -> 8
A11: =IF(Propostas!$C18="","",W11) -> 3 | B11: =Propostas!A18 -> P7 | C11: =IF(Propostas!$C18="","",C$4*Parâmetros!$C$4/Parâmetros!C11) -> 18.43160392 | D11: =IF(Propostas!$C18="","",D$4*(Parâmetros!D11-1)/(COUNT(Parâmetros!$C$5:$C$204)-1)) -> 1.777777778 | E11: =IF(Propostas!$C18="","",E$4*Parâmetros!E11/Parâmetros!$E$4) -> 5 | F11: =IF(Propostas!$C18="","",F$4*Parâmetros!F11) -> 4.362627096 | G11: =IF(Propostas!$C18="","",G$4*Parâmetros!G11) -> 4.839535013 | H11: =IF(Propostas!$C18="","",$H$4*Propostas!I18) -> 2.25 | I11: =IF(Propostas!$C18="","",$I$4*Propostas!J18) -> 1.5 | J11: =IF(Propostas!$C18="","",$J$4*Propostas!K18) -> 2.25 | K11: =IF(Propostas!$C18="","",$K$4*Propostas!L18) -> 3 | L11: =IF(Propostas!$C18="","",$L$4*Propostas!M18) -> 0.75 | M11: =IF(Propostas!$C18="","",$M$4*Propostas!N18) -> 1 | N11: =IF(Propostas!$C18="","",$N$4*Propostas!O18) -> 0 | O11: =IF(Propostas!$C18="","",$O$4*Propostas!P18) -> 6 | P11: =IF(Propostas!$C18="","",$P$4*Propostas!Q18) -> 3 | Q11: =IF(Propostas!$C18="","",$Q$4*Propostas!R18) -> 3 | R11: =IF(Propostas!$C18="","",$R$4*Propostas!S18) -> 3 | S11: =IF(Propostas!$C18="","",S$4*Parâmetros!$H11/Parâmetros!$H$4) -> 9.916637559 | T11: =IF(Propostas!$C18="","",T$4*Parâmetros!P11/Parâmetros!$P$4) -> 0 | U11: =IF(Propostas!$C18="","",U$4*Parâmetros!Q11/Parâmetros!$Q$4) -> 0.9757827012 | V11: =IF(Propostas!$B18="","",SUM(C11:U11)) -> 71.05396407 | W11: =IF(Propostas!$C18="","",RANK(V11,$V$5:$V$203,0)) -> 3
A12: =IF(Propostas!$C19="","",W12) -> 6 | B12: =Propostas!A19 -> P8 | C12: =IF(Propostas!$C19="","",C$4*Parâmetros!$C$4/Parâmetros!C12) -> 19.24579511 | D12: =IF(Propostas!$C19="","",D$4*(Parâmetros!D12-1)/(COUNT(Parâmetros!$C$5:$C$204)-1)) -> 2.666666667 | E12: =IF(Propostas!$C19="","",E$4*Parâmetros!E12/Parâmetros!$E$4) -> 3.963710656 | F12: =IF(Propostas!$C19="","",F$4*Parâmetros!F12) -> 2.702487959 | G12: =IF(Propostas!$C19="","",G$4*Parâmetros!G12) -> 2.21202514 | H12: =IF(Propostas!$C19="","",$H$4*Propostas!I19) -> 3 | I12: =IF(Propostas!$C19="","",$I$4*Propostas!J19) -> 1.5 | J12: =IF(Propostas!$C19="","",$J$4*Propostas!K19) -> 2.25 | K12: =IF(Propostas!$C19="","",$K$4*Propostas!L19) -> 3 | L12: =IF(Propostas!$C19="","",$L$4*Propostas!M19) -> 0.75 | M12: =IF(Propostas!$C19="","",$M$4*Propostas!N19) -> 1.5 | N12: =IF(Propostas!$C19="","",$N$4*Propostas!O19) -> 0 | O12: =IF(Propostas!$C19="","",$O$4*Propostas!P19) -> 6 | P12: =IF(Propostas!$C19="","",$P$4*Propostas!Q19) -> 3 | Q12: =IF(Propostas!$C19="","",$Q$4*Propostas!R19) -> 3 | R12: =IF(Propostas!$C19="","",$R$4*Propostas!S19) -> 3 | S12: =IF(Propostas!$C19="","",S$4*Parâmetros!$H12/Parâmetros!$H$4) -> 2.140125148 | T12: =IF(Propostas!$C19="","",T$4*Parâmetros!P12/Parâmetros!$P$4) -> 4.710182877 | U12: =IF(Propostas!$C19="","",U$4*Parâmetros!Q12/Parâmetros!$Q$4) -> 3.71458005 | V12: =IF(Propostas!$B19="","",SUM(C12:U12)) -> 68.35557361 | W12: =IF(Propostas!$C19="","",RANK(V12,$V$5:$V$203,0)) -> 6
A13: =IF(Propostas!$C20="","",W13) -> 2 | B13: =Propostas!A20 -> P9 | C13: =IF(Propostas!$C20="","",C$4*Parâmetros!$C$4/Parâmetros!C13) -> 21.20296937 | D13: =IF(Propostas!$C20="","",D$4*(Parâmetros!D13-1)/(COUNT(Parâmetros!$C$5:$C$204)-1)) -> 5.333333333 | E13: =IF(Propostas!$C20="","",E$4*Parâmetros!E13/Parâmetros!$E$4) -> 3.795708726 | F13: =IF(Propostas!$C20="","",F$4*Parâmetros!F13) -> 1.910331879 | G13: =IF(Propostas!$C20="","",G$4*Parâmetros!G13) -> 1.698926525 | H13: =IF(Propostas!$C20="","",$H$4*Propostas!I20) -> 3 | I13: =IF(Propostas!$C20="","",$I$4*Propostas!J20) -> 1.5 | J13: =IF(Propostas!$C20="","",$J$4*Propostas!K20) -> 2.25 | K13: =IF(Propostas!$C20="","",$K$4*Propostas!L20) -> 3 | L13: =IF(Propostas!$C20="","",$L$4*Propostas!M20) -> 0.75 | M13: =IF(Propostas!$C20="","",$M$4*Propostas!N20) -> 1.5 | N13: =IF(Propostas!$C20="","",$N$4*Propostas!O20) -> 0 | O13: =IF(Propostas!$C20="","",$O$4*Propostas!P20) -> 6 | P13: =IF(Propostas!$C20="","",$P$4*Propostas!Q20) -> 3 | Q13: =IF(Propostas!$C20="","",$Q$4*Propostas!R20) -> 3 | R13: =IF(Propostas!$C20="","",$R$4*Propostas!S20) -> 3 | S13: =IF(Propostas!$C20="","",S$4*Parâmetros!$H13/Parâmetros!$H$4) -> 3.988521177 | T13: =IF(Propostas!$C20="","",T$4*Parâmetros!P13/Parâmetros!$P$4) -> 5 | U13: =IF(Propostas!$C20="","",U$4*Parâmetros!Q13/Parâmetros!$Q$4) -> 5 | V13: =IF(Propostas!$B20="","",SUM(C13:U13)) -> 74.92979101 | W13: =IF(Propostas!$C20="","",RANK(V13,$V$5:$V$203,0)) -> 2
A14: =IF(Propostas!$C21="","",W14) -> 10 | B14: =Propostas!A21 -> P10 | C14: =IF(Propostas!$C21="","",C$4*Parâmetros!$C$4/Parâmetros!C14) -> 17.79237974 | D14: =IF(Propostas!$C21="","",D$4*(Parâmetros!D14-1)/(COUNT(Parâmetros!$C$5:$C$204)-1)) -> 0 | E14: =IF(Propostas!$C21="","",E$4*Parâmetros!E14/Parâmetros!$E$4) -> 3.690046336 | F14: =IF(Propostas!$C21="","",F$4*Parâmetros!F14) -> 0.6076316768 | G14: =IF(Propostas!$C21="","",G$4*Parâmetros!G14) -> 0.8810278658 | H14: =IF(Propostas!$C21="","",$H$4*Propostas!I21) -> 2.25 | I14: =IF(Propostas!$C21="","",$I$4*Propostas!J21) -> 1.5 | J14: =IF(Propostas!$C21="","",$J$4*Propostas!K21) -> 2.25 | K14: =IF(Propostas!$C21="","",$K$4*Propostas!L21) -> 3 | L14: =IF(Propostas!$C21="","",$L$4*Propostas!M21) -> 0.75 | M14: =IF(Propostas!$C21="","",$M$4*Propostas!N21) -> 1.5 | N14: =IF(Propostas!$C21="","",$N$4*Propostas!O21) -> 0 | O14: =IF(Propostas!$C21="","",$O$4*Propostas!P21) -> 6 | P14: =IF(Propostas!$C21="","",$P$4*Propostas!Q21) -> 3 | Q14: =IF(Propostas!$C21="","",$Q$4*Propostas!R21) -> 3 | R14: =IF(Propostas!$C21="","",$R$4*Propostas!S21) -> 3 | S14: =IF(Propostas!$C21="","",S$4*Parâmetros!$H14/Parâmetros!$H$4) -> 0 | T14: =IF(Propostas!$C21="","",T$4*Parâmetros!P14/Parâmetros!$P$4) -> 0 | U14: =IF(Propostas!$C21="","",U$4*Parâmetros!Q14/Parâmetros!$Q$4) -> 2.530568786 | V14: =IF(Propostas!$B21="","",SUM(C14:U14)) -> 51.7516544 | W14: =IF(Propostas!$C21="","",RANK(V14,$V$5:$V$203,0)) -> 10
A15: =IF(Propostas!$C22="","",W15) ->  | B15: =Propostas!A22 -> 0 | C15: =IF(Propostas!$C22="","",C$4*Parâmetros!$C$4/Parâmetros!C15) ->  | D15: =IF(Propostas!$C22="","",D$4*(Parâmetros!D15-1)/(COUNT(Parâmetros!$C$5:$C$204)-1)) ->  | E15: =IF(Propostas!$C22="","",E$4*Parâmetros!E15/Parâmetros!$E$4) ->  | F15: =IF(Propostas!$C22="","",F$4*Parâmetros!F15) ->  | G15: =IF(Propostas!$C22="","",G$4*Parâmetros!G15) ->  | H15: =IF(Propostas!$C22="","",$H$4*Propostas!I22) ->  | I15: =IF(Propostas!$C22="","",$I$4*Propostas!J22) ->  | J15: =IF(Propostas!$C22="","",$J$4*Propostas!K22) ->  | K15: =IF(Propostas!$C22="","",$K$4*Propostas!L22) ->  | L15: =IF(Propostas!$C22="","",$L$4*Propostas!M22) ->  | M15: =IF(Propostas!$C22="","",$M$4*Propostas!N22) ->  | N15: =IF(Propostas!$C22="","",$N$4*Propostas!O22) ->  | O15: =IF(Propostas!$C22="","",$O$4*Propostas!P22) ->  | P15: =IF(Propostas!$C22="","",$P$4*Propostas!Q22) ->  | Q15: =IF(Propostas!$C22="","",$Q$4*Propostas!R22) ->  | R15: =IF(Propostas!$C22="","",$R$4*Propostas!S22) ->  | S15: =IF(Propostas!$C22="","",S$4*Parâmetros!$H15/Parâmetros!$H$4) ->  | T15: =IF(Propostas!$C22="","",T$4*Parâmetros!P15/Parâmetros!$P$4) ->  | U15: =IF(Propostas!$C22="","",U$4*Parâmetros!Q15/Parâmetros!$Q$4) ->  | V15: =IF(Propostas!$B22="","",SUM(C15:U15)) ->  | W15: =IF(Propostas!$C22="","",RANK(V15,$V$5:$V$203,0)) -> 
A16: =IF(Propostas!$C23="","",W16) ->  | B16: =Propostas!A23 -> 0 | C16: =IF(Propostas!$C23="","",C$4*Parâmetros!$C$4/Parâmetros!C16) ->  | D16: =IF(Propostas!$C23="","",D$4*(Parâmetros!D16-1)/(COUNT(Parâmetros!$C$5:$C$204)-1)) ->  | E16: =IF(Propostas!$C23="","",E$4*Parâmetros!E16/Parâmetros!$E$4) ->  | F16: =IF(Propostas!$C23="","",F$4*Parâmetros!F16) ->  | G16: =IF(Propostas!$C23="","",G$4*Parâmetros!G16) ->  | H16: =IF(Propostas!$C23="","",$H$4*Propostas!I23) ->  | I16: =IF(Propostas!$C23="","",$I$4*Propostas!J23) ->  | J16: =IF(Propostas!$C23="","",$J$4*Propostas!K23) ->  | K16: =IF(Propostas!$C23="","",$K$4*Propostas!L23) ->  | L16: =IF(Propostas!$C23="","",$L$4*Propostas!M23) ->  | M16: =IF(Propostas!$C23="","",$M$4*Propostas!N23) ->  | N16: =IF(Propostas!$C23="","",$N$4*Propostas!O23) ->  | O16: =IF(Propostas!$C23="","",$O$4*Propostas!P23) ->  | P16: =IF(Propostas!$C23="","",$P$4*Propostas!Q23) ->  | Q16: =IF(Propostas!$C23="","",$Q$4*Propostas!R23) ->  | R16: =IF(Propostas!$C23="","",$R$4*Propostas!S23) ->  | S16: =IF(Propostas!$C23="","",S$4*Parâmetros!$H16/Parâmetros!$H$4) ->  | T16: =IF(Propostas!$C23="","",T$4*Parâmetros!P16/Parâmetros!$P$4) ->  | U16: =IF(Propostas!$C23="","",U$4*Parâmetros!Q16/Parâmetros!$Q$4) ->  | V16: =IF(Propostas!$B23="","",SUM(C16:U16)) ->  | W16: =IF(Propostas!$C23="","",RANK(V16,$V$5:$V$203,0)) -> 
A17: =IF(Propostas!$C24="","",W17) ->  | B17: =Propostas!A24 -> 0 | C17: =IF(Propostas!$C24="","",C$4*Parâmetros!$C$4/Parâmetros!C17) ->  | D17: =IF(Propostas!$C24="","",D$4*(Parâmetros!D17-1)/(COUNT(Parâmetros!$C$5:$C$204)-1)) ->  | E17: =IF(Propostas!$C24="","",E$4*Parâmetros!E17/Parâmetros!$E$4) ->  | F17: =IF(Propostas!$C24="","",F$4*Parâmetros!F17) ->  | G17: =IF(Propostas!$C24="","",G$4*Parâmetros!G17) ->  | H17: =IF(Propostas!$C24="","",$H$4*Propostas!I24) ->  | I17: =IF(Propostas!$C24="","",$I$4*Propostas!J24) ->  | J17: =IF(Propostas!$C24="","",$J$4*Propostas!K24) ->  | K17: =IF(Propostas!$C24="","",$K$4*Propostas!L24) ->  | L17: =IF(Propostas!$C24="","",$L$4*Propostas!M24) ->  | M17: =IF(Propostas!$C24="","",$M$4*Propostas!N24) ->  | N17: =IF(Propostas!$C24="","",$N$4*Propostas!O24) ->  | O17: =IF(Propostas!$C24="","",$O$4*Propostas!P24) ->  | P17: =IF(Propostas!$C24="","",$P$4*Propostas!Q24) ->  | Q17: =IF(Propostas!$C24="","",$Q$4*Propostas!R24) ->  | R17: =IF(Propostas!$C24="","",$R$4*Propostas!S24) ->  | S17: =IF(Propostas!$C24="","",S$4*Parâmetros!$H17/Parâmetros!$H$4) ->  | T17: =IF(Propostas!$C24="","",T$4*Parâmetros!P17/Parâmetros!$P$4) ->  | U17: =IF(Propostas!$C24="","",U$4*Parâmetros!Q17/Parâmetros!$Q$4) ->  | V17: =IF(Propostas!$B24="","",SUM(C17:U17)) ->  | W17: =IF(Propostas!$C24="","",RANK(V17,$V$5:$V$203,0)) -> 
A18: =IF(Propostas!$C25="","",W18) ->  | B18: =Propostas!A25 -> 0 | C18: =IF(Propostas!$C25="","",C$4*Parâmetros!$C$4/Parâmetros!C18) ->  | D18: =IF(Propostas!$C25="","",D$4*(Parâmetros!D18-1)/(COUNT(Parâmetros!$C$5:$C$204)-1)) ->  | E18: =IF(Propostas!$C25="","",E$4*Parâmetros!E18/Parâmetros!$E$4) ->  | F18: =IF(Propostas!$C25="","",F$4*Parâmetros!F18) ->  | G18: =IF(Propostas!$C25="","",G$4*Parâmetros!G18) ->  | H18: =IF(Propostas!$C25="","",$H$4*Propostas!I25) ->  | I18: =IF(Propostas!$C25="","",$I$4*Propostas!J25) ->  | J18: =IF(Propostas!$C25="","",$J$4*Propostas!K25) ->  | K18: =IF(Propostas!$C25="","",$K$4*Propostas!L25) ->  | L18: =IF(Propostas!$C25="","",$L$4*Propostas!M25) ->  | M18: =IF(Propostas!$C25="","",$M$4*Propostas!N25) ->  | N18: =IF(Propostas!$C25="","",$N$4*Propostas!O25) ->  | O18: =IF(Propostas!$C25="","",$O$4*Propostas!P25) ->  | P18: =IF(Propostas!$C25="","",$P$4*Propostas!Q25) ->  | Q18: =IF(Propostas!$C25="","",$Q$4*Propostas!R25) ->  | R18: =IF(Propostas!$C25="","",$R$4*Propostas!S25) ->  | S18: =IF(Propostas!$C25="","",S$4*Parâmetros!$H18/Parâmetros!$H$4) ->  | T18: =IF(Propostas!$C25="","",T$4*Parâmetros!P18/Parâmetros!$P$4) ->  | U18: =IF(Propostas!$C25="","",U$4*Parâmetros!Q18/Parâmetros!$Q$4) ->  | V18: =IF(Propostas!$B25="","",SUM(C18:U18)) ->  | W18: =IF(Propostas!$C25="","",RANK(V18,$V$5:$V$203,0)) -> 
A19: =IF(Propostas!$C26="","",W19) ->  | B19: =Propostas!A26 -> 0 | C19: =IF(Propostas!$C26="","",C$4*Parâmetros!$C$4/Parâmetros!C19) ->  | D19: =IF(Propostas!$C26="","",D$4*(Parâmetros!D19-1)/(COUNT(Parâmetros!$C$5:$C$204)-1)) ->  | E19: =IF(Propostas!$C26="","",E$4*Parâmetros!E19/Parâmetros!$E$4) ->  | F19: =IF(Propostas!$C26="","",F$4*Parâmetros!F19) ->  | G19: =IF(Propostas!$C26="","",G$4*Parâmetros!G19) ->  | H19: =IF(Propostas!$C26="","",$H$4*Propostas!I26) ->  | I19: =IF(Propostas!$C26="","",$I$4*Propostas!J26) ->  | J19: =IF(Propostas!$C26="","",$J$4*Propostas!K26) ->  | K19: =IF(Propostas!$C26="","",$K$4*Propostas!L26) ->  | L19: =IF(Propostas!$C26="","",$L$4*Propostas!M26) ->  | M19: =IF(Propostas!$C26="","",$M$4*Propostas!N26) ->  | N19: =IF(Propostas!$C26="","",$N$4*Propostas!O26) ->  | O19: =IF(Propostas!$C26="","",$O$4*Propostas!P26) ->  | P19: =IF(Propostas!$C26="","",$P$4*Propostas!Q26) ->  | Q19: =IF(Propostas!$C26="","",$Q$4*Propostas!R26) ->  | R19: =IF(Propostas!$C26="","",$R$4*Propostas!S26) ->  | S19: =IF(Propostas!$C26="","",S$4*Parâmetros!$H19/Parâmetros!$H$4) ->  | T19: =IF(Propostas!$C26="","",T$4*Parâmetros!P19/Parâmetros!$P$4) ->  | U19: =IF(Propostas!$C26="","",U$4*Parâmetros!Q19/Parâmetros!$Q$4) ->  | V19: =IF(Propostas!$B26="","",SUM(C19:U19)) ->  | W19: =IF(Propostas!$C26="","",RANK(V19,$V$5:$V$203,0)) -> 
A20: =IF(Propostas!$C27="","",W20) ->  | B20: =Propostas!A27 -> 0 | C20: =IF(Propostas!$C27="","",C$4*Parâmetros!$C$4/Parâmetros!C20) ->  | D20: =IF(Propostas!$C27="","",D$4*(Parâmetros!D20-1)/(COUNT(Parâmetros!$C$5:$C$204)-1)) ->  | E20: =IF(Propostas!$C27="","",E$4*Parâmetros!E20/Parâmetros!$E$4) ->  | F20: =IF(Propostas!$C27="","",F$4*Parâmetros!F20) ->  | G20: =IF(Propostas!$C27="","",G$4*Parâmetros!G20) ->  | H20: =IF(Propostas!$C27="","",$H$4*Propostas!I27) ->  | I20: =IF(Propostas!$C27="","",$I$4*Propostas!J27) ->  | J20: =IF(Propostas!$C27="","",$J$4*Propostas!K27) ->  | K20: =IF(Propostas!$C27="","",$K$4*Propostas!L27) ->  | L20: =IF(Propostas!$C27="","",$L$4*Propostas!M27) ->  | M20: =IF(Propostas!$C27="","",$M$4*Propostas!N27) ->  | N20: =IF(Propostas!$C27="","",$N$4*Propostas!O27) ->  | O20: =IF(Propostas!$C27="","",$O$4*Propostas!P27) ->  | P20: =IF(Propostas!$C27="","",$P$4*Propostas!Q27) ->  | Q20: =IF(Propostas!$C27="","",$Q$4*Propostas!R27) ->  | R20: =IF(Propostas!$C27="","",$R$4*Propostas!S27) ->  | S20: =IF(Propostas!$C27="","",S$4*Parâmetros!$H20/Parâmetros!$H$4) ->  | T20: =IF(Propostas!$C27="","",T$4*Parâmetros!P20/Parâmetros!$P$4) ->  | U20: =IF(Propostas!$C27="","",U$4*Parâmetros!Q20/Parâmetros!$Q$4) ->  | V20: =IF(Propostas!$B27="","",SUM(C20:U20)) ->  | W20: =IF(Propostas!$C27="","",RANK(V20,$V$5:$V$203,0)) -> 
A21: =IF(Propostas!$C28="","",W21) ->  | B21: =Propostas!A28 -> 0 | C21: =IF(Propostas!$C28="","",C$4*Parâmetros!$C$4/Parâmetros!C21) ->  | D21: =IF(Propostas!$C28="","",D$4*(Parâmetros!D21-1)/(COUNT(Parâmetros!$C$5:$C$204)-1)) ->  | E21: =IF(Propostas!$C28="","",E$4*Parâmetros!E21/Parâmetros!$E$4) ->  | F21: =IF(Propostas!$C28="","",F$4*Parâmetros!F21) ->  | G21: =IF(Propostas!$C28="","",G$4*Parâmetros!G21) ->  | H21: =IF(Propostas!$C28="","",$H$4*Propostas!I28) ->  | I21: =IF(Propostas!$C28="","",$I$4*Propostas!J28) ->  | J21: =IF(Propostas!$C28="","",$J$4*Propostas!K28) ->  | K21: =IF(Propostas!$C28="","",$K$4*Propostas!L28) ->  | L21: =IF(Propostas!$C28="","",$L$4*Propostas!M28) ->  | M21: =IF(Propostas!$C28="","",$M$4*Propostas!N28) ->  | N21: =IF(Propostas!$C28="","",$N$4*Propostas!O28) ->  | O21: =IF(Propostas!$C28="","",$O$4*Propostas!P28) ->  | P21: =IF(Propostas!$C28="","",$P$4*Propostas!Q28) ->  | Q21: =IF(Propostas!$C28="","",$Q$4*Propostas!R28) ->  | R21: =IF(Propostas!$C28="","",$R$4*Propostas!S28) ->  | S21: =IF(Propostas!$C28="","",S$4*Parâmetros!$H21/Parâmetros!$H$4) ->  | T21: =IF(Propostas!$C28="","",T$4*Parâmetros!P21/Parâmetros!$P$4) ->  | U21: =IF(Propostas!$C28="","",U$4*Parâmetros!Q21/Parâmetros!$Q$4) ->  | V21: =IF(Propostas!$B28="","",SUM(C21:U21)) ->  | W21: =IF(Propostas!$C28="","",RANK(V21,$V$5:$V$203,0)) -> 
A22: =IF(Propostas!$C29="","",W22) ->  | B22: =Propostas!A29 -> 0 | C22: =IF(Propostas!$C29="","",C$4*Parâmetros!$C$4/Parâmetros!C22) ->  | D22: =IF(Propostas!$C29="","",D$4*(Parâmetros!D22-1)/(COUNT(Parâmetros!$C$5:$C$204)-1)) ->  | E22: =IF(Propostas!$C29="","",E$4*Parâmetros!E22/Parâmetros!$E$4) ->  | F22: =IF(Propostas!$C29="","",F$4*Parâmetros!F22) ->  | G22: =IF(Propostas!$C29="","",G$4*Parâmetros!G22) ->  | H22: =IF(Propostas!$C29="","",$H$4*Propostas!I29) ->  | I22: =IF(Propostas!$C29="","",$I$4*Propostas!J29) ->  | J22: =IF(Propostas!$C29="","",$J$4*Propostas!K29) ->  | K22: =IF(Propostas!$C29="","",$K$4*Propostas!L29) ->  | L22: =IF(Propostas!$C29="","",$L$4*Propostas!M29) ->  | M22: =IF(Propostas!$C29="","",$M$4*Propostas!N29) ->  | N22: =IF(Propostas!$C29="","",$N$4*Propostas!O29) ->  | O22: =IF(Propostas!$C29="","",$O$4*Propostas!P29) ->  | P22: =IF(Propostas!$C29="","",$P$4*Propostas!Q29) ->  | Q22: =IF(Propostas!$C29="","",$Q$4*Propostas!R29) ->  | R22: =IF(Propostas!$C29="","",$R$4*Propostas!S29) ->  | S22: =IF(Propostas!$C29="","",S$4*Parâmetros!$H22/Parâmetros!$H$4) ->  | T22: =IF(Propostas!$C29="","",T$4*Parâmetros!P22/Parâmetros!$P$4) ->  | U22: =IF(Propostas!$C29="","",U$4*Parâmetros!Q22/Parâmetros!$Q$4) ->  | V22: =IF(Propostas!$B29="","",SUM(C22:U22)) ->  | W22: =IF(Propostas!$C29="","",RANK(V22,$V$5:$V$203,0)) -> 
A23: =IF(Propostas!$C30="","",W23) ->  | B23: =Propostas!A30 -> 0 | C23: =IF(Propostas!$C30="","",C$4*Parâmetros!$C$4/Parâmetros!C23) ->  | D23: =IF(Propostas!$C30="","",D$4*(Parâmetros!D23-1)/(COUNT(Parâmetros!$C$5:$C$204)-1)) ->  | E23: =IF(Propostas!$C30="","",E$4*Parâmetros!E23/Parâmetros!$E$4) ->  | F23: =IF(Propostas!$C30="","",F$4*Parâmetros!F23) ->  | G23: =IF(Propostas!$C30="","",G$4*Parâmetros!G23) ->  | H23: =IF(Propostas!$C30="","",$H$4*Propostas!I30) ->  | I23: =IF(Propostas!$C30="","",$I$4*Propostas!J30) ->  | J23: =IF(Propostas!$C30="","",$J$4*Propostas!K30) ->  | K23: =IF(Propostas!$C30="","",$K$4*Propostas!L30) ->  | L23: =IF(Propostas!$C30="","",$L$4*Propostas!M30) ->  | M23: =IF(Propostas!$C30="","",$M$4*Propostas!N30) ->  | N23: =IF(Propostas!$C30="","",$N$4*Propostas!O30) ->  | O23: =IF(Propostas!$C30="","",$O$4*Propostas!P30) ->  | P23: =IF(Propostas!$C30="","",$P$4*Propostas!Q30) ->  | Q23: =IF(Propostas!$C30="","",$Q$4*Propostas!R30) ->  | R23: =IF(Propostas!$C30="","",$R$4*Propostas!S30) ->  | S23: =IF(Propostas!$C30="","",S$4*Parâmetros!$H23/Parâmetros!$H$4) ->  | T23: =IF(Propostas!$C30="","",T$4*Parâmetros!P23/Parâmetros!$P$4) ->  | U23: =IF(Propostas!$C30="","",U$4*Parâmetros!Q23/Parâmetros!$Q$4) ->  | V23: =IF(Propostas!$B30="","",SUM(C23:U23)) ->  | W23: =IF(Propostas!$C30="","",RANK(V23,$V$5:$V$203,0)) -> 
A24: =IF(Propostas!$C31="","",W24) ->  | B24: =Propostas!A31 -> 0 | C24: =IF(Propostas!$C31="","",C$4*Parâmetros!$C$4/Parâmetros!C24) ->  | D24: =IF(Propostas!$C31="","",D$4*(Parâmetros!D24-1)/(COUNT(Parâmetros!$C$5:$C$204)-1)) ->  | E24: =IF(Propostas!$C31="","",E$4*Parâmetros!E24/Parâmetros!$E$4) ->  | F24: =IF(Propostas!$C31="","",F$4*Parâmetros!F24) ->  | G24: =IF(Propostas!$C31="","",G$4*Parâmetros!G24) ->  | H24: =IF(Propostas!$C31="","",$H$4*Propostas!I31) ->  | I24: =IF(Propostas!$C31="","",$I$4*Propostas!J31) ->  | J24: =IF(Propostas!$C31="","",$J$4*Propostas!K31) ->  | K24: =IF(Propostas!$C31="","",$K$4*Propostas!L31) ->  | L24: =IF(Propostas!$C31="","",$L$4*Propostas!M31) ->  | M24: =IF(Propostas!$C31="","",$M$4*Propostas!N31) ->  | N24: =IF(Propostas!$C31="","",$N$4*Propostas!O31) ->  | O24: =IF(Propostas!$C31="","",$O$4*Propostas!P31) ->  | P24: =IF(Propostas!$C31="","",$P$4*Propostas!Q31) ->  | Q24: =IF(Propostas!$C31="","",$Q$4*Propostas!R31) ->  | R24: =IF(Propostas!$C31="","",$R$4*Propostas!S31) ->  | S24: =IF(Propostas!$C31="","",S$4*Parâmetros!$H24/Parâmetros!$H$4) ->  | T24: =IF(Propostas!$C31="","",T$4*Parâmetros!P24/Parâmetros!$P$4) ->  | U24: =IF(Propostas!$C31="","",U$4*Parâmetros!Q24/Parâmetros!$Q$4) ->  | V24: =IF(Propostas!$B31="","",SUM(C24:U24)) ->  | W24: =IF(Propostas!$C31="","",RANK(V24,$V$5:$V$203,0)) -> 
A25: =IF(Propostas!$C32="","",W25) ->  | B25: =Propostas!A32 -> 0 | C25: =IF(Propostas!$C32="","",C$4*Parâmetros!$C$4/Parâmetros!C25) ->  | D25: =IF(Propostas!$C32="","",D$4*(Parâmetros!D25-1)/(COUNT(Parâmetros!$C$5:$C$204)-1)) ->  | E25: =IF(Propostas!$C32="","",E$4*Parâmetros!E25/Parâmetros!$E$4) ->  | F25: =IF(Propostas!$C32="","",F$4*Parâmetros!F25) ->  | G25: =IF(Propostas!$C32="","",G$4*Parâmetros!G25) ->  | H25: =IF(Propostas!$C32="","",$H$4*Propostas!I32) ->  | I25: =IF(Propostas!$C32="","",$I$4*Propostas!J32) ->  | J25: =IF(Propostas!$C32="","",$J$4*Propostas!K32) ->  | K25: =IF(Propostas!$C32="","",$K$4*Propostas!L32) ->  | L25: =IF(Propostas!$C32="","",$L$4*Propostas!M32) ->  | M25: =IF(Propostas!$C32="","",$M$4*Propostas!N32) ->  | N25: =IF(Propostas!$C32="","",$N$4*Propostas!O32) ->  | O25: =IF(Propostas!$C32="","",$O$4*Propostas!P32) ->  | P25: =IF(Propostas!$C32="","",$P$4*Propostas!Q32) ->  | Q25: =IF(Propostas!$C32="","",$Q$4*Propostas!R32) ->  | R25: =IF(Propostas!$C32="","",$R$4*Propostas!S32) ->  | S25: =IF(Propostas!$C32="","",S$4*Parâmetros!$H25/Parâmetros!$H$4) ->  | T25: =IF(Propostas!$C32="","",T$4*Parâmetros!P25/Parâmetros!$P$4) ->  | U25: =IF(Propostas!$C32="","",U$4*Parâmetros!Q25/Parâmetros!$Q$4) ->  | V25: =IF(Propostas!$B32="","",SUM(C25:U25)) ->  | W25: =IF(Propostas!$C32="","",RANK(V25,$V$5:$V$203,0)) -> 
A26: =IF(Propostas!$C33="","",W26) ->  | B26: =Propostas!A33 -> 0 | C26: =IF(Propostas!$C33="","",C$4*Parâmetros!$C$4/Parâmetros!C26) ->  | D26: =IF(Propostas!$C33="","",D$4*(Parâmetros!D26-1)/(COUNT(Parâmetros!$C$5:$C$204)-1)) ->  | E26: =IF(Propostas!$C33="","",E$4*Parâmetros!E26/Parâmetros!$E$4) ->  | F26: =IF(Propostas!$C33="","",F$4*Parâmetros!F26) ->  | G26: =IF(Propostas!$C33="","",G$4*Parâmetros!G26) ->  | H26: =IF(Propostas!$C33="","",$H$4*Propostas!I33) ->  | I26: =IF(Propostas!$C33="","",$I$4*Propostas!J33) ->  | J26: =IF(Propostas!$C33="","",$J$4*Propostas!K33) ->  | K26: =IF(Propostas!$C33="","",$K$4*Propostas!L33) ->  | L26: =IF(Propostas!$C33="","",$L$4*Propostas!M33) ->  | M26: =IF(Propostas!$C33="","",$M$4*Propostas!N33) ->  | N26: =IF(Propostas!$C33="","",$N$4*Propostas!O33) ->  | O26: =IF(Propostas!$C33="","",$O$4*Propostas!P33) ->  | P26: =IF(Propostas!$C33="","",$P$4*Propostas!Q33) ->  | Q26: =IF(Propostas!$C33="","",$Q$4*Propostas!R33) ->  | R26: =IF(Propostas!$C33="","",$R$4*Propostas!S33) ->  | S26: =IF(Propostas!$C33="","",S$4*Parâmetros!$H26/Parâmetros!$H$4) ->  | T26: =IF(Propostas!$C33="","",T$4*Parâmetros!P26/Parâmetros!$P$4) ->  | U26: =IF(Propostas!$C33="","",U$4*Parâmetros!Q26/Parâmetros!$Q$4) ->  | V26: =IF(Propostas!$B33="","",SUM(C26:U26)) ->  | W26: =IF(Propostas!$C33="","",RANK(V26,$V$5:$V$203,0)) -> 
A27: =IF(Propostas!$C34="","",W27) ->  | B27: =Propostas!A34 -> 0 | C27: =IF(Propostas!$C34="","",C$4*Parâmetros!$C$4/Parâmetros!C27) ->  | D27: =IF(Propostas!$C34="","",D$4*(Parâmetros!D27-1)/(COUNT(Parâmetros!$C$5:$C$204)-1)) ->  | E27: =IF(Propostas!$C34="","",E$4*Parâmetros!E27/Parâmetros!$E$4) ->  | F27: =IF(Propostas!$C34="","",F$4*Parâmetros!F27) ->  | G27: =IF(Propostas!$C34="","",G$4*Parâmetros!G27) ->  | H27: =IF(Propostas!$C34="","",$H$4*Propostas!I34) ->  | I27: =IF(Propostas!$C34="","",$I$4*Propostas!J34) ->  | J27: =IF(Propostas!$C34="","",$J$4*Propostas!K34) ->  | K27: =IF(Propostas!$C34="","",$K$4*Propostas!L34) ->  | L27: =IF(Propostas!$C34="","",$L$4*Propostas!M34) ->  | M27: =IF(Propostas!$C34="","",$M$4*Propostas!N34) ->  | N27: =IF(Propostas!$C34="","",$N$4*Propostas!O34) ->  | O27: =IF(Propostas!$C34="","",$O$4*Propostas!P34) ->  | P27: =IF(Propostas!$C34="","",$P$4*Propostas!Q34) ->  | Q27: =IF(Propostas!$C34="","",$Q$4*Propostas!R34) ->  | R27: =IF(Propostas!$C34="","",$R$4*Propostas!S34) ->  | S27: =IF(Propostas!$C34="","",S$4*Parâmetros!$H27/Parâmetros!$H$4) ->  | T27: =IF(Propostas!$C34="","",T$4*Parâmetros!P27/Parâmetros!$P$4) ->  | U27: =IF(Propostas!$C34="","",U$4*Parâmetros!Q27/Parâmetros!$Q$4) ->  | V27: =IF(Propostas!$B34="","",SUM(C27:U27)) ->  | W27: =IF(Propostas!$C34="","",RANK(V27,$V$5:$V$203,0)) -> 
A28: =IF(Propostas!$C35="","",W28) ->  | B28: =Propostas!A35 -> 0 | C28: =IF(Propostas!$C35="","",C$4*Parâmetros!$C$4/Parâmetros!C28) ->  | D28: =IF(Propostas!$C35="","",D$4*(Parâmetros!D28-1)/(COUNT(Parâmetros!$C$5:$C$204)-1)) ->  | E28: =IF(Propostas!$C35="","",E$4*Parâmetros!E28/Parâmetros!$E$4) ->  | F28: =IF(Propostas!$C35="","",F$4*Parâmetros!F28) ->  | G28: =IF(Propostas!$C35="","",G$4*Parâmetros!G28) ->  | H28: =IF(Propostas!$C35="","",$H$4*Propostas!I35) ->  | I28: =IF(Propostas!$C35="","",$I$4*Propostas!J35) ->  | J28: =IF(Propostas!$C35="","",$J$4*Propostas!K35) ->  | K28: =IF(Propostas!$C35="","",$K$4*Propostas!L35) ->  | L28: =IF(Propostas!$C35="","",$L$4*Propostas!M35) ->  | M28: =IF(Propostas!$C35="","",$M$4*Propostas!N35) ->  | N28: =IF(Propostas!$C35="","",$N$4*Propostas!O35) ->  | O28: =IF(Propostas!$C35="","",$O$4*Propostas!P35) ->  | P28: =IF(Propostas!$C35="","",$P$4*Propostas!Q35) ->  | Q28: =IF(Propostas!$C35="","",$Q$4*Propostas!R35) ->  | R28: =IF(Propostas!$C35="","",$R$4*Propostas!S35) ->  | S28: =IF(Propostas!$C35="","",S$4*Parâmetros!$H28/Parâmetros!$H$4) ->  | T28: =IF(Propostas!$C35="","",T$4*Parâmetros!P28/Parâmetros!$P$4) ->  | U28: =IF(Propostas!$C35="","",U$4*Parâmetros!Q28/Parâmetros!$Q$4) ->  | V28: =IF(Propostas!$B35="","",SUM(C28:U28)) ->  | W28: =IF(Propostas!$C35="","",RANK(V28,$V$5:$V$203,0)) -> 
A29: =IF(Propostas!$C36="","",W29) ->  | B29: =Propostas!A36 -> 0 | C29: =IF(Propostas!$C36="","",C$4*Parâmetros!$C$4/Parâmetros!C29) ->  | D29: =IF(Propostas!$C36="","",D$4*(Parâmetros!D29-1)/(COUNT(Parâmetros!$C$5:$C$204)-1)) ->  | E29: =IF(Propostas!$C36="","",E$4*Parâmetros!E29/Parâmetros!$E$4) ->  | F29: =IF(Propostas!$C36="","",F$4*Parâmetros!F29) ->  | G29: =IF(Propostas!$C36="","",G$4*Parâmetros!G29) ->  | H29: =IF(Propostas!$C36="","",$H$4*Propostas!I36) ->  | I29: =IF(Propostas!$C36="","",$I$4*Propostas!J36) ->  | J29: =IF(Propostas!$C36="","",$J$4*Propostas!K36) ->  | K29: =IF(Propostas!$C36="","",$K$4*Propostas!L36) ->  | L29: =IF(Propostas!$C36="","",$L$4*Propostas!M36) ->  | M29: =IF(Propostas!$C36="","",$M$4*Propostas!N36) ->  | N29: =IF(Propostas!$C36="","",$N$4*Propostas!O36) ->  | O29: =IF(Propostas!$C36="","",$O$4*Propostas!P36) ->  | P29: =IF(Propostas!$C36="","",$P$4*Propostas!Q36) ->  | Q29: =IF(Propostas!$C36="","",$Q$4*Propostas!R36) ->  | R29: =IF(Propostas!$C36="","",$R$4*Propostas!S36) ->  | S29: =IF(Propostas!$C36="","",S$4*Parâmetros!$H29/Parâmetros!$H$4) ->  | T29: =IF(Propostas!$C36="","",T$4*Parâmetros!P29/Parâmetros!$P$4) ->  | U29: =IF(Propostas!$C36="","",U$4*Parâmetros!Q29/Parâmetros!$Q$4) ->  | V29: =IF(Propostas!$B36="","",SUM(C29:U29)) ->  | W29: =IF(Propostas!$C36="","",RANK(V29,$V$5:$V$203,0)) -> 
A30: =IF(Propostas!$C37="","",W30) ->  | B30: =Propostas!A37 -> 0 | C30: =IF(Propostas!$C37="","",C$4*Parâmetros!$C$4/Parâmetros!C30) ->  | D30: =IF(Propostas!$C37="","",D$4*(Parâmetros!D30-1)/(COUNT(Parâmetros!$C$5:$C$204)-1)) ->  | E30: =IF(Propostas!$C37="","",E$4*Parâmetros!E30/Parâmetros!$E$4) ->  | F30: =IF(Propostas!$C37="","",F$4*Parâmetros!F30) ->  | G30: =IF(Propostas!$C37="","",G$4*Parâmetros!G30) ->  | H30: =IF(Propostas!$C37="","",$H$4*Propostas!I37) ->  | I30: =IF(Propostas!$C37="","",$I$4*Propostas!J37) ->  | J30: =IF(Propostas!$C37="","",$J$4*Propostas!K37) ->  | K30: =IF(Propostas!$C37="","",$K$4*Propostas!L37) ->  | L30: =IF(Propostas!$C37="","",$L$4*Propostas!M37) ->  | M30: =IF(Propostas!$C37="","",$M$4*Propostas!N37) ->  | N30: =IF(Propostas!$C37="","",$N$4*Propostas!O37) ->  | O30: =IF(Propostas!$C37="","",$O$4*Propostas!P37) ->  | P30: =IF(Propostas!$C37="","",$P$4*Propostas!Q37) ->  | Q30: =IF(Propostas!$C37="","",$Q$4*Propostas!R37) ->  | R30: =IF(Propostas!$C37="","",$R$4*Propostas!S37) ->  | S30: =IF(Propostas!$C37="","",S$4*Parâmetros!$H30/Parâmetros!$H$4) ->  | T30: =IF(Propostas!$C37="","",T$4*Parâmetros!P30/Parâmetros!$P$4) ->  | U30: =IF(Propostas!$C37="","",U$4*Parâmetros!Q30/Parâmetros!$Q$4) ->  | V30: =IF(Propostas!$B37="","",SUM(C30:U30)) ->  | W30: =IF(Propostas!$C37="","",RANK(V30,$V$5:$V$203,0)) -> 
A31: =IF(Propostas!$C38="","",W31) ->  | B31: =Propostas!A38 -> 0 | C31: =IF(Propostas!$C38="","",C$4*Parâmetros!$C$4/Parâmetros!C31) ->  | D31: =IF(Propostas!$C38="","",D$4*(Parâmetros!D31-1)/(COUNT(Parâmetros!$C$5:$C$204)-1)) ->  | E31: =IF(Propostas!$C38="","",E$4*Parâmetros!E31/Parâmetros!$E$4) ->  | F31: =IF(Propostas!$C38="","",F$4*Parâmetros!F31) ->  | G31: =IF(Propostas!$C38="","",G$4*Parâmetros!G31) ->  | H31: =IF(Propostas!$C38="","",$H$4*Propostas!I38) ->  | I31: =IF(Propostas!$C38="","",$I$4*Propostas!J38) ->  | J31: =IF(Propostas!$C38="","",$J$4*Propostas!K38) ->  | K31: =IF(Propostas!$C38="","",$K$4*Propostas!L38) ->  | L31: =IF(Propostas!$C38="","",$L$4*Propostas!M38) ->  | M31: =IF(Propostas!$C38="","",$M$4*Propostas!N38) ->  | N31: =IF(Propostas!$C38="","",$N$4*Propostas!O38) ->  | O31: =IF(Propostas!$C38="","",$O$4*Propostas!P38) ->  | P31: =IF(Propostas!$C38="","",$P$4*Propostas!Q38) ->  | Q31: =IF(Propostas!$C38="","",$Q$4*Propostas!R38) ->  | R31: =IF(Propostas!$C38="","",$R$4*Propostas!S38) ->  | S31: =IF(Propostas!$C38="","",S$4*Parâmetros!$H31/Parâmetros!$H$4) ->  | T31: =IF(Propostas!$C38="","",T$4*Parâmetros!P31/Parâmetros!$P$4) ->  | U31: =IF(Propostas!$C38="","",U$4*Parâmetros!Q31/Parâmetros!$Q$4) ->  | V31: =IF(Propostas!$B38="","",SUM(C31:U31)) ->  | W31: =IF(Propostas!$C38="","",RANK(V31,$V$5:$V$203,0)) -> 
A32: =IF(Propostas!$C39="","",W32) ->  | B32: =Propostas!A39 -> 0 | C32: =IF(Propostas!$C39="","",C$4*Parâmetros!$C$4/Parâmetros!C32) ->  | D32: =IF(Propostas!$C39="","",D$4*(Parâmetros!D32-1)/(COUNT(Parâmetros!$C$5:$C$204)-1)) ->  | E32: =IF(Propostas!$C39="","",E$4*Parâmetros!E32/Parâmetros!$E$4) ->  | F32: =IF(Propostas!$C39="","",F$4*Parâmetros!F32) ->  | G32: =IF(Propostas!$C39="","",G$4*Parâmetros!G32) ->  | H32: =IF(Propostas!$C39="","",$H$4*Propostas!I39) ->  | I32: =IF(Propostas!$C39="","",$I$4*Propostas!J39) ->  | J32: =IF(Propostas!$C39="","",$J$4*Propostas!K39) ->  | K32: =IF(Propostas!$C39="","",$K$4*Propostas!L39) ->  | L32: =IF(Propostas!$C39="","",$L$4*Propostas!M39) ->  | M32: =IF(Propostas!$C39="","",$M$4*Propostas!N39) ->  | N32: =IF(Propostas!$C39="","",$N$4*Propostas!O39) ->  | O32: =IF(Propostas!$C39="","",$O$4*Propostas!P39) ->  | P32: =IF(Propostas!$C39="","",$P$4*Propostas!Q39) ->  | Q32: =IF(Propostas!$C39="","",$Q$4*Propostas!R39) ->  | R32: =IF(Propostas!$C39="","",$R$4*Propostas!S39) ->  | S32: =IF(Propostas!$C39="","",S$4*Parâmetros!$H32/Parâmetros!$H$4) ->  | T32: =IF(Propostas!$C39="","",T$4*Parâmetros!P32/Parâmetros!$P$4) ->  | U32: =IF(Propostas!$C39="","",U$4*Parâmetros!Q32/Parâmetros!$Q$4) ->  | V32: =IF(Propostas!$B39="","",SUM(C32:U32)) ->  | W32: =IF(Propostas!$C39="","",RANK(V32,$V$5:$V$203,0)) -> 
A33: =IF(Propostas!$C40="","",W33) ->  | B33: =Propostas!A40 -> 0 | C33: =IF(Propostas!$C40="","",C$4*Parâmetros!$C$4/Parâmetros!C33) ->  | D33: =IF(Propostas!$C40="","",D$4*(Parâmetros!D33-1)/(COUNT(Parâmetros!$C$5:$C$204)-1)) ->  | E33: =IF(Propostas!$C40="","",E$4*Parâmetros!E33/Parâmetros!$E$4) ->  | F33: =IF(Propostas!$C40="","",F$4*Parâmetros!F33) ->  | G33: =IF(Propostas!$C40="","",G$4*Parâmetros!G33) ->  | H33: =IF(Propostas!$C40="","",$H$4*Propostas!I40) ->  | I33: =IF(Propostas!$C40="","",$I$4*Propostas!J40) ->  | J33: =IF(Propostas!$C40="","",$J$4*Propostas!K40) ->  | K33: =IF(Propostas!$C40="","",$K$4*Propostas!L40) ->  | L33: =IF(Propostas!$C40="","",$L$4*Propostas!M40) ->  | M33: =IF(Propostas!$C40="","",$M$4*Propostas!N40) ->  | N33: =IF(Propostas!$C40="","",$N$4*Propostas!O40) ->  | O33: =IF(Propostas!$C40="","",$O$4*Propostas!P40) ->  | P33: =IF(Propostas!$C40="","",$P$4*Propostas!Q40) ->  | Q33: =IF(Propostas!$C40="","",$Q$4*Propostas!R40) ->  | R33: =IF(Propostas!$C40="","",$R$4*Propostas!S40) ->  | S33: =IF(Propostas!$C40="","",S$4*Parâmetros!$H33/Parâmetros!$H$4) ->  | T33: =IF(Propostas!$C40="","",T$4*Parâmetros!P33/Parâmetros!$P$4) ->  | U33: =IF(Propostas!$C40="","",U$4*Parâmetros!Q33/Parâmetros!$Q$4) ->  | V33: =IF(Propostas!$B40="","",SUM(C33:U33)) ->  | W33: =IF(Propostas!$C40="","",RANK(V33,$V$5:$V$203,0)) -> 
A34: =IF(Propostas!$C41="","",W34) ->  | B34: =Propostas!A41 -> 0 | C34: =IF(Propostas!$C41="","",C$4*Parâmetros!$C$4/Parâmetros!C34) ->  | D34: =IF(Propostas!$C41="","",D$4*(Parâmetros!D34-1)/(COUNT(Parâmetros!$C$5:$C$204)-1)) ->  | E34: =IF(Propostas!$C41="","",E$4*Parâmetros!E34/Parâmetros!$E$4) ->  | F34: =IF(Propostas!$C41="","",F$4*Parâmetros!F34) ->  | G34: =IF(Propostas!$C41="","",G$4*Parâmetros!G34) ->  | H34: =IF(Propostas!$C41="","",$H$4*Propostas!I41) ->  | I34: =IF(Propostas!$C41="","",$I$4*Propostas!J41) ->  | J34: =IF(Propostas!$C41="","",$J$4*Propostas!K41) ->  | K34: =IF(Propostas!$C41="","",$K$4*Propostas!L41) ->  | L34: =IF(Propostas!$C41="","",$L$4*Propostas!M41) ->  | M34: =IF(Propostas!$C41="","",$M$4*Propostas!N41) ->  | N34: =IF(Propostas!$C41="","",$N$4*Propostas!O41) ->  | O34: =IF(Propostas!$C41="","",$O$4*Propostas!P41) ->  | P34: =IF(Propostas!$C41="","",$P$4*Propostas!Q41) ->  | Q34: =IF(Propostas!$C41="","",$Q$4*Propostas!R41) ->  | R34: =IF(Propostas!$C41="","",$R$4*Propostas!S41) ->  | S34: =IF(Propostas!$C41="","",S$4*Parâmetros!$H34/Parâmetros!$H$4) ->  | T34: =IF(Propostas!$C41="","",T$4*Parâmetros!P34/Parâmetros!$P$4) ->  | U34: =IF(Propostas!$C41="","",U$4*Parâmetros!Q34/Parâmetros!$Q$4) ->  | V34: =IF(Propostas!$B41="","",SUM(C34:U34)) ->  | W34: =IF(Propostas!$C41="","",RANK(V34,$V$5:$V$203,0)) -> 
A35: =IF(Propostas!$C42="","",W35) ->  | B35: =Propostas!A42 -> 0 | C35: =IF(Propostas!$C42="","",C$4*Parâmetros!$C$4/Parâmetros!C35) ->  | D35: =IF(Propostas!$C42="","",D$4*(Parâmetros!D35-1)/(COUNT(Parâmetros!$C$5:$C$204)-1)) ->  | E35: =IF(Propostas!$C42="","",E$4*Parâmetros!E35/Parâmetros!$E$4) ->  | F35: =IF(Propostas!$C42="","",F$4*Parâmetros!F35) ->  | G35: =IF(Propostas!$C42="","",G$4*Parâmetros!G35) ->  | H35: =IF(Propostas!$C42="","",$H$4*Propostas!I42) ->  | I35: =IF(Propostas!$C42="","",$I$4*Propostas!J42) ->  | J35: =IF(Propostas!$C42="","",$J$4*Propostas!K42) ->  | K35: =IF(Propostas!$C42="","",$K$4*Propostas!L42) ->  | L35: =IF(Propostas!$C42="","",$L$4*Propostas!M42) ->  | M35: =IF(Propostas!$C42="","",$M$4*Propostas!N42) ->  | N35: =IF(Propostas!$C42="","",$N$4*Propostas!O42) ->  | O35: =IF(Propostas!$C42="","",$O$4*Propostas!P42) ->  | P35: =IF(Propostas!$C42="","",$P$4*Propostas!Q42) ->  | Q35: =IF(Propostas!$C42="","",$Q$4*Propostas!R42) ->  | R35: =IF(Propostas!$C42="","",$R$4*Propostas!S42) ->  | S35: =IF(Propostas!$C42="","",S$4*Parâmetros!$H35/Parâmetros!$H$4) ->  | T35: =IF(Propostas!$C42="","",T$4*Parâmetros!P35/Parâmetros!$P$4) ->  | U35: =IF(Propostas!$C42="","",U$4*Parâmetros!Q35/Parâmetros!$Q$4) ->  | V35: =IF(Propostas!$B42="","",SUM(C35:U35)) ->  | W35: =IF(Propostas!$C42="","",RANK(V35,$V$5:$V$203,0)) -> 
A36: =IF(Propostas!$C43="","",W36) ->  | B36: =Propostas!A43 -> 0 | C36: =IF(Propostas!$C43="","",C$4*Parâmetros!$C$4/Parâmetros!C36) ->  | D36: =IF(Propostas!$C43="","",D$4*(Parâmetros!D36-1)/(COUNT(Parâmetros!$C$5:$C$204)-1)) ->  | E36: =IF(Propostas!$C43="","",E$4*Parâmetros!E36/Parâmetros!$E$4) ->  | F36: =IF(Propostas!$C43="","",F$4*Parâmetros!F36) ->  | G36: =IF(Propostas!$C43="","",G$4*Parâmetros!G36) ->  | H36: =IF(Propostas!$C43="","",$H$4*Propostas!I43) ->  | I36: =IF(Propostas!$C43="","",$I$4*Propostas!J43) ->  | J36: =IF(Propostas!$C43="","",$J$4*Propostas!K43) ->  | K36: =IF(Propostas!$C43="","",$K$4*Propostas!L43) ->  | L36: =IF(Propostas!$C43="","",$L$4*Propostas!M43) ->  | M36: =IF(Propostas!$C43="","",$M$4*Propostas!N43) ->  | N36: =IF(Propostas!$C43="","",$N$4*Propostas!O43) ->  | O36: =IF(Propostas!$C43="","",$O$4*Propostas!P43) ->  | P36: =IF(Propostas!$C43="","",$P$4*Propostas!Q43) ->  | Q36: =IF(Propostas!$C43="","",$Q$4*Propostas!R43) ->  | R36: =IF(Propostas!$C43="","",$R$4*Propostas!S43) ->  | S36: =IF(Propostas!$C43="","",S$4*Parâmetros!$H36/Parâmetros!$H$4) ->  | T36: =IF(Propostas!$C43="","",T$4*Parâmetros!P36/Parâmetros!$P$4) ->  | U36: =IF(Propostas!$C43="","",U$4*Parâmetros!Q36/Parâmetros!$Q$4) ->  | V36: =IF(Propostas!$B43="","",SUM(C36:U36)) ->  | W36: =IF(Propostas!$C43="","",RANK(V36,$V$5:$V$203,0)) -> 
A37: =IF(Propostas!$C44="","",W37) ->  | B37: =Propostas!A44 -> 0 | C37: =IF(Propostas!$C44="","",C$4*Parâmetros!$C$4/Parâmetros!C37) ->  | D37: =IF(Propostas!$C44="","",D$4*(Parâmetros!D37-1)/(COUNT(Parâmetros!$C$5:$C$204)-1)) ->  | E37: =IF(Propostas!$C44="","",E$4*Parâmetros!E37/Parâmetros!$E$4) ->  | F37: =IF(Propostas!$C44="","",F$4*Parâmetros!F37) ->  | G37: =IF(Propostas!$C44="","",G$4*Parâmetros!G37) ->  | H37: =IF(Propostas!$C44="","",$H$4*Propostas!I44) ->  | I37: =IF(Propostas!$C44="","",$I$4*Propostas!J44) ->  | J37: =IF(Propostas!$C44="","",$J$4*Propostas!K44) ->  | K37: =IF(Propostas!$C44="","",$K$4*Propostas!L44) ->  | L37: =IF(Propostas!$C44="","",$L$4*Propostas!M44) ->  | M37: =IF(Propostas!$C44="","",$M$4*Propostas!N44) ->  | N37: =IF(Propostas!$C44="","",$N$4*Propostas!O44) ->  | O37: =IF(Propostas!$C44="","",$O$4*Propostas!P44) ->  | P37: =IF(Propostas!$C44="","",$P$4*Propostas!Q44) ->  | Q37: =IF(Propostas!$C44="","",$Q$4*Propostas!R44) ->  | R37: =IF(Propostas!$C44="","",$R$4*Propostas!S44) ->  | S37: =IF(Propostas!$C44="","",S$4*Parâmetros!$H37/Parâmetros!$H$4) ->  | T37: =IF(Propostas!$C44="","",T$4*Parâmetros!P37/Parâmetros!$P$4) ->  | U37: =IF(Propostas!$C44="","",U$4*Parâmetros!Q37/Parâmetros!$Q$4) ->  | V37: =IF(Propostas!$B44="","",SUM(C37:U37)) ->  | W37: =IF(Propostas!$C44="","",RANK(V37,$V$5:$V$203,0)) -> 
A38: =IF(Propostas!$C45="","",W38) ->  | B38: =Propostas!A45 -> 0 | C38: =IF(Propostas!$C45="","",C$4*Parâmetros!$C$4/Parâmetros!C38) ->  | D38: =IF(Propostas!$C45="","",D$4*(Parâmetros!D38-1)/(COUNT(Parâmetros!$C$5:$C$204)-1)) ->  | E38: =IF(Propostas!$C45="","",E$4*Parâmetros!E38/Parâmetros!$E$4) ->  | F38: =IF(Propostas!$C45="","",F$4*Parâmetros!F38) ->  | G38: =IF(Propostas!$C45="","",G$4*Parâmetros!G38) ->  | H38: =IF(Propostas!$C45="","",$H$4*Propostas!I45) ->  | I38: =IF(Propostas!$C45="","",$I$4*Propostas!J45) ->  | J38: =IF(Propostas!$C45="","",$J$4*Propostas!K45) ->  | K38: =IF(Propostas!$C45="","",$K$4*Propostas!L45) ->  | L38: =IF(Propostas!$C45="","",$L$4*Propostas!M45) ->  | M38: =IF(Propostas!$C45="","",$M$4*Propostas!N45) ->  | N38: =IF(Propostas!$C45="","",$N$4*Propostas!O45) ->  | O38: =IF(Propostas!$C45="","",$O$4*Propostas!P45) ->  | P38: =IF(Propostas!$C45="","",$P$4*Propostas!Q45) ->  | Q38: =IF(Propostas!$C45="","",$Q$4*Propostas!R45) ->  | R38: =IF(Propostas!$C45="","",$R$4*Propostas!S45) ->  | S38: =IF(Propostas!$C45="","",S$4*Parâmetros!$H38/Parâmetros!$H$4) ->  | T38: =IF(Propostas!$C45="","",T$4*Parâmetros!P38/Parâmetros!$P$4) ->  | U38: =IF(Propostas!$C45="","",U$4*Parâmetros!Q38/Parâmetros!$Q$4) ->  | V38: =IF(Propostas!$B45="","",SUM(C38:U38)) ->  | W38: =IF(Propostas!$C45="","",RANK(V38,$V$5:$V$203,0)) -> 
A39: =IF(Propostas!$C46="","",W39) ->  | B39: =Propostas!A46 -> 0 | C39: =IF(Propostas!$C46="","",C$4*Parâmetros!$C$4/Parâmetros!C39) ->  | D39: =IF(Propostas!$C46="","",D$4*(Parâmetros!D39-1)/(COUNT(Parâmetros!$C$5:$C$204)-1)) ->  | E39: =IF(Propostas!$C46="","",E$4*Parâmetros!E39/Parâmetros!$E$4) ->  | F39: =IF(Propostas!$C46="","",F$4*Parâmetros!F39) ->  | G39: =IF(Propostas!$C46="","",G$4*Parâmetros!G39) ->  | H39: =IF(Propostas!$C46="","",$H$4*Propostas!I46) ->  | I39: =IF(Propostas!$C46="","",$I$4*Propostas!J46) ->  | J39: =IF(Propostas!$C46="","",$J$4*Propostas!K46) ->  | K39: =IF(Propostas!$C46="","",$K$4*Propostas!L46) ->  | L39: =IF(Propostas!$C46="","",$L$4*Propostas!M46) ->  | M39: =IF(Propostas!$C46="","",$M$4*Propostas!N46) ->  | N39: =IF(Propostas!$C46="","",$N$4*Propostas!O46) ->  | O39: =IF(Propostas!$C46="","",$O$4*Propostas!P46) ->  | P39: =IF(Propostas!$C46="","",$P$4*Propostas!Q46) ->  | Q39: =IF(Propostas!$C46="","",$Q$4*Propostas!R46) ->  | R39: =IF(Propostas!$C46="","",$R$4*Propostas!S46) ->  | S39: =IF(Propostas!$C46="","",S$4*Parâmetros!$H39/Parâmetros!$H$4) ->  | T39: =IF(Propostas!$C46="","",T$4*Parâmetros!P39/Parâmetros!$P$4) ->  | U39: =IF(Propostas!$C46="","",U$4*Parâmetros!Q39/Parâmetros!$Q$4) ->  | V39: =IF(Propostas!$B46="","",SUM(C39:U39)) ->  | W39: =IF(Propostas!$C46="","",RANK(V39,$V$5:$V$203,0)) -> 
A40: =IF(Propostas!$C47="","",W40) ->  | B40: =Propostas!A47 -> 0 | C40: =IF(Propostas!$C47="","",C$4*Parâmetros!$C$4/Parâmetros!C40) ->  | D40: =IF(Propostas!$C47="","",D$4*(Parâmetros!D40-1)/(COUNT(Parâmetros!$C$5:$C$204)-1)) ->  | E40: =IF(Propostas!$C47="","",E$4*Parâmetros!E40/Parâmetros!$E$4) ->  | F40: =IF(Propostas!$C47="","",F$4*Parâmetros!F40) ->  | G40: =IF(Propostas!$C47="","",G$4*Parâmetros!G40) ->  | H40: =IF(Propostas!$C47="","",$H$4*Propostas!I47) ->  | I40: =IF(Propostas!$C47="","",$I$4*Propostas!J47) ->  | J40: =IF(Propostas!$C47="","",$J$4*Propostas!K47) ->  | K40: =IF(Propostas!$C47="","",$K$4*Propostas!L47) ->  | L40: =IF(Propostas!$C47="","",$L$4*Propostas!M47) ->  | M40: =IF(Propostas!$C47="","",$M$4*Propostas!N47) ->  | N40: =IF(Propostas!$C47="","",$N$4*Propostas!O47) ->  | O40: =IF(Propostas!$C47="","",$O$4*Propostas!P47) ->  | P40: =IF(Propostas!$C47="","",$P$4*Propostas!Q47) ->  | Q40: =IF(Propostas!$C47="","",$Q$4*Propostas!R47) ->  | R40: =IF(Propostas!$C47="","",$R$4*Propostas!S47) ->  | S40: =IF(Propostas!$C47="","",S$4*Parâmetros!$H40/Parâmetros!$H$4) ->  | T40: =IF(Propostas!$C47="","",T$4*Parâmetros!P40/Parâmetros!$P$4) ->  | U40: =IF(Propostas!$C47="","",U$4*Parâmetros!Q40/Parâmetros!$Q$4) ->  | V40: =IF(Propostas!$B47="","",SUM(C40:U40)) ->  | W40: =IF(Propostas!$C47="","",RANK(V40,$V$5:$V$203,0)) -> 
A41: =IF(Propostas!$C48="","",W41) ->  | B41: =Propostas!A48 -> 0 | C41: =IF(Propostas!$C48="","",C$4*Parâmetros!$C$4/Parâmetros!C41) ->  | D41: =IF(Propostas!$C48="","",D$4*(Parâmetros!D41-1)/(COUNT(Parâmetros!$C$5:$C$204)-1)) ->  | E41: =IF(Propostas!$C48="","",E$4*Parâmetros!E41/Parâmetros!$E$4) ->  | F41: =IF(Propostas!$C48="","",F$4*Parâmetros!F41) ->  | G41: =IF(Propostas!$C48="","",G$4*Parâmetros!G41) ->  | H41: =IF(Propostas!$C48="","",$H$4*Propostas!I48) ->  | I41: =IF(Propostas!$C48="","",$I$4*Propostas!J48) ->  | J41: =IF(Propostas!$C48="","",$J$4*Propostas!K48) ->  | K41: =IF(Propostas!$C48="","",$K$4*Propostas!L48) ->  | L41: =IF(Propostas!$C48="","",$L$4*Propostas!M48) ->  | M41: =IF(Propostas!$C48="","",$M$4*Propostas!N48) ->  | N41: =IF(Propostas!$C48="","",$N$4*Propostas!O48) ->  | O41: =IF(Propostas!$C48="","",$O$4*Propostas!P48) ->  | P41: =IF(Propostas!$C48="","",$P$4*Propostas!Q48) ->  | Q41: =IF(Propostas!$C48="","",$Q$4*Propostas!R48) ->  | R41: =IF(Propostas!$C48="","",$R$4*Propostas!S48) ->  | S41: =IF(Propostas!$C48="","",S$4*Parâmetros!$H41/Parâmetros!$H$4) ->  | T41: =IF(Propostas!$C48="","",T$4*Parâmetros!P41/Parâmetros!$P$4) ->  | U41: =IF(Propostas!$C48="","",U$4*Parâmetros!Q41/Parâmetros!$Q$4) ->  | V41: =IF(Propostas!$B48="","",SUM(C41:U41)) ->  | W41: =IF(Propostas!$C48="","",RANK(V41,$V$5:$V$203,0)) -> 
A42: =IF(Propostas!$C49="","",W42) ->  | B42: =Propostas!A49 -> 0 | C42: =IF(Propostas!$C49="","",C$4*Parâmetros!$C$4/Parâmetros!C42) ->  | D42: =IF(Propostas!$C49="","",D$4*(Parâmetros!D42-1)/(COUNT(Parâmetros!$C$5:$C$204)-1)) ->  | E42: =IF(Propostas!$C49="","",E$4*Parâmetros!E42/Parâmetros!$E$4) ->  | F42: =IF(Propostas!$C49="","",F$4*Parâmetros!F42) ->  | G42: =IF(Propostas!$C49="","",G$4*Parâmetros!G42) ->  | H42: =IF(Propostas!$C49="","",$H$4*Propostas!I49) ->  | I42: =IF(Propostas!$C49="","",$I$4*Propostas!J49) ->  | J42: =IF(Propostas!$C49="","",$J$4*Propostas!K49) ->  | K42: =IF(Propostas!$C49="","",$K$4*Propostas!L49) ->  | L42: =IF(Propostas!$C49="","",$L$4*Propostas!M49) ->  | M42: =IF(Propostas!$C49="","",$M$4*Propostas!N49) ->  | N42: =IF(Propostas!$C49="","",$N$4*Propostas!O49) ->  | O42: =IF(Propostas!$C49="","",$O$4*Propostas!P49) ->  | P42: =IF(Propostas!$C49="","",$P$4*Propostas!Q49) ->  | Q42: =IF(Propostas!$C49="","",$Q$4*Propostas!R49) ->  | R42: =IF(Propostas!$C49="","",$R$4*Propostas!S49) ->  | S42: =IF(Propostas!$C49="","",S$4*Parâmetros!$H42/Parâmetros!$H$4) ->  | T42: =IF(Propostas!$C49="","",T$4*Parâmetros!P42/Parâmetros!$P$4) ->  | U42: =IF(Propostas!$C49="","",U$4*Parâmetros!Q42/Parâmetros!$Q$4) ->  | V42: =IF(Propostas!$B49="","",SUM(C42:U42)) ->  | W42: =IF(Propostas!$C49="","",RANK(V42,$V$5:$V$203,0)) -> 
A43: =IF(Propostas!$C50="","",W43) ->  | B43: =Propostas!A50 -> 0 | C43: =IF(Propostas!$C50="","",C$4*Parâmetros!$C$4/Parâmetros!C43) ->  | D43: =IF(Propostas!$C50="","",D$4*(Parâmetros!D43-1)/(COUNT(Parâmetros!$C$5:$C$204)-1)) ->  | E43: =IF(Propostas!$C50="","",E$4*Parâmetros!E43/Parâmetros!$E$4) ->  | F43: =IF(Propostas!$C50="","",F$4*Parâmetros!F43) ->  | G43: =IF(Propostas!$C50="","",G$4*Parâmetros!G43) ->  | H43: =IF(Propostas!$C50="","",$H$4*Propostas!I50) ->  | I43: =IF(Propostas!$C50="","",$I$4*Propostas!J50) ->  | J43: =IF(Propostas!$C50="","",$J$4*Propostas!K50) ->  | K43: =IF(Propostas!$C50="","",$K$4*Propostas!L50) ->  | L43: =IF(Propostas!$C50="","",$L$4*Propostas!M50) ->  | M43: =IF(Propostas!$C50="","",$M$4*Propostas!N50) ->  | N43: =IF(Propostas!$C50="","",$N$4*Propostas!O50) ->  | O43: =IF(Propostas!$C50="","",$O$4*Propostas!P50) ->  | P43: =IF(Propostas!$C50="","",$P$4*Propostas!Q50) ->  | Q43: =IF(Propostas!$C50="","",$Q$4*Propostas!R50) ->  | R43: =IF(Propostas!$C50="","",$R$4*Propostas!S50) ->  | S43: =IF(Propostas!$C50="","",S$4*Parâmetros!$H43/Parâmetros!$H$4) ->  | T43: =IF(Propostas!$C50="","",T$4*Parâmetros!P43/Parâmetros!$P$4) ->  | U43: =IF(Propostas!$C50="","",U$4*Parâmetros!Q43/Parâmetros!$Q$4) ->  | V43: =IF(Propostas!$B50="","",SUM(C43:U43)) ->  | W43: =IF(Propostas!$C50="","",RANK(V43,$V$5:$V$203,0)) -> 
A44: =IF(Propostas!$C51="","",W44) ->  | B44: =Propostas!A51 -> 0 | C44: =IF(Propostas!$C51="","",C$4*Parâmetros!$C$4/Parâmetros!C44) ->  | D44: =IF(Propostas!$C51="","",D$4*(Parâmetros!D44-1)/(COUNT(Parâmetros!$C$5:$C$204)-1)) ->  | E44: =IF(Propostas!$C51="","",E$4*Parâmetros!E44/Parâmetros!$E$4) ->  | F44: =IF(Propostas!$C51="","",F$4*Parâmetros!F44) ->  | G44: =IF(Propostas!$C51="","",G$4*Parâmetros!G44) ->  | H44: =IF(Propostas!$C51="","",$H$4*Propostas!I51) ->  | I44: =IF(Propostas!$C51="","",$I$4*Propostas!J51) ->  | J44: =IF(Propostas!$C51="","",$J$4*Propostas!K51) ->  | K44: =IF(Propostas!$C51="","",$K$4*Propostas!L51) ->  | L44: =IF(Propostas!$C51="","",$L$4*Propostas!M51) ->  | M44: =IF(Propostas!$C51="","",$M$4*Propostas!N51) ->  | N44: =IF(Propostas!$C51="","",$N$4*Propostas!O51) ->  | O44: =IF(Propostas!$C51="","",$O$4*Propostas!P51) ->  | P44: =IF(Propostas!$C51="","",$P$4*Propostas!Q51) ->  | Q44: =IF(Propostas!$C51="","",$Q$4*Propostas!R51) ->  | R44: =IF(Propostas!$C51="","",$R$4*Propostas!S51) ->  | S44: =IF(Propostas!$C51="","",S$4*Parâmetros!$H44/Parâmetros!$H$4) ->  | T44: =IF(Propostas!$C51="","",T$4*Parâmetros!P44/Parâmetros!$P$4) ->  | U44: =IF(Propostas!$C51="","",U$4*Parâmetros!Q44/Parâmetros!$Q$4) ->  | V44: =IF(Propostas!$B51="","",SUM(C44:U44)) ->  | W44: =IF(Propostas!$C51="","",RANK(V44,$V$5:$V$203,0)) -> 
A45: =IF(Propostas!$C52="","",W45) ->  | B45: =Propostas!A52 -> 0 | C45: =IF(Propostas!$C52="","",C$4*Parâmetros!$C$4/Parâmetros!C45) ->  | D45: =IF(Propostas!$C52="","",D$4*(Parâmetros!D45-1)/(COUNT(Parâmetros!$C$5:$C$204)-1)) ->  | E45: =IF(Propostas!$C52="","",E$4*Parâmetros!E45/Parâmetros!$E$4) ->  | F45: =IF(Propostas!$C52="","",F$4*Parâmetros!F45) ->  | G45: =IF(Propostas!$C52="","",G$4*Parâmetros!G45) ->  | H45: =IF(Propostas!$C52="","",$H$4*Propostas!I52) ->  | I45: =IF(Propostas!$C52="","",$I$4*Propostas!J52) ->  | J45: =IF(Propostas!$C52="","",$J$4*Propostas!K52) ->  | K45: =IF(Propostas!$C52="","",$K$4*Propostas!L52) ->  | L45: =IF(Propostas!$C52="","",$L$4*Propostas!M52) ->  | M45: =IF(Propostas!$C52="","",$M$4*Propostas!N52) ->  | N45: =IF(Propostas!$C52="","",$N$4*Propostas!O52) ->  | O45: =IF(Propostas!$C52="","",$O$4*Propostas!P52) ->  | P45: =IF(Propostas!$C52="","",$P$4*Propostas!Q52) ->  | Q45: =IF(Propostas!$C52="","",$Q$4*Propostas!R52) ->  | R45: =IF(Propostas!$C52="","",$R$4*Propostas!S52) ->  | S45: =IF(Propostas!$C52="","",S$4*Parâmetros!$H45/Parâmetros!$H$4) ->  | T45: =IF(Propostas!$C52="","",T$4*Parâmetros!P45/Parâmetros!$P$4) ->  | U45: =IF(Propostas!$C52="","",U$4*Parâmetros!Q45/Parâmetros!$Q$4) ->  | V45: =IF(Propostas!$B52="","",SUM(C45:U45)) ->  | W45: =IF(Propostas!$C52="","",RANK(V45,$V$5:$V$203,0)) -> 
A46: =IF(Propostas!$C53="","",W46) ->  | B46: =Propostas!A53 -> 0 | C46: =IF(Propostas!$C53="","",C$4*Parâmetros!$C$4/Parâmetros!C46) ->  | D46: =IF(Propostas!$C53="","",D$4*(Parâmetros!D46-1)/(COUNT(Parâmetros!$C$5:$C$204)-1)) ->  | E46: =IF(Propostas!$C53="","",E$4*Parâmetros!E46/Parâmetros!$E$4) ->  | F46: =IF(Propostas!$C53="","",F$4*Parâmetros!F46) ->  | G46: =IF(Propostas!$C53="","",G$4*Parâmetros!G46) ->  | H46: =IF(Propostas!$C53="","",$H$4*Propostas!I53) ->  | I46: =IF(Propostas!$C53="","",$I$4*Propostas!J53) ->  | J46: =IF(Propostas!$C53="","",$J$4*Propostas!K53) ->  | K46: =IF(Propostas!$C53="","",$K$4*Propostas!L53) ->  | L46: =IF(Propostas!$C53="","",$L$4*Propostas!M53) ->  | M46: =IF(Propostas!$C53="","",$M$4*Propostas!N53) ->  | N46: =IF(Propostas!$C53="","",$N$4*Propostas!O53) ->  | O46: =IF(Propostas!$C53="","",$O$4*Propostas!P53) ->  | P46: =IF(Propostas!$C53="","",$P$4*Propostas!Q53) ->  | Q46: =IF(Propostas!$C53="","",$Q$4*Propostas!R53) ->  | R46: =IF(Propostas!$C53="","",$R$4*Propostas!S53) ->  | S46: =IF(Propostas!$C53="","",S$4*Parâmetros!$H46/Parâmetros!$H$4) ->  | T46: =IF(Propostas!$C53="","",T$4*Parâmetros!P46/Parâmetros!$P$4) ->  | U46: =IF(Propostas!$C53="","",U$4*Parâmetros!Q46/Parâmetros!$Q$4) ->  | V46: =IF(Propostas!$B53="","",SUM(C46:U46)) ->  | W46: =IF(Propostas!$C53="","",RANK(V46,$V$5:$V$203,0)) -> 
A47: =IF(Propostas!$C54="","",W47) ->  | B47: =Propostas!A54 -> 0 | C47: =IF(Propostas!$C54="","",C$4*Parâmetros!$C$4/Parâmetros!C47) ->  | D47: =IF(Propostas!$C54="","",D$4*(Parâmetros!D47-1)/(COUNT(Parâmetros!$C$5:$C$204)-1)) ->  | E47: =IF(Propostas!$C54="","",E$4*Parâmetros!E47/Parâmetros!$E$4) ->  | F47: =IF(Propostas!$C54="","",F$4*Parâmetros!F47) ->  | G47: =IF(Propostas!$C54="","",G$4*Parâmetros!G47) ->  | H47: =IF(Propostas!$C54="","",$H$4*Propostas!I54) ->  | I47: =IF(Propostas!$C54="","",$I$4*Propostas!J54) ->  | J47: =IF(Propostas!$C54="","",$J$4*Propostas!K54) ->  | K47: =IF(Propostas!$C54="","",$K$4*Propostas!L54) ->  | L47: =IF(Propostas!$C54="","",$L$4*Propostas!M54) ->  | M47: =IF(Propostas!$C54="","",$M$4*Propostas!N54) ->  | N47: =IF(Propostas!$C54="","",$N$4*Propostas!O54) ->  | O47: =IF(Propostas!$C54="","",$O$4*Propostas!P54) ->  | P47: =IF(Propostas!$C54="","",$P$4*Propostas!Q54) ->  | Q47: =IF(Propostas!$C54="","",$Q$4*Propostas!R54) ->  | R47: =IF(Propostas!$C54="","",$R$4*Propostas!S54) ->  | S47: =IF(Propostas!$C54="","",S$4*Parâmetros!$H47/Parâmetros!$H$4) ->  | T47: =IF(Propostas!$C54="","",T$4*Parâmetros!P47/Parâmetros!$P$4) ->  | U47: =IF(Propostas!$C54="","",U$4*Parâmetros!Q47/Parâmetros!$Q$4) ->  | V47: =IF(Propostas!$B54="","",SUM(C47:U47)) ->  | W47: =IF(Propostas!$C54="","",RANK(V47,$V$5:$V$203,0)) -> 
A48: =IF(Propostas!$C55="","",W48) ->  | B48: =Propostas!A55 -> 0 | C48: =IF(Propostas!$C55="","",C$4*Parâmetros!$C$4/Parâmetros!C48) ->  | D48: =IF(Propostas!$C55="","",D$4*(Parâmetros!D48-1)/(COUNT(Parâmetros!$C$5:$C$204)-1)) ->  | E48: =IF(Propostas!$C55="","",E$4*Parâmetros!E48/Parâmetros!$E$4) ->  | F48: =IF(Propostas!$C55="","",F$4*Parâmetros!F48) ->  | G48: =IF(Propostas!$C55="","",G$4*Parâmetros!G48) ->  | H48: =IF(Propostas!$C55="","",$H$4*Propostas!I55) ->  | I48: =IF(Propostas!$C55="","",$I$4*Propostas!J55) ->  | J48: =IF(Propostas!$C55="","",$J$4*Propostas!K55) ->  | K48: =IF(Propostas!$C55="","",$K$4*Propostas!L55) ->  | L48: =IF(Propostas!$C55="","",$L$4*Propostas!M55) ->  | M48: =IF(Propostas!$C55="","",$M$4*Propostas!N55) ->  | N48: =IF(Propostas!$C55="","",$N$4*Propostas!O55) ->  | O48: =IF(Propostas!$C55="","",$O$4*Propostas!P55) ->  | P48: =IF(Propostas!$C55="","",$P$4*Propostas!Q55) ->  | Q48: =IF(Propostas!$C55="","",$Q$4*Propostas!R55) ->  | R48: =IF(Propostas!$C55="","",$R$4*Propostas!S55) ->  | S48: =IF(Propostas!$C55="","",S$4*Parâmetros!$H48/Parâmetros!$H$4) ->  | T48: =IF(Propostas!$C55="","",T$4*Parâmetros!P48/Parâmetros!$P$4) ->  | U48: =IF(Propostas!$C55="","",U$4*Parâmetros!Q48/Parâmetros!$Q$4) ->  | V48: =IF(Propostas!$B55="","",SUM(C48:U48)) ->  | W48: =IF(Propostas!$C55="","",RANK(V48,$V$5:$V$203,0)) -> 
A49: =IF(Propostas!$C56="","",W49) ->  | B49: =Propostas!A56 -> 0 | C49: =IF(Propostas!$C56="","",C$4*Parâmetros!$C$4/Parâmetros!C49) ->  | D49: =IF(Propostas!$C56="","",D$4*(Parâmetros!D49-1)/(COUNT(Parâmetros!$C$5:$C$204)-1)) ->  | E49: =IF(Propostas!$C56="","",E$4*Parâmetros!E49/Parâmetros!$E$4) ->  | F49: =IF(Propostas!$C56="","",F$4*Parâmetros!F49) ->  | G49: =IF(Propostas!$C56="","",G$4*Parâmetros!G49) ->  | H49: =IF(Propostas!$C56="","",$H$4*Propostas!I56) ->  | I49: =IF(Propostas!$C56="","",$I$4*Propostas!J56) ->  | J49: =IF(Propostas!$C56="","",$J$4*Propostas!K56) ->  | K49: =IF(Propostas!$C56="","",$K$4*Propostas!L56) ->  | L49: =IF(Propostas!$C56="","",$L$4*Propostas!M56) ->  | M49: =IF(Propostas!$C56="","",$M$4*Propostas!N56) ->  | N49: =IF(Propostas!$C56="","",$N$4*Propostas!O56) ->  | O49: =IF(Propostas!$C56="","",$O$4*Propostas!P56) ->  | P49: =IF(Propostas!$C56="","",$P$4*Propostas!Q56) ->  | Q49: =IF(Propostas!$C56="","",$Q$4*Propostas!R56) ->  | R49: =IF(Propostas!$C56="","",$R$4*Propostas!S56) ->  | S49: =IF(Propostas!$C56="","",S$4*Parâmetros!$H49/Parâmetros!$H$4) ->  | T49: =IF(Propostas!$C56="","",T$4*Parâmetros!P49/Parâmetros!$P$4) ->  | U49: =IF(Propostas!$C56="","",U$4*Parâmetros!Q49/Parâmetros!$Q$4) ->  | V49: =IF(Propostas!$B56="","",SUM(C49:U49)) ->  | W49: =IF(Propostas!$C56="","",RANK(V49,$V$5:$V$203,0)) -> 
A50: =IF(Propostas!$C57="","",W50) ->  | B50: =Propostas!A57 -> 0 | C50: =IF(Propostas!$C57="","",C$4*Parâmetros!$C$4/Parâmetros!C50) ->  | D50: =IF(Propostas!$C57="","",D$4*(Parâmetros!D50-1)/(COUNT(Parâmetros!$C$5:$C$204)-1)) ->  | E50: =IF(Propostas!$C57="","",E$4*Parâmetros!E50/Parâmetros!$E$4) ->  | F50: =IF(Propostas!$C57="","",F$4*Parâmetros!F50) ->  | G50: =IF(Propostas!$C57="","",G$4*Parâmetros!G50) ->  | H50: =IF(Propostas!$C57="","",$H$4*Propostas!I57) ->  | I50: =IF(Propostas!$C57="","",$I$4*Propostas!J57) ->  | J50: =IF(Propostas!$C57="","",$J$4*Propostas!K57) ->  | K50: =IF(Propostas!$C57="","",$K$4*Propostas!L57) ->  | L50: =IF(Propostas!$C57="","",$L$4*Propostas!M57) ->  | M50: =IF(Propostas!$C57="","",$M$4*Propostas!N57) ->  | N50: =IF(Propostas!$C57="","",$N$4*Propostas!O57) ->  | O50: =IF(Propostas!$C57="","",$O$4*Propostas!P57) ->  | P50: =IF(Propostas!$C57="","",$P$4*Propostas!Q57) ->  | Q50: =IF(Propostas!$C57="","",$Q$4*Propostas!R57) ->  | R50: =IF(Propostas!$C57="","",$R$4*Propostas!S57) ->  | S50: =IF(Propostas!$C57="","",S$4*Parâmetros!$H50/Parâmetros!$H$4) ->  | T50: =IF(Propostas!$C57="","",T$4*Parâmetros!P50/Parâmetros!$P$4) ->  | U50: =IF(Propostas!$C57="","",U$4*Parâmetros!Q50/Parâmetros!$Q$4) ->  | V50: =IF(Propostas!$B57="","",SUM(C50:U50)) ->  | W50: =IF(Propostas!$C57="","",RANK(V50,$V$5:$V$203,0)) -> 
A51: =IF(Propostas!$C58="","",W51) ->  | B51: =Propostas!A58 -> 0 | C51: =IF(Propostas!$C58="","",C$4*Parâmetros!$C$4/Parâmetros!C51) ->  | D51: =IF(Propostas!$C58="","",D$4*(Parâmetros!D51-1)/(COUNT(Parâmetros!$C$5:$C$204)-1)) ->  | E51: =IF(Propostas!$C58="","",E$4*Parâmetros!E51/Parâmetros!$E$4) ->  | F51: =IF(Propostas!$C58="","",F$4*Parâmetros!F51) ->  | G51: =IF(Propostas!$C58="","",G$4*Parâmetros!G51) ->  | H51: =IF(Propostas!$C58="","",$H$4*Propostas!I58) ->  | I51: =IF(Propostas!$C58="","",$I$4*Propostas!J58) ->  | J51: =IF(Propostas!$C58="","",$J$4*Propostas!K58) ->  | K51: =IF(Propostas!$C58="","",$K$4*Propostas!L58) ->  | L51: =IF(Propostas!$C58="","",$L$4*Propostas!M58) ->  | M51: =IF(Propostas!$C58="","",$M$4*Propostas!N58) ->  | N51: =IF(Propostas!$C58="","",$N$4*Propostas!O58) ->  | O51: =IF(Propostas!$C58="","",$O$4*Propostas!P58) ->  | P51: =IF(Propostas!$C58="","",$P$4*Propostas!Q58) ->  | Q51: =IF(Propostas!$C58="","",$Q$4*Propostas!R58) ->  | R51: =IF(Propostas!$C58="","",$R$4*Propostas!S58) ->  | S51: =IF(Propostas!$C58="","",S$4*Parâmetros!$H51/Parâmetros!$H$4) ->  | T51: =IF(Propostas!$C58="","",T$4*Parâmetros!P51/Parâmetros!$P$4) ->  | U51: =IF(Propostas!$C58="","",U$4*Parâmetros!Q51/Parâmetros!$Q$4) ->  | V51: =IF(Propostas!$B58="","",SUM(C51:U51)) ->  | W51: =IF(Propostas!$C58="","",RANK(V51,$V$5:$V$203,0)) -> 
A52: =IF(Propostas!$C59="","",W52) ->  | B52: =Propostas!A59 -> 0 | C52: =IF(Propostas!$C59="","",C$4*Parâmetros!$C$4/Parâmetros!C52) ->  | D52: =IF(Propostas!$C59="","",D$4*(Parâmetros!D52-1)/(COUNT(Parâmetros!$C$5:$C$204)-1)) ->  | E52: =IF(Propostas!$C59="","",E$4*Parâmetros!E52/Parâmetros!$E$4) ->  | F52: =IF(Propostas!$C59="","",F$4*Parâmetros!F52) ->  | G52: =IF(Propostas!$C59="","",G$4*Parâmetros!G52) ->  | H52: =IF(Propostas!$C59="","",$H$4*Propostas!I59) ->  | I52: =IF(Propostas!$C59="","",$I$4*Propostas!J59) ->  | J52: =IF(Propostas!$C59="","",$J$4*Propostas!K59) ->  | K52: =IF(Propostas!$C59="","",$K$4*Propostas!L59) ->  | L52: =IF(Propostas!$C59="","",$L$4*Propostas!M59) ->  | M52: =IF(Propostas!$C59="","",$M$4*Propostas!N59) ->  | N52: =IF(Propostas!$C59="","",$N$4*Propostas!O59) ->  | O52: =IF(Propostas!$C59="","",$O$4*Propostas!P59) ->  | P52: =IF(Propostas!$C59="","",$P$4*Propostas!Q59) ->  | Q52: =IF(Propostas!$C59="","",$Q$4*Propostas!R59) ->  | R52: =IF(Propostas!$C59="","",$R$4*Propostas!S59) ->  | S52: =IF(Propostas!$C59="","",S$4*Parâmetros!$H52/Parâmetros!$H$4) ->  | T52: =IF(Propostas!$C59="","",T$4*Parâmetros!P52/Parâmetros!$P$4) ->  | U52: =IF(Propostas!$C59="","",U$4*Parâmetros!Q52/Parâmetros!$Q$4) ->  | V52: =IF(Propostas!$B59="","",SUM(C52:U52)) ->  | W52: =IF(Propostas!$C59="","",RANK(V52,$V$5:$V$203,0)) -> 
A53: =IF(Propostas!$C60="","",W53) ->  | B53: =Propostas!A60 -> 0 | C53: =IF(Propostas!$C60="","",C$4*Parâmetros!$C$4/Parâmetros!C53) ->  | D53: =IF(Propostas!$C60="","",D$4*(Parâmetros!D53-1)/(COUNT(Parâmetros!$C$5:$C$204)-1)) ->  | E53: =IF(Propostas!$C60="","",E$4*Parâmetros!E53/Parâmetros!$E$4) ->  | F53: =IF(Propostas!$C60="","",F$4*Parâmetros!F53) ->  | G53: =IF(Propostas!$C60="","",G$4*Parâmetros!G53) ->  | H53: =IF(Propostas!$C60="","",$H$4*Propostas!I60) ->  | I53: =IF(Propostas!$C60="","",$I$4*Propostas!J60) ->  | J53: =IF(Propostas!$C60="","",$J$4*Propostas!K60) ->  | K53: =IF(Propostas!$C60="","",$K$4*Propostas!L60) ->  | L53: =IF(Propostas!$C60="","",$L$4*Propostas!M60) ->  | M53: =IF(Propostas!$C60="","",$M$4*Propostas!N60) ->  | N53: =IF(Propostas!$C60="","",$N$4*Propostas!O60) ->  | O53: =IF(Propostas!$C60="","",$O$4*Propostas!P60) ->  | P53: =IF(Propostas!$C60="","",$P$4*Propostas!Q60) ->  | Q53: =IF(Propostas!$C60="","",$Q$4*Propostas!R60) ->  | R53: =IF(Propostas!$C60="","",$R$4*Propostas!S60) ->  | S53: =IF(Propostas!$C60="","",S$4*Parâmetros!$H53/Parâmetros!$H$4) ->  | T53: =IF(Propostas!$C60="","",T$4*Parâmetros!P53/Parâmetros!$P$4) ->  | U53: =IF(Propostas!$C60="","",U$4*Parâmetros!Q53/Parâmetros!$Q$4) ->  | V53: =IF(Propostas!$B60="","",SUM(C53:U53)) ->  | W53: =IF(Propostas!$C60="","",RANK(V53,$V$5:$V$203,0)) -> 
A54: =IF(Propostas!$C61="","",W54) ->  | B54: =Propostas!A61 -> 0 | C54: =IF(Propostas!$C61="","",C$4*Parâmetros!$C$4/Parâmetros!C54) ->  | D54: =IF(Propostas!$C61="","",D$4*(Parâmetros!D54-1)/(COUNT(Parâmetros!$C$5:$C$204)-1)) ->  | E54: =IF(Propostas!$C61="","",E$4*Parâmetros!E54/Parâmetros!$E$4) ->  | F54: =IF(Propostas!$C61="","",F$4*Parâmetros!F54) ->  | G54: =IF(Propostas!$C61="","",G$4*Parâmetros!G54) ->  | H54: =IF(Propostas!$C61="","",$H$4*Propostas!I61) ->  | I54: =IF(Propostas!$C61="","",$I$4*Propostas!J61) ->  | J54: =IF(Propostas!$C61="","",$J$4*Propostas!K61) ->  | K54: =IF(Propostas!$C61="","",$K$4*Propostas!L61) ->  | L54: =IF(Propostas!$C61="","",$L$4*Propostas!M61) ->  | M54: =IF(Propostas!$C61="","",$M$4*Propostas!N61) ->  | N54: =IF(Propostas!$C61="","",$N$4*Propostas!O61) ->  | O54: =IF(Propostas!$C61="","",$O$4*Propostas!P61) ->  | P54: =IF(Propostas!$C61="","",$P$4*Propostas!Q61) ->  | Q54: =IF(Propostas!$C61="","",$Q$4*Propostas!R61) ->  | R54: =IF(Propostas!$C61="","",$R$4*Propostas!S61) ->  | S54: =IF(Propostas!$C61="","",S$4*Parâmetros!$H54/Parâmetros!$H$4) ->  | T54: =IF(Propostas!$C61="","",T$4*Parâmetros!P54/Parâmetros!$P$4) ->  | U54: =IF(Propostas!$C61="","",U$4*Parâmetros!Q54/Parâmetros!$Q$4) ->  | V54: =IF(Propostas!$B61="","",SUM(C54:U54)) ->  | W54: =IF(Propostas!$C61="","",RANK(V54,$V$5:$V$203,0)) -> 
A55: =IF(Propostas!$C62="","",W55) ->  | B55: =Propostas!A62 -> 0 | C55: =IF(Propostas!$C62="","",C$4*Parâmetros!$C$4/Parâmetros!C55) ->  | D55: =IF(Propostas!$C62="","",D$4*(Parâmetros!D55-1)/(COUNT(Parâmetros!$C$5:$C$204)-1)) ->  | E55: =IF(Propostas!$C62="","",E$4*Parâmetros!E55/Parâmetros!$E$4) ->  | F55: =IF(Propostas!$C62="","",F$4*Parâmetros!F55) ->  | G55: =IF(Propostas!$C62="","",G$4*Parâmetros!G55) ->  | H55: =IF(Propostas!$C62="","",$H$4*Propostas!I62) ->  | I55: =IF(Propostas!$C62="","",$I$4*Propostas!J62) ->  | J55: =IF(Propostas!$C62="","",$J$4*Propostas!K62) ->  | K55: =IF(Propostas!$C62="","",$K$4*Propostas!L62) ->  | L55: =IF(Propostas!$C62="","",$L$4*Propostas!M62) ->  | M55: =IF(Propostas!$C62="","",$M$4*Propostas!N62) ->  | N55: =IF(Propostas!$C62="","",$N$4*Propostas!O62) ->  | O55: =IF(Propostas!$C62="","",$O$4*Propostas!P62) ->  | P55: =IF(Propostas!$C62="","",$P$4*Propostas!Q62) ->  | Q55: =IF(Propostas!$C62="","",$Q$4*Propostas!R62) ->  | R55: =IF(Propostas!$C62="","",$R$4*Propostas!S62) ->  | S55: =IF(Propostas!$C62="","",S$4*Parâmetros!$H55/Parâmetros!$H$4) ->  | T55: =IF(Propostas!$C62="","",T$4*Parâmetros!P55/Parâmetros!$P$4) ->  | U55: =IF(Propostas!$C62="","",U$4*Parâmetros!Q55/Parâmetros!$Q$4) ->  | V55: =IF(Propostas!$B62="","",SUM(C55:U55)) ->  | W55: =IF(Propostas!$C62="","",RANK(V55,$V$5:$V$203,0)) -> 
A56: =IF(Propostas!$C63="","",W56) ->  | B56: =Propostas!A63 -> 0 | C56: =IF(Propostas!$C63="","",C$4*Parâmetros!$C$4/Parâmetros!C56) ->  | D56: =IF(Propostas!$C63="","",D$4*(Parâmetros!D56-1)/(COUNT(Parâmetros!$C$5:$C$204)-1)) ->  | E56: =IF(Propostas!$C63="","",E$4*Parâmetros!E56/Parâmetros!$E$4) ->  | F56: =IF(Propostas!$C63="","",F$4*Parâmetros!F56) ->  | G56: =IF(Propostas!$C63="","",G$4*Parâmetros!G56) ->  | H56: =IF(Propostas!$C63="","",$H$4*Propostas!I63) ->  | I56: =IF(Propostas!$C63="","",$I$4*Propostas!J63) ->  | J56: =IF(Propostas!$C63="","",$J$4*Propostas!K63) ->  | K56: =IF(Propostas!$C63="","",$K$4*Propostas!L63) ->  | L56: =IF(Propostas!$C63="","",$L$4*Propostas!M63) ->  | M56: =IF(Propostas!$C63="","",$M$4*Propostas!N63) ->  | N56: =IF(Propostas!$C63="","",$N$4*Propostas!O63) ->  | O56: =IF(Propostas!$C63="","",$O$4*Propostas!P63) ->  | P56: =IF(Propostas!$C63="","",$P$4*Propostas!Q63) ->  | Q56: =IF(Propostas!$C63="","",$Q$4*Propostas!R63) ->  | R56: =IF(Propostas!$C63="","",$R$4*Propostas!S63) ->  | S56: =IF(Propostas!$C63="","",S$4*Parâmetros!$H56/Parâmetros!$H$4) ->  | T56: =IF(Propostas!$C63="","",T$4*Parâmetros!P56/Parâmetros!$P$4) ->  | U56: =IF(Propostas!$C63="","",U$4*Parâmetros!Q56/Parâmetros!$Q$4) ->  | V56: =IF(Propostas!$B63="","",SUM(C56:U56)) ->  | W56: =IF(Propostas!$C63="","",RANK(V56,$V$5:$V$203,0)) -> 
A57: =IF(Propostas!$C64="","",W57) ->  | B57: =Propostas!A64 -> 0 | C57: =IF(Propostas!$C64="","",C$4*Parâmetros!$C$4/Parâmetros!C57) ->  | D57: =IF(Propostas!$C64="","",D$4*(Parâmetros!D57-1)/(COUNT(Parâmetros!$C$5:$C$204)-1)) ->  | E57: =IF(Propostas!$C64="","",E$4*Parâmetros!E57/Parâmetros!$E$4) ->  | F57: =IF(Propostas!$C64="","",F$4*Parâmetros!F57) ->  | G57: =IF(Propostas!$C64="","",G$4*Parâmetros!G57) ->  | H57: =IF(Propostas!$C64="","",$H$4*Propostas!I64) ->  | I57: =IF(Propostas!$C64="","",$I$4*Propostas!J64) ->  | J57: =IF(Propostas!$C64="","",$J$4*Propostas!K64) ->  | K57: =IF(Propostas!$C64="","",$K$4*Propostas!L64) ->  | L57: =IF(Propostas!$C64="","",$L$4*Propostas!M64) ->  | M57: =IF(Propostas!$C64="","",$M$4*Propostas!N64) ->  | N57: =IF(Propostas!$C64="","",$N$4*Propostas!O64) ->  | O57: =IF(Propostas!$C64="","",$O$4*Propostas!P64) ->  | P57: =IF(Propostas!$C64="","",$P$4*Propostas!Q64) ->  | Q57: =IF(Propostas!$C64="","",$Q$4*Propostas!R64) ->  | R57: =IF(Propostas!$C64="","",$R$4*Propostas!S64) ->  | S57: =IF(Propostas!$C64="","",S$4*Parâmetros!$H57/Parâmetros!$H$4) ->  | T57: =IF(Propostas!$C64="","",T$4*Parâmetros!P57/Parâmetros!$P$4) ->  | U57: =IF(Propostas!$C64="","",U$4*Parâmetros!Q57/Parâmetros!$Q$4) ->  | V57: =IF(Propostas!$B64="","",SUM(C57:U57)) ->  | W57: =IF(Propostas!$C64="","",RANK(V57,$V$5:$V$203,0)) -> 
A58: =IF(Propostas!$C65="","",W58) ->  | B58: =Propostas!A65 -> 0 | C58: =IF(Propostas!$C65="","",C$4*Parâmetros!$C$4/Parâmetros!C58) ->  | D58: =IF(Propostas!$C65="","",D$4*(Parâmetros!D58-1)/(COUNT(Parâmetros!$C$5:$C$204)-1)) ->  | E58: =IF(Propostas!$C65="","",E$4*Parâmetros!E58/Parâmetros!$E$4) ->  | F58: =IF(Propostas!$C65="","",F$4*Parâmetros!F58) ->  | G58: =IF(Propostas!$C65="","",G$4*Parâmetros!G58) ->  | H58: =IF(Propostas!$C65="","",$H$4*Propostas!I65) ->  | I58: =IF(Propostas!$C65="","",$I$4*Propostas!J65) ->  | J58: =IF(Propostas!$C65="","",$J$4*Propostas!K65) ->  | K58: =IF(Propostas!$C65="","",$K$4*Propostas!L65) ->  | L58: =IF(Propostas!$C65="","",$L$4*Propostas!M65) ->  | M58: =IF(Propostas!$C65="","",$M$4*Propostas!N65) ->  | N58: =IF(Propostas!$C65="","",$N$4*Propostas!O65) ->  | O58: =IF(Propostas!$C65="","",$O$4*Propostas!P65) ->  | P58: =IF(Propostas!$C65="","",$P$4*Propostas!Q65) ->  | Q58: =IF(Propostas!$C65="","",$Q$4*Propostas!R65) ->  | R58: =IF(Propostas!$C65="","",$R$4*Propostas!S65) ->  | S58: =IF(Propostas!$C65="","",S$4*Parâmetros!$H58/Parâmetros!$H$4) ->  | T58: =IF(Propostas!$C65="","",T$4*Parâmetros!P58/Parâmetros!$P$4) ->  | U58: =IF(Propostas!$C65="","",U$4*Parâmetros!Q58/Parâmetros!$Q$4) ->  | V58: =IF(Propostas!$B65="","",SUM(C58:U58)) ->  | W58: =IF(Propostas!$C65="","",RANK(V58,$V$5:$V$203,0)) -> 
A59: =IF(Propostas!$C66="","",W59) ->  | B59: =Propostas!A66 -> 0 | C59: =IF(Propostas!$C66="","",C$4*Parâmetros!$C$4/Parâmetros!C59) ->  | D59: =IF(Propostas!$C66="","",D$4*(Parâmetros!D59-1)/(COUNT(Parâmetros!$C$5:$C$204)-1)) ->  | E59: =IF(Propostas!$C66="","",E$4*Parâmetros!E59/Parâmetros!$E$4) ->  | F59: =IF(Propostas!$C66="","",F$4*Parâmetros!F59) ->  | G59: =IF(Propostas!$C66="","",G$4*Parâmetros!G59) ->  | H59: =IF(Propostas!$C66="","",$H$4*Propostas!I66) ->  | I59: =IF(Propostas!$C66="","",$I$4*Propostas!J66) ->  | J59: =IF(Propostas!$C66="","",$J$4*Propostas!K66) ->  | K59: =IF(Propostas!$C66="","",$K$4*Propostas!L66) ->  | L59: =IF(Propostas!$C66="","",$L$4*Propostas!M66) ->  | M59: =IF(Propostas!$C66="","",$M$4*Propostas!N66) ->  | N59: =IF(Propostas!$C66="","",$N$4*Propostas!O66) ->  | O59: =IF(Propostas!$C66="","",$O$4*Propostas!P66) ->  | P59: =IF(Propostas!$C66="","",$P$4*Propostas!Q66) ->  | Q59: =IF(Propostas!$C66="","",$Q$4*Propostas!R66) ->  | R59: =IF(Propostas!$C66="","",$R$4*Propostas!S66) ->  | S59: =IF(Propostas!$C66="","",S$4*Parâmetros!$H59/Parâmetros!$H$4) ->  | T59: =IF(Propostas!$C66="","",T$4*Parâmetros!P59/Parâmetros!$P$4) ->  | U59: =IF(Propostas!$C66="","",U$4*Parâmetros!Q59/Parâmetros!$Q$4) ->  | V59: =IF(Propostas!$B66="","",SUM(C59:U59)) ->  | W59: =IF(Propostas!$C66="","",RANK(V59,$V$5:$V$203,0)) -> 
A60: =IF(Propostas!$C67="","",W60) ->  | B60: =Propostas!A67 -> 0 | C60: =IF(Propostas!$C67="","",C$4*Parâmetros!$C$4/Parâmetros!C60) ->  | D60: =IF(Propostas!$C67="","",D$4*(Parâmetros!D60-1)/(COUNT(Parâmetros!$C$5:$C$204)-1)) ->  | E60: =IF(Propostas!$C67="","",E$4*Parâmetros!E60/Parâmetros!$E$4) ->  | F60: =IF(Propostas!$C67="","",F$4*Parâmetros!F60) ->  | G60: =IF(Propostas!$C67="","",G$4*Parâmetros!G60) ->  | H60: =IF(Propostas!$C67="","",$H$4*Propostas!I67) ->  | I60: =IF(Propostas!$C67="","",$I$4*Propostas!J67) ->  | J60: =IF(Propostas!$C67="","",$J$4*Propostas!K67) ->  | K60: =IF(Propostas!$C67="","",$K$4*Propostas!L67) ->  | L60: =IF(Propostas!$C67="","",$L$4*Propostas!M67) ->  | M60: =IF(Propostas!$C67="","",$M$4*Propostas!N67) ->  | N60: =IF(Propostas!$C67="","",$N$4*Propostas!O67) ->  | O60: =IF(Propostas!$C67="","",$O$4*Propostas!P67) ->  | P60: =IF(Propostas!$C67="","",$P$4*Propostas!Q67) ->  | Q60: =IF(Propostas!$C67="","",$Q$4*Propostas!R67) ->  | R60: =IF(Propostas!$C67="","",$R$4*Propostas!S67) ->  | S60: =IF(Propostas!$C67="","",S$4*Parâmetros!$H60/Parâmetros!$H$4) ->  | T60: =IF(Propostas!$C67="","",T$4*Parâmetros!P60/Parâmetros!$P$4) ->  | U60: =IF(Propostas!$C67="","",U$4*Parâmetros!Q60/Parâmetros!$Q$4) ->  | V60: =IF(Propostas!$B67="","",SUM(C60:U60)) ->  | W60: =IF(Propostas!$C67="","",RANK(V60,$V$5:$V$203,0)) -> 
A61: =IF(Propostas!$C68="","",W61) ->  | B61: =Propostas!A68 -> 0 | C61: =IF(Propostas!$C68="","",C$4*Parâmetros!$C$4/Parâmetros!C61) ->  | D61: =IF(Propostas!$C68="","",D$4*(Parâmetros!D61-1)/(COUNT(Parâmetros!$C$5:$C$204)-1)) ->  | E61: =IF(Propostas!$C68="","",E$4*Parâmetros!E61/Parâmetros!$E$4) ->  | F61: =IF(Propostas!$C68="","",F$4*Parâmetros!F61) ->  | G61: =IF(Propostas!$C68="","",G$4*Parâmetros!G61) ->  | H61: =IF(Propostas!$C68="","",$H$4*Propostas!I68) ->  | I61: =IF(Propostas!$C68="","",$I$4*Propostas!J68) ->  | J61: =IF(Propostas!$C68="","",$J$4*Propostas!K68) ->  | K61: =IF(Propostas!$C68="","",$K$4*Propostas!L68) ->  | L61: =IF(Propostas!$C68="","",$L$4*Propostas!M68) ->  | M61: =IF(Propostas!$C68="","",$M$4*Propostas!N68) ->  | N61: =IF(Propostas!$C68="","",$N$4*Propostas!O68) ->  | O61: =IF(Propostas!$C68="","",$O$4*Propostas!P68) ->  | P61: =IF(Propostas!$C68="","",$P$4*Propostas!Q68) ->  | Q61: =IF(Propostas!$C68="","",$Q$4*Propostas!R68) ->  | R61: =IF(Propostas!$C68="","",$R$4*Propostas!S68) ->  | S61: =IF(Propostas!$C68="","",S$4*Parâmetros!$H61/Parâmetros!$H$4) ->  | T61: =IF(Propostas!$C68="","",T$4*Parâmetros!P61/Parâmetros!$P$4) ->  | U61: =IF(Propostas!$C68="","",U$4*Parâmetros!Q61/Parâmetros!$Q$4) ->  | V61: =IF(Propostas!$B68="","",SUM(C61:U61)) ->  | W61: =IF(Propostas!$C68="","",RANK(V61,$V$5:$V$203,0)) -> 
A62: =IF(Propostas!$C69="","",W62) ->  | B62: =Propostas!A69 -> 0 | C62: =IF(Propostas!$C69="","",C$4*Parâmetros!$C$4/Parâmetros!C62) ->  | D62: =IF(Propostas!$C69="","",D$4*(Parâmetros!D62-1)/(COUNT(Parâmetros!$C$5:$C$204)-1)) ->  | E62: =IF(Propostas!$C69="","",E$4*Parâmetros!E62/Parâmetros!$E$4) ->  | F62: =IF(Propostas!$C69="","",F$4*Parâmetros!F62) ->  | G62: =IF(Propostas!$C69="","",G$4*Parâmetros!G62) ->  | H62: =IF(Propostas!$C69="","",$H$4*Propostas!I69) ->  | I62: =IF(Propostas!$C69="","",$I$4*Propostas!J69) ->  | J62: =IF(Propostas!$C69="","",$J$4*Propostas!K69) ->  | K62: =IF(Propostas!$C69="","",$K$4*Propostas!L69) ->  | L62: =IF(Propostas!$C69="","",$L$4*Propostas!M69) ->  | M62: =IF(Propostas!$C69="","",$M$4*Propostas!N69) ->  | N62: =IF(Propostas!$C69="","",$N$4*Propostas!O69) ->  | O62: =IF(Propostas!$C69="","",$O$4*Propostas!P69) ->  | P62: =IF(Propostas!$C69="","",$P$4*Propostas!Q69) ->  | Q62: =IF(Propostas!$C69="","",$Q$4*Propostas!R69) ->  | R62: =IF(Propostas!$C69="","",$R$4*Propostas!S69) ->  | S62: =IF(Propostas!$C69="","",S$4*Parâmetros!$H62/Parâmetros!$H$4) ->  | T62: =IF(Propostas!$C69="","",T$4*Parâmetros!P62/Parâmetros!$P$4) ->  | U62: =IF(Propostas!$C69="","",U$4*Parâmetros!Q62/Parâmetros!$Q$4) ->  | V62: =IF(Propostas!$B69="","",SUM(C62:U62)) ->  | W62: =IF(Propostas!$C69="","",RANK(V62,$V$5:$V$203,0)) -> 
A63: =IF(Propostas!$C70="","",W63) ->  | B63: =Propostas!A70 -> 0 | C63: =IF(Propostas!$C70="","",C$4*Parâmetros!$C$4/Parâmetros!C63) ->  | D63: =IF(Propostas!$C70="","",D$4*(Parâmetros!D63-1)/(COUNT(Parâmetros!$C$5:$C$204)-1)) ->  | E63: =IF(Propostas!$C70="","",E$4*Parâmetros!E63/Parâmetros!$E$4) ->  | F63: =IF(Propostas!$C70="","",F$4*Parâmetros!F63) ->  | G63: =IF(Propostas!$C70="","",G$4*Parâmetros!G63) ->  | H63: =IF(Propostas!$C70="","",$H$4*Propostas!I70) ->  | I63: =IF(Propostas!$C70="","",$I$4*Propostas!J70) ->  | J63: =IF(Propostas!$C70="","",$J$4*Propostas!K70) ->  | K63: =IF(Propostas!$C70="","",$K$4*Propostas!L70) ->  | L63: =IF(Propostas!$C70="","",$L$4*Propostas!M70) ->  | M63: =IF(Propostas!$C70="","",$M$4*Propostas!N70) ->  | N63: =IF(Propostas!$C70="","",$N$4*Propostas!O70) ->  | O63: =IF(Propostas!$C70="","",$O$4*Propostas!P70) ->  | P63: =IF(Propostas!$C70="","",$P$4*Propostas!Q70) ->  | Q63: =IF(Propostas!$C70="","",$Q$4*Propostas!R70) ->  | R63: =IF(Propostas!$C70="","",$R$4*Propostas!S70) ->  | S63: =IF(Propostas!$C70="","",S$4*Parâmetros!$H63/Parâmetros!$H$4) ->  | T63: =IF(Propostas!$C70="","",T$4*Parâmetros!P63/Parâmetros!$P$4) ->  | U63: =IF(Propostas!$C70="","",U$4*Parâmetros!Q63/Parâmetros!$Q$4) ->  | V63: =IF(Propostas!$B70="","",SUM(C63:U63)) ->  | W63: =IF(Propostas!$C70="","",RANK(V63,$V$5:$V$203,0)) -> 
A64: =IF(Propostas!$C71="","",W64) ->  | B64: =Propostas!A71 -> 0 | C64: =IF(Propostas!$C71="","",C$4*Parâmetros!$C$4/Parâmetros!C64) ->  | D64: =IF(Propostas!$C71="","",D$4*(Parâmetros!D64-1)/(COUNT(Parâmetros!$C$5:$C$204)-1)) ->  | E64: =IF(Propostas!$C71="","",E$4*Parâmetros!E64/Parâmetros!$E$4) ->  | F64: =IF(Propostas!$C71="","",F$4*Parâmetros!F64) ->  | G64: =IF(Propostas!$C71="","",G$4*Parâmetros!G64) ->  | H64: =IF(Propostas!$C71="","",$H$4*Propostas!I71) ->  | I64: =IF(Propostas!$C71="","",$I$4*Propostas!J71) ->  | J64: =IF(Propostas!$C71="","",$J$4*Propostas!K71) ->  | K64: =IF(Propostas!$C71="","",$K$4*Propostas!L71) ->  | L64: =IF(Propostas!$C71="","",$L$4*Propostas!M71) ->  | M64: =IF(Propostas!$C71="","",$M$4*Propostas!N71) ->  | N64: =IF(Propostas!$C71="","",$N$4*Propostas!O71) ->  | O64: =IF(Propostas!$C71="","",$O$4*Propostas!P71) ->  | P64: =IF(Propostas!$C71="","",$P$4*Propostas!Q71) ->  | Q64: =IF(Propostas!$C71="","",$Q$4*Propostas!R71) ->  | R64: =IF(Propostas!$C71="","",$R$4*Propostas!S71) ->  | S64: =IF(Propostas!$C71="","",S$4*Parâmetros!$H64/Parâmetros!$H$4) ->  | T64: =IF(Propostas!$C71="","",T$4*Parâmetros!P64/Parâmetros!$P$4) ->  | U64: =IF(Propostas!$C71="","",U$4*Parâmetros!Q64/Parâmetros!$Q$4) ->  | V64: =IF(Propostas!$B71="","",SUM(C64:U64)) ->  | W64: =IF(Propostas!$C71="","",RANK(V64,$V$5:$V$203,0)) -> 
A65: =IF(Propostas!$C72="","",W65) ->  | B65: =Propostas!A72 -> 0 | C65: =IF(Propostas!$C72="","",C$4*Parâmetros!$C$4/Parâmetros!C65) ->  | D65: =IF(Propostas!$C72="","",D$4*(Parâmetros!D65-1)/(COUNT(Parâmetros!$C$5:$C$204)-1)) ->  | E65: =IF(Propostas!$C72="","",E$4*Parâmetros!E65/Parâmetros!$E$4) ->  | F65: =IF(Propostas!$C72="","",F$4*Parâmetros!F65) ->  | G65: =IF(Propostas!$C72="","",G$4*Parâmetros!G65) ->  | H65: =IF(Propostas!$C72="","",$H$4*Propostas!I72) ->  | I65: =IF(Propostas!$C72="","",$I$4*Propostas!J72) ->  | J65: =IF(Propostas!$C72="","",$J$4*Propostas!K72) ->  | K65: =IF(Propostas!$C72="","",$K$4*Propostas!L72) ->  | L65: =IF(Propostas!$C72="","",$L$4*Propostas!M72) ->  | M65: =IF(Propostas!$C72="","",$M$4*Propostas!N72) ->  | N65: =IF(Propostas!$C72="","",$N$4*Propostas!O72) ->  | O65: =IF(Propostas!$C72="","",$O$4*Propostas!P72) ->  | P65: =IF(Propostas!$C72="","",$P$4*Propostas!Q72) ->  | Q65: =IF(Propostas!$C72="","",$Q$4*Propostas!R72) ->  | R65: =IF(Propostas!$C72="","",$R$4*Propostas!S72) ->  | S65: =IF(Propostas!$C72="","",S$4*Parâmetros!$H65/Parâmetros!$H$4) ->  | T65: =IF(Propostas!$C72="","",T$4*Parâmetros!P65/Parâmetros!$P$4) ->  | U65: =IF(Propostas!$C72="","",U$4*Parâmetros!Q65/Parâmetros!$Q$4) ->  | V65: =IF(Propostas!$B72="","",SUM(C65:U65)) ->  | W65: =IF(Propostas!$C72="","",RANK(V65,$V$5:$V$203,0)) -> 
A66: =IF(Propostas!$C73="","",W66) ->  | B66: =Propostas!A73 -> 0 | C66: =IF(Propostas!$C73="","",C$4*Parâmetros!$C$4/Parâmetros!C66) ->  | D66: =IF(Propostas!$C73="","",D$4*(Parâmetros!D66-1)/(COUNT(Parâmetros!$C$5:$C$204)-1)) ->  | E66: =IF(Propostas!$C73="","",E$4*Parâmetros!E66/Parâmetros!$E$4) ->  | F66: =IF(Propostas!$C73="","",F$4*Parâmetros!F66) ->  | G66: =IF(Propostas!$C73="","",G$4*Parâmetros!G66) ->  | H66: =IF(Propostas!$C73="","",$H$4*Propostas!I73) ->  | I66: =IF(Propostas!$C73="","",$I$4*Propostas!J73) ->  | J66: =IF(Propostas!$C73="","",$J$4*Propostas!K73) ->  | K66: =IF(Propostas!$C73="","",$K$4*Propostas!L73) ->  | L66: =IF(Propostas!$C73="","",$L$4*Propostas!M73) ->  | M66: =IF(Propostas!$C73="","",$M$4*Propostas!N73) ->  | N66: =IF(Propostas!$C73="","",$N$4*Propostas!O73) ->  | O66: =IF(Propostas!$C73="","",$O$4*Propostas!P73) ->  | P66: =IF(Propostas!$C73="","",$P$4*Propostas!Q73) ->  | Q66: =IF(Propostas!$C73="","",$Q$4*Propostas!R73) ->  | R66: =IF(Propostas!$C73="","",$R$4*Propostas!S73) ->  | S66: =IF(Propostas!$C73="","",S$4*Parâmetros!$H66/Parâmetros!$H$4) ->  | T66: =IF(Propostas!$C73="","",T$4*Parâmetros!P66/Parâmetros!$P$4) ->  | U66: =IF(Propostas!$C73="","",U$4*Parâmetros!Q66/Parâmetros!$Q$4) ->  | V66: =IF(Propostas!$B73="","",SUM(C66:U66)) ->  | W66: =IF(Propostas!$C73="","",RANK(V66,$V$5:$V$203,0)) -> 
A67: =IF(Propostas!$C74="","",W67) ->  | B67: =Propostas!A74 -> 0 | C67: =IF(Propostas!$C74="","",C$4*Parâmetros!$C$4/Parâmetros!C67) ->  | D67: =IF(Propostas!$C74="","",D$4*(Parâmetros!D67-1)/(COUNT(Parâmetros!$C$5:$C$204)-1)) ->  | E67: =IF(Propostas!$C74="","",E$4*Parâmetros!E67/Parâmetros!$E$4) ->  | F67: =IF(Propostas!$C74="","",F$4*Parâmetros!F67) ->  | G67: =IF(Propostas!$C74="","",G$4*Parâmetros!G67) ->  | H67: =IF(Propostas!$C74="","",$H$4*Propostas!I74) ->  | I67: =IF(Propostas!$C74="","",$I$4*Propostas!J74) ->  | J67: =IF(Propostas!$C74="","",$J$4*Propostas!K74) ->  | K67: =IF(Propostas!$C74="","",$K$4*Propostas!L74) ->  | L67: =IF(Propostas!$C74="","",$L$4*Propostas!M74) ->  | M67: =IF(Propostas!$C74="","",$M$4*Propostas!N74) ->  | N67: =IF(Propostas!$C74="","",$N$4*Propostas!O74) ->  | O67: =IF(Propostas!$C74="","",$O$4*Propostas!P74) ->  | P67: =IF(Propostas!$C74="","",$P$4*Propostas!Q74) ->  | Q67: =IF(Propostas!$C74="","",$Q$4*Propostas!R74) ->  | R67: =IF(Propostas!$C74="","",$R$4*Propostas!S74) ->  | S67: =IF(Propostas!$C74="","",S$4*Parâmetros!$H67/Parâmetros!$H$4) ->  | T67: =IF(Propostas!$C74="","",T$4*Parâmetros!P67/Parâmetros!$P$4) ->  | U67: =IF(Propostas!$C74="","",U$4*Parâmetros!Q67/Parâmetros!$Q$4) ->  | V67: =IF(Propostas!$B74="","",SUM(C67:U67)) ->  | W67: =IF(Propostas!$C74="","",RANK(V67,$V$5:$V$203,0)) -> 
A68: =IF(Propostas!$C75="","",W68) ->  | B68: =Propostas!A75 -> 0 | C68: =IF(Propostas!$C75="","",C$4*Parâmetros!$C$4/Parâmetros!C68) ->  | D68: =IF(Propostas!$C75="","",D$4*(Parâmetros!D68-1)/(COUNT(Parâmetros!$C$5:$C$204)-1)) ->  | E68: =IF(Propostas!$C75="","",E$4*Parâmetros!E68/Parâmetros!$E$4) ->  | F68: =IF(Propostas!$C75="","",F$4*Parâmetros!F68) ->  | G68: =IF(Propostas!$C75="","",G$4*Parâmetros!G68) ->  | H68: =IF(Propostas!$C75="","",$H$4*Propostas!I75) ->  | I68: =IF(Propostas!$C75="","",$I$4*Propostas!J75) ->  | J68: =IF(Propostas!$C75="","",$J$4*Propostas!K75) ->  | K68: =IF(Propostas!$C75="","",$K$4*Propostas!L75) ->  | L68: =IF(Propostas!$C75="","",$L$4*Propostas!M75) ->  | M68: =IF(Propostas!$C75="","",$M$4*Propostas!N75) ->  | N68: =IF(Propostas!$C75="","",$N$4*Propostas!O75) ->  | O68: =IF(Propostas!$C75="","",$O$4*Propostas!P75) ->  | P68: =IF(Propostas!$C75="","",$P$4*Propostas!Q75) ->  | Q68: =IF(Propostas!$C75="","",$Q$4*Propostas!R75) ->  | R68: =IF(Propostas!$C75="","",$R$4*Propostas!S75) ->  | S68: =IF(Propostas!$C75="","",S$4*Parâmetros!$H68/Parâmetros!$H$4) ->  | T68: =IF(Propostas!$C75="","",T$4*Parâmetros!P68/Parâmetros!$P$4) ->  | U68: =IF(Propostas!$C75="","",U$4*Parâmetros!Q68/Parâmetros!$Q$4) ->  | V68: =IF(Propostas!$B75="","",SUM(C68:U68)) ->  | W68: =IF(Propostas!$C75="","",RANK(V68,$V$5:$V$203,0)) -> 
A69: =IF(Propostas!$C76="","",W69) ->  | B69: =Propostas!A76 -> 0 | C69: =IF(Propostas!$C76="","",C$4*Parâmetros!$C$4/Parâmetros!C69) ->  | D69: =IF(Propostas!$C76="","",D$4*(Parâmetros!D69-1)/(COUNT(Parâmetros!$C$5:$C$204)-1)) ->  | E69: =IF(Propostas!$C76="","",E$4*Parâmetros!E69/Parâmetros!$E$4) ->  | F69: =IF(Propostas!$C76="","",F$4*Parâmetros!F69) ->  | G69: =IF(Propostas!$C76="","",G$4*Parâmetros!G69) ->  | H69: =IF(Propostas!$C76="","",$H$4*Propostas!I76) ->  | I69: =IF(Propostas!$C76="","",$I$4*Propostas!J76) ->  | J69: =IF(Propostas!$C76="","",$J$4*Propostas!K76) ->  | K69: =IF(Propostas!$C76="","",$K$4*Propostas!L76) ->  | L69: =IF(Propostas!$C76="","",$L$4*Propostas!M76) ->  | M69: =IF(Propostas!$C76="","",$M$4*Propostas!N76) ->  | N69: =IF(Propostas!$C76="","",$N$4*Propostas!O76) ->  | O69: =IF(Propostas!$C76="","",$O$4*Propostas!P76) ->  | P69: =IF(Propostas!$C76="","",$P$4*Propostas!Q76) ->  | Q69: =IF(Propostas!$C76="","",$Q$4*Propostas!R76) ->  | R69: =IF(Propostas!$C76="","",$R$4*Propostas!S76) ->  | S69: =IF(Propostas!$C76="","",S$4*Parâmetros!$H69/Parâmetros!$H$4) ->  | T69: =IF(Propostas!$C76="","",T$4*Parâmetros!P69/Parâmetros!$P$4) ->  | U69: =IF(Propostas!$C76="","",U$4*Parâmetros!Q69/Parâmetros!$Q$4) ->  | V69: =IF(Propostas!$B76="","",SUM(C69:U69)) ->  | W69: =IF(Propostas!$C76="","",RANK(V69,$V$5:$V$203,0)) -> 
A70: =IF(Propostas!$C77="","",W70) ->  | B70: =Propostas!A77 -> 0 | C70: =IF(Propostas!$C77="","",C$4*Parâmetros!$C$4/Parâmetros!C70) ->  | D70: =IF(Propostas!$C77="","",D$4*(Parâmetros!D70-1)/(COUNT(Parâmetros!$C$5:$C$204)-1)) ->  | E70: =IF(Propostas!$C77="","",E$4*Parâmetros!E70/Parâmetros!$E$4) ->  | F70: =IF(Propostas!$C77="","",F$4*Parâmetros!F70) ->  | G70: =IF(Propostas!$C77="","",G$4*Parâmetros!G70) ->  | H70: =IF(Propostas!$C77="","",$H$4*Propostas!I77) ->  | I70: =IF(Propostas!$C77="","",$I$4*Propostas!J77) ->  | J70: =IF(Propostas!$C77="","",$J$4*Propostas!K77) ->  | K70: =IF(Propostas!$C77="","",$K$4*Propostas!L77) ->  | L70: =IF(Propostas!$C77="","",$L$4*Propostas!M77) ->  | M70: =IF(Propostas!$C77="","",$M$4*Propostas!N77) ->  | N70: =IF(Propostas!$C77="","",$N$4*Propostas!O77) ->  | O70: =IF(Propostas!$C77="","",$O$4*Propostas!P77) ->  | P70: =IF(Propostas!$C77="","",$P$4*Propostas!Q77) ->  | Q70: =IF(Propostas!$C77="","",$Q$4*Propostas!R77) ->  | R70: =IF(Propostas!$C77="","",$R$4*Propostas!S77) ->  | S70: =IF(Propostas!$C77="","",S$4*Parâmetros!$H70/Parâmetros!$H$4) ->  | T70: =IF(Propostas!$C77="","",T$4*Parâmetros!P70/Parâmetros!$P$4) ->  | U70: =IF(Propostas!$C77="","",U$4*Parâmetros!Q70/Parâmetros!$Q$4) ->  | V70: =IF(Propostas!$B77="","",SUM(C70:U70)) ->  | W70: =IF(Propostas!$C77="","",RANK(V70,$V$5:$V$203,0)) -> 
A71: =IF(Propostas!$C78="","",W71) ->  | B71: =Propostas!A78 -> 0 | C71: =IF(Propostas!$C78="","",C$4*Parâmetros!$C$4/Parâmetros!C71) ->  | D71: =IF(Propostas!$C78="","",D$4*(Parâmetros!D71-1)/(COUNT(Parâmetros!$C$5:$C$204)-1)) ->  | E71: =IF(Propostas!$C78="","",E$4*Parâmetros!E71/Parâmetros!$E$4) ->  | F71: =IF(Propostas!$C78="","",F$4*Parâmetros!F71) ->  | G71: =IF(Propostas!$C78="","",G$4*Parâmetros!G71) ->  | H71: =IF(Propostas!$C78="","",$H$4*Propostas!I78) ->  | I71: =IF(Propostas!$C78="","",$I$4*Propostas!J78) ->  | J71: =IF(Propostas!$C78="","",$J$4*Propostas!K78) ->  | K71: =IF(Propostas!$C78="","",$K$4*Propostas!L78) ->  | L71: =IF(Propostas!$C78="","",$L$4*Propostas!M78) ->  | M71: =IF(Propostas!$C78="","",$M$4*Propostas!N78) ->  | N71: =IF(Propostas!$C78="","",$N$4*Propostas!O78) ->  | O71: =IF(Propostas!$C78="","",$O$4*Propostas!P78) ->  | P71: =IF(Propostas!$C78="","",$P$4*Propostas!Q78) ->  | Q71: =IF(Propostas!$C78="","",$Q$4*Propostas!R78) ->  | R71: =IF(Propostas!$C78="","",$R$4*Propostas!S78) ->  | S71: =IF(Propostas!$C78="","",S$4*Parâmetros!$H71/Parâmetros!$H$4) ->  | T71: =IF(Propostas!$C78="","",T$4*Parâmetros!P71/Parâmetros!$P$4) ->  | U71: =IF(Propostas!$C78="","",U$4*Parâmetros!Q71/Parâmetros!$Q$4) ->  | V71: =IF(Propostas!$B78="","",SUM(C71:U71)) ->  | W71: =IF(Propostas!$C78="","",RANK(V71,$V$5:$V$203,0)) -> 
A72: =IF(Propostas!$C79="","",W72) ->  | B72: =Propostas!A79 -> 0 | C72: =IF(Propostas!$C79="","",C$4*Parâmetros!$C$4/Parâmetros!C72) ->  | D72: =IF(Propostas!$C79="","",D$4*(Parâmetros!D72-1)/(COUNT(Parâmetros!$C$5:$C$204)-1)) ->  | E72: =IF(Propostas!$C79="","",E$4*Parâmetros!E72/Parâmetros!$E$4) ->  | F72: =IF(Propostas!$C79="","",F$4*Parâmetros!F72) ->  | G72: =IF(Propostas!$C79="","",G$4*Parâmetros!G72) ->  | H72: =IF(Propostas!$C79="","",$H$4*Propostas!I79) ->  | I72: =IF(Propostas!$C79="","",$I$4*Propostas!J79) ->  | J72: =IF(Propostas!$C79="","",$J$4*Propostas!K79) ->  | K72: =IF(Propostas!$C79="","",$K$4*Propostas!L79) ->  | L72: =IF(Propostas!$C79="","",$L$4*Propostas!M79) ->  | M72: =IF(Propostas!$C79="","",$M$4*Propostas!N79) ->  | N72: =IF(Propostas!$C79="","",$N$4*Propostas!O79) ->  | O72: =IF(Propostas!$C79="","",$O$4*Propostas!P79) ->  | P72: =IF(Propostas!$C79="","",$P$4*Propostas!Q79) ->  | Q72: =IF(Propostas!$C79="","",$Q$4*Propostas!R79) ->  | R72: =IF(Propostas!$C79="","",$R$4*Propostas!S79) ->  | S72: =IF(Propostas!$C79="","",S$4*Parâmetros!$H72/Parâmetros!$H$4) ->  | T72: =IF(Propostas!$C79="","",T$4*Parâmetros!P72/Parâmetros!$P$4) ->  | U72: =IF(Propostas!$C79="","",U$4*Parâmetros!Q72/Parâmetros!$Q$4) ->  | V72: =IF(Propostas!$B79="","",SUM(C72:U72)) ->  | W72: =IF(Propostas!$C79="","",RANK(V72,$V$5:$V$203,0)) -> 
A73: =IF(Propostas!$C80="","",W73) ->  | B73: =Propostas!A80 -> 0 | C73: =IF(Propostas!$C80="","",C$4*Parâmetros!$C$4/Parâmetros!C73) ->  | D73: =IF(Propostas!$C80="","",D$4*(Parâmetros!D73-1)/(COUNT(Parâmetros!$C$5:$C$204)-1)) ->  | E73: =IF(Propostas!$C80="","",E$4*Parâmetros!E73/Parâmetros!$E$4) ->  | F73: =IF(Propostas!$C80="","",F$4*Parâmetros!F73) ->  | G73: =IF(Propostas!$C80="","",G$4*Parâmetros!G73) ->  | H73: =IF(Propostas!$C80="","",$H$4*Propostas!I80) ->  | I73: =IF(Propostas!$C80="","",$I$4*Propostas!J80) ->  | J73: =IF(Propostas!$C80="","",$J$4*Propostas!K80) ->  | K73: =IF(Propostas!$C80="","",$K$4*Propostas!L80) ->  | L73: =IF(Propostas!$C80="","",$L$4*Propostas!M80) ->  | M73: =IF(Propostas!$C80="","",$M$4*Propostas!N80) ->  | N73: =IF(Propostas!$C80="","",$N$4*Propostas!O80) ->  | O73: =IF(Propostas!$C80="","",$O$4*Propostas!P80) ->  | P73: =IF(Propostas!$C80="","",$P$4*Propostas!Q80) ->  | Q73: =IF(Propostas!$C80="","",$Q$4*Propostas!R80) ->  | R73: =IF(Propostas!$C80="","",$R$4*Propostas!S80) ->  | S73: =IF(Propostas!$C80="","",S$4*Parâmetros!$H73/Parâmetros!$H$4) ->  | T73: =IF(Propostas!$C80="","",T$4*Parâmetros!P73/Parâmetros!$P$4) ->  | U73: =IF(Propostas!$C80="","",U$4*Parâmetros!Q73/Parâmetros!$Q$4) ->  | V73: =IF(Propostas!$B80="","",SUM(C73:U73)) ->  | W73: =IF(Propostas!$C80="","",RANK(V73,$V$5:$V$203,0)) -> 
A74: =IF(Propostas!$C81="","",W74) ->  | B74: =Propostas!A81 -> 0 | C74: =IF(Propostas!$C81="","",C$4*Parâmetros!$C$4/Parâmetros!C74) ->  | D74: =IF(Propostas!$C81="","",D$4*(Parâmetros!D74-1)/(COUNT(Parâmetros!$C$5:$C$204)-1)) ->  | E74: =IF(Propostas!$C81="","",E$4*Parâmetros!E74/Parâmetros!$E$4) ->  | F74: =IF(Propostas!$C81="","",F$4*Parâmetros!F74) ->  | G74: =IF(Propostas!$C81="","",G$4*Parâmetros!G74) ->  | H74: =IF(Propostas!$C81="","",$H$4*Propostas!I81) ->  | I74: =IF(Propostas!$C81="","",$I$4*Propostas!J81) ->  | J74: =IF(Propostas!$C81="","",$J$4*Propostas!K81) ->  | K74: =IF(Propostas!$C81="","",$K$4*Propostas!L81) ->  | L74: =IF(Propostas!$C81="","",$L$4*Propostas!M81) ->  | M74: =IF(Propostas!$C81="","",$M$4*Propostas!N81) ->  | N74: =IF(Propostas!$C81="","",$N$4*Propostas!O81) ->  | O74: =IF(Propostas!$C81="","",$O$4*Propostas!P81) ->  | P74: =IF(Propostas!$C81="","",$P$4*Propostas!Q81) ->  | Q74: =IF(Propostas!$C81="","",$Q$4*Propostas!R81) ->  | R74: =IF(Propostas!$C81="","",$R$4*Propostas!S81) ->  | S74: =IF(Propostas!$C81="","",S$4*Parâmetros!$H74/Parâmetros!$H$4) ->  | T74: =IF(Propostas!$C81="","",T$4*Parâmetros!P74/Parâmetros!$P$4) ->  | U74: =IF(Propostas!$C81="","",U$4*Parâmetros!Q74/Parâmetros!$Q$4) ->  | V74: =IF(Propostas!$B81="","",SUM(C74:U74)) ->  | W74: =IF(Propostas!$C81="","",RANK(V74,$V$5:$V$203,0)) -> 
A75: =IF(Propostas!$C82="","",W75) ->  | B75: =Propostas!A82 -> 0 | C75: =IF(Propostas!$C82="","",C$4*Parâmetros!$C$4/Parâmetros!C75) ->  | D75: =IF(Propostas!$C82="","",D$4*(Parâmetros!D75-1)/(COUNT(Parâmetros!$C$5:$C$204)-1)) ->  | E75: =IF(Propostas!$C82="","",E$4*Parâmetros!E75/Parâmetros!$E$4) ->  | F75: =IF(Propostas!$C82="","",F$4*Parâmetros!F75) ->  | G75: =IF(Propostas!$C82="","",G$4*Parâmetros!G75) ->  | H75: =IF(Propostas!$C82="","",$H$4*Propostas!I82) ->  | I75: =IF(Propostas!$C82="","",$I$4*Propostas!J82) ->  | J75: =IF(Propostas!$C82="","",$J$4*Propostas!K82) ->  | K75: =IF(Propostas!$C82="","",$K$4*Propostas!L82) ->  | L75: =IF(Propostas!$C82="","",$L$4*Propostas!M82) ->  | M75: =IF(Propostas!$C82="","",$M$4*Propostas!N82) ->  | N75: =IF(Propostas!$C82="","",$N$4*Propostas!O82) ->  | O75: =IF(Propostas!$C82="","",$O$4*Propostas!P82) ->  | P75: =IF(Propostas!$C82="","",$P$4*Propostas!Q82) ->  | Q75: =IF(Propostas!$C82="","",$Q$4*Propostas!R82) ->  | R75: =IF(Propostas!$C82="","",$R$4*Propostas!S82) ->  | S75: =IF(Propostas!$C82="","",S$4*Parâmetros!$H75/Parâmetros!$H$4) ->  | T75: =IF(Propostas!$C82="","",T$4*Parâmetros!P75/Parâmetros!$P$4) ->  | U75: =IF(Propostas!$C82="","",U$4*Parâmetros!Q75/Parâmetros!$Q$4) ->  | V75: =IF(Propostas!$B82="","",SUM(C75:U75)) ->  | W75: =IF(Propostas!$C82="","",RANK(V75,$V$5:$V$203,0)) -> 
A76: =IF(Propostas!$C83="","",W76) ->  | B76: =Propostas!A83 -> 0 | C76: =IF(Propostas!$C83="","",C$4*Parâmetros!$C$4/Parâmetros!C76) ->  | D76: =IF(Propostas!$C83="","",D$4*(Parâmetros!D76-1)/(COUNT(Parâmetros!$C$5:$C$204)-1)) ->  | E76: =IF(Propostas!$C83="","",E$4*Parâmetros!E76/Parâmetros!$E$4) ->  | F76: =IF(Propostas!$C83="","",F$4*Parâmetros!F76) ->  | G76: =IF(Propostas!$C83="","",G$4*Parâmetros!G76) ->  | H76: =IF(Propostas!$C83="","",$H$4*Propostas!I83) ->  | I76: =IF(Propostas!$C83="","",$I$4*Propostas!J83) ->  | J76: =IF(Propostas!$C83="","",$J$4*Propostas!K83) ->  | K76: =IF(Propostas!$C83="","",$K$4*Propostas!L83) ->  | L76: =IF(Propostas!$C83="","",$L$4*Propostas!M83) ->  | M76: =IF(Propostas!$C83="","",$M$4*Propostas!N83) ->  | N76: =IF(Propostas!$C83="","",$N$4*Propostas!O83) ->  | O76: =IF(Propostas!$C83="","",$O$4*Propostas!P83) ->  | P76: =IF(Propostas!$C83="","",$P$4*Propostas!Q83) ->  | Q76: =IF(Propostas!$C83="","",$Q$4*Propostas!R83) ->  | R76: =IF(Propostas!$C83="","",$R$4*Propostas!S83) ->  | S76: =IF(Propostas!$C83="","",S$4*Parâmetros!$H76/Parâmetros!$H$4) ->  | T76: =IF(Propostas!$C83="","",T$4*Parâmetros!P76/Parâmetros!$P$4) ->  | U76: =IF(Propostas!$C83="","",U$4*Parâmetros!Q76/Parâmetros!$Q$4) ->  | V76: =IF(Propostas!$B83="","",SUM(C76:U76)) ->  | W76: =IF(Propostas!$C83="","",RANK(V76,$V$5:$V$203,0)) -> 
A77: =IF(Propostas!$C84="","",W77) ->  | B77: =Propostas!A84 -> 0 | C77: =IF(Propostas!$C84="","",C$4*Parâmetros!$C$4/Parâmetros!C77) ->  | D77: =IF(Propostas!$C84="","",D$4*(Parâmetros!D77-1)/(COUNT(Parâmetros!$C$5:$C$204)-1)) ->  | E77: =IF(Propostas!$C84="","",E$4*Parâmetros!E77/Parâmetros!$E$4) ->  | F77: =IF(Propostas!$C84="","",F$4*Parâmetros!F77) ->  | G77: =IF(Propostas!$C84="","",G$4*Parâmetros!G77) ->  | H77: =IF(Propostas!$C84="","",$H$4*Propostas!I84) ->  | I77: =IF(Propostas!$C84="","",$I$4*Propostas!J84) ->  | J77: =IF(Propostas!$C84="","",$J$4*Propostas!K84) ->  | K77: =IF(Propostas!$C84="","",$K$4*Propostas!L84) ->  | L77: =IF(Propostas!$C84="","",$L$4*Propostas!M84) ->  | M77: =IF(Propostas!$C84="","",$M$4*Propostas!N84) ->  | N77: =IF(Propostas!$C84="","",$N$4*Propostas!O84) ->  | O77: =IF(Propostas!$C84="","",$O$4*Propostas!P84) ->  | P77: =IF(Propostas!$C84="","",$P$4*Propostas!Q84) ->  | Q77: =IF(Propostas!$C84="","",$Q$4*Propostas!R84) ->  | R77: =IF(Propostas!$C84="","",$R$4*Propostas!S84) ->  | S77: =IF(Propostas!$C84="","",S$4*Parâmetros!$H77/Parâmetros!$H$4) ->  | T77: =IF(Propostas!$C84="","",T$4*Parâmetros!P77/Parâmetros!$P$4) ->  | U77: =IF(Propostas!$C84="","",U$4*Parâmetros!Q77/Parâmetros!$Q$4) ->  | V77: =IF(Propostas!$B84="","",SUM(C77:U77)) ->  | W77: =IF(Propostas!$C84="","",RANK(V77,$V$5:$V$203,0)) -> 
A78: =IF(Propostas!$C85="","",W78) ->  | B78: =Propostas!A85 -> 0 | C78: =IF(Propostas!$C85="","",C$4*Parâmetros!$C$4/Parâmetros!C78) ->  | D78: =IF(Propostas!$C85="","",D$4*(Parâmetros!D78-1)/(COUNT(Parâmetros!$C$5:$C$204)-1)) ->  | E78: =IF(Propostas!$C85="","",E$4*Parâmetros!E78/Parâmetros!$E$4) ->  | F78: =IF(Propostas!$C85="","",F$4*Parâmetros!F78) ->  | G78: =IF(Propostas!$C85="","",G$4*Parâmetros!G78) ->  | H78: =IF(Propostas!$C85="","",$H$4*Propostas!I85) ->  | I78: =IF(Propostas!$C85="","",$I$4*Propostas!J85) ->  | J78: =IF(Propostas!$C85="","",$J$4*Propostas!K85) ->  | K78: =IF(Propostas!$C85="","",$K$4*Propostas!L85) ->  | L78: =IF(Propostas!$C85="","",$L$4*Propostas!M85) ->  | M78: =IF(Propostas!$C85="","",$M$4*Propostas!N85) ->  | N78: =IF(Propostas!$C85="","",$N$4*Propostas!O85) ->  | O78: =IF(Propostas!$C85="","",$O$4*Propostas!P85) ->  | P78: =IF(Propostas!$C85="","",$P$4*Propostas!Q85) ->  | Q78: =IF(Propostas!$C85="","",$Q$4*Propostas!R85) ->  | R78: =IF(Propostas!$C85="","",$R$4*Propostas!S85) ->  | S78: =IF(Propostas!$C85="","",S$4*Parâmetros!$H78/Parâmetros!$H$4) ->  | T78: =IF(Propostas!$C85="","",T$4*Parâmetros!P78/Parâmetros!$P$4) ->  | U78: =IF(Propostas!$C85="","",U$4*Parâmetros!Q78/Parâmetros!$Q$4) ->  | V78: =IF(Propostas!$B85="","",SUM(C78:U78)) ->  | W78: =IF(Propostas!$C85="","",RANK(V78,$V$5:$V$203,0)) -> 
A79: =IF(Propostas!$C86="","",W79) ->  | B79: =Propostas!A86 -> 0 | C79: =IF(Propostas!$C86="","",C$4*Parâmetros!$C$4/Parâmetros!C79) ->  | D79: =IF(Propostas!$C86="","",D$4*(Parâmetros!D79-1)/(COUNT(Parâmetros!$C$5:$C$204)-1)) ->  | E79: =IF(Propostas!$C86="","",E$4*Parâmetros!E79/Parâmetros!$E$4) ->  | F79: =IF(Propostas!$C86="","",F$4*Parâmetros!F79) ->  | G79: =IF(Propostas!$C86="","",G$4*Parâmetros!G79) ->  | H79: =IF(Propostas!$C86="","",$H$4*Propostas!I86) ->  | I79: =IF(Propostas!$C86="","",$I$4*Propostas!J86) ->  | J79: =IF(Propostas!$C86="","",$J$4*Propostas!K86) ->  | K79: =IF(Propostas!$C86="","",$K$4*Propostas!L86) ->  | L79: =IF(Propostas!$C86="","",$L$4*Propostas!M86) ->  | M79: =IF(Propostas!$C86="","",$M$4*Propostas!N86) ->  | N79: =IF(Propostas!$C86="","",$N$4*Propostas!O86) ->  | O79: =IF(Propostas!$C86="","",$O$4*Propostas!P86) ->  | P79: =IF(Propostas!$C86="","",$P$4*Propostas!Q86) ->  | Q79: =IF(Propostas!$C86="","",$Q$4*Propostas!R86) ->  | R79: =IF(Propostas!$C86="","",$R$4*Propostas!S86) ->  | S79: =IF(Propostas!$C86="","",S$4*Parâmetros!$H79/Parâmetros!$H$4) ->  | T79: =IF(Propostas!$C86="","",T$4*Parâmetros!P79/Parâmetros!$P$4) ->  | U79: =IF(Propostas!$C86="","",U$4*Parâmetros!Q79/Parâmetros!$Q$4) ->  | V79: =IF(Propostas!$B86="","",SUM(C79:U79)) ->  | W79: =IF(Propostas!$C86="","",RANK(V79,$V$5:$V$203,0)) -> 
A80: =IF(Propostas!$C87="","",W80) ->  | B80: =Propostas!A87 -> 0 | C80: =IF(Propostas!$C87="","",C$4*Parâmetros!$C$4/Parâmetros!C80) ->  | D80: =IF(Propostas!$C87="","",D$4*(Parâmetros!D80-1)/(COUNT(Parâmetros!$C$5:$C$204)-1)) ->  | E80: =IF(Propostas!$C87="","",E$4*Parâmetros!E80/Parâmetros!$E$4) ->  | F80: =IF(Propostas!$C87="","",F$4*Parâmetros!F80) ->  | G80: =IF(Propostas!$C87="","",G$4*Parâmetros!G80) ->  | H80: =IF(Propostas!$C87="","",$H$4*Propostas!I87) ->  | I80: =IF(Propostas!$C87="","",$I$4*Propostas!J87) ->  | J80: =IF(Propostas!$C87="","",$J$4*Propostas!K87) ->  | K80: =IF(Propostas!$C87="","",$K$4*Propostas!L87) ->  | L80: =IF(Propostas!$C87="","",$L$4*Propostas!M87) ->  | M80: =IF(Propostas!$C87="","",$M$4*Propostas!N87) ->  | N80: =IF(Propostas!$C87="","",$N$4*Propostas!O87) ->  | O80: =IF(Propostas!$C87="","",$O$4*Propostas!P87) ->  | P80: =IF(Propostas!$C87="","",$P$4*Propostas!Q87) ->  | Q80: =IF(Propostas!$C87="","",$Q$4*Propostas!R87) ->  | R80: =IF(Propostas!$C87="","",$R$4*Propostas!S87) ->  | S80: =IF(Propostas!$C87="","",S$4*Parâmetros!$H80/Parâmetros!$H$4) ->  | T80: =IF(Propostas!$C87="","",T$4*Parâmetros!P80/Parâmetros!$P$4) ->  | U80: =IF(Propostas!$C87="","",U$4*Parâmetros!Q80/Parâmetros!$Q$4) ->  | V80: =IF(Propostas!$B87="","",SUM(C80:U80)) ->  | W80: =IF(Propostas!$C87="","",RANK(V80,$V$5:$V$203,0)) -> 
A81: =IF(Propostas!$C88="","",W81) ->  | B81: =Propostas!A88 -> 0 | C81: =IF(Propostas!$C88="","",C$4*Parâmetros!$C$4/Parâmetros!C81) ->  | D81: =IF(Propostas!$C88="","",D$4*(Parâmetros!D81-1)/(COUNT(Parâmetros!$C$5:$C$204)-1)) ->  | E81: =IF(Propostas!$C88="","",E$4*Parâmetros!E81/Parâmetros!$E$4) ->  | F81: =IF(Propostas!$C88="","",F$4*Parâmetros!F81) ->  | G81: =IF(Propostas!$C88="","",G$4*Parâmetros!G81) ->  | H81: =IF(Propostas!$C88="","",$H$4*Propostas!I88) ->  | I81: =IF(Propostas!$C88="","",$I$4*Propostas!J88) ->  | J81: =IF(Propostas!$C88="","",$J$4*Propostas!K88) ->  | K81: =IF(Propostas!$C88="","",$K$4*Propostas!L88) ->  | L81: =IF(Propostas!$C88="","",$L$4*Propostas!M88) ->  | M81: =IF(Propostas!$C88="","",$M$4*Propostas!N88) ->  | N81: =IF(Propostas!$C88="","",$N$4*Propostas!O88) ->  | O81: =IF(Propostas!$C88="","",$O$4*Propostas!P88) ->  | P81: =IF(Propostas!$C88="","",$P$4*Propostas!Q88) ->  | Q81: =IF(Propostas!$C88="","",$Q$4*Propostas!R88) ->  | R81: =IF(Propostas!$C88="","",$R$4*Propostas!S88) ->  | S81: =IF(Propostas!$C88="","",S$4*Parâmetros!$H81/Parâmetros!$H$4) ->  | T81: =IF(Propostas!$C88="","",T$4*Parâmetros!P81/Parâmetros!$P$4) ->  | U81: =IF(Propostas!$C88="","",U$4*Parâmetros!Q81/Parâmetros!$Q$4) ->  | V81: =IF(Propostas!$B88="","",SUM(C81:U81)) ->  | W81: =IF(Propostas!$C88="","",RANK(V81,$V$5:$V$203,0)) -> 
A82: =IF(Propostas!$C89="","",W82) ->  | B82: =Propostas!A89 -> 0 | C82: =IF(Propostas!$C89="","",C$4*Parâmetros!$C$4/Parâmetros!C82) ->  | D82: =IF(Propostas!$C89="","",D$4*(Parâmetros!D82-1)/(COUNT(Parâmetros!$C$5:$C$204)-1)) ->  | E82: =IF(Propostas!$C89="","",E$4*Parâmetros!E82/Parâmetros!$E$4) ->  | F82: =IF(Propostas!$C89="","",F$4*Parâmetros!F82) ->  | G82: =IF(Propostas!$C89="","",G$4*Parâmetros!G82) ->  | H82: =IF(Propostas!$C89="","",$H$4*Propostas!I89) ->  | I82: =IF(Propostas!$C89="","",$I$4*Propostas!J89) ->  | J82: =IF(Propostas!$C89="","",$J$4*Propostas!K89) ->  | K82: =IF(Propostas!$C89="","",$K$4*Propostas!L89) ->  | L82: =IF(Propostas!$C89="","",$L$4*Propostas!M89) ->  | M82: =IF(Propostas!$C89="","",$M$4*Propostas!N89) ->  | N82: =IF(Propostas!$C89="","",$N$4*Propostas!O89) ->  | O82: =IF(Propostas!$C89="","",$O$4*Propostas!P89) ->  | P82: =IF(Propostas!$C89="","",$P$4*Propostas!Q89) ->  | Q82: =IF(Propostas!$C89="","",$Q$4*Propostas!R89) ->  | R82: =IF(Propostas!$C89="","",$R$4*Propostas!S89) ->  | S82: =IF(Propostas!$C89="","",S$4*Parâmetros!$H82/Parâmetros!$H$4) ->  | T82: =IF(Propostas!$C89="","",T$4*Parâmetros!P82/Parâmetros!$P$4) ->  | U82: =IF(Propostas!$C89="","",U$4*Parâmetros!Q82/Parâmetros!$Q$4) ->  | V82: =IF(Propostas!$B89="","",SUM(C82:U82)) ->  | W82: =IF(Propostas!$C89="","",RANK(V82,$V$5:$V$203,0)) -> 
A83: =IF(Propostas!$C90="","",W83) ->  | B83: =Propostas!A90 -> 0 | C83: =IF(Propostas!$C90="","",C$4*Parâmetros!$C$4/Parâmetros!C83) ->  | D83: =IF(Propostas!$C90="","",D$4*(Parâmetros!D83-1)/(COUNT(Parâmetros!$C$5:$C$204)-1)) ->  | E83: =IF(Propostas!$C90="","",E$4*Parâmetros!E83/Parâmetros!$E$4) ->  | F83: =IF(Propostas!$C90="","",F$4*Parâmetros!F83) ->  | G83: =IF(Propostas!$C90="","",G$4*Parâmetros!G83) ->  | H83: =IF(Propostas!$C90="","",$H$4*Propostas!I90) ->  | I83: =IF(Propostas!$C90="","",$I$4*Propostas!J90) ->  | J83: =IF(Propostas!$C90="","",$J$4*Propostas!K90) ->  | K83: =IF(Propostas!$C90="","",$K$4*Propostas!L90) ->  | L83: =IF(Propostas!$C90="","",$L$4*Propostas!M90) ->  | M83: =IF(Propostas!$C90="","",$M$4*Propostas!N90) ->  | N83: =IF(Propostas!$C90="","",$N$4*Propostas!O90) ->  | O83: =IF(Propostas!$C90="","",$O$4*Propostas!P90) ->  | P83: =IF(Propostas!$C90="","",$P$4*Propostas!Q90) ->  | Q83: =IF(Propostas!$C90="","",$Q$4*Propostas!R90) ->  | R83: =IF(Propostas!$C90="","",$R$4*Propostas!S90) ->  | S83: =IF(Propostas!$C90="","",S$4*Parâmetros!$H83/Parâmetros!$H$4) ->  | T83: =IF(Propostas!$C90="","",T$4*Parâmetros!P83/Parâmetros!$P$4) ->  | U83: =IF(Propostas!$C90="","",U$4*Parâmetros!Q83/Parâmetros!$Q$4) ->  | V83: =IF(Propostas!$B90="","",SUM(C83:U83)) ->  | W83: =IF(Propostas!$C90="","",RANK(V83,$V$5:$V$203,0)) -> 
A84: =IF(Propostas!$C91="","",W84) ->  | B84: =Propostas!A91 -> 0 | C84: =IF(Propostas!$C91="","",C$4*Parâmetros!$C$4/Parâmetros!C84) ->  | D84: =IF(Propostas!$C91="","",D$4*(Parâmetros!D84-1)/(COUNT(Parâmetros!$C$5:$C$204)-1)) ->  | E84: =IF(Propostas!$C91="","",E$4*Parâmetros!E84/Parâmetros!$E$4) ->  | F84: =IF(Propostas!$C91="","",F$4*Parâmetros!F84) ->  | G84: =IF(Propostas!$C91="","",G$4*Parâmetros!G84) ->  | H84: =IF(Propostas!$C91="","",$H$4*Propostas!I91) ->  | I84: =IF(Propostas!$C91="","",$I$4*Propostas!J91) ->  | J84: =IF(Propostas!$C91="","",$J$4*Propostas!K91) ->  | K84: =IF(Propostas!$C91="","",$K$4*Propostas!L91) ->  | L84: =IF(Propostas!$C91="","",$L$4*Propostas!M91) ->  | M84: =IF(Propostas!$C91="","",$M$4*Propostas!N91) ->  | N84: =IF(Propostas!$C91="","",$N$4*Propostas!O91) ->  | O84: =IF(Propostas!$C91="","",$O$4*Propostas!P91) ->  | P84: =IF(Propostas!$C91="","",$P$4*Propostas!Q91) ->  | Q84: =IF(Propostas!$C91="","",$Q$4*Propostas!R91) ->  | R84: =IF(Propostas!$C91="","",$R$4*Propostas!S91) ->  | S84: =IF(Propostas!$C91="","",S$4*Parâmetros!$H84/Parâmetros!$H$4) ->  | T84: =IF(Propostas!$C91="","",T$4*Parâmetros!P84/Parâmetros!$P$4) ->  | U84: =IF(Propostas!$C91="","",U$4*Parâmetros!Q84/Parâmetros!$Q$4) ->  | V84: =IF(Propostas!$B91="","",SUM(C84:U84)) ->  | W84: =IF(Propostas!$C91="","",RANK(V84,$V$5:$V$203,0)) -> 
A85: =IF(Propostas!$C92="","",W85) ->  | B85: =Propostas!A92 -> 0 | C85: =IF(Propostas!$C92="","",C$4*Parâmetros!$C$4/Parâmetros!C85) ->  | D85: =IF(Propostas!$C92="","",D$4*(Parâmetros!D85-1)/(COUNT(Parâmetros!$C$5:$C$204)-1)) ->  | E85: =IF(Propostas!$C92="","",E$4*Parâmetros!E85/Parâmetros!$E$4) ->  | F85: =IF(Propostas!$C92="","",F$4*Parâmetros!F85) ->  | G85: =IF(Propostas!$C92="","",G$4*Parâmetros!G85) ->  | H85: =IF(Propostas!$C92="","",$H$4*Propostas!I92) ->  | I85: =IF(Propostas!$C92="","",$I$4*Propostas!J92) ->  | J85: =IF(Propostas!$C92="","",$J$4*Propostas!K92) ->  | K85: =IF(Propostas!$C92="","",$K$4*Propostas!L92) ->  | L85: =IF(Propostas!$C92="","",$L$4*Propostas!M92) ->  | M85: =IF(Propostas!$C92="","",$M$4*Propostas!N92) ->  | N85: =IF(Propostas!$C92="","",$N$4*Propostas!O92) ->  | O85: =IF(Propostas!$C92="","",$O$4*Propostas!P92) ->  | P85: =IF(Propostas!$C92="","",$P$4*Propostas!Q92) ->  | Q85: =IF(Propostas!$C92="","",$Q$4*Propostas!R92) ->  | R85: =IF(Propostas!$C92="","",$R$4*Propostas!S92) ->  | S85: =IF(Propostas!$C92="","",S$4*Parâmetros!$H85/Parâmetros!$H$4) ->  | T85: =IF(Propostas!$C92="","",T$4*Parâmetros!P85/Parâmetros!$P$4) ->  | U85: =IF(Propostas!$C92="","",U$4*Parâmetros!Q85/Parâmetros!$Q$4) ->  | V85: =IF(Propostas!$B92="","",SUM(C85:U85)) ->  | W85: =IF(Propostas!$C92="","",RANK(V85,$V$5:$V$203,0)) -> 
A86: =IF(Propostas!$C93="","",W86) ->  | B86: =Propostas!A93 -> 0 | C86: =IF(Propostas!$C93="","",C$4*Parâmetros!$C$4/Parâmetros!C86) ->  | D86: =IF(Propostas!$C93="","",D$4*(Parâmetros!D86-1)/(COUNT(Parâmetros!$C$5:$C$204)-1)) ->  | E86: =IF(Propostas!$C93="","",E$4*Parâmetros!E86/Parâmetros!$E$4) ->  | F86: =IF(Propostas!$C93="","",F$4*Parâmetros!F86) ->  | G86: =IF(Propostas!$C93="","",G$4*Parâmetros!G86) ->  | H86: =IF(Propostas!$C93="","",$H$4*Propostas!I93) ->  | I86: =IF(Propostas!$C93="","",$I$4*Propostas!J93) ->  | J86: =IF(Propostas!$C93="","",$J$4*Propostas!K93) ->  | K86: =IF(Propostas!$C93="","",$K$4*Propostas!L93) ->  | L86: =IF(Propostas!$C93="","",$L$4*Propostas!M93) ->  | M86: =IF(Propostas!$C93="","",$M$4*Propostas!N93) ->  | N86: =IF(Propostas!$C93="","",$N$4*Propostas!O93) ->  | O86: =IF(Propostas!$C93="","",$O$4*Propostas!P93) ->  | P86: =IF(Propostas!$C93="","",$P$4*Propostas!Q93) ->  | Q86: =IF(Propostas!$C93="","",$Q$4*Propostas!R93) ->  | R86: =IF(Propostas!$C93="","",$R$4*Propostas!S93) ->  | S86: =IF(Propostas!$C93="","",S$4*Parâmetros!$H86/Parâmetros!$H$4) ->  | T86: =IF(Propostas!$C93="","",T$4*Parâmetros!P86/Parâmetros!$P$4) ->  | U86: =IF(Propostas!$C93="","",U$4*Parâmetros!Q86/Parâmetros!$Q$4) ->  | V86: =IF(Propostas!$B93="","",SUM(C86:U86)) ->  | W86: =IF(Propostas!$C93="","",RANK(V86,$V$5:$V$203,0)) -> 
A87: =IF(Propostas!$C94="","",W87) ->  | B87: =Propostas!A94 -> 0 | C87: =IF(Propostas!$C94="","",C$4*Parâmetros!$C$4/Parâmetros!C87) ->  | D87: =IF(Propostas!$C94="","",D$4*(Parâmetros!D87-1)/(COUNT(Parâmetros!$C$5:$C$204)-1)) ->  | E87: =IF(Propostas!$C94="","",E$4*Parâmetros!E87/Parâmetros!$E$4) ->  | F87: =IF(Propostas!$C94="","",F$4*Parâmetros!F87) ->  | G87: =IF(Propostas!$C94="","",G$4*Parâmetros!G87) ->  | H87: =IF(Propostas!$C94="","",$H$4*Propostas!I94) ->  | I87: =IF(Propostas!$C94="","",$I$4*Propostas!J94) ->  | J87: =IF(Propostas!$C94="","",$J$4*Propostas!K94) ->  | K87: =IF(Propostas!$C94="","",$K$4*Propostas!L94) ->  | L87: =IF(Propostas!$C94="","",$L$4*Propostas!M94) ->  | M87: =IF(Propostas!$C94="","",$M$4*Propostas!N94) ->  | N87: =IF(Propostas!$C94="","",$N$4*Propostas!O94) ->  | O87: =IF(Propostas!$C94="","",$O$4*Propostas!P94) ->  | P87: =IF(Propostas!$C94="","",$P$4*Propostas!Q94) ->  | Q87: =IF(Propostas!$C94="","",$Q$4*Propostas!R94) ->  | R87: =IF(Propostas!$C94="","",$R$4*Propostas!S94) ->  | S87: =IF(Propostas!$C94="","",S$4*Parâmetros!$H87/Parâmetros!$H$4) ->  | T87: =IF(Propostas!$C94="","",T$4*Parâmetros!P87/Parâmetros!$P$4) ->  | U87: =IF(Propostas!$C94="","",U$4*Parâmetros!Q87/Parâmetros!$Q$4) ->  | V87: =IF(Propostas!$B94="","",SUM(C87:U87)) ->  | W87: =IF(Propostas!$C94="","",RANK(V87,$V$5:$V$203,0)) -> 
A88: =IF(Propostas!$C95="","",W88) ->  | B88: =Propostas!A95 -> 0 | C88: =IF(Propostas!$C95="","",C$4*Parâmetros!$C$4/Parâmetros!C88) ->  | D88: =IF(Propostas!$C95="","",D$4*(Parâmetros!D88-1)/(COUNT(Parâmetros!$C$5:$C$204)-1)) ->  | E88: =IF(Propostas!$C95="","",E$4*Parâmetros!E88/Parâmetros!$E$4) ->  | F88: =IF(Propostas!$C95="","",F$4*Parâmetros!F88) ->  | G88: =IF(Propostas!$C95="","",G$4*Parâmetros!G88) ->  | H88: =IF(Propostas!$C95="","",$H$4*Propostas!I95) ->  | I88: =IF(Propostas!$C95="","",$I$4*Propostas!J95) ->  | J88: =IF(Propostas!$C95="","",$J$4*Propostas!K95) ->  | K88: =IF(Propostas!$C95="","",$K$4*Propostas!L95) ->  | L88: =IF(Propostas!$C95="","",$L$4*Propostas!M95) ->  | M88: =IF(Propostas!$C95="","",$M$4*Propostas!N95) ->  | N88: =IF(Propostas!$C95="","",$N$4*Propostas!O95) ->  | O88: =IF(Propostas!$C95="","",$O$4*Propostas!P95) ->  | P88: =IF(Propostas!$C95="","",$P$4*Propostas!Q95) ->  | Q88: =IF(Propostas!$C95="","",$Q$4*Propostas!R95) ->  | R88: =IF(Propostas!$C95="","",$R$4*Propostas!S95) ->  | S88: =IF(Propostas!$C95="","",S$4*Parâmetros!$H88/Parâmetros!$H$4) ->  | T88: =IF(Propostas!$C95="","",T$4*Parâmetros!P88/Parâmetros!$P$4) ->  | U88: =IF(Propostas!$C95="","",U$4*Parâmetros!Q88/Parâmetros!$Q$4) ->  | V88: =IF(Propostas!$B95="","",SUM(C88:U88)) ->  | W88: =IF(Propostas!$C95="","",RANK(V88,$V$5:$V$203,0)) -> 
A89: =IF(Propostas!$C96="","",W89) ->  | B89: =Propostas!A96 -> 0 | C89: =IF(Propostas!$C96="","",C$4*Parâmetros!$C$4/Parâmetros!C89) ->  | D89: =IF(Propostas!$C96="","",D$4*(Parâmetros!D89-1)/(COUNT(Parâmetros!$C$5:$C$204)-1)) ->  | E89: =IF(Propostas!$C96="","",E$4*Parâmetros!E89/Parâmetros!$E$4) ->  | F89: =IF(Propostas!$C96="","",F$4*Parâmetros!F89) ->  | G89: =IF(Propostas!$C96="","",G$4*Parâmetros!G89) ->  | H89: =IF(Propostas!$C96="","",$H$4*Propostas!I96) ->  | I89: =IF(Propostas!$C96="","",$I$4*Propostas!J96) ->  | J89: =IF(Propostas!$C96="","",$J$4*Propostas!K96) ->  | K89: =IF(Propostas!$C96="","",$K$4*Propostas!L96) ->  | L89: =IF(Propostas!$C96="","",$L$4*Propostas!M96) ->  | M89: =IF(Propostas!$C96="","",$M$4*Propostas!N96) ->  | N89: =IF(Propostas!$C96="","",$N$4*Propostas!O96) ->  | O89: =IF(Propostas!$C96="","",$O$4*Propostas!P96) ->  | P89: =IF(Propostas!$C96="","",$P$4*Propostas!Q96) ->  | Q89: =IF(Propostas!$C96="","",$Q$4*Propostas!R96) ->  | R89: =IF(Propostas!$C96="","",$R$4*Propostas!S96) ->  | S89: =IF(Propostas!$C96="","",S$4*Parâmetros!$H89/Parâmetros!$H$4) ->  | T89: =IF(Propostas!$C96="","",T$4*Parâmetros!P89/Parâmetros!$P$4) ->  | U89: =IF(Propostas!$C96="","",U$4*Parâmetros!Q89/Parâmetros!$Q$4) ->  | V89: =IF(Propostas!$B96="","",SUM(C89:U89)) ->  | W89: =IF(Propostas!$C96="","",RANK(V89,$V$5:$V$203,0)) -> 
A90: =IF(Propostas!$C97="","",W90) ->  | B90: =Propostas!A97 -> 0 | C90: =IF(Propostas!$C97="","",C$4*Parâmetros!$C$4/Parâmetros!C90) ->  | D90: =IF(Propostas!$C97="","",D$4*(Parâmetros!D90-1)/(COUNT(Parâmetros!$C$5:$C$204)-1)) ->  | E90: =IF(Propostas!$C97="","",E$4*Parâmetros!E90/Parâmetros!$E$4) ->  | F90: =IF(Propostas!$C97="","",F$4*Parâmetros!F90) ->  | G90: =IF(Propostas!$C97="","",G$4*Parâmetros!G90) ->  | H90: =IF(Propostas!$C97="","",$H$4*Propostas!I97) ->  | I90: =IF(Propostas!$C97="","",$I$4*Propostas!J97) ->  | J90: =IF(Propostas!$C97="","",$J$4*Propostas!K97) ->  | K90: =IF(Propostas!$C97="","",$K$4*Propostas!L97) ->  | L90: =IF(Propostas!$C97="","",$L$4*Propostas!M97) ->  | M90: =IF(Propostas!$C97="","",$M$4*Propostas!N97) ->  | N90: =IF(Propostas!$C97="","",$N$4*Propostas!O97) ->  | O90: =IF(Propostas!$C97="","",$O$4*Propostas!P97) ->  | P90: =IF(Propostas!$C97="","",$P$4*Propostas!Q97) ->  | Q90: =IF(Propostas!$C97="","",$Q$4*Propostas!R97) ->  | R90: =IF(Propostas!$C97="","",$R$4*Propostas!S97) ->  | S90: =IF(Propostas!$C97="","",S$4*Parâmetros!$H90/Parâmetros!$H$4) ->  | T90: =IF(Propostas!$C97="","",T$4*Parâmetros!P90/Parâmetros!$P$4) ->  | U90: =IF(Propostas!$C97="","",U$4*Parâmetros!Q90/Parâmetros!$Q$4) ->  | V90: =IF(Propostas!$B97="","",SUM(C90:U90)) ->  | W90: =IF(Propostas!$C97="","",RANK(V90,$V$5:$V$203,0)) -> 
A91: =IF(Propostas!$C98="","",W91) ->  | B91: =Propostas!A98 -> 0 | C91: =IF(Propostas!$C98="","",C$4*Parâmetros!$C$4/Parâmetros!C91) ->  | D91: =IF(Propostas!$C98="","",D$4*(Parâmetros!D91-1)/(COUNT(Parâmetros!$C$5:$C$204)-1)) ->  | E91: =IF(Propostas!$C98="","",E$4*Parâmetros!E91/Parâmetros!$E$4) ->  | F91: =IF(Propostas!$C98="","",F$4*Parâmetros!F91) ->  | G91: =IF(Propostas!$C98="","",G$4*Parâmetros!G91) ->  | H91: =IF(Propostas!$C98="","",$H$4*Propostas!I98) ->  | I91: =IF(Propostas!$C98="","",$I$4*Propostas!J98) ->  | J91: =IF(Propostas!$C98="","",$J$4*Propostas!K98) ->  | K91: =IF(Propostas!$C98="","",$K$4*Propostas!L98) ->  | L91: =IF(Propostas!$C98="","",$L$4*Propostas!M98) ->  | M91: =IF(Propostas!$C98="","",$M$4*Propostas!N98) ->  | N91: =IF(Propostas!$C98="","",$N$4*Propostas!O98) ->  | O91: =IF(Propostas!$C98="","",$O$4*Propostas!P98) ->  | P91: =IF(Propostas!$C98="","",$P$4*Propostas!Q98) ->  | Q91: =IF(Propostas!$C98="","",$Q$4*Propostas!R98) ->  | R91: =IF(Propostas!$C98="","",$R$4*Propostas!S98) ->  | S91: =IF(Propostas!$C98="","",S$4*Parâmetros!$H91/Parâmetros!$H$4) ->  | T91: =IF(Propostas!$C98="","",T$4*Parâmetros!P91/Parâmetros!$P$4) ->  | U91: =IF(Propostas!$C98="","",U$4*Parâmetros!Q91/Parâmetros!$Q$4) ->  | V91: =IF(Propostas!$B98="","",SUM(C91:U91)) ->  | W91: =IF(Propostas!$C98="","",RANK(V91,$V$5:$V$203,0)) -> 
A92: =IF(Propostas!$C99="","",W92) ->  | B92: =Propostas!A99 -> 0 | C92: =IF(Propostas!$C99="","",C$4*Parâmetros!$C$4/Parâmetros!C92) ->  | D92: =IF(Propostas!$C99="","",D$4*(Parâmetros!D92-1)/(COUNT(Parâmetros!$C$5:$C$204)-1)) ->  | E92: =IF(Propostas!$C99="","",E$4*Parâmetros!E92/Parâmetros!$E$4) ->  | F92: =IF(Propostas!$C99="","",F$4*Parâmetros!F92) ->  | G92: =IF(Propostas!$C99="","",G$4*Parâmetros!G92) ->  | H92: =IF(Propostas!$C99="","",$H$4*Propostas!I99) ->  | I92: =IF(Propostas!$C99="","",$I$4*Propostas!J99) ->  | J92: =IF(Propostas!$C99="","",$J$4*Propostas!K99) ->  | K92: =IF(Propostas!$C99="","",$K$4*Propostas!L99) ->  | L92: =IF(Propostas!$C99="","",$L$4*Propostas!M99) ->  | M92: =IF(Propostas!$C99="","",$M$4*Propostas!N99) ->  | N92: =IF(Propostas!$C99="","",$N$4*Propostas!O99) ->  | O92: =IF(Propostas!$C99="","",$O$4*Propostas!P99) ->  | P92: =IF(Propostas!$C99="","",$P$4*Propostas!Q99) ->  | Q92: =IF(Propostas!$C99="","",$Q$4*Propostas!R99) ->  | R92: =IF(Propostas!$C99="","",$R$4*Propostas!S99) ->  | S92: =IF(Propostas!$C99="","",S$4*Parâmetros!$H92/Parâmetros!$H$4) ->  | T92: =IF(Propostas!$C99="","",T$4*Parâmetros!P92/Parâmetros!$P$4) ->  | U92: =IF(Propostas!$C99="","",U$4*Parâmetros!Q92/Parâmetros!$Q$4) ->  | V92: =IF(Propostas!$B99="","",SUM(C92:U92)) ->  | W92: =IF(Propostas!$C99="","",RANK(V92,$V$5:$V$203,0)) -> 
A93: =IF(Propostas!$C100="","",W93) ->  | B93: =Propostas!A100 -> 0 | C93: =IF(Propostas!$C100="","",C$4*Parâmetros!$C$4/Parâmetros!C93) ->  | D93: =IF(Propostas!$C100="","",D$4*(Parâmetros!D93-1)/(COUNT(Parâmetros!$C$5:$C$204)-1)) ->  | E93: =IF(Propostas!$C100="","",E$4*Parâmetros!E93/Parâmetros!$E$4) ->  | F93: =IF(Propostas!$C100="","",F$4*Parâmetros!F93) ->  | G93: =IF(Propostas!$C100="","",G$4*Parâmetros!G93) ->  | H93: =IF(Propostas!$C100="","",$H$4*Propostas!I100) ->  | I93: =IF(Propostas!$C100="","",$I$4*Propostas!J100) ->  | J93: =IF(Propostas!$C100="","",$J$4*Propostas!K100) ->  | K93: =IF(Propostas!$C100="","",$K$4*Propostas!L100) ->  | L93: =IF(Propostas!$C100="","",$L$4*Propostas!M100) ->  | M93: =IF(Propostas!$C100="","",$M$4*Propostas!N100) ->  | N93: =IF(Propostas!$C100="","",$N$4*Propostas!O100) ->  | O93: =IF(Propostas!$C100="","",$O$4*Propostas!P100) ->  | P93: =IF(Propostas!$C100="","",$P$4*Propostas!Q100) ->  | Q93: =IF(Propostas!$C100="","",$Q$4*Propostas!R100) ->  | R93: =IF(Propostas!$C100="","",$R$4*Propostas!S100) ->  | S93: =IF(Propostas!$C100="","",S$4*Parâmetros!$H93/Parâmetros!$H$4) ->  | T93: =IF(Propostas!$C100="","",T$4*Parâmetros!P93/Parâmetros!$P$4) ->  | U93: =IF(Propostas!$C100="","",U$4*Parâmetros!Q93/Parâmetros!$Q$4) ->  | V93: =IF(Propostas!$B100="","",SUM(C93:U93)) ->  | W93: =IF(Propostas!$C100="","",RANK(V93,$V$5:$V$203,0)) -> 
A94: =IF(Propostas!$C101="","",W94) ->  | B94: =Propostas!A101 -> 0 | C94: =IF(Propostas!$C101="","",C$4*Parâmetros!$C$4/Parâmetros!C94) ->  | D94: =IF(Propostas!$C101="","",D$4*(Parâmetros!D94-1)/(COUNT(Parâmetros!$C$5:$C$204)-1)) ->  | E94: =IF(Propostas!$C101="","",E$4*Parâmetros!E94/Parâmetros!$E$4) ->  | F94: =IF(Propostas!$C101="","",F$4*Parâmetros!F94) ->  | G94: =IF(Propostas!$C101="","",G$4*Parâmetros!G94) ->  | H94: =IF(Propostas!$C101="","",$H$4*Propostas!I101) ->  | I94: =IF(Propostas!$C101="","",$I$4*Propostas!J101) ->  | J94: =IF(Propostas!$C101="","",$J$4*Propostas!K101) ->  | K94: =IF(Propostas!$C101="","",$K$4*Propostas!L101) ->  | L94: =IF(Propostas!$C101="","",$L$4*Propostas!M101) ->  | M94: =IF(Propostas!$C101="","",$M$4*Propostas!N101) ->  | N94: =IF(Propostas!$C101="","",$N$4*Propostas!O101) ->  | O94: =IF(Propostas!$C101="","",$O$4*Propostas!P101) ->  | P94: =IF(Propostas!$C101="","",$P$4*Propostas!Q101) ->  | Q94: =IF(Propostas!$C101="","",$Q$4*Propostas!R101) ->  | R94: =IF(Propostas!$C101="","",$R$4*Propostas!S101) ->  | S94: =IF(Propostas!$C101="","",S$4*Parâmetros!$H94/Parâmetros!$H$4) ->  | T94: =IF(Propostas!$C101="","",T$4*Parâmetros!P94/Parâmetros!$P$4) ->  | U94: =IF(Propostas!$C101="","",U$4*Parâmetros!Q94/Parâmetros!$Q$4) ->  | V94: =IF(Propostas!$B101="","",SUM(C94:U94)) ->  | W94: =IF(Propostas!$C101="","",RANK(V94,$V$5:$V$203,0)) -> 
A95: =IF(Propostas!$C102="","",W95) ->  | B95: =Propostas!A102 -> 0 | C95: =IF(Propostas!$C102="","",C$4*Parâmetros!$C$4/Parâmetros!C95) ->  | D95: =IF(Propostas!$C102="","",D$4*(Parâmetros!D95-1)/(COUNT(Parâmetros!$C$5:$C$204)-1)) ->  | E95: =IF(Propostas!$C102="","",E$4*Parâmetros!E95/Parâmetros!$E$4) ->  | F95: =IF(Propostas!$C102="","",F$4*Parâmetros!F95) ->  | G95: =IF(Propostas!$C102="","",G$4*Parâmetros!G95) ->  | H95: =IF(Propostas!$C102="","",$H$4*Propostas!I102) ->  | I95: =IF(Propostas!$C102="","",$I$4*Propostas!J102) ->  | J95: =IF(Propostas!$C102="","",$J$4*Propostas!K102) ->  | K95: =IF(Propostas!$C102="","",$K$4*Propostas!L102) ->  | L95: =IF(Propostas!$C102="","",$L$4*Propostas!M102) ->  | M95: =IF(Propostas!$C102="","",$M$4*Propostas!N102) ->  | N95: =IF(Propostas!$C102="","",$N$4*Propostas!O102) ->  | O95: =IF(Propostas!$C102="","",$O$4*Propostas!P102) ->  | P95: =IF(Propostas!$C102="","",$P$4*Propostas!Q102) ->  | Q95: =IF(Propostas!$C102="","",$Q$4*Propostas!R102) ->  | R95: =IF(Propostas!$C102="","",$R$4*Propostas!S102) ->  | S95: =IF(Propostas!$C102="","",S$4*Parâmetros!$H95/Parâmetros!$H$4) ->  | T95: =IF(Propostas!$C102="","",T$4*Parâmetros!P95/Parâmetros!$P$4) ->  | U95: =IF(Propostas!$C102="","",U$4*Parâmetros!Q95/Parâmetros!$Q$4) ->  | V95: =IF(Propostas!$B102="","",SUM(C95:U95)) ->  | W95: =IF(Propostas!$C102="","",RANK(V95,$V$5:$V$203,0)) -> 
A96: =IF(Propostas!$C103="","",W96) ->  | B96: =Propostas!A103 -> 0 | C96: =IF(Propostas!$C103="","",C$4*Parâmetros!$C$4/Parâmetros!C96) ->  | D96: =IF(Propostas!$C103="","",D$4*(Parâmetros!D96-1)/(COUNT(Parâmetros!$C$5:$C$204)-1)) ->  | E96: =IF(Propostas!$C103="","",E$4*Parâmetros!E96/Parâmetros!$E$4) ->  | F96: =IF(Propostas!$C103="","",F$4*Parâmetros!F96) ->  | G96: =IF(Propostas!$C103="","",G$4*Parâmetros!G96) ->  | H96: =IF(Propostas!$C103="","",$H$4*Propostas!I103) ->  | I96: =IF(Propostas!$C103="","",$I$4*Propostas!J103) ->  | J96: =IF(Propostas!$C103="","",$J$4*Propostas!K103) ->  | K96: =IF(Propostas!$C103="","",$K$4*Propostas!L103) ->  | L96: =IF(Propostas!$C103="","",$L$4*Propostas!M103) ->  | M96: =IF(Propostas!$C103="","",$M$4*Propostas!N103) ->  | N96: =IF(Propostas!$C103="","",$N$4*Propostas!O103) ->  | O96: =IF(Propostas!$C103="","",$O$4*Propostas!P103) ->  | P96: =IF(Propostas!$C103="","",$P$4*Propostas!Q103) ->  | Q96: =IF(Propostas!$C103="","",$Q$4*Propostas!R103) ->  | R96: =IF(Propostas!$C103="","",$R$4*Propostas!S103) ->  | S96: =IF(Propostas!$C103="","",S$4*Parâmetros!$H96/Parâmetros!$H$4) ->  | T96: =IF(Propostas!$C103="","",T$4*Parâmetros!P96/Parâmetros!$P$4) ->  | U96: =IF(Propostas!$C103="","",U$4*Parâmetros!Q96/Parâmetros!$Q$4) ->  | V96: =IF(Propostas!$B103="","",SUM(C96:U96)) ->  | W96: =IF(Propostas!$C103="","",RANK(V96,$V$5:$V$203,0)) -> 
A97: =IF(Propostas!$C104="","",W97) ->  | B97: =Propostas!A104 -> 0 | C97: =IF(Propostas!$C104="","",C$4*Parâmetros!$C$4/Parâmetros!C97) ->  | D97: =IF(Propostas!$C104="","",D$4*(Parâmetros!D97-1)/(COUNT(Parâmetros!$C$5:$C$204)-1)) ->  | E97: =IF(Propostas!$C104="","",E$4*Parâmetros!E97/Parâmetros!$E$4) ->  | F97: =IF(Propostas!$C104="","",F$4*Parâmetros!F97) ->  | G97: =IF(Propostas!$C104="","",G$4*Parâmetros!G97) ->  | H97: =IF(Propostas!$C104="","",$H$4*Propostas!I104) ->  | I97: =IF(Propostas!$C104="","",$I$4*Propostas!J104) ->  | J97: =IF(Propostas!$C104="","",$J$4*Propostas!K104) ->  | K97: =IF(Propostas!$C104="","",$K$4*Propostas!L104) ->  | L97: =IF(Propostas!$C104="","",$L$4*Propostas!M104) ->  | M97: =IF(Propostas!$C104="","",$M$4*Propostas!N104) ->  | N97: =IF(Propostas!$C104="","",$N$4*Propostas!O104) ->  | O97: =IF(Propostas!$C104="","",$O$4*Propostas!P104) ->  | P97: =IF(Propostas!$C104="","",$P$4*Propostas!Q104) ->  | Q97: =IF(Propostas!$C104="","",$Q$4*Propostas!R104) ->  | R97: =IF(Propostas!$C104="","",$R$4*Propostas!S104) ->  | S97: =IF(Propostas!$C104="","",S$4*Parâmetros!$H97/Parâmetros!$H$4) ->  | T97: =IF(Propostas!$C104="","",T$4*Parâmetros!P97/Parâmetros!$P$4) ->  | U97: =IF(Propostas!$C104="","",U$4*Parâmetros!Q97/Parâmetros!$Q$4) ->  | V97: =IF(Propostas!$B104="","",SUM(C97:U97)) ->  | W97: =IF(Propostas!$C104="","",RANK(V97,$V$5:$V$203,0)) -> 
A98: =IF(Propostas!$C105="","",W98) ->  | B98: =Propostas!A105 -> 0 | C98: =IF(Propostas!$C105="","",C$4*Parâmetros!$C$4/Parâmetros!C98) ->  | D98: =IF(Propostas!$C105="","",D$4*(Parâmetros!D98-1)/(COUNT(Parâmetros!$C$5:$C$204)-1)) ->  | E98: =IF(Propostas!$C105="","",E$4*Parâmetros!E98/Parâmetros!$E$4) ->  | F98: =IF(Propostas!$C105="","",F$4*Parâmetros!F98) ->  | G98: =IF(Propostas!$C105="","",G$4*Parâmetros!G98) ->  | H98: =IF(Propostas!$C105="","",$H$4*Propostas!I105) ->  | I98: =IF(Propostas!$C105="","",$I$4*Propostas!J105) ->  | J98: =IF(Propostas!$C105="","",$J$4*Propostas!K105) ->  | K98: =IF(Propostas!$C105="","",$K$4*Propostas!L105) ->  | L98: =IF(Propostas!$C105="","",$L$4*Propostas!M105) ->  | M98: =IF(Propostas!$C105="","",$M$4*Propostas!N105) ->  | N98: =IF(Propostas!$C105="","",$N$4*Propostas!O105) ->  | O98: =IF(Propostas!$C105="","",$O$4*Propostas!P105) ->  | P98: =IF(Propostas!$C105="","",$P$4*Propostas!Q105) ->  | Q98: =IF(Propostas!$C105="","",$Q$4*Propostas!R105) ->  | R98: =IF(Propostas!$C105="","",$R$4*Propostas!S105) ->  | S98: =IF(Propostas!$C105="","",S$4*Parâmetros!$H98/Parâmetros!$H$4) ->  | T98: =IF(Propostas!$C105="","",T$4*Parâmetros!P98/Parâmetros!$P$4) ->  | U98: =IF(Propostas!$C105="","",U$4*Parâmetros!Q98/Parâmetros!$Q$4) ->  | V98: =IF(Propostas!$B105="","",SUM(C98:U98)) ->  | W98: =IF(Propostas!$C105="","",RANK(V98,$V$5:$V$203,0)) -> 
A99: =IF(Propostas!$C106="","",W99) ->  | B99: =Propostas!A106 -> 0 | C99: =IF(Propostas!$C106="","",C$4*Parâmetros!$C$4/Parâmetros!C99) ->  | D99: =IF(Propostas!$C106="","",D$4*(Parâmetros!D99-1)/(COUNT(Parâmetros!$C$5:$C$204)-1)) ->  | E99: =IF(Propostas!$C106="","",E$4*Parâmetros!E99/Parâmetros!$E$4) ->  | F99: =IF(Propostas!$C106="","",F$4*Parâmetros!F99) ->  | G99: =IF(Propostas!$C106="","",G$4*Parâmetros!G99) ->  | H99: =IF(Propostas!$C106="","",$H$4*Propostas!I106) ->  | I99: =IF(Propostas!$C106="","",$I$4*Propostas!J106) ->  | J99: =IF(Propostas!$C106="","",$J$4*Propostas!K106) ->  | K99: =IF(Propostas!$C106="","",$K$4*Propostas!L106) ->  | L99: =IF(Propostas!$C106="","",$L$4*Propostas!M106) ->  | M99: =IF(Propostas!$C106="","",$M$4*Propostas!N106) ->  | N99: =IF(Propostas!$C106="","",$N$4*Propostas!O106) ->  | O99: =IF(Propostas!$C106="","",$O$4*Propostas!P106) ->  | P99: =IF(Propostas!$C106="","",$P$4*Propostas!Q106) ->  | Q99: =IF(Propostas!$C106="","",$Q$4*Propostas!R106) ->  | R99: =IF(Propostas!$C106="","",$R$4*Propostas!S106) ->  | S99: =IF(Propostas!$C106="","",S$4*Parâmetros!$H99/Parâmetros!$H$4) ->  | T99: =IF(Propostas!$C106="","",T$4*Parâmetros!P99/Parâmetros!$P$4) ->  | U99: =IF(Propostas!$C106="","",U$4*Parâmetros!Q99/Parâmetros!$Q$4) ->  | V99: =IF(Propostas!$B106="","",SUM(C99:U99)) ->  | W99: =IF(Propostas!$C106="","",RANK(V99,$V$5:$V$203,0)) -> 
A100: =IF(Propostas!$C107="","",W100) ->  | B100: =Propostas!A107 -> 0 | C100: =IF(Propostas!$C107="","",C$4*Parâmetros!$C$4/Parâmetros!C100) ->  | D100: =IF(Propostas!$C107="","",D$4*(Parâmetros!D100-1)/(COUNT(Parâmetros!$C$5:$C$204)-1)) ->  | E100: =IF(Propostas!$C107="","",E$4*Parâmetros!E100/Parâmetros!$E$4) ->  | F100: =IF(Propostas!$C107="","",F$4*Parâmetros!F100) ->  | G100: =IF(Propostas!$C107="","",G$4*Parâmetros!G100) ->  | H100: =IF(Propostas!$C107="","",$H$4*Propostas!I107) ->  | I100: =IF(Propostas!$C107="","",$I$4*Propostas!J107) ->  | J100: =IF(Propostas!$C107="","",$J$4*Propostas!K107) ->  | K100: =IF(Propostas!$C107="","",$K$4*Propostas!L107) ->  | L100: =IF(Propostas!$C107="","",$L$4*Propostas!M107) ->  | M100: =IF(Propostas!$C107="","",$M$4*Propostas!N107) ->  | N100: =IF(Propostas!$C107="","",$N$4*Propostas!O107) ->  | O100: =IF(Propostas!$C107="","",$O$4*Propostas!P107) ->  | P100: =IF(Propostas!$C107="","",$P$4*Propostas!Q107) ->  | Q100: =IF(Propostas!$C107="","",$Q$4*Propostas!R107) ->  | R100: =IF(Propostas!$C107="","",$R$4*Propostas!S107) ->  | S100: =IF(Propostas!$C107="","",S$4*Parâmetros!$H100/Parâmetros!$H$4) ->  | T100: =IF(Propostas!$C107="","",T$4*Parâmetros!P100/Parâmetros!$P$4) ->  | U100: =IF(Propostas!$C107="","",U$4*Parâmetros!Q100/Parâmetros!$Q$4) ->  | V100: =IF(Propostas!$B107="","",SUM(C100:U100)) ->  | W100: =IF(Propostas!$C107="","",RANK(V100,$V$5:$V$203,0)) -> 
A101: =IF(Propostas!$C108="","",W101) ->  | B101: =Propostas!A108 -> 0 | C101: =IF(Propostas!$C108="","",C$4*Parâmetros!$C$4/Parâmetros!C101) ->  | D101: =IF(Propostas!$C108="","",D$4*(Parâmetros!D101-1)/(COUNT(Parâmetros!$C$5:$C$204)-1)) ->  | E101: =IF(Propostas!$C108="","",E$4*Parâmetros!E101/Parâmetros!$E$4) ->  | F101: =IF(Propostas!$C108="","",F$4*Parâmetros!F101) ->  | G101: =IF(Propostas!$C108="","",G$4*Parâmetros!G101) ->  | H101: =IF(Propostas!$C108="","",$H$4*Propostas!I108) ->  | I101: =IF(Propostas!$C108="","",$I$4*Propostas!J108) ->  | J101: =IF(Propostas!$C108="","",$J$4*Propostas!K108) ->  | K101: =IF(Propostas!$C108="","",$K$4*Propostas!L108) ->  | L101: =IF(Propostas!$C108="","",$L$4*Propostas!M108) ->  | M101: =IF(Propostas!$C108="","",$M$4*Propostas!N108) ->  | N101: =IF(Propostas!$C108="","",$N$4*Propostas!O108) ->  | O101: =IF(Propostas!$C108="","",$O$4*Propostas!P108) ->  | P101: =IF(Propostas!$C108="","",$P$4*Propostas!Q108) ->  | Q101: =IF(Propostas!$C108="","",$Q$4*Propostas!R108) ->  | R101: =IF(Propostas!$C108="","",$R$4*Propostas!S108) ->  | S101: =IF(Propostas!$C108="","",S$4*Parâmetros!$H101/Parâmetros!$H$4) ->  | T101: =IF(Propostas!$C108="","",T$4*Parâmetros!P101/Parâmetros!$P$4) ->  | U101: =IF(Propostas!$C108="","",U$4*Parâmetros!Q101/Parâmetros!$Q$4) ->  | V101: =IF(Propostas!$B108="","",SUM(C101:U101)) ->  | W101: =IF(Propostas!$C108="","",RANK(V101,$V$5:$V$203,0)) -> 
A102: =IF(Propostas!$C109="","",W102) ->  | B102: =Propostas!A109 -> 0 | C102: =IF(Propostas!$C109="","",C$4*Parâmetros!$C$4/Parâmetros!C102) ->  | D102: =IF(Propostas!$C109="","",D$4*(Parâmetros!D102-1)/(COUNT(Parâmetros!$C$5:$C$204)-1)) ->  | E102: =IF(Propostas!$C109="","",E$4*Parâmetros!E102/Parâmetros!$E$4) ->  | F102: =IF(Propostas!$C109="","",F$4*Parâmetros!F102) ->  | G102: =IF(Propostas!$C109="","",G$4*Parâmetros!G102) ->  | H102: =IF(Propostas!$C109="","",$H$4*Propostas!I109) ->  | I102: =IF(Propostas!$C109="","",$I$4*Propostas!J109) ->  | J102: =IF(Propostas!$C109="","",$J$4*Propostas!K109) ->  | K102: =IF(Propostas!$C109="","",$K$4*Propostas!L109) ->  | L102: =IF(Propostas!$C109="","",$L$4*Propostas!M109) ->  | M102: =IF(Propostas!$C109="","",$M$4*Propostas!N109) ->  | N102: =IF(Propostas!$C109="","",$N$4*Propostas!O109) ->  | O102: =IF(Propostas!$C109="","",$O$4*Propostas!P109) ->  | P102: =IF(Propostas!$C109="","",$P$4*Propostas!Q109) ->  | Q102: =IF(Propostas!$C109="","",$Q$4*Propostas!R109) ->  | R102: =IF(Propostas!$C109="","",$R$4*Propostas!S109) ->  | S102: =IF(Propostas!$C109="","",S$4*Parâmetros!$H102/Parâmetros!$H$4) ->  | T102: =IF(Propostas!$C109="","",T$4*Parâmetros!P102/Parâmetros!$P$4) ->  | U102: =IF(Propostas!$C109="","",U$4*Parâmetros!Q102/Parâmetros!$Q$4) ->  | V102: =IF(Propostas!$B109="","",SUM(C102:U102)) ->  | W102: =IF(Propostas!$C109="","",RANK(V102,$V$5:$V$203,0)) -> 
A103: =IF(Propostas!$C110="","",W103) ->  | B103: =Propostas!A110 -> 0 | C103: =IF(Propostas!$C110="","",C$4*Parâmetros!$C$4/Parâmetros!C103) ->  | D103: =IF(Propostas!$C110="","",D$4*(Parâmetros!D103-1)/(COUNT(Parâmetros!$C$5:$C$204)-1)) ->  | E103: =IF(Propostas!$C110="","",E$4*Parâmetros!E103/Parâmetros!$E$4) ->  | F103: =IF(Propostas!$C110="","",F$4*Parâmetros!F103) ->  | G103: =IF(Propostas!$C110="","",G$4*Parâmetros!G103) ->  | H103: =IF(Propostas!$C110="","",$H$4*Propostas!I110) ->  | I103: =IF(Propostas!$C110="","",$I$4*Propostas!J110) ->  | J103: =IF(Propostas!$C110="","",$J$4*Propostas!K110) ->  | K103: =IF(Propostas!$C110="","",$K$4*Propostas!L110) ->  | L103: =IF(Propostas!$C110="","",$L$4*Propostas!M110) ->  | M103: =IF(Propostas!$C110="","",$M$4*Propostas!N110) ->  | N103: =IF(Propostas!$C110="","",$N$4*Propostas!O110) ->  | O103: =IF(Propostas!$C110="","",$O$4*Propostas!P110) ->  | P103: =IF(Propostas!$C110="","",$P$4*Propostas!Q110) ->  | Q103: =IF(Propostas!$C110="","",$Q$4*Propostas!R110) ->  | R103: =IF(Propostas!$C110="","",$R$4*Propostas!S110) ->  | S103: =IF(Propostas!$C110="","",S$4*Parâmetros!$H103/Parâmetros!$H$4) ->  | T103: =IF(Propostas!$C110="","",T$4*Parâmetros!P103/Parâmetros!$P$4) ->  | U103: =IF(Propostas!$C110="","",U$4*Parâmetros!Q103/Parâmetros!$Q$4) ->  | V103: =IF(Propostas!$B110="","",SUM(C103:U103)) ->  | W103: =IF(Propostas!$C110="","",RANK(V103,$V$5:$V$203,0)) -> 
A104: =IF(Propostas!$C111="","",W104) ->  | B104: =Propostas!A111 -> 0 | C104: =IF(Propostas!$C111="","",C$4*Parâmetros!$C$4/Parâmetros!C104) ->  | D104: =IF(Propostas!$C111="","",D$4*(Parâmetros!D104-1)/(COUNT(Parâmetros!$C$5:$C$204)-1)) ->  | E104: =IF(Propostas!$C111="","",E$4*Parâmetros!E104/Parâmetros!$E$4) ->  | F104: =IF(Propostas!$C111="","",F$4*Parâmetros!F104) ->  | G104: =IF(Propostas!$C111="","",G$4*Parâmetros!G104) ->  | H104: =IF(Propostas!$C111="","",$H$4*Propostas!I111) ->  | I104: =IF(Propostas!$C111="","",$I$4*Propostas!J111) ->  | J104: =IF(Propostas!$C111="","",$J$4*Propostas!K111) ->  | K104: =IF(Propostas!$C111="","",$K$4*Propostas!L111) ->  | L104: =IF(Propostas!$C111="","",$L$4*Propostas!M111) ->  | M104: =IF(Propostas!$C111="","",$M$4*Propostas!N111) ->  | N104: =IF(Propostas!$C111="","",$N$4*Propostas!O111) ->  | O104: =IF(Propostas!$C111="","",$O$4*Propostas!P111) ->  | P104: =IF(Propostas!$C111="","",$P$4*Propostas!Q111) ->  | Q104: =IF(Propostas!$C111="","",$Q$4*Propostas!R111) ->  | R104: =IF(Propostas!$C111="","",$R$4*Propostas!S111) ->  | S104: =IF(Propostas!$C111="","",S$4*Parâmetros!$H104/Parâmetros!$H$4) ->  | T104: =IF(Propostas!$C111="","",T$4*Parâmetros!P104/Parâmetros!$P$4) ->  | U104: =IF(Propostas!$C111="","",U$4*Parâmetros!Q104/Parâmetros!$Q$4) ->  | V104: =IF(Propostas!$B111="","",SUM(C104:U104)) ->  | W104: =IF(Propostas!$C111="","",RANK(V104,$V$5:$V$203,0)) -> 
A105: =IF(Propostas!$C112="","",W105) ->  | B105: =Propostas!A112 -> 0 | C105: =IF(Propostas!$C112="","",C$4*Parâmetros!$C$4/Parâmetros!C105) ->  | D105: =IF(Propostas!$C112="","",D$4*(Parâmetros!D105-1)/(COUNT(Parâmetros!$C$5:$C$204)-1)) ->  | E105: =IF(Propostas!$C112="","",E$4*Parâmetros!E105/Parâmetros!$E$4) ->  | F105: =IF(Propostas!$C112="","",F$4*Parâmetros!F105) ->  | G105: =IF(Propostas!$C112="","",G$4*Parâmetros!G105) ->  | H105: =IF(Propostas!$C112="","",$H$4*Propostas!I112) ->  | I105: =IF(Propostas!$C112="","",$I$4*Propostas!J112) ->  | J105: =IF(Propostas!$C112="","",$J$4*Propostas!K112) ->  | K105: =IF(Propostas!$C112="","",$K$4*Propostas!L112) ->  | L105: =IF(Propostas!$C112="","",$L$4*Propostas!M112) ->  | M105: =IF(Propostas!$C112="","",$M$4*Propostas!N112) ->  | N105: =IF(Propostas!$C112="","",$N$4*Propostas!O112) ->  | O105: =IF(Propostas!$C112="","",$O$4*Propostas!P112) ->  | P105: =IF(Propostas!$C112="","",$P$4*Propostas!Q112) ->  | Q105: =IF(Propostas!$C112="","",$Q$4*Propostas!R112) ->  | R105: =IF(Propostas!$C112="","",$R$4*Propostas!S112) ->  | S105: =IF(Propostas!$C112="","",S$4*Parâmetros!$H105/Parâmetros!$H$4) ->  | T105: =IF(Propostas!$C112="","",T$4*Parâmetros!P105/Parâmetros!$P$4) ->  | U105: =IF(Propostas!$C112="","",U$4*Parâmetros!Q105/Parâmetros!$Q$4) ->  | V105: =IF(Propostas!$B112="","",SUM(C105:U105)) ->  | W105: =IF(Propostas!$C112="","",RANK(V105,$V$5:$V$203,0)) -> 
A106: =IF(Propostas!$C113="","",W106) ->  | B106: =Propostas!A113 -> 0 | C106: =IF(Propostas!$C113="","",C$4*Parâmetros!$C$4/Parâmetros!C106) ->  | D106: =IF(Propostas!$C113="","",D$4*(Parâmetros!D106-1)/(COUNT(Parâmetros!$C$5:$C$204)-1)) ->  | E106: =IF(Propostas!$C113="","",E$4*Parâmetros!E106/Parâmetros!$E$4) ->  | F106: =IF(Propostas!$C113="","",F$4*Parâmetros!F106) ->  | G106: =IF(Propostas!$C113="","",G$4*Parâmetros!G106) ->  | H106: =IF(Propostas!$C113="","",$H$4*Propostas!I113) ->  | I106: =IF(Propostas!$C113="","",$I$4*Propostas!J113) ->  | J106: =IF(Propostas!$C113="","",$J$4*Propostas!K113) ->  | K106: =IF(Propostas!$C113="","",$K$4*Propostas!L113) ->  | L106: =IF(Propostas!$C113="","",$L$4*Propostas!M113) ->  | M106: =IF(Propostas!$C113="","",$M$4*Propostas!N113) ->  | N106: =IF(Propostas!$C113="","",$N$4*Propostas!O113) ->  | O106: =IF(Propostas!$C113="","",$O$4*Propostas!P113) ->  | P106: =IF(Propostas!$C113="","",$P$4*Propostas!Q113) ->  | Q106: =IF(Propostas!$C113="","",$Q$4*Propostas!R113) ->  | R106: =IF(Propostas!$C113="","",$R$4*Propostas!S113) ->  | S106: =IF(Propostas!$C113="","",S$4*Parâmetros!$H106/Parâmetros!$H$4) ->  | T106: =IF(Propostas!$C113="","",T$4*Parâmetros!P106/Parâmetros!$P$4) ->  | U106: =IF(Propostas!$C113="","",U$4*Parâmetros!Q106/Parâmetros!$Q$4) ->  | V106: =IF(Propostas!$B113="","",SUM(C106:U106)) ->  | W106: =IF(Propostas!$C113="","",RANK(V106,$V$5:$V$203,0)) -> 
A107: =IF(Propostas!$C114="","",W107) ->  | B107: =Propostas!A114 -> 0 | C107: =IF(Propostas!$C114="","",C$4*Parâmetros!$C$4/Parâmetros!C107) ->  | D107: =IF(Propostas!$C114="","",D$4*(Parâmetros!D107-1)/(COUNT(Parâmetros!$C$5:$C$204)-1)) ->  | E107: =IF(Propostas!$C114="","",E$4*Parâmetros!E107/Parâmetros!$E$4) ->  | F107: =IF(Propostas!$C114="","",F$4*Parâmetros!F107) ->  | G107: =IF(Propostas!$C114="","",G$4*Parâmetros!G107) ->  | H107: =IF(Propostas!$C114="","",$H$4*Propostas!I114) ->  | I107: =IF(Propostas!$C114="","",$I$4*Propostas!J114) ->  | J107: =IF(Propostas!$C114="","",$J$4*Propostas!K114) ->  | K107: =IF(Propostas!$C114="","",$K$4*Propostas!L114) ->  | L107: =IF(Propostas!$C114="","",$L$4*Propostas!M114) ->  | M107: =IF(Propostas!$C114="","",$M$4*Propostas!N114) ->  | N107: =IF(Propostas!$C114="","",$N$4*Propostas!O114) ->  | O107: =IF(Propostas!$C114="","",$O$4*Propostas!P114) ->  | P107: =IF(Propostas!$C114="","",$P$4*Propostas!Q114) ->  | Q107: =IF(Propostas!$C114="","",$Q$4*Propostas!R114) ->  | R107: =IF(Propostas!$C114="","",$R$4*Propostas!S114) ->  | S107: =IF(Propostas!$C114="","",S$4*Parâmetros!$H107/Parâmetros!$H$4) ->  | T107: =IF(Propostas!$C114="","",T$4*Parâmetros!P107/Parâmetros!$P$4) ->  | U107: =IF(Propostas!$C114="","",U$4*Parâmetros!Q107/Parâmetros!$Q$4) ->  | V107: =IF(Propostas!$B114="","",SUM(C107:U107)) ->  | W107: =IF(Propostas!$C114="","",RANK(V107,$V$5:$V$203,0)) -> 
A108: =IF(Propostas!$C115="","",W108) ->  | B108: =Propostas!A115 -> 0 | C108: =IF(Propostas!$C115="","",C$4*Parâmetros!$C$4/Parâmetros!C108) ->  | D108: =IF(Propostas!$C115="","",D$4*(Parâmetros!D108-1)/(COUNT(Parâmetros!$C$5:$C$204)-1)) ->  | E108: =IF(Propostas!$C115="","",E$4*Parâmetros!E108/Parâmetros!$E$4) ->  | F108: =IF(Propostas!$C115="","",F$4*Parâmetros!F108) ->  | G108: =IF(Propostas!$C115="","",G$4*Parâmetros!G108) ->  | H108: =IF(Propostas!$C115="","",$H$4*Propostas!I115) ->  | I108: =IF(Propostas!$C115="","",$I$4*Propostas!J115) ->  | J108: =IF(Propostas!$C115="","",$J$4*Propostas!K115) ->  | K108: =IF(Propostas!$C115="","",$K$4*Propostas!L115) ->  | L108: =IF(Propostas!$C115="","",$L$4*Propostas!M115) ->  | M108: =IF(Propostas!$C115="","",$M$4*Propostas!N115) ->  | N108: =IF(Propostas!$C115="","",$N$4*Propostas!O115) ->  | O108: =IF(Propostas!$C115="","",$O$4*Propostas!P115) ->  | P108: =IF(Propostas!$C115="","",$P$4*Propostas!Q115) ->  | Q108: =IF(Propostas!$C115="","",$Q$4*Propostas!R115) ->  | R108: =IF(Propostas!$C115="","",$R$4*Propostas!S115) ->  | S108: =IF(Propostas!$C115="","",S$4*Parâmetros!$H108/Parâmetros!$H$4) ->  | T108: =IF(Propostas!$C115="","",T$4*Parâmetros!P108/Parâmetros!$P$4) ->  | U108: =IF(Propostas!$C115="","",U$4*Parâmetros!Q108/Parâmetros!$Q$4) ->  | V108: =IF(Propostas!$B115="","",SUM(C108:U108)) ->  | W108: =IF(Propostas!$C115="","",RANK(V108,$V$5:$V$203,0)) -> 
A109: =IF(Propostas!$C116="","",W109) ->  | B109: =Propostas!A116 -> 0 | C109: =IF(Propostas!$C116="","",C$4*Parâmetros!$C$4/Parâmetros!C109) ->  | D109: =IF(Propostas!$C116="","",D$4*(Parâmetros!D109-1)/(COUNT(Parâmetros!$C$5:$C$204)-1)) ->  | E109: =IF(Propostas!$C116="","",E$4*Parâmetros!E109/Parâmetros!$E$4) ->  | F109: =IF(Propostas!$C116="","",F$4*Parâmetros!F109) ->  | G109: =IF(Propostas!$C116="","",G$4*Parâmetros!G109) ->  | H109: =IF(Propostas!$C116="","",$H$4*Propostas!I116) ->  | I109: =IF(Propostas!$C116="","",$I$4*Propostas!J116) ->  | J109: =IF(Propostas!$C116="","",$J$4*Propostas!K116) ->  | K109: =IF(Propostas!$C116="","",$K$4*Propostas!L116) ->  | L109: =IF(Propostas!$C116="","",$L$4*Propostas!M116) ->  | M109: =IF(Propostas!$C116="","",$M$4*Propostas!N116) ->  | N109: =IF(Propostas!$C116="","",$N$4*Propostas!O116) ->  | O109: =IF(Propostas!$C116="","",$O$4*Propostas!P116) ->  | P109: =IF(Propostas!$C116="","",$P$4*Propostas!Q116) ->  | Q109: =IF(Propostas!$C116="","",$Q$4*Propostas!R116) ->  | R109: =IF(Propostas!$C116="","",$R$4*Propostas!S116) ->  | S109: =IF(Propostas!$C116="","",S$4*Parâmetros!$H109/Parâmetros!$H$4) ->  | T109: =IF(Propostas!$C116="","",T$4*Parâmetros!P109/Parâmetros!$P$4) ->  | U109: =IF(Propostas!$C116="","",U$4*Parâmetros!Q109/Parâmetros!$Q$4) ->  | V109: =IF(Propostas!$B116="","",SUM(C109:U109)) ->  | W109: =IF(Propostas!$C116="","",RANK(V109,$V$5:$V$203,0)) -> 
A110: =IF(Propostas!$C117="","",W110) ->  | B110: =Propostas!A117 -> 0 | C110: =IF(Propostas!$C117="","",C$4*Parâmetros!$C$4/Parâmetros!C110) ->  | D110: =IF(Propostas!$C117="","",D$4*(Parâmetros!D110-1)/(COUNT(Parâmetros!$C$5:$C$204)-1)) ->  | E110: =IF(Propostas!$C117="","",E$4*Parâmetros!E110/Parâmetros!$E$4) ->  | F110: =IF(Propostas!$C117="","",F$4*Parâmetros!F110) ->  | G110: =IF(Propostas!$C117="","",G$4*Parâmetros!G110) ->  | H110: =IF(Propostas!$C117="","",$H$4*Propostas!I117) ->  | I110: =IF(Propostas!$C117="","",$I$4*Propostas!J117) ->  | J110: =IF(Propostas!$C117="","",$J$4*Propostas!K117) ->  | K110: =IF(Propostas!$C117="","",$K$4*Propostas!L117) ->  | L110: =IF(Propostas!$C117="","",$L$4*Propostas!M117) ->  | M110: =IF(Propostas!$C117="","",$M$4*Propostas!N117) ->  | N110: =IF(Propostas!$C117="","",$N$4*Propostas!O117) ->  | O110: =IF(Propostas!$C117="","",$O$4*Propostas!P117) ->  | P110: =IF(Propostas!$C117="","",$P$4*Propostas!Q117) ->  | Q110: =IF(Propostas!$C117="","",$Q$4*Propostas!R117) ->  | R110: =IF(Propostas!$C117="","",$R$4*Propostas!S117) ->  | S110: =IF(Propostas!$C117="","",S$4*Parâmetros!$H110/Parâmetros!$H$4) ->  | T110: =IF(Propostas!$C117="","",T$4*Parâmetros!P110/Parâmetros!$P$4) ->  | U110: =IF(Propostas!$C117="","",U$4*Parâmetros!Q110/Parâmetros!$Q$4) ->  | V110: =IF(Propostas!$B117="","",SUM(C110:U110)) ->  | W110: =IF(Propostas!$C117="","",RANK(V110,$V$5:$V$203,0)) -> 
A111: =IF(Propostas!$C118="","",W111) ->  | B111: =Propostas!A118 -> 0 | C111: =IF(Propostas!$C118="","",C$4*Parâmetros!$C$4/Parâmetros!C111) ->  | D111: =IF(Propostas!$C118="","",D$4*(Parâmetros!D111-1)/(COUNT(Parâmetros!$C$5:$C$204)-1)) ->  | E111: =IF(Propostas!$C118="","",E$4*Parâmetros!E111/Parâmetros!$E$4) ->  | F111: =IF(Propostas!$C118="","",F$4*Parâmetros!F111) ->  | G111: =IF(Propostas!$C118="","",G$4*Parâmetros!G111) ->  | H111: =IF(Propostas!$C118="","",$H$4*Propostas!I118) ->  | I111: =IF(Propostas!$C118="","",$I$4*Propostas!J118) ->  | J111: =IF(Propostas!$C118="","",$J$4*Propostas!K118) ->  | K111: =IF(Propostas!$C118="","",$K$4*Propostas!L118) ->  | L111: =IF(Propostas!$C118="","",$L$4*Propostas!M118) ->  | M111: =IF(Propostas!$C118="","",$M$4*Propostas!N118) ->  | N111: =IF(Propostas!$C118="","",$N$4*Propostas!O118) ->  | O111: =IF(Propostas!$C118="","",$O$4*Propostas!P118) ->  | P111: =IF(Propostas!$C118="","",$P$4*Propostas!Q118) ->  | Q111: =IF(Propostas!$C118="","",$Q$4*Propostas!R118) ->  | R111: =IF(Propostas!$C118="","",$R$4*Propostas!S118) ->  | S111: =IF(Propostas!$C118="","",S$4*Parâmetros!$H111/Parâmetros!$H$4) ->  | T111: =IF(Propostas!$C118="","",T$4*Parâmetros!P111/Parâmetros!$P$4) ->  | U111: =IF(Propostas!$C118="","",U$4*Parâmetros!Q111/Parâmetros!$Q$4) ->  | V111: =IF(Propostas!$B118="","",SUM(C111:U111)) ->  | W111: =IF(Propostas!$C118="","",RANK(V111,$V$5:$V$203,0)) -> 
A112: =IF(Propostas!$C119="","",W112) ->  | B112: =Propostas!A119 -> 0 | C112: =IF(Propostas!$C119="","",C$4*Parâmetros!$C$4/Parâmetros!C112) ->  | D112: =IF(Propostas!$C119="","",D$4*(Parâmetros!D112-1)/(COUNT(Parâmetros!$C$5:$C$204)-1)) ->  | E112: =IF(Propostas!$C119="","",E$4*Parâmetros!E112/Parâmetros!$E$4) ->  | F112: =IF(Propostas!$C119="","",F$4*Parâmetros!F112) ->  | G112: =IF(Propostas!$C119="","",G$4*Parâmetros!G112) ->  | H112: =IF(Propostas!$C119="","",$H$4*Propostas!I119) ->  | I112: =IF(Propostas!$C119="","",$I$4*Propostas!J119) ->  | J112: =IF(Propostas!$C119="","",$J$4*Propostas!K119) ->  | K112: =IF(Propostas!$C119="","",$K$4*Propostas!L119) ->  | L112: =IF(Propostas!$C119="","",$L$4*Propostas!M119) ->  | M112: =IF(Propostas!$C119="","",$M$4*Propostas!N119) ->  | N112: =IF(Propostas!$C119="","",$N$4*Propostas!O119) ->  | O112: =IF(Propostas!$C119="","",$O$4*Propostas!P119) ->  | P112: =IF(Propostas!$C119="","",$P$4*Propostas!Q119) ->  | Q112: =IF(Propostas!$C119="","",$Q$4*Propostas!R119) ->  | R112: =IF(Propostas!$C119="","",$R$4*Propostas!S119) ->  | S112: =IF(Propostas!$C119="","",S$4*Parâmetros!$H112/Parâmetros!$H$4) ->  | T112: =IF(Propostas!$C119="","",T$4*Parâmetros!P112/Parâmetros!$P$4) ->  | U112: =IF(Propostas!$C119="","",U$4*Parâmetros!Q112/Parâmetros!$Q$4) ->  | V112: =IF(Propostas!$B119="","",SUM(C112:U112)) ->  | W112: =IF(Propostas!$C119="","",RANK(V112,$V$5:$V$203,0)) -> 
A113: =IF(Propostas!$C120="","",W113) ->  | C113: =IF(Propostas!$C120="","",C$4*Parâmetros!$C$4/Parâmetros!C113) ->  | D113: =IF(Propostas!$C120="","",D$4*(Parâmetros!D113-1)/(COUNT(Parâmetros!$C$5:$C$204)-1)) ->  | E113: =IF(Propostas!$C120="","",E$4*Parâmetros!E113/Parâmetros!$E$4) ->  | F113: =IF(Propostas!$C120="","",F$4*Parâmetros!F113) ->  | G113: =IF(Propostas!$C120="","",G$4*Parâmetros!G113) ->  | H113: =IF(Propostas!$C120="","",$H$4*Propostas!I120) ->  | I113: =IF(Propostas!$C120="","",$I$4*Propostas!J120) ->  | J113: =IF(Propostas!$C120="","",$J$4*Propostas!K120) ->  | K113: =IF(Propostas!$C120="","",$K$4*Propostas!L120) ->  | L113: =IF(Propostas!$C120="","",$L$4*Propostas!M120) ->  | M113: =IF(Propostas!$C120="","",$M$4*Propostas!N120) ->  | N113: =IF(Propostas!$C120="","",$N$4*Propostas!O120) ->  | O113: =IF(Propostas!$C120="","",$O$4*Propostas!P120) ->  | P113: =IF(Propostas!$C120="","",$P$4*Propostas!Q120) ->  | Q113: =IF(Propostas!$C120="","",$Q$4*Propostas!R120) ->  | R113: =IF(Propostas!$C120="","",$R$4*Propostas!S120) ->  | S113: =IF(Propostas!$C120="","",S$4*Parâmetros!$H113/Parâmetros!$H$4) ->  | T113: =IF(Propostas!$C120="","",T$4*Parâmetros!P113/Parâmetros!$P$4) ->  | U113: =IF(Propostas!$C120="","",U$4*Parâmetros!Q113/Parâmetros!$Q$4) ->  | V113: =IF(Propostas!$B120="","",SUM(C113:U113)) ->  | W113: =IF(Propostas!$C120="","",RANK(V113,$V$5:$V$203,0)) -> 
A114: =IF(Propostas!$C121="","",W114) ->  | C114: =IF(Propostas!$C121="","",C$4*Parâmetros!$C$4/Parâmetros!C114) ->  | D114: =IF(Propostas!$C121="","",D$4*(Parâmetros!D114-1)/(COUNT(Parâmetros!$C$5:$C$204)-1)) ->  | E114: =IF(Propostas!$C121="","",E$4*Parâmetros!E114/Parâmetros!$E$4) ->  | F114: =IF(Propostas!$C121="","",F$4*Parâmetros!F114) ->  | G114: =IF(Propostas!$C121="","",G$4*Parâmetros!G114) ->  | H114: =IF(Propostas!$C121="","",$H$4*Propostas!I121) ->  | I114: =IF(Propostas!$C121="","",$I$4*Propostas!J121) ->  | J114: =IF(Propostas!$C121="","",$J$4*Propostas!K121) ->  | K114: =IF(Propostas!$C121="","",$K$4*Propostas!L121) ->  | L114: =IF(Propostas!$C121="","",$L$4*Propostas!M121) ->  | M114: =IF(Propostas!$C121="","",$M$4*Propostas!N121) ->  | N114: =IF(Propostas!$C121="","",$N$4*Propostas!O121) ->  | O114: =IF(Propostas!$C121="","",$O$4*Propostas!P121) ->  | P114: =IF(Propostas!$C121="","",$P$4*Propostas!Q121) ->  | Q114: =IF(Propostas!$C121="","",$Q$4*Propostas!R121) ->  | R114: =IF(Propostas!$C121="","",$R$4*Propostas!S121) ->  | S114: =IF(Propostas!$C121="","",S$4*Parâmetros!$H114/Parâmetros!$H$4) ->  | T114: =IF(Propostas!$C121="","",T$4*Parâmetros!P114/Parâmetros!$P$4) ->  | U114: =IF(Propostas!$C121="","",U$4*Parâmetros!Q114/Parâmetros!$Q$4) ->  | V114: =IF(Propostas!$B121="","",SUM(C114:U114)) ->  | W114: =IF(Propostas!$C121="","",RANK(V114,$V$5:$V$203,0)) -> 
A115: =IF(Propostas!$C122="","",W115) ->  | C115: =IF(Propostas!$C122="","",C$4*Parâmetros!$C$4/Parâmetros!C115) ->  | D115: =IF(Propostas!$C122="","",D$4*(Parâmetros!D115-1)/(COUNT(Parâmetros!$C$5:$C$204)-1)) ->  | E115: =IF(Propostas!$C122="","",E$4*Parâmetros!E115/Parâmetros!$E$4) ->  | F115: =IF(Propostas!$C122="","",F$4*Parâmetros!F115) ->  | G115: =IF(Propostas!$C122="","",G$4*Parâmetros!G115) ->  | H115: =IF(Propostas!$C122="","",$H$4*Propostas!I122) ->  | I115: =IF(Propostas!$C122="","",$I$4*Propostas!J122) ->  | J115: =IF(Propostas!$C122="","",$J$4*Propostas!K122) ->  | K115: =IF(Propostas!$C122="","",$K$4*Propostas!L122) ->  | L115: =IF(Propostas!$C122="","",$L$4*Propostas!M122) ->  | M115: =IF(Propostas!$C122="","",$M$4*Propostas!N122) ->  | N115: =IF(Propostas!$C122="","",$N$4*Propostas!O122) ->  | O115: =IF(Propostas!$C122="","",$O$4*Propostas!P122) ->  | P115: =IF(Propostas!$C122="","",$P$4*Propostas!Q122) ->  | Q115: =IF(Propostas!$C122="","",$Q$4*Propostas!R122) ->  | R115: =IF(Propostas!$C122="","",$R$4*Propostas!S122) ->  | S115: =IF(Propostas!$C122="","",S$4*Parâmetros!$H115/Parâmetros!$H$4) ->  | T115: =IF(Propostas!$C122="","",T$4*Parâmetros!P115/Parâmetros!$P$4) ->  | U115: =IF(Propostas!$C122="","",U$4*Parâmetros!Q115/Parâmetros!$Q$4) ->  | V115: =IF(Propostas!$B122="","",SUM(C115:U115)) ->  | W115: =IF(Propostas!$C122="","",RANK(V115,$V$5:$V$203,0)) -> 

Sheet Ordenada
C1: A | E1: B | F1: C | H1: D | L1: E | O1: F | S1: G | T1: H | U1: I
C2: A1 | D2: A2 | E2: B | F2: C1 | G2: C2 | H2: D1 | I2: D2 | J2: D3 | K2: D4 | L2: E1 | M2: E2 | N2: E3 | O2: F1 | P2: F2 | Q2: F3 | R2: F4 | S2: G | T2: H | U2: I
A3: Ordem | B3: Proposta | C3: Relação custo-benefício proporcional | D3: Relação custo-benefício ordenada | E3: Peso do investimento em equipamentos no custo total | F3: Impacto direto na economia de energia | G3: Impacto direto na redução de demanda na ponta | H3: Qualidade global da apresentação do projeto | I3: Bases da proposta | J3: Consistência do cronograma apresentado | K3: Estratégia de M&V | L3: Eficácia na quebra de barreiras de mercado | M3: Induz comportamentos de uso eficiente da energia | N3: Destina-se a segmentos com barreiras mais relevantes | O3: Experiência nos usos finais propostos | P3: Experiência no PEE | Q3: Certificação CMVP da EVO | R3: Outras certificações pertinentes | S3: Contrapartida | T3: Diversidade e priorização de usos finais | U3: Ações educacionais | V3: Total | W3: Ordem | X3: Investimento PEE [mil R$] | Y3: Investimento disponibilizado [mil R$] | Z3: Aprovada | AA3: Investimento aprovado [mil R$]
B4: Máximo | C4: =Pontuação!C4 -> 24 | D4: =Pontuação!D4 -> 8 | E4: =Pontuação!E4 -> 5 | F4: =Pontuação!F4 -> 8 | G4: =Pontuação!G4 -> 5 | H4: =Pontuação!H4 -> 3 | I4: =Pontuação!I4 -> 2 | J4: =Pontuação!J4 -> 3 | K4: =Pontuação!K4 -> 4 | L4: =Pontuação!L4 -> 1 | M4: =Pontuação!M4 -> 2 | N4: =Pontuação!N4 -> 0 | O4: =Pontuação!O4 -> 6 | P4: =Pontuação!P4 -> 3 | Q4: =Pontuação!Q4 -> 3 | R4: =Pontuação!R4 -> 3 | S4: =Pontuação!S4 -> 10 | T4: =Pontuação!T4 -> 5 | U4: =Pontuação!U4 -> 5 | V4: =SUM(C4:U4) -> 100 | Y4: 6000 | Z4: S/N | AA4: =SUMIF(Z:Z,"S",X:X) -> 4936.43673
